Workbook

Sheet Sheet1
B1: sprat 1 | P1: sprat 2 | AR1: sprat 3 | BT1: sprat 4 | CV1: sprat 5 | DX1: sprat 6 | EZ1: sprat 7
B2: stan 1 | F2: =IF(D3="","",CONCATENATE("-TEXT ",D3,",",E3," 1 0 ",$B$1," - ",B2)) -> -TEXT 1000,1000 1 0 sprat 1 - stan 1 | I2: stan 2 | M2: =IF(K3="","",CONCATENATE("-TEXT ",K3,",",L3," 1 0 ",$B$1," - ",I2)) -> -TEXT 1030,1000 1 0 sprat 1 - stan 2 | P2: stan 1 | T2: =IF(R3="","",CONCATENATE("-TEXT ",R3,",",S3," 1 0 ",B1," - ",P2)) -> -TEXT 1060,1000 1 0 sprat 1 - stan 1 | W2: stan 2 | AA2: =IF(Y3="","",CONCATENATE("-TEXT ",Y3,",",Z3," 1 0 ",$P$1," - ",W2)) -> -TEXT 1090,900 1 0 sprat 2 - stan 2 | AD2: stan 3 | AH2: =IF(AF3="","",CONCATENATE("-TEXT ",AF3,",",AG3," 1 0 ",$P$1," - ",AD2)) -> -TEXT 1120,900 1 0 sprat 2 - stan 3 | AK2: stan 4 | AO2: =IF(AM3="","",CONCATENATE("-TEXT ",AM3,",",AN3," 1 0 ",$P$1," - ",AK2)) -> -TEXT 1150,900 1 0 sprat 2 - stan 4 | AR2: stan 1 | AV2: =IF(AT3="","",CONCATENATE("-TEXT ",AT3,",",AU3," 1 0 ",$AR$1," - ",AR2)) -> -TEXT 1180,800 1 0 sprat 3 - stan 1 | AY2: stan 2 | BC2: =IF(BA3="","",CONCATENATE("-TEXT ",BA3,",",BB3," 1 0 ",$AR$1," - ",AY2)) -> -TEXT 1210,800 1 0 sprat 3 - stan 2 | BF2: stan 3 | BJ2: =IF(BH3="","",CONCATENATE("-TEXT ",BH3,",",BI3," 1 0 ",$AR$1," - ",BF2)) -> -TEXT 1240,800 1 0 sprat 3 - stan 3 | BM2: stan 4 | BQ2: =IF(BO3="","",CONCATENATE("-TEXT ",BO3,",",BP3," 1 0 ",$AR$1," - ",BM2)) -> -TEXT 1270,800 1 0 sprat 3 - stan 4 | BT2: stan 1 | BX2: =IF(BV3="","",CONCATENATE("-TEXT ",BV3,",",BW3," 1 0 ",$BT$1," - ",BT2)) -> -TEXT 1300,700 1 0 sprat 4 - stan 1 | CA2: stan 2 | CE2: =IF(CC3="","",CONCATENATE("-TEXT ",CC3,",",CD3," 1 0 ",$BT$1," - ",CA2)) -> -TEXT 1330,700 1 0 sprat 4 - stan 2 | CH2: stan 3 | CL2: =IF(CJ3="","",CONCATENATE("-TEXT ",CJ3,",",CK3," 1 0 ",$BT$1," - ",CH2)) -> -TEXT 1360,700 1 0 sprat 4 - stan 3 | CO2: stan 4 | CS2: =IF(CQ3="","",CONCATENATE("-TEXT ",CQ3,",",CR3," 1 0 ",$BT$1," - ",CO2)) -> -TEXT 1390,700 1 0 sprat 4 - stan 4 | CV2: stan 1 | CZ2: =IF(CX3="","",CONCATENATE("-TEXT ",CX3,",",CY3," 1 0 ",$CV$1," - ",CV2)) -> -TEXT 1420,600 1 0 sprat 5 - stan 1 | DC2: stan 2 | DG2: =IF(DE3="","",CONCATENATE("-TEXT ",DE3,",",DF3," 1 0 ",$CV$1," - ",DC2)) -> -TEXT 1450,600 1 0 sprat 5 - stan 2 | DJ2: stan 3 | DN2: =IF(DL3="","",CONCATENATE("-TEXT ",DL3,",",DM3," 1 0 ",$CV$1," - ",DJ2)) -> -TEXT 1480,600 1 0 sprat 5 - stan 3 | DQ2: stan 4 | DU2: =IF(DS3="","",CONCATENATE("-TEXT ",DS3,",",DT3," 1 0 ",$CV$1," - ",DQ2)) -> -TEXT 1510,600 1 0 sprat 5 - stan 4 | DX2: stan 1 | EB2: =IF(DZ3="","",CONCATENATE("-TEXT ",DZ3,",",EA3," 1 0 ",$DX$1," - ",DX2)) -> -TEXT 1540,500 1 0 sprat 6 - stan 1 | EE2: stan 2 | EI2: =IF(EG3="","",CONCATENATE("-TEXT ",EG3,",",EH3," 1 0 ",$DX$1," - ",EE2)) -> -TEXT 1570,500 1 0 sprat 6 - stan 2 | EL2: stan 3 | EP2: =IF(EN3="","",CONCATENATE("-TEXT ",EN3,",",EO3," 1 0 ",$DX$1," - ",EL2)) -> -TEXT 1600,500 1 0 sprat 6 - stan 3 | ES2: stan 4 | EW2: =IF(EU3="","",CONCATENATE("-TEXT ",EU3,",",EV3," 1 0 ",$DX$1," - ",ES2)) -> -TEXT 1630,500 1 0 sprat 6 - stan 4 | EZ2: stan 1 | FD2: =IF(FB3="","",CONCATENATE("-TEXT ",FB3,",",FC3," 1 0 ",$EZ$1," - ",EZ2)) -> -TEXT 1660,400 1 0 sprat 7 - stan 1 | FG2: stan 2 | FK2: =IF(FI3="","",CONCATENATE("-TEXT ",FI3,",",FJ3," 1 0 ",$EZ$1," - ",FG2)) -> -TEXT 1690,400 1 0 sprat 7 - stan 2 | FN2: stan 1 | FR2: =IF(FP3="","",CONCATENATE("-TEXT ",FP3,",",FQ3," 1 0 ",$EZ$1," - ",FN2)) -> -TEXT 1720,400 1 0 sprat 7 - stan 1 | FU2: stan 2 | FY2: =IF(FW3="","",CONCATENATE("-TEXT ",FW3,",",FX3," 1 0 ",$EZ$1," - ",FU2)) -> -TEXT 1750,400 1 0 sprat 7 - stan 2 | GB2: stan 1 | GF2: =IF(GD3="","",CONCATENATE("-TEXT ",GD3,",",GE3," 1 0 ",$EZ$1," - ",GB2)) -> -TEXT 1780,400 1 0 sprat 7 - stan 1 | GI2: stan 2 | GM2: =IF(GK3="","",CONCATENATE("-TEXT ",GK3,",",GL3," 1 0 ",$EZ$1," - ",GI2)) -> -TEXT 1810,400 1 0 sprat 7 - stan 2 | GP2: stan 1 | GT2: =IF(GR3="","",CONCATENATE("-TEXT ",GR3,",",GS3," 1 0 ",$EZ$1," - ",GP2)) -> -TEXT 1840,400 1 0 sprat 7 - stan 1 | GW2: stan 2 | HA2: =IF(GY3="","",CONCATENATE("-TEXT ",GY3,",",GZ3," 1 0 ",$EZ$1," - ",GW2)) -> -TEXT 1870,400 1 0 sprat 7 - stan 2 | HD2: stan 1 | HH2: =IF(HF3="","",CONCATENATE("-TEXT ",HF3,",",HG3," 1 0 ",$EZ$1," - ",HD2)) -> -TEXT 1900,400 1 0 sprat 7 - stan 1 | HK2: stan 2 | HO2: =IF(HM3="","",CONCATENATE("-TEXT ",HM3,",",HN3," 1 0 ",$EZ$1," - ",HK2)) -> -TEXT 1930,400 1 0 sprat 7 - stan 2 | HR2: stan 1 | HV2: =IF(HT3="","",CONCATENATE("-TEXT ",HT3,",",HU3," 1 0 ",$EZ$1," - ",HR2)) -> -TEXT 1960,400 1 0 sprat 7 - stan 1 | HY2: stan 2 | IC2: =IF(IA3="","",CONCATENATE("-TEXT ",IA3,",",IB3," 1 0 ",$EZ$1," - ",HY2)) -> -TEXT 1990,400 1 0 sprat 7 - stan 2 | IF2: stan 1 | IJ2: =IF(IH3="","",CONCATENATE("-TEXT ",IH3,",",II3," 1 0 ",$EZ$1," - ",IF2)) -> -TEXT 2020,400 1 0 sprat 7 - stan 1 | IM2: stan 2 | IQ2: =IF(IO3="","",CONCATENATE("-TEXT ",IO3,",",IP3," 1 0 ",$EZ$1," - ",IM2)) -> -TEXT 2050,400 1 0 sprat 7 - stan 2 | IT2: stan 1 | IX2: =IF(IV3="","",CONCATENATE("-TEXT ",IV3,",",IW3," 1 0 ",$EZ$1," - ",IT2)) -> -TEXT 2080,400 1 0 sprat 7 - stan 1 | JA2: stan 2 | JE2: =IF(JC3="","",CONCATENATE("-TEXT ",JC3,",",JD3," 1 0 ",$EZ$1," - ",JA2)) -> -TEXT 2110,400 1 0 sprat 7 - stan 2 | JH2: stan 1 | JL2: =IF(JJ3="","",CONCATENATE("-TEXT ",JJ3,",",JK3," 1 0 ",$EZ$1," - ",JH2)) -> -TEXT 2140,400 1 0 sprat 7 - stan 1 | JO2: stan 2 | JS2: =IF(JQ3="","",CONCATENATE("-TEXT ",JQ3,",",JR3," 1 0 ",$EZ$1," - ",JO2)) -> -TEXT 2170,400 1 0 sprat 7 - stan 2 | JV2: stan 1 | JZ2: =IF(JX3="","",CONCATENATE("-TEXT ",JX3,",",JY3," 1 0 ",$EZ$1," - ",JV2)) -> -TEXT 2200,400 1 0 sprat 7 - stan 1 | KC2: stan 2 | KG2: =IF(KE3="","",CONCATENATE("-TEXT ",KE3,",",KF3," 1 0 ",$EZ$1," - ",KC2)) -> -TEXT 2230,400 1 0 sprat 7 - stan 2 | KJ2: stan 1 | KN2: =IF(KL3="","",CONCATENATE("-TEXT ",KL3,",",KM3," 1 0 ",$EZ$1," - ",KJ2)) -> -TEXT 2260,400 1 0 sprat 7 - stan 1 | KQ2: stan 2 | KU2: =IF(KS3="","",CONCATENATE("-TEXT ",KS3,",",KT3," 1 0 ",$EZ$1," - ",KQ2)) -> -TEXT 2290,400 1 0 sprat 7 - stan 2 | KX2: stan 1 | LB2: =IF(KZ3="","",CONCATENATE("-TEXT ",KZ3,",",LA3," 1 0 ",$EZ$1," - ",KX2)) -> -TEXT 2320,400 1 0 sprat 7 - stan 1 | LE2: stan 2 | LI2: =IF(LG3="","",CONCATENATE("-TEXT ",LG3,",",LH3," 1 0 ",$EZ$1," - ",LE2)) -> -TEXT 2350,400 1 0 sprat 7 - stan 2 | LL2: stan 2 | LP2: =IF(LN3="","",CONCATENATE("-TEXT ",LN3,",",LO3," 1 0 ",$EZ$1," - ",LL2)) -> -TEXT 2380,400 1 0 sprat 7 - stan 2 | LS2: stan 2 | LW2: =IF(LU3="","",CONCATENATE("-TEXT ",LU3,",",LV3," 1 0 ",$EZ$1," - ",LS2)) -> -TEXT 2410,400 1 0 sprat 7 - stan 2 | LZ2: stan 2 | MD2: =IF(MB3="","",CONCATENATE("-TEXT ",MB3,",",MC3," 1 0 ",$EZ$1," - ",LZ2)) -> -TEXT 2440,400 1 0 sprat 7 - stan 2 | MG2: stan 2 | MK2: =IF(MI3="","",CONCATENATE("-TEXT ",MI3,",",MJ3," 1 0 ",$EZ$1," - ",MG2)) -> -TEXT 2470,400 1 0 sprat 7 - stan 2
D3: 1000 | E3: 1000 | F3: =IF(D3="","",CONCATENATE("pl ",D3,",",E3)) -> pl 1000,1000 | K3: 1030 | L3: 1000 | M3: =IF(K3="","",CONCATENATE("pl ",K3,",",L3)) -> pl 1030,1000 | R3: 1060 | S3: 1000 | T3: =IF(R3="","",CONCATENATE("pl ",R3,",",S3)) -> pl 1060,1000 | Y3: 1090 | Z3: 900 | AA3: =IF(Y3="","",CONCATENATE("pl ",Y3,",",Z3)) -> pl 1090,900 | AF3: =Y3+30 -> 1120 | AG3: 900 | AH3: =IF(AF3="","",CONCATENATE("pl ",AF3,",",AG3)) -> pl 1120,900 | AM3: =AF3+30 -> 1150 | AN3: 900 | AO3: =IF(AM3="","",CONCATENATE("pl ",AM3,",",AN3)) -> pl 1150,900 | AT3: =AM3+30 -> 1180 | AU3: 800 | AV3: =IF(AT3="","",CONCATENATE("pl ",AT3,",",AU3)) -> pl 1180,800 | BA3: =AT3+30 -> 1210 | BB3: 800 | BC3: =IF(BA3="","",CONCATENATE("pl ",BA3,",",BB3)) -> pl 1210,800 | BH3: =BA3+30 -> 1240 | BI3: 800 | BJ3: =IF(BH3="","",CONCATENATE("pl ",BH3,",",BI3)) -> pl 1240,800 | BO3: =BH3+30 -> 1270 | BP3: 800 | BQ3: =IF(BO3="","",CONCATENATE("pl ",BO3,",",BP3)) -> pl 1270,800 | BV3: =BO3+30 -> 1300 | BW3: 700 | BX3: =IF(BV3="","",CONCATENATE("pl ",BV3,",",BW3)) -> pl 1300,700 | CC3: =BV3+30 -> 1330 | CD3: 700 | CE3: =IF(CC3="","",CONCATENATE("pl ",CC3,",",CD3)) -> pl 1330,700 | CJ3: =CC3+30 -> 1360 | CK3: 700 | CL3: =IF(CJ3="","",CONCATENATE("pl ",CJ3,",",CK3)) -> pl 1360,700 | CQ3: =CJ3+30 -> 1390 | CR3: 700 | CS3: =IF(CQ3="","",CONCATENATE("pl ",CQ3,",",CR3)) -> pl 1390,700 | CX3: =CQ3+30 -> 1420 | CY3: 600 | CZ3: =IF(CX3="","",CONCATENATE("pl ",CX3,",",CY3)) -> pl 1420,600 | DE3: =CX3+30 -> 1450 | DF3: 600 | DG3: =IF(DE3="","",CONCATENATE("pl ",DE3,",",DF3)) -> pl 1450,600 | DL3: =DE3+30 -> 1480 | DM3: 600 | DN3: =IF(DL3="","",CONCATENATE("pl ",DL3,",",DM3)) -> pl 1480,600 | DS3: =DL3+30 -> 1510 | DT3: 600 | DU3: =IF(DS3="","",CONCATENATE("pl ",DS3,",",DT3)) -> pl 1510,600 | DZ3: =DS3+30 -> 1540 | EA3: 500 | EB3: =IF(DZ3="","",CONCATENATE("pl ",DZ3,",",EA3)) -> pl 1540,500 | EG3: =DZ3+30 -> 1570 | EH3: 500 | EI3: =IF(EG3="","",CONCATENATE("pl ",EG3,",",EH3)) -> pl 1570,500 | EN3: =EG3+30 -> 1600 | EO3: 500 | EP3: =IF(EN3="","",CONCATENATE("pl ",EN3,",",EO3)) -> pl 1600,500 | EU3: =EN3+30 -> 1630 | EV3: 500 | EW3: =IF(EU3="","",CONCATENATE("pl ",EU3,",",EV3)) -> pl 1630,500 | FB3: =EU3+30 -> 1660 | FC3: 400 | FD3: =IF(FB3="","",CONCATENATE("pl ",FB3,",",FC3)) -> pl 1660,400 | FI3: =FB3+30 -> 1690 | FJ3: 400 | FK3: =IF(FI3="","",CONCATENATE("pl ",FI3,",",FJ3)) -> pl 1690,400 | FP3: =FI3+30 -> 1720 | FQ3: 400 | FR3: =IF(FP3="","",CONCATENATE("pl ",FP3,",",FQ3)) -> pl 1720,400 | FW3: =FP3+30 -> 1750 | FX3: 400 | FY3: =IF(FW3="","",CONCATENATE("pl ",FW3,",",FX3)) -> pl 1750,400 | GD3: =FW3+30 -> 1780 | GE3: 400 | GF3: =IF(GD3="","",CONCATENATE("pl ",GD3,",",GE3)) -> pl 1780,400 | GK3: =GD3+30 -> 1810 | GL3: 400 | GM3: =IF(GK3="","",CONCATENATE("pl ",GK3,",",GL3)) -> pl 1810,400 | GR3: =GK3+30 -> 1840 | GS3: 400 | GT3: =IF(GR3="","",CONCATENATE("pl ",GR3,",",GS3)) -> pl 1840,400 | GY3: =GR3+30 -> 1870 | GZ3: 400 | HA3: =IF(GY3="","",CONCATENATE("pl ",GY3,",",GZ3)) -> pl 1870,400 | HF3: =GY3+30 -> 1900 | HG3: 400 | HH3: =IF(HF3="","",CONCATENATE("pl ",HF3,",",HG3)) -> pl 1900,400 | HM3: =HF3+30 -> 1930 | HN3: 400 | HO3: =IF(HM3="","",CONCATENATE("pl ",HM3,",",HN3)) -> pl 1930,400 | HT3: =HM3+30 -> 1960 | HU3: 400 | HV3: =IF(HT3="","",CONCATENATE("pl ",HT3,",",HU3)) -> pl 1960,400 | IA3: =HT3+30 -> 1990 | IB3: 400 | IC3: =IF(IA3="","",CONCATENATE("pl ",IA3,",",IB3)) -> pl 1990,400 | IH3: =IA3+30 -> 2020 | II3: 400 | IJ3: =IF(IH3="","",CONCATENATE("pl ",IH3,",",II3)) -> pl 2020,400 | IO3: =IH3+30 -> 2050 | IP3: 400 | IQ3: =IF(IO3="","",CONCATENATE("pl ",IO3,",",IP3)) -> pl 2050,400 | IV3: =IO3+30 -> 2080 | IW3: 400 | IX3: =IF(IV3="","",CONCATENATE("pl ",IV3,",",IW3)) -> pl 2080,400 | JC3: =IV3+30 -> 2110 | JD3: 400 | JE3: =IF(JC3="","",CONCATENATE("pl ",JC3,",",JD3)) -> pl 2110,400 | JJ3: =JC3+30 -> 2140 | JK3: 400 | JL3: =IF(JJ3="","",CONCATENATE("pl ",JJ3,",",JK3)) -> pl 2140,400 | JQ3: =JJ3+30 -> 2170 | JR3: 400 | JS3: =IF(JQ3="","",CONCATENATE("pl ",JQ3,",",JR3)) -> pl 2170,400 | JX3: =JQ3+30 -> 2200 | JY3: 400 | JZ3: =IF(JX3="","",CONCATENATE("pl ",JX3,",",JY3)) -> pl 2200,400 | KE3: =JX3+30 -> 2230 | KF3: 400 | KG3: =IF(KE3="","",CONCATENATE("pl ",KE3,",",KF3)) -> pl 2230,400 | KL3: =KE3+30 -> 2260 | KM3: 400 | KN3: =IF(KL3="","",CONCATENATE("pl ",KL3,",",KM3)) -> pl 2260,400 | KS3: =KL3+30 -> 2290 | KT3: 400 | KU3: =IF(KS3="","",CONCATENATE("pl ",KS3,",",KT3)) -> pl 2290,400 | KZ3: =KS3+30 -> 2320 | LA3: 400 | LB3: =IF(KZ3="","",CONCATENATE("pl ",KZ3,",",LA3)) -> pl 2320,400 | LG3: =KZ3+30 -> 2350 | LH3: 400 | LI3: =IF(LG3="","",CONCATENATE("pl ",LG3,",",LH3)) -> pl 2350,400 | LN3: =LG3+30 -> 2380 | LO3: 400 | LP3: =IF(LN3="","",CONCATENATE("pl ",LN3,",",LO3)) -> pl 2380,400 | LU3: =LN3+30 -> 2410 | LV3: 400 | LW3: =IF(LU3="","",CONCATENATE("pl ",LU3,",",LV3)) -> pl 2410,400 | MB3: =LU3+30 -> 2440 | MC3: 400 | MD3: =IF(MB3="","",CONCATENATE("pl ",MB3,",",MC3)) -> pl 2440,400 | MI3: =MB3+30 -> 2470 | MJ3: 400 | MK3: =IF(MI3="","",CONCATENATE("pl ",MI3,",",MJ3)) -> pl 2470,400
A4: =IF(AND(B3="",B4=""),"",IF(AND(B3>0,B4="",B5>0),1+A3,"0")) -> 0 | B4: 445 | C4: w | D4: =IF(AND(B4>0,C4="D"),D3+(B4*0.01),IF(AND(B4>0,C4="A"),D3-(B4*0.01),IF(AND(B4>0,C4="W"),D3,IF(AND(B4>0,C4="S"),D3,"")))) -> 1000 | E4: =IF(AND(B4>0,C4="D"),E3,IF(AND(B4>0,C4="A"),E3,IF(AND(B4>0,C4="W"),E3+(B4*0.01),IF(AND(B4>0,C4="S"),E3-(B4*0.01),"")))) -> 1004.45 | F4: =IF(AND(B4="",B5=""),"",IF(AND(B4="",B5>0),"end",CONCATENATE(D4,",",E4))) -> 1000,1004.45 | H4: =IF(AND(I3="",I4=""),"",IF(AND(I3>0,I4="",I5>0),1+H3,"0")) -> 0 | I4: 253 | J4: d | K4: =IF(AND(I4>0,J4="D"),K3+(I4*0.01),IF(AND(I4>0,J4="A"),K3-(I4*0.01),IF(AND(I4>0,J4="W"),K3,IF(AND(I4>0,J4="S"),K3,"")))) -> 1032.53 | L4: =IF(AND(I4>0,J4="D"),L3,IF(AND(I4>0,J4="A"),L3,IF(AND(I4>0,J4="W"),L3+(I4*0.01),IF(AND(I4>0,J4="S"),L3-(I4*0.01),"")))) -> 1000 | M4: =IF(AND(I4="",I5=""),"",IF(AND(I4="",I5>0),"end",CONCATENATE(K4,",",L4))) -> 1032.53,1000 | O4: =IF(AND(P3="",P4=""),"",IF(AND(P3>0,P4="",P5>0),1+O3,"0")) -> 0 | P4: 175 | Q4: d | R4: =IF(AND(P4>0,Q4="D"),R3+(P4*0.01),IF(AND(P4>0,Q4="A"),R3-(P4*0.01),IF(AND(P4>0,Q4="W"),R3,IF(AND(P4>0,Q4="S"),R3,"")))) -> 1061.75 | S4: =IF(AND(P4>0,Q4="D"),S3,IF(AND(P4>0,Q4="A"),S3,IF(AND(P4>0,Q4="W"),S3+(P4*0.01),IF(AND(P4>0,Q4="S"),S3-(P4*0.01),"")))) -> 1000 | T4: =IF(AND(P4="",P5=""),"",IF(AND(P4="",P5>0),"end",CONCATENATE(R4,",",S4))) -> 1061.75,1000 | V4: =IF(AND(W3="",W4=""),"",IF(AND(W3>0,W4="",W5>0),1+V3,"0")) -> 0 | W4: 315 | X4: w | Y4: =IF(AND(W4>0,X4="D"),Y3+(W4*0.01),IF(AND(W4>0,X4="A"),Y3-(W4*0.01),IF(AND(W4>0,X4="W"),Y3,IF(AND(W4>0,X4="S"),Y3,"")))) -> 1090 | Z4: =IF(AND(W4>0,X4="D"),Z3,IF(AND(W4>0,X4="A"),Z3,IF(AND(W4>0,X4="W"),Z3+(W4*0.01),IF(AND(W4>0,X4="S"),Z3-(W4*0.01),"")))) -> 903.15 | AA4: =IF(AND(W4="",W5=""),"",IF(AND(W4="",W5>0),"end",CONCATENATE(Y4,",",Z4))) -> 1090,903.15 | AC4: =IF(AND(AD3="",AD4=""),"",IF(AND(AD3>0,AD4="",AD5>0),1+AC3,"0")) -> 0 | AD4: 493 | AE4: w | AF4: =IF(AND(AD4>0,AE4="D"),AF3+(AD4*0.01),IF(AND(AD4>0,AE4="A"),AF3-(AD4*0.01),IF(AND(AD4>0,AE4="W"),AF3,IF(AND(AD4>0,AE4="S"),AF3,"")))) -> 1120 | AG4: =IF(AND(AD4>0,AE4="D"),AG3,IF(AND(AD4>0,AE4="A"),AG3,IF(AND(AD4>0,AE4="W"),AG3+(AD4*0.01),IF(AND(AD4>0,AE4="S"),AG3-(AD4*0.01),"")))) -> 904.93 | AH4: =IF(AND(AD4="",AD5=""),"",IF(AND(AD4="",AD5>0),"end",CONCATENATE(AF4,",",AG4))) -> 1120,904.93 | AJ4: =IF(AND(AK3="",AK4=""),"",IF(AND(AK3>0,AK4="",AK5>0),1+AJ3,"0")) -> 0 | AK4: 238 | AL4: w | AM4: =IF(AND(AK4>0,AL4="D"),AM3+(AK4*0.01),IF(AND(AK4>0,AL4="A"),AM3-(AK4*0.01),IF(AND(AK4>0,AL4="W"),AM3,IF(AND(AK4>0,AL4="S"),AM3,"")))) -> 1150 | AN4: =IF(AND(AK4>0,AL4="D"),AN3,IF(AND(AK4>0,AL4="A"),AN3,IF(AND(AK4>0,AL4="W"),AN3+(AK4*0.01),IF(AND(AK4>0,AL4="S"),AN3-(AK4*0.01),"")))) -> 902.38 | AO4: =IF(AND(AK4="",AK5=""),"",IF(AND(AK4="",AK5>0),"end",CONCATENATE(AM4,",",AN4))) -> 1150,902.38 | AQ4: =IF(AND(AR3="",AR4=""),"",IF(AND(AR3>0,AR4="",AR5>0),1+AQ3,"0")) -> 0 | AR4: 161 | AS4: d | AT4: =IF(AND(AR4>0,AS4="D"),AT3+(AR4*0.01),IF(AND(AR4>0,AS4="A"),AT3-(AR4*0.01),IF(AND(AR4>0,AS4="W"),AT3,IF(AND(AR4>0,AS4="S"),AT3,"")))) -> 1181.61 | AU4: =IF(AND(AR4>0,AS4="D"),AU3,IF(AND(AR4>0,AS4="A"),AU3,IF(AND(AR4>0,AS4="W"),AU3+(AR4*0.01),IF(AND(AR4>0,AS4="S"),AU3-(AR4*0.01),"")))) -> 800 | AV4: =IF(AND(AR4="",AR5=""),"",IF(AND(AR4="",AR5>0),"end",CONCATENATE(AT4,",",AU4))) -> 1181.61,800 | AX4: =IF(AND(AY3="",AY4=""),"",IF(AND(AY3>0,AY4="",AY5>0),1+AX3,"0")) -> 0 | AY4: 334 | AZ4: w | BA4: =IF(AND(AY4>0,AZ4="D"),BA3+(AY4*0.01),IF(AND(AY4>0,AZ4="A"),BA3-(AY4*0.01),IF(AND(AY4>0,AZ4="W"),BA3,IF(AND(AY4>0,AZ4="S"),BA3,"")))) -> 1210 | BB4: =IF(AND(AY4>0,AZ4="D"),BB3,IF(AND(AY4>0,AZ4="A"),BB3,IF(AND(AY4>0,AZ4="W"),BB3+(AY4*0.01),IF(AND(AY4>0,AZ4="S"),BB3-(AY4*0.01),"")))) -> 803.34 | BC4: =IF(AND(AY4="",AY5=""),"",IF(AND(AY4="",AY5>0),"end",CONCATENATE(BA4,",",BB4))) -> 1210,803.34 | BE4: =IF(AND(BF3="",BF4=""),"",IF(AND(BF3>0,BF4="",BF5>0),1+BE3,"0")) -> 0 | BF4: 268 | BG4: d | BH4: =IF(AND(BF4>0,BG4="D"),BH3+(BF4*0.01),IF(AND(BF4>0,BG4="A"),BH3-(BF4*0.01),IF(AND(BF4>0,BG4="W"),BH3,IF(AND(BF4>0,BG4="S"),BH3,"")))) -> 1242.68 | BI4: =IF(AND(BF4>0,BG4="D"),BI3,IF(AND(BF4>0,BG4="A"),BI3,IF(AND(BF4>0,BG4="W"),BI3+(BF4*0.01),IF(AND(BF4>0,BG4="S"),BI3-(BF4*0.01),"")))) -> 800 | BJ4: =IF(AND(BF4="",BF5=""),"",IF(AND(BF4="",BF5>0),"end",CONCATENATE(BH4,",",BI4))) -> 1242.68,800 | BL4: =IF(AND(BM3="",BM4=""),"",IF(AND(BM3>0,BM4="",BM5>0),1+BL3,"0")) -> 0 | BM4: 149 | BN4: w | BO4: =IF(AND(BM4>0,BN4="D"),BO3+(BM4*0.01),IF(AND(BM4>0,BN4="A"),BO3-(BM4*0.01),IF(AND(BM4>0,BN4="W"),BO3,IF(AND(BM4>0,BN4="S"),BO3,"")))) -> 1270 | BP4: =IF(AND(BM4>0,BN4="D"),BP3,IF(AND(BM4>0,BN4="A"),BP3,IF(AND(BM4>0,BN4="W"),BP3+(BM4*0.01),IF(AND(BM4>0,BN4="S"),BP3-(BM4*0.01),"")))) -> 801.49 | BQ4: =IF(AND(BM4="",BM5=""),"",IF(AND(BM4="",BM5>0),"end",CONCATENATE(BO4,",",BP4))) -> 1270,801.49 | BS4: =IF(AND(BT3="",BT4=""),"",IF(AND(BT3>0,BT4="",BT5>0),1+BS3,"0")) -> 0 | BT4: 104 | BU4: d | BV4: =IF(AND(BT4>0,BU4="D"),BV3+(BT4*0.01),IF(AND(BT4>0,BU4="A"),BV3-(BT4*0.01),IF(AND(BT4>0,BU4="W"),BV3,IF(AND(BT4>0,BU4="S"),BV3,"")))) -> 1301.04 | BW4: =IF(AND(BT4>0,BU4="D"),BW3,IF(AND(BT4>0,BU4="A"),BW3,IF(AND(BT4>0,BU4="W"),BW3+(BT4*0.01),IF(AND(BT4>0,BU4="S"),BW3-(BT4*0.01),"")))) -> 700 | BX4: =IF(AND(BT4="",BT5=""),"",IF(AND(BT4="",BT5>0),"end",CONCATENATE(BV4,",",BW4))) -> 1301.04,700 | BZ4: =IF(AND(CA3="",CA4=""),"",IF(AND(CA3>0,CA4="",CA5>0),1+BZ3,"0")) -> 0 | CA4: 253 | CB4: w | CC4: =IF(AND(CA4>0,CB4="D"),CC3+(CA4*0.01),IF(AND(CA4>0,CB4="A"),CC3-(CA4*0.01),IF(AND(CA4>0,CB4="W"),CC3,IF(AND(CA4>0,CB4="S"),CC3,"")))) -> 1330 | CD4: =IF(AND(CA4>0,CB4="D"),CD3,IF(AND(CA4>0,CB4="A"),CD3,IF(AND(CA4>0,CB4="W"),CD3+(CA4*0.01),IF(AND(CA4>0,CB4="S"),CD3-(CA4*0.01),"")))) -> 702.53 | CE4: =IF(AND(CA4="",CA5=""),"",IF(AND(CA4="",CA5>0),"end",CONCATENATE(CC4,",",CD4))) -> 1330,702.53 | CG4: =IF(AND(CH3="",CH4=""),"",IF(AND(CH3>0,CH4="",CH5>0),1+CG3,"0")) -> 0 | CH4: 142 | CI4: w | CJ4: =IF(AND(CH4>0,CI4="D"),CJ3+(CH4*0.01),IF(AND(CH4>0,CI4="A"),CJ3-(CH4*0.01),IF(AND(CH4>0,CI4="W"),CJ3,IF(AND(CH4>0,CI4="S"),CJ3,"")))) -> 1360 | CK4: =IF(AND(CH4>0,CI4="D"),CK3,IF(AND(CH4>0,CI4="A"),CK3,IF(AND(CH4>0,CI4="W"),CK3+(CH4*0.01),IF(AND(CH4>0,CI4="S"),CK3-(CH4*0.01),"")))) -> 701.42 | CL4: =IF(AND(CH4="",CH5=""),"",IF(AND(CH4="",CH5>0),"end",CONCATENATE(CJ4,",",CK4))) -> 1360,701.42 | CN4: =IF(AND(CO3="",CO4=""),"",IF(AND(CO3>0,CO4="",CO5>0),1+CN3,"0")) -> 0 | CO4: 151 | CP4: w | CQ4: =IF(AND(CO4>0,CP4="D"),CQ3+(CO4*0.01),IF(AND(CO4>0,CP4="A"),CQ3-(CO4*0.01),IF(AND(CO4>0,CP4="W"),CQ3,IF(AND(CO4>0,CP4="S"),CQ3,"")))) -> 1390 | CR4: =IF(AND(CO4>0,CP4="D"),CR3,IF(AND(CO4>0,CP4="A"),CR3,IF(AND(CO4>0,CP4="W"),CR3+(CO4*0.01),IF(AND(CO4>0,CP4="S"),CR3-(CO4*0.01),"")))) -> 701.51 | CS4: =IF(AND(CO4="",CO5=""),"",IF(AND(CO4="",CO5>0),"end",CONCATENATE(CQ4,",",CR4))) -> 1390,701.51 | CU4: =IF(AND(CV3="",CV4=""),"",IF(AND(CV3>0,CV4="",CV5>0),1+CU3,"0")) -> 0 | CV4: 176 | CW4: d | CX4: =IF(AND(CV4>0,CW4="D"),CX3+(CV4*0.01),IF(AND(CV4>0,CW4="A"),CX3-(CV4*0.01),IF(AND(CV4>0,CW4="W"),CX3,IF(AND(CV4>0,CW4="S"),CX3,"")))) -> 1421.76 | CY4: =IF(AND(CV4>0,CW4="D"),CY3,IF(AND(CV4>0,CW4="A"),CY3,IF(AND(CV4>0,CW4="W"),CY3+(CV4*0.01),IF(AND(CV4>0,CW4="S"),CY3-(CV4*0.01),"")))) -> 600 | CZ4: =IF(AND(CV4="",CV5=""),"",IF(AND(CV4="",CV5>0),"end",CONCATENATE(CX4,",",CY4))) -> 1421.76,600 | DB4: =IF(AND(DC3="",DC4=""),"",IF(AND(DC3>0,DC4="",DC5>0),1+DB3,"0")) -> 0 | DC4: 251 | DD4: W | DE4: =IF(AND(DC4>0,DD4="D"),DE3+(DC4*0.01),IF(AND(DC4>0,DD4="A"),DE3-(DC4*0.01),IF(AND(DC4>0,DD4="W"),DE3,IF(AND(DC4>0,DD4="S"),DE3,"")))) -> 1450 | DF4: =IF(AND(DC4>0,DD4="D"),DF3,IF(AND(DC4>0,DD4="A"),DF3,IF(AND(DC4>0,DD4="W"),DF3+(DC4*0.01),IF(AND(DC4>0,DD4="S"),DF3-(DC4*0.01),"")))) -> 602.51 | DG4: =IF(AND(DC4="",DC5=""),"",IF(AND(DC4="",DC5>0),"end",CONCATENATE(DE4,",",DF4))) -> 1450,602.51 | DI4: =IF(AND(DJ3="",DJ4=""),"",IF(AND(DJ3>0,DJ4="",DJ5>0),1+DI3,"0")) -> 0 | DJ4: 494 | DK4: d | DL4: =IF(AND(DJ4>0,DK4="D"),DL3+(DJ4*0.01),IF(AND(DJ4>0,DK4="A"),DL3-(DJ4*0.01),IF(AND(DJ4>0,DK4="W"),DL3,IF(AND(DJ4>0,DK4="S"),DL3,"")))) -> 1484.94 | DM4: =IF(AND(DJ4>0,DK4="D"),DM3,IF(AND(DJ4>0,DK4="A"),DM3,IF(AND(DJ4>0,DK4="W"),DM3+(DJ4*0.01),IF(AND(DJ4>0,DK4="S"),DM3-(DJ4*0.01),"")))) -> 600 | DN4: =IF(AND(DJ4="",DJ5=""),"",IF(AND(DJ4="",DJ5>0),"end",CONCATENATE(DL4,",",DM4))) -> 1484.94,600 | DP4: =IF(AND(DQ3="",DQ4=""),"",IF(AND(DQ3>0,DQ4="",DQ5>0),1+DP3,"0")) -> 0 | DQ4: 151 | DR4: w | DS4: =IF(AND(DQ4>0,DR4="D"),DS3+(DQ4*0.01),IF(AND(DQ4>0,DR4="A"),DS3-(DQ4*0.01),IF(AND(DQ4>0,DR4="W"),DS3,IF(AND(DQ4>0,DR4="S"),DS3,"")))) -> 1510 | DT4: =IF(AND(DQ4>0,DR4="D"),DT3,IF(AND(DQ4>0,DR4="A"),DT3,IF(AND(DQ4>0,DR4="W"),DT3+(DQ4*0.01),IF(AND(DQ4>0,DR4="S"),DT3-(DQ4*0.01),"")))) -> 601.51 | DU4: =IF(AND(DQ4="",DQ5=""),"",IF(AND(DQ4="",DQ5>0),"end",CONCATENATE(DS4,",",DT4))) -> 1510,601.51 | DW4: =IF(AND(DX3="",DX4=""),"",IF(AND(DX3>0,DX4="",DX5>0),1+DW3,"0")) -> 0 | DX4: 181 | DY4: d | DZ4: =IF(AND(DX4>0,DY4="D"),DZ3+(DX4*0.01),IF(AND(DX4>0,DY4="A"),DZ3-(DX4*0.01),IF(AND(DX4>0,DY4="W"),DZ3,IF(AND(DX4>0,DY4="S"),DZ3,"")))) -> 1541.81 | EA4: =IF(AND(DX4>0,DY4="D"),EA3,IF(AND(DX4>0,DY4="A"),EA3,IF(AND(DX4>0,DY4="W"),EA3+(DX4*0.01),IF(AND(DX4>0,DY4="S"),EA3-(DX4*0.01),"")))) -> 500 | EB4: =IF(AND(DX4="",DX5=""),"",IF(AND(DX4="",DX5>0),"end",CONCATENATE(DZ4,",",EA4))) -> 1541.81,500 | ED4: =IF(AND(EE3="",EE4=""),"",IF(AND(EE3>0,EE4="",EE5>0),1+ED3,"0")) -> 0 | EE4: 246 | EF4: w | EG4: =IF(AND(EE4>0,EF4="D"),EG3+(EE4*0.01),IF(AND(EE4>0,EF4="A"),EG3-(EE4*0.01),IF(AND(EE4>0,EF4="W"),EG3,IF(AND(EE4>0,EF4="S"),EG3,"")))) -> 1570 | EH4: =IF(AND(EE4>0,EF4="D"),EH3,IF(AND(EE4>0,EF4="A"),EH3,IF(AND(EE4>0,EF4="W"),EH3+(EE4*0.01),IF(AND(EE4>0,EF4="S"),EH3-(EE4*0.01),"")))) -> 502.46 | EI4: =IF(AND(EE4="",EE5=""),"",IF(AND(EE4="",EE5>0),"end",CONCATENATE(EG4,",",EH4))) -> 1570,502.46 | EK4: =IF(AND(EL3="",EL4=""),"",IF(AND(EL3>0,EL4="",EL5>0),1+EK3,"0")) -> 0 | EL4: 254 | EM4: d | EN4: =IF(AND(EL4>0,EM4="D"),EN3+(EL4*0.01),IF(AND(EL4>0,EM4="A"),EN3-(EL4*0.01),IF(AND(EL4>0,EM4="W"),EN3,IF(AND(EL4>0,EM4="S"),EN3,"")))) -> 1602.54 | EO4: =IF(AND(EL4>0,EM4="D"),EO3,IF(AND(EL4>0,EM4="A"),EO3,IF(AND(EL4>0,EM4="W"),EO3+(EL4*0.01),IF(AND(EL4>0,EM4="S"),EO3-(EL4*0.01),"")))) -> 500 | EP4: =IF(AND(EL4="",EL5=""),"",IF(AND(EL4="",EL5>0),"end",CONCATENATE(EN4,",",EO4))) -> 1602.54,500 | ER4: =IF(AND(ES3="",ES4=""),"",IF(AND(ES3>0,ES4="",ES5>0),1+ER3,"0")) -> 0 | ES4: 151 | ET4: w | EU4: =IF(AND(ES4>0,ET4="D"),EU3+(ES4*0.01),IF(AND(ES4>0,ET4="A"),EU3-(ES4*0.01),IF(AND(ES4>0,ET4="W"),EU3,IF(AND(ES4>0,ET4="S"),EU3,"")))) -> 1630 | EV4: =IF(AND(ES4>0,ET4="D"),EV3,IF(AND(ES4>0,ET4="A"),EV3,IF(AND(ES4>0,ET4="W"),EV3+(ES4*0.01),IF(AND(ES4>0,ET4="S"),EV3-(ES4*0.01),"")))) -> 501.51 | EW4: =IF(AND(ES4="",ES5=""),"",IF(AND(ES4="",ES5>0),"end",CONCATENATE(EU4,",",EV4))) -> 1630,501.51 | EY4: =IF(AND(EZ3="",EZ4=""),"",IF(AND(EZ3>0,EZ4="",EZ5>0),1+EY3,"0")) -> 0 | EZ4: 458 | FA4: s | FB4: =IF(AND(EZ4>0,FA4="D"),FB3+(EZ4*0.01),IF(AND(EZ4>0,FA4="A"),FB3-(EZ4*0.01),IF(AND(EZ4>0,FA4="W"),FB3,IF(AND(EZ4>0,FA4="S"),FB3,"")))) -> 1660 | FC4: =IF(AND(EZ4>0,FA4="D"),FC3,IF(AND(EZ4>0,FA4="A"),FC3,IF(AND(EZ4>0,FA4="W"),FC3+(EZ4*0.01),IF(AND(EZ4>0,FA4="S"),FC3-(EZ4*0.01),"")))) -> 395.42 | FD4: =IF(AND(EZ4="",EZ5=""),"",IF(AND(EZ4="",EZ5>0),"end",CONCATENATE(FB4,",",FC4))) -> 1660,395.42 | FF4: =IF(AND(FG3="",FG4=""),"",IF(AND(FG3>0,FG4="",FG5>0),1+FF3,"0")) -> 0 | FG4: 817 | FH4: w | FI4: =IF(AND(FG4>0,FH4="D"),FI3+(FG4*0.01),IF(AND(FG4>0,FH4="A"),FI3-(FG4*0.01),IF(AND(FG4>0,FH4="W"),FI3,IF(AND(FG4>0,FH4="S"),FI3,"")))) -> 1690 | FJ4: =IF(AND(FG4>0,FH4="D"),FJ3,IF(AND(FG4>0,FH4="A"),FJ3,IF(AND(FG4>0,FH4="W"),FJ3+(FG4*0.01),IF(AND(FG4>0,FH4="S"),FJ3-(FG4*0.01),"")))) -> 408.17 | FK4: =IF(AND(FG4="",FG5=""),"",IF(AND(FG4="",FG5>0),"end",CONCATENATE(FI4,",",FJ4))) -> 1690,408.17 | FM4: =IF(AND(FN3="",FN4=""),"",IF(AND(FN3>0,FN4="",FN5>0),1+FM3,"0")) -> 0 | FN4: 458 | FO4: s | FP4: =IF(AND(FN4>0,FO4="D"),FP3+(FN4*0.01),IF(AND(FN4>0,FO4="A"),FP3-(FN4*0.01),IF(AND(FN4>0,FO4="W"),FP3,IF(AND(FN4>0,FO4="S"),FP3,"")))) -> 1720 | FQ4: =IF(AND(FN4>0,FO4="D"),FQ3,IF(AND(FN4>0,FO4="A"),FQ3,IF(AND(FN4>0,FO4="W"),FQ3+(FN4*0.01),IF(AND(FN4>0,FO4="S"),FQ3-(FN4*0.01),"")))) -> 395.42 | FR4: =IF(AND(FN4="",FN5=""),"",IF(AND(FN4="",FN5>0),"end",CONCATENATE(FP4,",",FQ4))) -> 1720,395.42 | FT4: =IF(AND(FU3="",FU4=""),"",IF(AND(FU3>0,FU4="",FU5>0),1+FT3,"0")) -> 0 | FU4: 817 | FV4: w | FW4: =IF(AND(FU4>0,FV4="D"),FW3+(FU4*0.01),IF(AND(FU4>0,FV4="A"),FW3-(FU4*0.01),IF(AND(FU4>0,FV4="W"),FW3,IF(AND(FU4>0,FV4="S"),FW3,"")))) -> 1750 | FX4: =IF(AND(FU4>0,FV4="D"),FX3,IF(AND(FU4>0,FV4="A"),FX3,IF(AND(FU4>0,FV4="W"),FX3+(FU4*0.01),IF(AND(FU4>0,FV4="S"),FX3-(FU4*0.01),"")))) -> 408.17 | FY4: =IF(AND(FU4="",FU5=""),"",IF(AND(FU4="",FU5>0),"end",CONCATENATE(FW4,",",FX4))) -> 1750,408.17 | GA4: =IF(AND(GB3="",GB4=""),"",IF(AND(GB3>0,GB4="",GB5>0),1+GA3,"0")) -> 0 | GB4: 458 | GC4: s | GD4: =IF(AND(GB4>0,GC4="D"),GD3+(GB4*0.01),IF(AND(GB4>0,GC4="A"),GD3-(GB4*0.01),IF(AND(GB4>0,GC4="W"),GD3,IF(AND(GB4>0,GC4="S"),GD3,"")))) -> 1780 | GE4: =IF(AND(GB4>0,GC4="D"),GE3,IF(AND(GB4>0,GC4="A"),GE3,IF(AND(GB4>0,GC4="W"),GE3+(GB4*0.01),IF(AND(GB4>0,GC4="S"),GE3-(GB4*0.01),"")))) -> 395.42 | GF4: =IF(AND(GB4="",GB5=""),"",IF(AND(GB4="",GB5>0),"end",CONCATENATE(GD4,",",GE4))) -> 1780,395.42 | GH4: =IF(AND(GI3="",GI4=""),"",IF(AND(GI3>0,GI4="",GI5>0),1+GH3,"0")) -> 0 | GI4: 817 | GJ4: w | GK4: =IF(AND(GI4>0,GJ4="D"),GK3+(GI4*0.01),IF(AND(GI4>0,GJ4="A"),GK3-(GI4*0.01),IF(AND(GI4>0,GJ4="W"),GK3,IF(AND(GI4>0,GJ4="S"),GK3,"")))) -> 1810 | GL4: =IF(AND(GI4>0,GJ4="D"),GL3,IF(AND(GI4>0,GJ4="A"),GL3,IF(AND(GI4>0,GJ4="W"),GL3+(GI4*0.01),IF(AND(GI4>0,GJ4="S"),GL3-(GI4*0.01),"")))) -> 408.17 | GM4: =IF(AND(GI4="",GI5=""),"",IF(AND(GI4="",GI5>0),"end",CONCATENATE(GK4,",",GL4))) -> 1810,408.17 | GO4: =IF(AND(GP3="",GP4=""),"",IF(AND(GP3>0,GP4="",GP5>0),1+GO3,"0")) -> 0 | GP4: 458 | GQ4: s | GR4: =IF(AND(GP4>0,GQ4="D"),GR3+(GP4*0.01),IF(AND(GP4>0,GQ4="A"),GR3-(GP4*0.01),IF(AND(GP4>0,GQ4="W"),GR3,IF(AND(GP4>0,GQ4="S"),GR3,"")))) -> 1840 | GS4: =IF(AND(GP4>0,GQ4="D"),GS3,IF(AND(GP4>0,GQ4="A"),GS3,IF(AND(GP4>0,GQ4="W"),GS3+(GP4*0.01),IF(AND(GP4>0,GQ4="S"),GS3-(GP4*0.01),"")))) -> 395.42 | GT4: =IF(AND(GP4="",GP5=""),"",IF(AND(GP4="",GP5>0),"end",CONCATENATE(GR4,",",GS4))) -> 1840,395.42 | GV4: =IF(AND(GW3="",GW4=""),"",IF(AND(GW3>0,GW4="",GW5>0),1+GV3,"0")) -> 0 | GW4: 817 | GX4: w | GY4: =IF(AND(GW4>0,GX4="D"),GY3+(GW4*0.01),IF(AND(GW4>0,GX4="A"),GY3-(GW4*0.01),IF(AND(GW4>0,GX4="W"),GY3,IF(AND(GW4>0,GX4="S"),GY3,"")))) -> 1870 | GZ4: =IF(AND(GW4>0,GX4="D"),GZ3,IF(AND(GW4>0,GX4="A"),GZ3,IF(AND(GW4>0,GX4="W"),GZ3+(GW4*0.01),IF(AND(GW4>0,GX4="S"),GZ3-(GW4*0.01),"")))) -> 408.17 | HA4: =IF(AND(GW4="",GW5=""),"",IF(AND(GW4="",GW5>0),"end",CONCATENATE(GY4,",",GZ4))) -> 1870,408.17 | HC4: =IF(AND(HD3="",HD4=""),"",IF(AND(HD3>0,HD4="",HD5>0),1+HC3,"0")) -> 0 | HD4: 458 | HE4: s | HF4: =IF(AND(HD4>0,HE4="D"),HF3+(HD4*0.01),IF(AND(HD4>0,HE4="A"),HF3-(HD4*0.01),IF(AND(HD4>0,HE4="W"),HF3,IF(AND(HD4>0,HE4="S"),HF3,"")))) -> 1900 | HG4: =IF(AND(HD4>0,HE4="D"),HG3,IF(AND(HD4>0,HE4="A"),HG3,IF(AND(HD4>0,HE4="W"),HG3+(HD4*0.01),IF(AND(HD4>0,HE4="S"),HG3-(HD4*0.01),"")))) -> 395.42 | HH4: =IF(AND(HD4="",HD5=""),"",IF(AND(HD4="",HD5>0),"end",CONCATENATE(HF4,",",HG4))) -> 1900,395.42 | HJ4: =IF(AND(HK3="",HK4=""),"",IF(AND(HK3>0,HK4="",HK5>0),1+HJ3,"0")) -> 0 | HK4: 817 | HL4: w | HM4: =IF(AND(HK4>0,HL4="D"),HM3+(HK4*0.01),IF(AND(HK4>0,HL4="A"),HM3-(HK4*0.01),IF(AND(HK4>0,HL4="W"),HM3,IF(AND(HK4>0,HL4="S"),HM3,"")))) -> 1930 | HN4: =IF(AND(HK4>0,HL4="D"),HN3,IF(AND(HK4>0,HL4="A"),HN3,IF(AND(HK4>0,HL4="W"),HN3+(HK4*0.01),IF(AND(HK4>0,HL4="S"),HN3-(HK4*0.01),"")))) -> 408.17 | HO4: =IF(AND(HK4="",HK5=""),"",IF(AND(HK4="",HK5>0),"end",CONCATENATE(HM4,",",HN4))) -> 1930,408.17 | HQ4: =IF(AND(HR3="",HR4=""),"",IF(AND(HR3>0,HR4="",HR5>0),1+HQ3,"0")) -> 0 | HR4: 458 | HS4: s | HT4: =IF(AND(HR4>0,HS4="D"),HT3+(HR4*0.01),IF(AND(HR4>0,HS4="A"),HT3-(HR4*0.01),IF(AND(HR4>0,HS4="W"),HT3,IF(AND(HR4>0,HS4="S"),HT3,"")))) -> 1960 | HU4: =IF(AND(HR4>0,HS4="D"),HU3,IF(AND(HR4>0,HS4="A"),HU3,IF(AND(HR4>0,HS4="W"),HU3+(HR4*0.01),IF(AND(HR4>0,HS4="S"),HU3-(HR4*0.01),"")))) -> 395.42 | HV4: =IF(AND(HR4="",HR5=""),"",IF(AND(HR4="",HR5>0),"end",CONCATENATE(HT4,",",HU4))) -> 1960,395.42 | HX4: =IF(AND(HY3="",HY4=""),"",IF(AND(HY3>0,HY4="",HY5>0),1+HX3,"0")) -> 0 | HY4: 817 | HZ4: w | IA4: =IF(AND(HY4>0,HZ4="D"),IA3+(HY4*0.01),IF(AND(HY4>0,HZ4="A"),IA3-(HY4*0.01),IF(AND(HY4>0,HZ4="W"),IA3,IF(AND(HY4>0,HZ4="S"),IA3,"")))) -> 1990 | IB4: =IF(AND(HY4>0,HZ4="D"),IB3,IF(AND(HY4>0,HZ4="A"),IB3,IF(AND(HY4>0,HZ4="W"),IB3+(HY4*0.01),IF(AND(HY4>0,HZ4="S"),IB3-(HY4*0.01),"")))) -> 408.17 | IC4: =IF(AND(HY4="",HY5=""),"",IF(AND(HY4="",HY5>0),"end",CONCATENATE(IA4,",",IB4))) -> 1990,408.17 | IE4: =IF(AND(IF3="",IF4=""),"",IF(AND(IF3>0,IF4="",IF5>0),1+IE3,"0")) -> 0 | IF4: 458 | IG4: s | IH4: =IF(AND(IF4>0,IG4="D"),IH3+(IF4*0.01),IF(AND(IF4>0,IG4="A"),IH3-(IF4*0.01),IF(AND(IF4>0,IG4="W"),IH3,IF(AND(IF4>0,IG4="S"),IH3,"")))) -> 2020 | II4: =IF(AND(IF4>0,IG4="D"),II3,IF(AND(IF4>0,IG4="A"),II3,IF(AND(IF4>0,IG4="W"),II3+(IF4*0.01),IF(AND(IF4>0,IG4="S"),II3-(IF4*0.01),"")))) -> 395.42 | IJ4: =IF(AND(IF4="",IF5=""),"",IF(AND(IF4="",IF5>0),"end",CONCATENATE(IH4,",",II4))) -> 2020,395.42 | IL4: =IF(AND(IM3="",IM4=""),"",IF(AND(IM3>0,IM4="",IM5>0),1+IL3,"0")) -> 0 | IM4: 817 | IN4: w | IO4: =IF(AND(IM4>0,IN4="D"),IO3+(IM4*0.01),IF(AND(IM4>0,IN4="A"),IO3-(IM4*0.01),IF(AND(IM4>0,IN4="W"),IO3,IF(AND(IM4>0,IN4="S"),IO3,"")))) -> 2050 | IP4: =IF(AND(IM4>0,IN4="D"),IP3,IF(AND(IM4>0,IN4="A"),IP3,IF(AND(IM4>0,IN4="W"),IP3+(IM4*0.01),IF(AND(IM4>0,IN4="S"),IP3-(IM4*0.01),"")))) -> 408.17 | IQ4: =IF(AND(IM4="",IM5=""),"",IF(AND(IM4="",IM5>0),"end",CONCATENATE(IO4,",",IP4))) -> 2050,408.17 | IS4: =IF(AND(IT3="",IT4=""),"",IF(AND(IT3>0,IT4="",IT5>0),1+IS3,"0")) -> 0 | IT4: 458 | IU4: s | IV4: =IF(AND(IT4>0,IU4="D"),IV3+(IT4*0.01),IF(AND(IT4>0,IU4="A"),IV3-(IT4*0.01),IF(AND(IT4>0,IU4="W"),IV3,IF(AND(IT4>0,IU4="S"),IV3,"")))) -> 2080 | IW4: =IF(AND(IT4>0,IU4="D"),IW3,IF(AND(IT4>0,IU4="A"),IW3,IF(AND(IT4>0,IU4="W"),IW3+(IT4*0.01),IF(AND(IT4>0,IU4="S"),IW3-(IT4*0.01),"")))) -> 395.42 | IX4: =IF(AND(IT4="",IT5=""),"",IF(AND(IT4="",IT5>0),"end",CONCATENATE(IV4,",",IW4))) -> 2080,395.42 | IZ4: =IF(AND(JA3="",JA4=""),"",IF(AND(JA3>0,JA4="",JA5>0),1+IZ3,"0")) -> 0 | JA4: 817 | JB4: w | JC4: =IF(AND(JA4>0,JB4="D"),JC3+(JA4*0.01),IF(AND(JA4>0,JB4="A"),JC3-(JA4*0.01),IF(AND(JA4>0,JB4="W"),JC3,IF(AND(JA4>0,JB4="S"),JC3,"")))) -> 2110 | JD4: =IF(AND(JA4>0,JB4="D"),JD3,IF(AND(JA4>0,JB4="A"),JD3,IF(AND(JA4>0,JB4="W"),JD3+(JA4*0.01),IF(AND(JA4>0,JB4="S"),JD3-(JA4*0.01),"")))) -> 408.17 | JE4: =IF(AND(JA4="",JA5=""),"",IF(AND(JA4="",JA5>0),"end",CONCATENATE(JC4,",",JD4))) -> 2110,408.17 | JG4: =IF(AND(JH3="",JH4=""),"",IF(AND(JH3>0,JH4="",JH5>0),1+JG3,"0")) -> 0 | JH4: 458 | JI4: s | JJ4: =IF(AND(JH4>0,JI4="D"),JJ3+(JH4*0.01),IF(AND(JH4>0,JI4="A"),JJ3-(JH4*0.01),IF(AND(JH4>0,JI4="W"),JJ3,IF(AND(JH4>0,JI4="S"),JJ3,"")))) -> 2140 | JK4: =IF(AND(JH4>0,JI4="D"),JK3,IF(AND(JH4>0,JI4="A"),JK3,IF(AND(JH4>0,JI4="W"),JK3+(JH4*0.01),IF(AND(JH4>0,JI4="S"),JK3-(JH4*0.01),"")))) -> 395.42 | JL4: =IF(AND(JH4="",JH5=""),"",IF(AND(JH4="",JH5>0),"end",CONCATENATE(JJ4,",",JK4))) -> 2140,395.42 | JN4: =IF(AND(JO3="",JO4=""),"",IF(AND(JO3>0,JO4="",JO5>0),1+JN3,"0")) -> 0 | JO4: 817 | JP4: w | JQ4: =IF(AND(JO4>0,JP4="D"),JQ3+(JO4*0.01),IF(AND(JO4>0,JP4="A"),JQ3-(JO4*0.01),IF(AND(JO4>0,JP4="W"),JQ3,IF(AND(JO4>0,JP4="S"),JQ3,"")))) -> 2170 | JR4: =IF(AND(JO4>0,JP4="D"),JR3,IF(AND(JO4>0,JP4="A"),JR3,IF(AND(JO4>0,JP4="W"),JR3+(JO4*0.01),IF(AND(JO4>0,JP4="S"),JR3-(JO4*0.01),"")))) -> 408.17 | JS4: =IF(AND(JO4="",JO5=""),"",IF(AND(JO4="",JO5>0),"end",CONCATENATE(JQ4,",",JR4))) -> 2170,408.17 | JU4: =IF(AND(JV3="",JV4=""),"",IF(AND(JV3>0,JV4="",JV5>0),1+JU3,"0")) -> 0 | JV4: 458 | JW4: s | JX4: =IF(AND(JV4>0,JW4="D"),JX3+(JV4*0.01),IF(AND(JV4>0,JW4="A"),JX3-(JV4*0.01),IF(AND(JV4>0,JW4="W"),JX3,IF(AND(JV4>0,JW4="S"),JX3,"")))) -> 2200 | JY4: =IF(AND(JV4>0,JW4="D"),JY3,IF(AND(JV4>0,JW4="A"),JY3,IF(AND(JV4>0,JW4="W"),JY3+(JV4*0.01),IF(AND(JV4>0,JW4="S"),JY3-(JV4*0.01),"")))) -> 395.42 | JZ4: =IF(AND(JV4="",JV5=""),"",IF(AND(JV4="",JV5>0),"end",CONCATENATE(JX4,",",JY4))) -> 2200,395.42 | KB4: =IF(AND(KC3="",KC4=""),"",IF(AND(KC3>0,KC4="",KC5>0),1+KB3,"0")) -> 0 | KC4: 817 | KD4: w | KE4: =IF(AND(KC4>0,KD4="D"),KE3+(KC4*0.01),IF(AND(KC4>0,KD4="A"),KE3-(KC4*0.01),IF(AND(KC4>0,KD4="W"),KE3,IF(AND(KC4>0,KD4="S"),KE3,"")))) -> 2230 | KF4: =IF(AND(KC4>0,KD4="D"),KF3,IF(AND(KC4>0,KD4="A"),KF3,IF(AND(KC4>0,KD4="W"),KF3+(KC4*0.01),IF(AND(KC4>0,KD4="S"),KF3-(KC4*0.01),"")))) -> 408.17 | KG4: =IF(AND(KC4="",KC5=""),"",IF(AND(KC4="",KC5>0),"end",CONCATENATE(KE4,",",KF4))) -> 2230,408.17 | KI4: =IF(AND(KJ3="",KJ4=""),"",IF(AND(KJ3>0,KJ4="",KJ5>0),1+KI3,"0")) -> 0 | KJ4: 458 | KK4: s | KL4: =IF(AND(KJ4>0,KK4="D"),KL3+(KJ4*0.01),IF(AND(KJ4>0,KK4="A"),KL3-(KJ4*0.01),IF(AND(KJ4>0,KK4="W"),KL3,IF(AND(KJ4>0,KK4="S"),KL3,"")))) -> 2260 | KM4: =IF(AND(KJ4>0,KK4="D"),KM3,IF(AND(KJ4>0,KK4="A"),KM3,IF(AND(KJ4>0,KK4="W"),KM3+(KJ4*0.01),IF(AND(KJ4>0,KK4="S"),KM3-(KJ4*0.01),"")))) -> 395.42 | KN4: =IF(AND(KJ4="",KJ5=""),"",IF(AND(KJ4="",KJ5>0),"end",CONCATENATE(KL4,",",KM4))) -> 2260,395.42 | KP4: =IF(AND(KQ3="",KQ4=""),"",IF(AND(KQ3>0,KQ4="",KQ5>0),1+KP3,"0")) -> 0 | KQ4: 817 | KR4: w | KS4: =IF(AND(KQ4>0,KR4="D"),KS3+(KQ4*0.01),IF(AND(KQ4>0,KR4="A"),KS3-(KQ4*0.01),IF(AND(KQ4>0,KR4="W"),KS3,IF(AND(KQ4>0,KR4="S"),KS3,"")))) -> 2290 | KT4: =IF(AND(KQ4>0,KR4="D"),KT3,IF(AND(KQ4>0,KR4="A"),KT3,IF(AND(KQ4>0,KR4="W"),KT3+(KQ4*0.01),IF(AND(KQ4>0,KR4="S"),KT3-(KQ4*0.01),"")))) -> 408.17 | KU4: =IF(AND(KQ4="",KQ5=""),"",IF(AND(KQ4="",KQ5>0),"end",CONCATENATE(KS4,",",KT4))) -> 2290,408.17 | KW4: =IF(AND(KX3="",KX4=""),"",IF(AND(KX3>0,KX4="",KX5>0),1+KW3,"0")) -> 0 | KX4: 458 | KY4: s | KZ4: =IF(AND(KX4>0,KY4="D"),KZ3+(KX4*0.01),IF(AND(KX4>0,KY4="A"),KZ3-(KX4*0.01),IF(AND(KX4>0,KY4="W"),KZ3,IF(AND(KX4>0,KY4="S"),KZ3,"")))) -> 2320 | LA4: =IF(AND(KX4>0,KY4="D"),LA3,IF(AND(KX4>0,KY4="A"),LA3,IF(AND(KX4>0,KY4="W"),LA3+(KX4*0.01),IF(AND(KX4>0,KY4="S"),LA3-(KX4*0.01),"")))) -> 395.42 | LB4: =IF(AND(KX4="",KX5=""),"",IF(AND(KX4="",KX5>0),"end",CONCATENATE(KZ4,",",LA4))) -> 2320,395.42 | LD4: =IF(AND(LE3="",LE4=""),"",IF(AND(LE3>0,LE4="",LE5>0),1+LD3,"0")) -> 0 | LE4: 817 | LF4: w | LG4: =IF(AND(LE4>0,LF4="D"),LG3+(LE4*0.01),IF(AND(LE4>0,LF4="A"),LG3-(LE4*0.01),IF(AND(LE4>0,LF4="W"),LG3,IF(AND(LE4>0,LF4="S"),LG3,"")))) -> 2350 | LH4: =IF(AND(LE4>0,LF4="D"),LH3,IF(AND(LE4>0,LF4="A"),LH3,IF(AND(LE4>0,LF4="W"),LH3+(LE4*0.01),IF(AND(LE4>0,LF4="S"),LH3-(LE4*0.01),"")))) -> 408.17 | LI4: =IF(AND(LE4="",LE5=""),"",IF(AND(LE4="",LE5>0),"end",CONCATENATE(LG4,",",LH4))) -> 2350,408.17 | LK4: =IF(AND(LL3="",LL4=""),"",IF(AND(LL3>0,LL4="",LL5>0),1+LK3,"0")) -> 0 | LL4: 817 | LM4: w | LN4: =IF(AND(LL4>0,LM4="D"),LN3+(LL4*0.01),IF(AND(LL4>0,LM4="A"),LN3-(LL4*0.01),IF(AND(LL4>0,LM4="W"),LN3,IF(AND(LL4>0,LM4="S"),LN3,"")))) -> 2380 | LO4: =IF(AND(LL4>0,LM4="D"),LO3,IF(AND(LL4>0,LM4="A"),LO3,IF(AND(LL4>0,LM4="W"),LO3+(LL4*0.01),IF(AND(LL4>0,LM4="S"),LO3-(LL4*0.01),"")))) -> 408.17 | LP4: =IF(AND(LL4="",LL5=""),"",IF(AND(LL4="",LL5>0),"end",CONCATENATE(LN4,",",LO4))) -> 2380,408.17 | LR4: =IF(AND(LS3="",LS4=""),"",IF(AND(LS3>0,LS4="",LS5>0),1+LR3,"0")) -> 0 | LS4: 817 | LT4: w | LU4: =IF(AND(LS4>0,LT4="D"),LU3+(LS4*0.01),IF(AND(LS4>0,LT4="A"),LU3-(LS4*0.01),IF(AND(LS4>0,LT4="W"),LU3,IF(AND(LS4>0,LT4="S"),LU3,"")))) -> 2410 | LV4: =IF(AND(LS4>0,LT4="D"),LV3,IF(AND(LS4>0,LT4="A"),LV3,IF(AND(LS4>0,LT4="W"),LV3+(LS4*0.01),IF(AND(LS4>0,LT4="S"),LV3-(LS4*0.01),"")))) -> 408.17 | LW4: =IF(AND(LS4="",LS5=""),"",IF(AND(LS4="",LS5>0),"end",CONCATENATE(LU4,",",LV4))) -> 2410,408.17 | LY4: =IF(AND(LZ3="",LZ4=""),"",IF(AND(LZ3>0,LZ4="",LZ5>0),1+LY3,"0")) -> 0 | LZ4: 817 | MA4: w | MB4: =IF(AND(LZ4>0,MA4="D"),MB3+(LZ4*0.01),IF(AND(LZ4>0,MA4="A"),MB3-(LZ4*0.01),IF(AND(LZ4>0,MA4="W"),MB3,IF(AND(LZ4>0,MA4="S"),MB3,"")))) -> 2440 | MC4: =IF(AND(LZ4>0,MA4="D"),MC3,IF(AND(LZ4>0,MA4="A"),MC3,IF(AND(LZ4>0,MA4="W"),MC3+(LZ4*0.01),IF(AND(LZ4>0,MA4="S"),MC3-(LZ4*0.01),"")))) -> 408.17 | MD4: =IF(AND(LZ4="",LZ5=""),"",IF(AND(LZ4="",LZ5>0),"end",CONCATENATE(MB4,",",MC4))) -> 2440,408.17 | MF4: =IF(AND(MG3="",MG4=""),"",IF(AND(MG3>0,MG4="",MG5>0),1+MF3,"0")) -> 0 | MG4: 817 | MH4: w | MI4: =IF(AND(MG4>0,MH4="D"),MI3+(MG4*0.01),IF(AND(MG4>0,MH4="A"),MI3-(MG4*0.01),IF(AND(MG4>0,MH4="W"),MI3,IF(AND(MG4>0,MH4="S"),MI3,"")))) -> 2470 | MJ4: =IF(AND(MG4>0,MH4="D"),MJ3,IF(AND(MG4>0,MH4="A"),MJ3,IF(AND(MG4>0,MH4="W"),MJ3+(MG4*0.01),IF(AND(MG4>0,MH4="S"),MJ3-(MG4*0.01),"")))) -> 408.17 | MK4: =IF(AND(MG4="",MG5=""),"",IF(AND(MG4="",MG5>0),"end",CONCATENATE(MI4,",",MJ4))) -> 2470,408.17
A5: =IF(AND(B4="",B5=""),"",IF(AND(B4>0,B5="",B6>0),1+A4,IF(AND(B4="",B5>0),A4,IF(AND(B4>0,B5>0),A4,"0")))) -> 0 | B5: 4 | C5: a | D5: =IF(AND(B5>0,C5="D"),D4+(B5*0.01),IF(AND(B5>0,C5="A"),D4-(B5*0.01),IF(AND(B5>0,C5="W"),D4,IF(AND(B5>0,C5="S"),D4,IF(AND(B5="",B4>0,B6>0),$D$3,""))))) -> 999.96 | E5: =IF(AND(B5>0,C5="D"),E4,IF(AND(B5>0,C5="A"),E4,IF(AND(B5>0,C5="W"),E4+(B5*0.01),IF(AND(B5>0,C5="S"),E4-(B5*0.01),IF(AND(B5="",B4>0,B6>0),(A5*20)+$E$3,""))))) -> 1004.45 | F5: =IF(AND(B4="",B5>0,B6>0),CONCATENATE(D5,",",E5),IF(AND(B4>0,B5>0,B6>0),CONCATENATE(D5,",",E5),IF(AND(B4>0,B5>0,B6=""),CONCATENATE(D5,",",E5," C "),IF(AND(B4>0,B5="",B6>0),CONCATENATE("PL ",D5,",",E5),"")))) -> 999.96,1004.45 | H5: =IF(AND(I4="",I5=""),"",IF(AND(I4>0,I5="",I6>0),1+H4,IF(AND(I4="",I5>0),H4,IF(AND(I4>0,I5>0),H4,"0")))) -> 0 | I5: 143 | J5: s | K5: =IF(AND(I5>0,J5="D"),K4+(I5*0.01),IF(AND(I5>0,J5="A"),K4-(I5*0.01),IF(AND(I5>0,J5="W"),K4,IF(AND(I5>0,J5="S"),K4,IF(AND(I5="",I4>0,I6>0),K$3,""))))) -> 1032.53 | L5: =IF(AND(I5>0,J5="D"),L4,IF(AND(I5>0,J5="A"),L4,IF(AND(I5>0,J5="W"),L4+(I5*0.01),IF(AND(I5>0,J5="S"),L4-(I5*0.01),IF(AND(I5="",I4>0,I6>0),(H5*20)+$E$3,""))))) -> 998.57 | M5: =IF(AND(I4="",I5>0,I6>0),CONCATENATE(K5,",",L5),IF(AND(I4>0,I5>0,I6>0),CONCATENATE(K5,",",L5),IF(AND(I4>0,I5>0,I6=""),CONCATENATE(K5,",",L5," C "),IF(AND(I4>0,I5="",I6>0),CONCATENATE("PL ",K5,",",L5),"")))) -> 1032.53,998.57 | O5: =IF(AND(P4="",P5=""),"",IF(AND(P4>0,P5="",P6>0),1+O4,IF(AND(P4="",P5>0),O4,IF(AND(P4>0,P5>0),O4,"0")))) -> 0 | P5: 175 | Q5: s | R5: =IF(AND(P5>0,Q5="D"),R4+(P5*0.01),IF(AND(P5>0,Q5="A"),R4-(P5*0.01),IF(AND(P5>0,Q5="W"),R4,IF(AND(P5>0,Q5="S"),R4,IF(AND(P5="",P4>0,P6>0),$D$3,""))))) -> 1061.75 | S5: =IF(AND(P5>0,Q5="D"),S4,IF(AND(P5>0,Q5="A"),S4,IF(AND(P5>0,Q5="W"),S4+(P5*0.01),IF(AND(P5>0,Q5="S"),S4-(P5*0.01),IF(AND(P5="",P4>0,P6>0),(O5*20)+$E$3,""))))) -> 998.25 | T5: =IF(AND(P4="",P5>0,P6>0),CONCATENATE(R5,",",S5),IF(AND(P4>0,P5>0,P6>0),CONCATENATE(R5,",",S5),IF(AND(P4>0,P5>0,P6=""),CONCATENATE(R5,",",S5," C "),IF(AND(P4>0,P5="",P6>0),CONCATENATE("PL ",R5,",",S5),"")))) -> 1061.75,998.25 | V5: =IF(AND(W4="",W5=""),"",IF(AND(W4>0,W5="",W6>0),1+V4,IF(AND(W4="",W5>0),V4,IF(AND(W4>0,W5>0),V4,"0")))) -> 0 | W5: 161 | X5: d | Y5: =IF(AND(W5>0,X5="D"),Y4+(W5*0.01),IF(AND(W5>0,X5="A"),Y4-(W5*0.01),IF(AND(W5>0,X5="W"),Y4,IF(AND(W5>0,X5="S"),Y4,IF(AND(W5="",W4>0,W6>0),$D$3,""))))) -> 1091.61 | Z5: =IF(AND(W5>0,X5="D"),Z4,IF(AND(W5>0,X5="A"),Z4,IF(AND(W5>0,X5="W"),Z4+(W5*0.01),IF(AND(W5>0,X5="S"),Z4-(W5*0.01),IF(AND(W5="",W4>0,W6>0),(V5*20)+$E$3,""))))) -> 903.15 | AA5: =IF(AND(W4="",W5>0,W6>0),CONCATENATE(Y5,",",Z5),IF(AND(W4>0,W5>0,W6>0),CONCATENATE(Y5,",",Z5),IF(AND(W4>0,W5>0,W6=""),CONCATENATE(Y5,",",Z5," C "),IF(AND(W4>0,W5="",W6>0),CONCATENATE("PL ",Y5,",",Z5),"")))) -> 1091.61,903.15 | AC5: =IF(AND(AD4="",AD5=""),"",IF(AND(AD4>0,AD5="",AD6>0),1+AC4,IF(AND(AD4="",AD5>0),AC4,IF(AND(AD4>0,AD5>0),AC4,"0")))) -> 0 | AD5: 240 | AE5: a | AF5: =IF(AND(AD5>0,AE5="D"),AF4+(AD5*0.01),IF(AND(AD5>0,AE5="A"),AF4-(AD5*0.01),IF(AND(AD5>0,AE5="W"),AF4,IF(AND(AD5>0,AE5="S"),AF4,IF(AND(AD5="",AD4>0,AD6>0),$D$3,""))))) -> 1117.6 | AG5: =IF(AND(AD5>0,AE5="D"),AG4,IF(AND(AD5>0,AE5="A"),AG4,IF(AND(AD5>0,AE5="W"),AG4+(AD5*0.01),IF(AND(AD5>0,AE5="S"),AG4-(AD5*0.01),IF(AND(AD5="",AD4>0,AD6>0),(AC5*20)+$E$3,""))))) -> 904.93 | AH5: =IF(AND(AD4="",AD5>0,AD6>0),CONCATENATE(AF5,",",AG5),IF(AND(AD4>0,AD5>0,AD6>0),CONCATENATE(AF5,",",AG5),IF(AND(AD4>0,AD5>0,AD6=""),CONCATENATE(AF5,",",AG5," C "),IF(AND(AD4>0,AD5="",AD6>0),CONCATENATE("PL ",AF5,",",AG5),"")))) -> 1117.6,904.93 | AJ5: =IF(AND(AK4="",AK5=""),"",IF(AND(AK4>0,AK5="",AK6>0),1+AJ4,IF(AND(AK4="",AK5>0),AJ4,IF(AND(AK4>0,AK5>0),AJ4,"0")))) -> 0 | AK5: 150 | AL5: a | AM5: =IF(AND(AK5>0,AL5="D"),AM4+(AK5*0.01),IF(AND(AK5>0,AL5="A"),AM4-(AK5*0.01),IF(AND(AK5>0,AL5="W"),AM4,IF(AND(AK5>0,AL5="S"),AM4,IF(AND(AK5="",AK4>0,AK6>0),$D$3,""))))) -> 1148.5 | AN5: =IF(AND(AK5>0,AL5="D"),AN4,IF(AND(AK5>0,AL5="A"),AN4,IF(AND(AK5>0,AL5="W"),AN4+(AK5*0.01),IF(AND(AK5>0,AL5="S"),AN4-(AK5*0.01),IF(AND(AK5="",AK4>0,AK6>0),(AJ5*20)+$E$3,""))))) -> 902.38 | AO5: =IF(AND(AK4="",AK5>0,AK6>0),CONCATENATE(AM5,",",AN5),IF(AND(AK4>0,AK5>0,AK6>0),CONCATENATE(AM5,",",AN5),IF(AND(AK4>0,AK5>0,AK6=""),CONCATENATE(AM5,",",AN5," C "),IF(AND(AK4>0,AK5="",AK6>0),CONCATENATE("PL ",AM5,",",AN5),"")))) -> 1148.5,902.38 | AQ5: =IF(AND(AR4="",AR5=""),"",IF(AND(AR4>0,AR5="",AR6>0),1+AQ4,IF(AND(AR4="",AR5>0),AQ4,IF(AND(AR4>0,AR5>0),AQ4,"0")))) -> 0 | AR5: 177 | AS5: s | AT5: =IF(AND(AR5>0,AS5="D"),AT4+(AR5*0.01),IF(AND(AR5>0,AS5="A"),AT4-(AR5*0.01),IF(AND(AR5>0,AS5="W"),AT4,IF(AND(AR5>0,AS5="S"),AT4,IF(AND(AR5="",AR4>0,AR6>0),$D$3,""))))) -> 1181.61 | AU5: =IF(AND(AR5>0,AS5="D"),AU4,IF(AND(AR5>0,AS5="A"),AU4,IF(AND(AR5>0,AS5="W"),AU4+(AR5*0.01),IF(AND(AR5>0,AS5="S"),AU4-(AR5*0.01),IF(AND(AR5="",AR4>0,AR6>0),(AQ5*20)+$E$3,""))))) -> 798.23 | AV5: =IF(AND(AR4="",AR5>0,AR6>0),CONCATENATE(AT5,",",AU5),IF(AND(AR4>0,AR5>0,AR6>0),CONCATENATE(AT5,",",AU5),IF(AND(AR4>0,AR5>0,AR6=""),CONCATENATE(AT5,",",AU5," C "),IF(AND(AR4>0,AR5="",AR6>0),CONCATENATE("PL ",AT5,",",AU5),"")))) -> 1181.61,798.23 | AX5: =IF(AND(AY4="",AY5=""),"",IF(AND(AY4>0,AY5="",AY6>0),1+AX4,IF(AND(AY4="",AY5>0),AX4,IF(AND(AY4>0,AY5>0),AX4,"0")))) -> 0 | AY5: 159 | AZ5: d | BA5: =IF(AND(AY5>0,AZ5="D"),BA4+(AY5*0.01),IF(AND(AY5>0,AZ5="A"),BA4-(AY5*0.01),IF(AND(AY5>0,AZ5="W"),BA4,IF(AND(AY5>0,AZ5="S"),BA4,IF(AND(AY5="",AY4>0,AY6>0),$D$3,""))))) -> 1211.59 | BB5: =IF(AND(AY5>0,AZ5="D"),BB4,IF(AND(AY5>0,AZ5="A"),BB4,IF(AND(AY5>0,AZ5="W"),BB4+(AY5*0.01),IF(AND(AY5>0,AZ5="S"),BB4-(AY5*0.01),IF(AND(AY5="",AY4>0,AY6>0),(AX5*20)+$E$3,""))))) -> 803.34 | BC5: =IF(AND(AY4="",AY5>0,AY6>0),CONCATENATE(BA5,",",BB5),IF(AND(AY4>0,AY5>0,AY6>0),CONCATENATE(BA5,",",BB5),IF(AND(AY4>0,AY5>0,AY6=""),CONCATENATE(BA5,",",BB5," C "),IF(AND(AY4>0,AY5="",AY6>0),CONCATENATE("PL ",BA5,",",BB5),"")))) -> 1211.59,803.34 | BE5: =IF(AND(BF4="",BF5=""),"",IF(AND(BF4>0,BF5="",BF6>0),1+BE4,IF(AND(BF4="",BF5>0),BE4,IF(AND(BF4>0,BF5>0),BE4,"0")))) -> 0 | BF5: 143 | BG5: s | BH5: =IF(AND(BF5>0,BG5="D"),BH4+(BF5*0.01),IF(AND(BF5>0,BG5="A"),BH4-(BF5*0.01),IF(AND(BF5>0,BG5="W"),BH4,IF(AND(BF5>0,BG5="S"),BH4,IF(AND(BF5="",BF4>0,BF6>0),$D$3,""))))) -> 1242.68 | BI5: =IF(AND(BF5>0,BG5="D"),BI4,IF(AND(BF5>0,BG5="A"),BI4,IF(AND(BF5>0,BG5="W"),BI4+(BF5*0.01),IF(AND(BF5>0,BG5="S"),BI4-(BF5*0.01),IF(AND(BF5="",BF4>0,BF6>0),(BE5*20)+$E$3,""))))) -> 798.57 | BJ5: =IF(AND(BF4="",BF5>0,BF6>0),CONCATENATE(BH5,",",BI5),IF(AND(BF4>0,BF5>0,BF6>0),CONCATENATE(BH5,",",BI5),IF(AND(BF4>0,BF5>0,BF6=""),CONCATENATE(BH5,",",BI5," C "),IF(AND(BF4>0,BF5="",BF6>0),CONCATENATE("PL ",BH5,",",BI5),"")))) -> 1242.68,798.57 | BL5: =IF(AND(BM4="",BM5=""),"",IF(AND(BM4>0,BM5="",BM6>0),1+BL4,IF(AND(BM4="",BM5>0),BL4,IF(AND(BM4>0,BM5>0),BL4,"0")))) -> 0 | BM5: 102 | BN5: d | BO5: =IF(AND(BM5>0,BN5="D"),BO4+(BM5*0.01),IF(AND(BM5>0,BN5="A"),BO4-(BM5*0.01),IF(AND(BM5>0,BN5="W"),BO4,IF(AND(BM5>0,BN5="S"),BO4,IF(AND(BM5="",BM4>0,BM6>0),$D$3,""))))) -> 1271.02 | BP5: =IF(AND(BM5>0,BN5="D"),BP4,IF(AND(BM5>0,BN5="A"),BP4,IF(AND(BM5>0,BN5="W"),BP4+(BM5*0.01),IF(AND(BM5>0,BN5="S"),BP4-(BM5*0.01),IF(AND(BM5="",BM4>0,BM6>0),(BL5*20)+$E$3,""))))) -> 801.49 | BQ5: =IF(AND(BM4="",BM5>0,BM6>0),CONCATENATE(BO5,",",BP5),IF(AND(BM4>0,BM5>0,BM6>0),CONCATENATE(BO5,",",BP5),IF(AND(BM4>0,BM5>0,BM6=""),CONCATENATE(BO5,",",BP5," C "),IF(AND(BM4>0,BM5="",BM6>0),CONCATENATE("PL ",BO5,",",BP5),"")))) -> 1271.02,801.49 | BS5: =IF(AND(BT4="",BT5=""),"",IF(AND(BT4>0,BT5="",BT6>0),1+BS4,IF(AND(BT4="",BT5>0),BS4,IF(AND(BT4>0,BT5>0),BS4,"0")))) -> 0 | BT5: 13 | BU5: s | BV5: =IF(AND(BT5>0,BU5="D"),BV4+(BT5*0.01),IF(AND(BT5>0,BU5="A"),BV4-(BT5*0.01),IF(AND(BT5>0,BU5="W"),BV4,IF(AND(BT5>0,BU5="S"),BV4,IF(AND(BT5="",BT4>0,BT6>0),$D$3,""))))) -> 1301.04 | BW5: =IF(AND(BT5>0,BU5="D"),BW4,IF(AND(BT5>0,BU5="A"),BW4,IF(AND(BT5>0,BU5="W"),BW4+(BT5*0.01),IF(AND(BT5>0,BU5="S"),BW4-(BT5*0.01),IF(AND(BT5="",BT4>0,BT6>0),(BS5*20)+$E$3,""))))) -> 699.87 | BX5: =IF(AND(BT4="",BT5>0,BT6>0),CONCATENATE(BV5,",",BW5),IF(AND(BT4>0,BT5>0,BT6>0),CONCATENATE(BV5,",",BW5),IF(AND(BT4>0,BT5>0,BT6=""),CONCATENATE(BV5,",",BW5," C "),IF(AND(BT4>0,BT5="",BT6>0),CONCATENATE("PL ",BV5,",",BW5),"")))) -> 1301.04,699.87 | BZ5: =IF(AND(CA4="",CA5=""),"",IF(AND(CA4>0,CA5="",CA6>0),1+BZ4,IF(AND(CA4="",CA5>0),BZ4,IF(AND(CA4>0,CA5>0),BZ4,"0")))) -> 0 | CA5: 47 | CB5: d | CC5: =IF(AND(CA5>0,CB5="D"),CC4+(CA5*0.01),IF(AND(CA5>0,CB5="A"),CC4-(CA5*0.01),IF(AND(CA5>0,CB5="W"),CC4,IF(AND(CA5>0,CB5="S"),CC4,IF(AND(CA5="",CA4>0,CA6>0),$D$3,""))))) -> 1330.47 | CD5: =IF(AND(CA5>0,CB5="D"),CD4,IF(AND(CA5>0,CB5="A"),CD4,IF(AND(CA5>0,CB5="W"),CD4+(CA5*0.01),IF(AND(CA5>0,CB5="S"),CD4-(CA5*0.01),IF(AND(CA5="",CA4>0,CA6>0),(BZ5*20)+$E$3,""))))) -> 702.53 | CE5: =IF(AND(CA4="",CA5>0,CA6>0),CONCATENATE(CC5,",",CD5),IF(AND(CA4>0,CA5>0,CA6>0),CONCATENATE(CC5,",",CD5),IF(AND(CA4>0,CA5>0,CA6=""),CONCATENATE(CC5,",",CD5," C "),IF(AND(CA4>0,CA5="",CA6>0),CONCATENATE("PL ",CC5,",",CD5),"")))) -> 1330.47,702.53 | CG5: =IF(AND(CH4="",CH5=""),"",IF(AND(CH4>0,CH5="",CH6>0),1+CG4,IF(AND(CH4="",CH5>0),CG4,IF(AND(CH4>0,CH5>0),CG4,"0")))) -> 0 | CH5: 232 | CI5: d | CJ5: =IF(AND(CH5>0,CI5="D"),CJ4+(CH5*0.01),IF(AND(CH5>0,CI5="A"),CJ4-(CH5*0.01),IF(AND(CH5>0,CI5="W"),CJ4,IF(AND(CH5>0,CI5="S"),CJ4,IF(AND(CH5="",CH4>0,CH6>0),$D$3,""))))) -> 1362.32 | CK5: =IF(AND(CH5>0,CI5="D"),CK4,IF(AND(CH5>0,CI5="A"),CK4,IF(AND(CH5>0,CI5="W"),CK4+(CH5*0.01),IF(AND(CH5>0,CI5="S"),CK4-(CH5*0.01),IF(AND(CH5="",CH4>0,CH6>0),(CG5*20)+$E$3,""))))) -> 701.42 | CL5: =IF(AND(CH4="",CH5>0,CH6>0),CONCATENATE(CJ5,",",CK5),IF(AND(CH4>0,CH5>0,CH6>0),CONCATENATE(CJ5,",",CK5),IF(AND(CH4>0,CH5>0,CH6=""),CONCATENATE(CJ5,",",CK5," C "),IF(AND(CH4>0,CH5="",CH6>0),CONCATENATE("PL ",CJ5,",",CK5),"")))) -> 1362.32,701.42 | CN5: =IF(AND(CO4="",CO5=""),"",IF(AND(CO4>0,CO5="",CO6>0),1+CN4,IF(AND(CO4="",CO5>0),CN4,IF(AND(CO4>0,CO5>0),CN4,"0")))) -> 0 | CO5: 103 | CP5: d | CQ5: =IF(AND(CO5>0,CP5="D"),CQ4+(CO5*0.01),IF(AND(CO5>0,CP5="A"),CQ4-(CO5*0.01),IF(AND(CO5>0,CP5="W"),CQ4,IF(AND(CO5>0,CP5="S"),CQ4,IF(AND(CO5="",CO4>0,CO6>0),$D$3,""))))) -> 1391.03 | CR5: =IF(AND(CO5>0,CP5="D"),CR4,IF(AND(CO5>0,CP5="A"),CR4,IF(AND(CO5>0,CP5="W"),CR4+(CO5*0.01),IF(AND(CO5>0,CP5="S"),CR4-(CO5*0.01),IF(AND(CO5="",CO4>0,CO6>0),(CN5*20)+$E$3,""))))) -> 701.51 | CS5: =IF(AND(CO4="",CO5>0,CO6>0),CONCATENATE(CQ5,",",CR5),IF(AND(CO4>0,CO5>0,CO6>0),CONCATENATE(CQ5,",",CR5),IF(AND(CO4>0,CO5>0,CO6=""),CONCATENATE(CQ5,",",CR5," C "),IF(AND(CO4>0,CO5="",CO6>0),CONCATENATE("PL ",CQ5,",",CR5),"")))) -> 1391.03,701.51 | CU5: =IF(AND(CV4="",CV5=""),"",IF(AND(CV4>0,CV5="",CV6>0),1+CU4,IF(AND(CV4="",CV5>0),CU4,IF(AND(CV4>0,CV5>0),CU4,"0")))) -> 0 | CV5: 179 | CW5: s | CX5: =IF(AND(CV5>0,CW5="D"),CX4+(CV5*0.01),IF(AND(CV5>0,CW5="A"),CX4-(CV5*0.01),IF(AND(CV5>0,CW5="W"),CX4,IF(AND(CV5>0,CW5="S"),CX4,IF(AND(CV5="",CV4>0,CV6>0),$D$3,""))))) -> 1421.76 | CY5: =IF(AND(CV5>0,CW5="D"),CY4,IF(AND(CV5>0,CW5="A"),CY4,IF(AND(CV5>0,CW5="W"),CY4+(CV5*0.01),IF(AND(CV5>0,CW5="S"),CY4-(CV5*0.01),IF(AND(CV5="",CV4>0,CV6>0),(CU5*20)+$E$3,""))))) -> 598.21 | CZ5: =IF(AND(CV4="",CV5>0,CV6>0),CONCATENATE(CX5,",",CY5),IF(AND(CV4>0,CV5>0,CV6>0),CONCATENATE(CX5,",",CY5),IF(AND(CV4>0,CV5>0,CV6=""),CONCATENATE(CX5,",",CY5," C "),IF(AND(CV4>0,CV5="",CV6>0),CONCATENATE("PL ",CX5,",",CY5),"")))) -> 1421.76,598.21 | DB5: =IF(AND(DC4="",DC5=""),"",IF(AND(DC4>0,DC5="",DC6>0),1+DB4,IF(AND(DC4="",DC5>0),DB4,IF(AND(DC4>0,DC5>0),DB4,"0")))) -> 0 | DC5: 95 | DD5: D | DE5: =IF(AND(DC5>0,DD5="D"),DE4+(DC5*0.01),IF(AND(DC5>0,DD5="A"),DE4-(DC5*0.01),IF(AND(DC5>0,DD5="W"),DE4,IF(AND(DC5>0,DD5="S"),DE4,IF(AND(DC5="",DC4>0,DC6>0),$D$3,""))))) -> 1450.95 | DF5: =IF(AND(DC5>0,DD5="D"),DF4,IF(AND(DC5>0,DD5="A"),DF4,IF(AND(DC5>0,DD5="W"),DF4+(DC5*0.01),IF(AND(DC5>0,DD5="S"),DF4-(DC5*0.01),IF(AND(DC5="",DC4>0,DC6>0),(DB5*20)+$E$3,""))))) -> 602.51 | DG5: =IF(AND(DC4="",DC5>0,DC6>0),CONCATENATE(DE5,",",DF5),IF(AND(DC4>0,DC5>0,DC6>0),CONCATENATE(DE5,",",DF5),IF(AND(DC4>0,DC5>0,DC6=""),CONCATENATE(DE5,",",DF5," C "),IF(AND(DC4>0,DC5="",DC6>0),CONCATENATE("PL ",DE5,",",DF5),"")))) -> 1450.95,602.51 | DI5: =IF(AND(DJ4="",DJ5=""),"",IF(AND(DJ4>0,DJ5="",DJ6>0),1+DI4,IF(AND(DJ4="",DJ5>0),DI4,IF(AND(DJ4>0,DJ5>0),DI4,"0")))) -> 0 | DJ5: 32 | DK5: s | DL5: =IF(AND(DJ5>0,DK5="D"),DL4+(DJ5*0.01),IF(AND(DJ5>0,DK5="A"),DL4-(DJ5*0.01),IF(AND(DJ5>0,DK5="W"),DL4,IF(AND(DJ5>0,DK5="S"),DL4,IF(AND(DJ5="",DJ4>0,DJ6>0),$D$3,""))))) -> 1484.94 | DM5: =IF(AND(DJ5>0,DK5="D"),DM4,IF(AND(DJ5>0,DK5="A"),DM4,IF(AND(DJ5>0,DK5="W"),DM4+(DJ5*0.01),IF(AND(DJ5>0,DK5="S"),DM4-(DJ5*0.01),IF(AND(DJ5="",DJ4>0,DJ6>0),(DI5*20)+$E$3,""))))) -> 599.68 | DN5: =IF(AND(DJ4="",DJ5>0,DJ6>0),CONCATENATE(DL5,",",DM5),IF(AND(DJ4>0,DJ5>0,DJ6>0),CONCATENATE(DL5,",",DM5),IF(AND(DJ4>0,DJ5>0,DJ6=""),CONCATENATE(DL5,",",DM5," C "),IF(AND(DJ4>0,DJ5="",DJ6>0),CONCATENATE("PL ",DL5,",",DM5),"")))) -> 1484.94,599.68 | DP5: =IF(AND(DQ4="",DQ5=""),"",IF(AND(DQ4>0,DQ5="",DQ6>0),1+DP4,IF(AND(DQ4="",DQ5>0),DP4,IF(AND(DQ4>0,DQ5>0),DP4,"0")))) -> 0 | DQ5: 86 | DR5: d | DS5: =IF(AND(DQ5>0,DR5="D"),DS4+(DQ5*0.01),IF(AND(DQ5>0,DR5="A"),DS4-(DQ5*0.01),IF(AND(DQ5>0,DR5="W"),DS4,IF(AND(DQ5>0,DR5="S"),DS4,IF(AND(DQ5="",DQ4>0,DQ6>0),$D$3,""))))) -> 1510.86 | DT5: =IF(AND(DQ5>0,DR5="D"),DT4,IF(AND(DQ5>0,DR5="A"),DT4,IF(AND(DQ5>0,DR5="W"),DT4+(DQ5*0.01),IF(AND(DQ5>0,DR5="S"),DT4-(DQ5*0.01),IF(AND(DQ5="",DQ4>0,DQ6>0),(DP5*20)+$E$3,""))))) -> 601.51 | DU5: =IF(AND(DQ4="",DQ5>0,DQ6>0),CONCATENATE(DS5,",",DT5),IF(AND(DQ4>0,DQ5>0,DQ6>0),CONCATENATE(DS5,",",DT5),IF(AND(DQ4>0,DQ5>0,DQ6=""),CONCATENATE(DS5,",",DT5," C "),IF(AND(DQ4>0,DQ5="",DQ6>0),CONCATENATE("PL ",DS5,",",DT5),"")))) -> 1510.86,601.51 | DW5: =IF(AND(DX4="",DX5=""),"",IF(AND(DX4>0,DX5="",DX6>0),1+DW4,IF(AND(DX4="",DX5>0),DW4,IF(AND(DX4>0,DX5>0),DW4,"0")))) -> 0 | DX5: 118 | DY5: s | DZ5: =IF(AND(DX5>0,DY5="D"),DZ4+(DX5*0.01),IF(AND(DX5>0,DY5="A"),DZ4-(DX5*0.01),IF(AND(DX5>0,DY5="W"),DZ4,IF(AND(DX5>0,DY5="S"),DZ4,IF(AND(DX5="",DX4>0,DX6>0),$D$3,""))))) -> 1541.81 | EA5: =IF(AND(DX5>0,DY5="D"),EA4,IF(AND(DX5>0,DY5="A"),EA4,IF(AND(DX5>0,DY5="W"),EA4+(DX5*0.01),IF(AND(DX5>0,DY5="S"),EA4-(DX5*0.01),IF(AND(DX5="",DX4>0,DX6>0),(DW5*20)+$E$3,""))))) -> 498.82 | EB5: =IF(AND(DX4="",DX5>0,DX6>0),CONCATENATE(DZ5,",",EA5),IF(AND(DX4>0,DX5>0,DX6>0),CONCATENATE(DZ5,",",EA5),IF(AND(DX4>0,DX5>0,DX6=""),CONCATENATE(DZ5,",",EA5," C "),IF(AND(DX4>0,DX5="",DX6>0),CONCATENATE("PL ",DZ5,",",EA5),"")))) -> 1541.81,498.82 | ED5: =IF(AND(EE4="",EE5=""),"",IF(AND(EE4>0,EE5="",EE6>0),1+ED4,IF(AND(EE4="",EE5>0),ED4,IF(AND(EE4>0,EE5>0),ED4,"0")))) -> 0 | EE5: 98 | EF5: d | EG5: =IF(AND(EE5>0,EF5="D"),EG4+(EE5*0.01),IF(AND(EE5>0,EF5="A"),EG4-(EE5*0.01),IF(AND(EE5>0,EF5="W"),EG4,IF(AND(EE5>0,EF5="S"),EG4,IF(AND(EE5="",EE4>0,EE6>0),$D$3,""))))) -> 1570.98 | EH5: =IF(AND(EE5>0,EF5="D"),EH4,IF(AND(EE5>0,EF5="A"),EH4,IF(AND(EE5>0,EF5="W"),EH4+(EE5*0.01),IF(AND(EE5>0,EF5="S"),EH4-(EE5*0.01),IF(AND(EE5="",EE4>0,EE6>0),(ED5*20)+$E$3,""))))) -> 502.46 | EI5: =IF(AND(EE4="",EE5>0,EE6>0),CONCATENATE(EG5,",",EH5),IF(AND(EE4>0,EE5>0,EE6>0),CONCATENATE(EG5,",",EH5),IF(AND(EE4>0,EE5>0,EE6=""),CONCATENATE(EG5,",",EH5," C "),IF(AND(EE4>0,EE5="",EE6>0),CONCATENATE("PL ",EG5,",",EH5),"")))) -> 1570.98,502.46 | EK5: =IF(AND(EL4="",EL5=""),"",IF(AND(EL4>0,EL5="",EL6>0),1+EK4,IF(AND(EL4="",EL5>0),EK4,IF(AND(EL4>0,EL5>0),EK4,"0")))) -> 0 | EL5: 141 | EM5: s | EN5: =IF(AND(EL5>0,EM5="D"),EN4+(EL5*0.01),IF(AND(EL5>0,EM5="A"),EN4-(EL5*0.01),IF(AND(EL5>0,EM5="W"),EN4,IF(AND(EL5>0,EM5="S"),EN4,IF(AND(EL5="",EL4>0,EL6>0),$D$3,""))))) -> 1602.54 | EO5: =IF(AND(EL5>0,EM5="D"),EO4,IF(AND(EL5>0,EM5="A"),EO4,IF(AND(EL5>0,EM5="W"),EO4+(EL5*0.01),IF(AND(EL5>0,EM5="S"),EO4-(EL5*0.01),IF(AND(EL5="",EL4>0,EL6>0),(EK5*20)+$E$3,""))))) -> 498.59 | EP5: =IF(AND(EL4="",EL5>0,EL6>0),CONCATENATE(EN5,",",EO5),IF(AND(EL4>0,EL5>0,EL6>0),CONCATENATE(EN5,",",EO5),IF(AND(EL4>0,EL5>0,EL6=""),CONCATENATE(EN5,",",EO5," C "),IF(AND(EL4>0,EL5="",EL6>0),CONCATENATE("PL ",EN5,",",EO5),"")))) -> 1602.54,498.59 | ER5: =IF(AND(ES4="",ES5=""),"",IF(AND(ES4>0,ES5="",ES6>0),1+ER4,IF(AND(ES4="",ES5>0),ER4,IF(AND(ES4>0,ES5>0),ER4,"0")))) -> 0 | ES5: 64 | ET5: d | EU5: =IF(AND(ES5>0,ET5="D"),EU4+(ES5*0.01),IF(AND(ES5>0,ET5="A"),EU4-(ES5*0.01),IF(AND(ES5>0,ET5="W"),EU4,IF(AND(ES5>0,ET5="S"),EU4,IF(AND(ES5="",ES4>0,ES6>0),$D$3,""))))) -> 1630.64 | EV5: =IF(AND(ES5>0,ET5="D"),EV4,IF(AND(ES5>0,ET5="A"),EV4,IF(AND(ES5>0,ET5="W"),EV4+(ES5*0.01),IF(AND(ES5>0,ET5="S"),EV4-(ES5*0.01),IF(AND(ES5="",ES4>0,ES6>0),(ER5*20)+$E$3,""))))) -> 501.51 | EW5: =IF(AND(ES4="",ES5>0,ES6>0),CONCATENATE(EU5,",",EV5),IF(AND(ES4>0,ES5>0,ES6>0),CONCATENATE(EU5,",",EV5),IF(AND(ES4>0,ES5>0,ES6=""),CONCATENATE(EU5,",",EV5," C "),IF(AND(ES4>0,ES5="",ES6>0),CONCATENATE("PL ",EU5,",",EV5),"")))) -> 1630.64,501.51 | EY5: =IF(AND(EZ4="",EZ5=""),"",IF(AND(EZ4>0,EZ5="",EZ6>0),1+EY4,IF(AND(EZ4="",EZ5>0),EY4,IF(AND(EZ4>0,EZ5>0),EY4,"0")))) -> 0 | EZ5: 4 | FA5: d | FB5: =IF(AND(EZ5>0,FA5="D"),FB4+(EZ5*0.01),IF(AND(EZ5>0,FA5="A"),FB4-(EZ5*0.01),IF(AND(EZ5>0,FA5="W"),FB4,IF(AND(EZ5>0,FA5="S"),FB4,IF(AND(EZ5="",EZ4>0,EZ6>0),$D$3,""))))) -> 1660.04 | FC5: =IF(AND(EZ5>0,FA5="D"),FC4,IF(AND(EZ5>0,FA5="A"),FC4,IF(AND(EZ5>0,FA5="W"),FC4+(EZ5*0.01),IF(AND(EZ5>0,FA5="S"),FC4-(EZ5*0.01),IF(AND(EZ5="",EZ4>0,EZ6>0),(EY5*20)+$E$3,""))))) -> 395.42 | FD5: =IF(AND(EZ4="",EZ5>0,EZ6>0),CONCATENATE(FB5,",",FC5),IF(AND(EZ4>0,EZ5>0,EZ6>0),CONCATENATE(FB5,",",FC5),IF(AND(EZ4>0,EZ5>0,EZ6=""),CONCATENATE(FB5,",",FC5," C "),IF(AND(EZ4>0,EZ5="",EZ6>0),CONCATENATE("PL ",FB5,",",FC5),"")))) -> 1660.04,395.42 | FF5: =IF(AND(FG4="",FG5=""),"",IF(AND(FG4>0,FG5="",FG6>0),1+FF4,IF(AND(FG4="",FG5>0),FF4,IF(AND(FG4>0,FG5>0),FF4,"0")))) -> 0 | FG5: 112 | FH5: d | FI5: =IF(AND(FG5>0,FH5="D"),FI4+(FG5*0.01),IF(AND(FG5>0,FH5="A"),FI4-(FG5*0.01),IF(AND(FG5>0,FH5="W"),FI4,IF(AND(FG5>0,FH5="S"),FI4,IF(AND(FG5="",FG4>0,FG6>0),$D$3,""))))) -> 1691.12 | FJ5: =IF(AND(FG5>0,FH5="D"),FJ4,IF(AND(FG5>0,FH5="A"),FJ4,IF(AND(FG5>0,FH5="W"),FJ4+(FG5*0.01),IF(AND(FG5>0,FH5="S"),FJ4-(FG5*0.01),IF(AND(FG5="",FG4>0,FG6>0),(FF5*20)+$E$3,""))))) -> 408.17 | FK5: =IF(AND(FG4="",FG5>0,FG6>0),CONCATENATE(FI5,",",FJ5),IF(AND(FG4>0,FG5>0,FG6>0),CONCATENATE(FI5,",",FJ5),IF(AND(FG4>0,FG5>0,FG6=""),CONCATENATE(FI5,",",FJ5," C "),IF(AND(FG4>0,FG5="",FG6>0),CONCATENATE("PL ",FI5,",",FJ5),"")))) -> 1691.12,408.17 | FM5: =IF(AND(FN4="",FN5=""),"",IF(AND(FN4>0,FN5="",FN6>0),1+FM4,IF(AND(FN4="",FN5>0),FM4,IF(AND(FN4>0,FN5>0),FM4,"0")))) -> 0 | FN5: 4 | FO5: d | FP5: =IF(AND(FN5>0,FO5="D"),FP4+(FN5*0.01),IF(AND(FN5>0,FO5="A"),FP4-(FN5*0.01),IF(AND(FN5>0,FO5="W"),FP4,IF(AND(FN5>0,FO5="S"),FP4,IF(AND(FN5="",FN4>0,FN6>0),$D$3,""))))) -> 1720.04 | FQ5: =IF(AND(FN5>0,FO5="D"),FQ4,IF(AND(FN5>0,FO5="A"),FQ4,IF(AND(FN5>0,FO5="W"),FQ4+(FN5*0.01),IF(AND(FN5>0,FO5="S"),FQ4-(FN5*0.01),IF(AND(FN5="",FN4>0,FN6>0),(FM5*20)+$E$3,""))))) -> 395.42 | FR5: =IF(AND(FN4="",FN5>0,FN6>0),CONCATENATE(FP5,",",FQ5),IF(AND(FN4>0,FN5>0,FN6>0),CONCATENATE(FP5,",",FQ5),IF(AND(FN4>0,FN5>0,FN6=""),CONCATENATE(FP5,",",FQ5," C "),IF(AND(FN4>0,FN5="",FN6>0),CONCATENATE("PL ",FP5,",",FQ5),"")))) -> 1720.04,395.42 | FT5: =IF(AND(FU4="",FU5=""),"",IF(AND(FU4>0,FU5="",FU6>0),1+FT4,IF(AND(FU4="",FU5>0),FT4,IF(AND(FU4>0,FU5>0),FT4,"0")))) -> 0 | FU5: 112 | FV5: d | FW5: =IF(AND(FU5>0,FV5="D"),FW4+(FU5*0.01),IF(AND(FU5>0,FV5="A"),FW4-(FU5*0.01),IF(AND(FU5>0,FV5="W"),FW4,IF(AND(FU5>0,FV5="S"),FW4,IF(AND(FU5="",FU4>0,FU6>0),$D$3,""))))) -> 1751.12 | FX5: =IF(AND(FU5>0,FV5="D"),FX4,IF(AND(FU5>0,FV5="A"),FX4,IF(AND(FU5>0,FV5="W"),FX4+(FU5*0.01),IF(AND(FU5>0,FV5="S"),FX4-(FU5*0.01),IF(AND(FU5="",FU4>0,FU6>0),(FT5*20)+$E$3,""))))) -> 408.17 | FY5: =IF(AND(FU4="",FU5>0,FU6>0),CONCATENATE(FW5,",",FX5),IF(AND(FU4>0,FU5>0,FU6>0),CONCATENATE(FW5,",",FX5),IF(AND(FU4>0,FU5>0,FU6=""),CONCATENATE(FW5,",",FX5," C "),IF(AND(FU4>0,FU5="",FU6>0),CONCATENATE("PL ",FW5,",",FX5),"")))) -> 1751.12,408.17 | GA5: =IF(AND(GB4="",GB5=""),"",IF(AND(GB4>0,GB5="",GB6>0),1+GA4,IF(AND(GB4="",GB5>0),GA4,IF(AND(GB4>0,GB5>0),GA4,"0")))) -> 0 | GB5: 4 | GC5: d | GD5: =IF(AND(GB5>0,GC5="D"),GD4+(GB5*0.01),IF(AND(GB5>0,GC5="A"),GD4-(GB5*0.01),IF(AND(GB5>0,GC5="W"),GD4,IF(AND(GB5>0,GC5="S"),GD4,IF(AND(GB5="",GB4>0,GB6>0),$D$3,""))))) -> 1780.04 | GE5: =IF(AND(GB5>0,GC5="D"),GE4,IF(AND(GB5>0,GC5="A"),GE4,IF(AND(GB5>0,GC5="W"),GE4+(GB5*0.01),IF(AND(GB5>0,GC5="S"),GE4-(GB5*0.01),IF(AND(GB5="",GB4>0,GB6>0),(GA5*20)+$E$3,""))))) -> 395.42 | GF5: =IF(AND(GB4="",GB5>0,GB6>0),CONCATENATE(GD5,",",GE5),IF(AND(GB4>0,GB5>0,GB6>0),CONCATENATE(GD5,",",GE5),IF(AND(GB4>0,GB5>0,GB6=""),CONCATENATE(GD5,",",GE5," C "),IF(AND(GB4>0,GB5="",GB6>0),CONCATENATE("PL ",GD5,",",GE5),"")))) -> 1780.04,395.42 | GH5: =IF(AND(GI4="",GI5=""),"",IF(AND(GI4>0,GI5="",GI6>0),1+GH4,IF(AND(GI4="",GI5>0),GH4,IF(AND(GI4>0,GI5>0),GH4,"0")))) -> 0 | GI5: 112 | GJ5: d | GK5: =IF(AND(GI5>0,GJ5="D"),GK4+(GI5*0.01),IF(AND(GI5>0,GJ5="A"),GK4-(GI5*0.01),IF(AND(GI5>0,GJ5="W"),GK4,IF(AND(GI5>0,GJ5="S"),GK4,IF(AND(GI5="",GI4>0,GI6>0),$D$3,""))))) -> 1811.12 | GL5: =IF(AND(GI5>0,GJ5="D"),GL4,IF(AND(GI5>0,GJ5="A"),GL4,IF(AND(GI5>0,GJ5="W"),GL4+(GI5*0.01),IF(AND(GI5>0,GJ5="S"),GL4-(GI5*0.01),IF(AND(GI5="",GI4>0,GI6>0),(GH5*20)+$E$3,""))))) -> 408.17 | GM5: =IF(AND(GI4="",GI5>0,GI6>0),CONCATENATE(GK5,",",GL5),IF(AND(GI4>0,GI5>0,GI6>0),CONCATENATE(GK5,",",GL5),IF(AND(GI4>0,GI5>0,GI6=""),CONCATENATE(GK5,",",GL5," C "),IF(AND(GI4>0,GI5="",GI6>0),CONCATENATE("PL ",GK5,",",GL5),"")))) -> 1811.12,408.17 | GO5: =IF(AND(GP4="",GP5=""),"",IF(AND(GP4>0,GP5="",GP6>0),1+GO4,IF(AND(GP4="",GP5>0),GO4,IF(AND(GP4>0,GP5>0),GO4,"0")))) -> 0 | GP5: 4 | GQ5: d | GR5: =IF(AND(GP5>0,GQ5="D"),GR4+(GP5*0.01),IF(AND(GP5>0,GQ5="A"),GR4-(GP5*0.01),IF(AND(GP5>0,GQ5="W"),GR4,IF(AND(GP5>0,GQ5="S"),GR4,IF(AND(GP5="",GP4>0,GP6>0),$D$3,""))))) -> 1840.04 | GS5: =IF(AND(GP5>0,GQ5="D"),GS4,IF(AND(GP5>0,GQ5="A"),GS4,IF(AND(GP5>0,GQ5="W"),GS4+(GP5*0.01),IF(AND(GP5>0,GQ5="S"),GS4-(GP5*0.01),IF(AND(GP5="",GP4>0,GP6>0),(GO5*20)+$E$3,""))))) -> 395.42 | GT5: =IF(AND(GP4="",GP5>0,GP6>0),CONCATENATE(GR5,",",GS5),IF(AND(GP4>0,GP5>0,GP6>0),CONCATENATE(GR5,",",GS5),IF(AND(GP4>0,GP5>0,GP6=""),CONCATENATE(GR5,",",GS5," C "),IF(AND(GP4>0,GP5="",GP6>0),CONCATENATE("PL ",GR5,",",GS5),"")))) -> 1840.04,395.42 | GV5: =IF(AND(GW4="",GW5=""),"",IF(AND(GW4>0,GW5="",GW6>0),1+GV4,IF(AND(GW4="",GW5>0),GV4,IF(AND(GW4>0,GW5>0),GV4,"0")))) -> 0 | GW5: 112 | GX5: d | GY5: =IF(AND(GW5>0,GX5="D"),GY4+(GW5*0.01),IF(AND(GW5>0,GX5="A"),GY4-(GW5*0.01),IF(AND(GW5>0,GX5="W"),GY4,IF(AND(GW5>0,GX5="S"),GY4,IF(AND(GW5="",GW4>0,GW6>0),$D$3,""))))) -> 1871.12 | GZ5: =IF(AND(GW5>0,GX5="D"),GZ4,IF(AND(GW5>0,GX5="A"),GZ4,IF(AND(GW5>0,GX5="W"),GZ4+(GW5*0.01),IF(AND(GW5>0,GX5="S"),GZ4-(GW5*0.01),IF(AND(GW5="",GW4>0,GW6>0),(GV5*20)+$E$3,""))))) -> 408.17 | HA5: =IF(AND(GW4="",GW5>0,GW6>0),CONCATENATE(GY5,",",GZ5),IF(AND(GW4>0,GW5>0,GW6>0),CONCATENATE(GY5,",",GZ5),IF(AND(GW4>0,GW5>0,GW6=""),CONCATENATE(GY5,",",GZ5," C "),IF(AND(GW4>0,GW5="",GW6>0),CONCATENATE("PL ",GY5,",",GZ5),"")))) -> 1871.12,408.17 | HC5: =IF(AND(HD4="",HD5=""),"",IF(AND(HD4>0,HD5="",HD6>0),1+HC4,IF(AND(HD4="",HD5>0),HC4,IF(AND(HD4>0,HD5>0),HC4,"0")))) -> 0 | HD5: 4 | HE5: d | HF5: =IF(AND(HD5>0,HE5="D"),HF4+(HD5*0.01),IF(AND(HD5>0,HE5="A"),HF4-(HD5*0.01),IF(AND(HD5>0,HE5="W"),HF4,IF(AND(HD5>0,HE5="S"),HF4,IF(AND(HD5="",HD4>0,HD6>0),$D$3,""))))) -> 1900.04 | HG5: =IF(AND(HD5>0,HE5="D"),HG4,IF(AND(HD5>0,HE5="A"),HG4,IF(AND(HD5>0,HE5="W"),HG4+(HD5*0.01),IF(AND(HD5>0,HE5="S"),HG4-(HD5*0.01),IF(AND(HD5="",HD4>0,HD6>0),(HC5*20)+$E$3,""))))) -> 395.42 | HH5: =IF(AND(HD4="",HD5>0,HD6>0),CONCATENATE(HF5,",",HG5),IF(AND(HD4>0,HD5>0,HD6>0),CONCATENATE(HF5,",",HG5),IF(AND(HD4>0,HD5>0,HD6=""),CONCATENATE(HF5,",",HG5," C "),IF(AND(HD4>0,HD5="",HD6>0),CONCATENATE("PL ",HF5,",",HG5),"")))) -> 1900.04,395.42 | HJ5: =IF(AND(HK4="",HK5=""),"",IF(AND(HK4>0,HK5="",HK6>0),1+HJ4,IF(AND(HK4="",HK5>0),HJ4,IF(AND(HK4>0,HK5>0),HJ4,"0")))) -> 0 | HK5: 112 | HL5: d | HM5: =IF(AND(HK5>0,HL5="D"),HM4+(HK5*0.01),IF(AND(HK5>0,HL5="A"),HM4-(HK5*0.01),IF(AND(HK5>0,HL5="W"),HM4,IF(AND(HK5>0,HL5="S"),HM4,IF(AND(HK5="",HK4>0,HK6>0),$D$3,""))))) -> 1931.12 | HN5: =IF(AND(HK5>0,HL5="D"),HN4,IF(AND(HK5>0,HL5="A"),HN4,IF(AND(HK5>0,HL5="W"),HN4+(HK5*0.01),IF(AND(HK5>0,HL5="S"),HN4-(HK5*0.01),IF(AND(HK5="",HK4>0,HK6>0),(HJ5*20)+$E$3,""))))) -> 408.17 | HO5: =IF(AND(HK4="",HK5>0,HK6>0),CONCATENATE(HM5,",",HN5),IF(AND(HK4>0,HK5>0,HK6>0),CONCATENATE(HM5,",",HN5),IF(AND(HK4>0,HK5>0,HK6=""),CONCATENATE(HM5,",",HN5," C "),IF(AND(HK4>0,HK5="",HK6>0),CONCATENATE("PL ",HM5,",",HN5),"")))) -> 1931.12,408.17 | HQ5: =IF(AND(HR4="",HR5=""),"",IF(AND(HR4>0,HR5="",HR6>0),1+HQ4,IF(AND(HR4="",HR5>0),HQ4,IF(AND(HR4>0,HR5>0),HQ4,"0")))) -> 0 | HR5: 4 | HS5: d | HT5: =IF(AND(HR5>0,HS5="D"),HT4+(HR5*0.01),IF(AND(HR5>0,HS5="A"),HT4-(HR5*0.01),IF(AND(HR5>0,HS5="W"),HT4,IF(AND(HR5>0,HS5="S"),HT4,IF(AND(HR5="",HR4>0,HR6>0),$D$3,""))))) -> 1960.04 | HU5: =IF(AND(HR5>0,HS5="D"),HU4,IF(AND(HR5>0,HS5="A"),HU4,IF(AND(HR5>0,HS5="W"),HU4+(HR5*0.01),IF(AND(HR5>0,HS5="S"),HU4-(HR5*0.01),IF(AND(HR5="",HR4>0,HR6>0),(HQ5*20)+$E$3,""))))) -> 395.42 | HV5: =IF(AND(HR4="",HR5>0,HR6>0),CONCATENATE(HT5,",",HU5),IF(AND(HR4>0,HR5>0,HR6>0),CONCATENATE(HT5,",",HU5),IF(AND(HR4>0,HR5>0,HR6=""),CONCATENATE(HT5,",",HU5," C "),IF(AND(HR4>0,HR5="",HR6>0),CONCATENATE("PL ",HT5,",",HU5),"")))) -> 1960.04,395.42 | HX5: =IF(AND(HY4="",HY5=""),"",IF(AND(HY4>0,HY5="",HY6>0),1+HX4,IF(AND(HY4="",HY5>0),HX4,IF(AND(HY4>0,HY5>0),HX4,"0")))) -> 0 | HY5: 112 | HZ5: d | IA5: =IF(AND(HY5>0,HZ5="D"),IA4+(HY5*0.01),IF(AND(HY5>0,HZ5="A"),IA4-(HY5*0.01),IF(AND(HY5>0,HZ5="W"),IA4,IF(AND(HY5>0,HZ5="S"),IA4,IF(AND(HY5="",HY4>0,HY6>0),$D$3,""))))) -> 1991.12 | IB5: =IF(AND(HY5>0,HZ5="D"),IB4,IF(AND(HY5>0,HZ5="A"),IB4,IF(AND(HY5>0,HZ5="W"),IB4+(HY5*0.01),IF(AND(HY5>0,HZ5="S"),IB4-(HY5*0.01),IF(AND(HY5="",HY4>0,HY6>0),(HX5*20)+$E$3,""))))) -> 408.17 | IC5: =IF(AND(HY4="",HY5>0,HY6>0),CONCATENATE(IA5,",",IB5),IF(AND(HY4>0,HY5>0,HY6>0),CONCATENATE(IA5,",",IB5),IF(AND(HY4>0,HY5>0,HY6=""),CONCATENATE(IA5,",",IB5," C "),IF(AND(HY4>0,HY5="",HY6>0),CONCATENATE("PL ",IA5,",",IB5),"")))) -> 1991.12,408.17 | IE5: =IF(AND(IF4="",IF5=""),"",IF(AND(IF4>0,IF5="",IF6>0),1+IE4,IF(AND(IF4="",IF5>0),IE4,IF(AND(IF4>0,IF5>0),IE4,"0")))) -> 0 | IF5: 4 | IG5: d | IH5: =IF(AND(IF5>0,IG5="D"),IH4+(IF5*0.01),IF(AND(IF5>0,IG5="A"),IH4-(IF5*0.01),IF(AND(IF5>0,IG5="W"),IH4,IF(AND(IF5>0,IG5="S"),IH4,IF(AND(IF5="",IF4>0,IF6>0),$D$3,""))))) -> 2020.04 | II5: =IF(AND(IF5>0,IG5="D"),II4,IF(AND(IF5>0,IG5="A"),II4,IF(AND(IF5>0,IG5="W"),II4+(IF5*0.01),IF(AND(IF5>0,IG5="S"),II4-(IF5*0.01),IF(AND(IF5="",IF4>0,IF6>0),(IE5*20)+$E$3,""))))) -> 395.42 | IJ5: =IF(AND(IF4="",IF5>0,IF6>0),CONCATENATE(IH5,",",II5),IF(AND(IF4>0,IF5>0,IF6>0),CONCATENATE(IH5,",",II5),IF(AND(IF4>0,IF5>0,IF6=""),CONCATENATE(IH5,",",II5," C "),IF(AND(IF4>0,IF5="",IF6>0),CONCATENATE("PL ",IH5,",",II5),"")))) -> 2020.04,395.42 | IL5: =IF(AND(IM4="",IM5=""),"",IF(AND(IM4>0,IM5="",IM6>0),1+IL4,IF(AND(IM4="",IM5>0),IL4,IF(AND(IM4>0,IM5>0),IL4,"0")))) -> 0 | IM5: 112 | IN5: d | IO5: =IF(AND(IM5>0,IN5="D"),IO4+(IM5*0.01),IF(AND(IM5>0,IN5="A"),IO4-(IM5*0.01),IF(AND(IM5>0,IN5="W"),IO4,IF(AND(IM5>0,IN5="S"),IO4,IF(AND(IM5="",IM4>0,IM6>0),$D$3,""))))) -> 2051.12 | IP5: =IF(AND(IM5>0,IN5="D"),IP4,IF(AND(IM5>0,IN5="A"),IP4,IF(AND(IM5>0,IN5="W"),IP4+(IM5*0.01),IF(AND(IM5>0,IN5="S"),IP4-(IM5*0.01),IF(AND(IM5="",IM4>0,IM6>0),(IL5*20)+$E$3,""))))) -> 408.17 | IQ5: =IF(AND(IM4="",IM5>0,IM6>0),CONCATENATE(IO5,",",IP5),IF(AND(IM4>0,IM5>0,IM6>0),CONCATENATE(IO5,",",IP5),IF(AND(IM4>0,IM5>0,IM6=""),CONCATENATE(IO5,",",IP5," C "),IF(AND(IM4>0,IM5="",IM6>0),CONCATENATE("PL ",IO5,",",IP5),"")))) -> 2051.12,408.17 | IS5: =IF(AND(IT4="",IT5=""),"",IF(AND(IT4>0,IT5="",IT6>0),1+IS4,IF(AND(IT4="",IT5>0),IS4,IF(AND(IT4>0,IT5>0),IS4,"0")))) -> 0 | IT5: 4 | IU5: d | IV5: =IF(AND(IT5>0,IU5="D"),IV4+(IT5*0.01),IF(AND(IT5>0,IU5="A"),IV4-(IT5*0.01),IF(AND(IT5>0,IU5="W"),IV4,IF(AND(IT5>0,IU5="S"),IV4,IF(AND(IT5="",IT4>0,IT6>0),$D$3,""))))) -> 2080.04 | IW5: =IF(AND(IT5>0,IU5="D"),IW4,IF(AND(IT5>0,IU5="A"),IW4,IF(AND(IT5>0,IU5="W"),IW4+(IT5*0.01),IF(AND(IT5>0,IU5="S"),IW4-(IT5*0.01),IF(AND(IT5="",IT4>0,IT6>0),(IS5*20)+$E$3,""))))) -> 395.42 | IX5: =IF(AND(IT4="",IT5>0,IT6>0),CONCATENATE(IV5,",",IW5),IF(AND(IT4>0,IT5>0,IT6>0),CONCATENATE(IV5,",",IW5),IF(AND(IT4>0,IT5>0,IT6=""),CONCATENATE(IV5,",",IW5," C "),IF(AND(IT4>0,IT5="",IT6>0),CONCATENATE("PL ",IV5,",",IW5),"")))) -> 2080.04,395.42 | IZ5: =IF(AND(JA4="",JA5=""),"",IF(AND(JA4>0,JA5="",JA6>0),1+IZ4,IF(AND(JA4="",JA5>0),IZ4,IF(AND(JA4>0,JA5>0),IZ4,"0")))) -> 0 | JA5: 112 | JB5: d | JC5: =IF(AND(JA5>0,JB5="D"),JC4+(JA5*0.01),IF(AND(JA5>0,JB5="A"),JC4-(JA5*0.01),IF(AND(JA5>0,JB5="W"),JC4,IF(AND(JA5>0,JB5="S"),JC4,IF(AND(JA5="",JA4>0,JA6>0),$D$3,""))))) -> 2111.12 | JD5: =IF(AND(JA5>0,JB5="D"),JD4,IF(AND(JA5>0,JB5="A"),JD4,IF(AND(JA5>0,JB5="W"),JD4+(JA5*0.01),IF(AND(JA5>0,JB5="S"),JD4-(JA5*0.01),IF(AND(JA5="",JA4>0,JA6>0),(IZ5*20)+$E$3,""))))) -> 408.17 | JE5: =IF(AND(JA4="",JA5>0,JA6>0),CONCATENATE(JC5,",",JD5),IF(AND(JA4>0,JA5>0,JA6>0),CONCATENATE(JC5,",",JD5),IF(AND(JA4>0,JA5>0,JA6=""),CONCATENATE(JC5,",",JD5," C "),IF(AND(JA4>0,JA5="",JA6>0),CONCATENATE("PL ",JC5,",",JD5),"")))) -> 2111.12,408.17 | JG5: =IF(AND(JH4="",JH5=""),"",IF(AND(JH4>0,JH5="",JH6>0),1+JG4,IF(AND(JH4="",JH5>0),JG4,IF(AND(JH4>0,JH5>0),JG4,"0")))) -> 0 | JH5: 4 | JI5: d | JJ5: =IF(AND(JH5>0,JI5="D"),JJ4+(JH5*0.01),IF(AND(JH5>0,JI5="A"),JJ4-(JH5*0.01),IF(AND(JH5>0,JI5="W"),JJ4,IF(AND(JH5>0,JI5="S"),JJ4,IF(AND(JH5="",JH4>0,JH6>0),$D$3,""))))) -> 2140.04 | JK5: =IF(AND(JH5>0,JI5="D"),JK4,IF(AND(JH5>0,JI5="A"),JK4,IF(AND(JH5>0,JI5="W"),JK4+(JH5*0.01),IF(AND(JH5>0,JI5="S"),JK4-(JH5*0.01),IF(AND(JH5="",JH4>0,JH6>0),(JG5*20)+$E$3,""))))) -> 395.42 | JL5: =IF(AND(JH4="",JH5>0,JH6>0),CONCATENATE(JJ5,",",JK5),IF(AND(JH4>0,JH5>0,JH6>0),CONCATENATE(JJ5,",",JK5),IF(AND(JH4>0,JH5>0,JH6=""),CONCATENATE(JJ5,",",JK5," C "),IF(AND(JH4>0,JH5="",JH6>0),CONCATENATE("PL ",JJ5,",",JK5),"")))) -> 2140.04,395.42 | JN5: =IF(AND(JO4="",JO5=""),"",IF(AND(JO4>0,JO5="",JO6>0),1+JN4,IF(AND(JO4="",JO5>0),JN4,IF(AND(JO4>0,JO5>0),JN4,"0")))) -> 0 | JO5: 112 | JP5: d | JQ5: =IF(AND(JO5>0,JP5="D"),JQ4+(JO5*0.01),IF(AND(JO5>0,JP5="A"),JQ4-(JO5*0.01),IF(AND(JO5>0,JP5="W"),JQ4,IF(AND(JO5>0,JP5="S"),JQ4,IF(AND(JO5="",JO4>0,JO6>0),$D$3,""))))) -> 2171.12 | JR5: =IF(AND(JO5>0,JP5="D"),JR4,IF(AND(JO5>0,JP5="A"),JR4,IF(AND(JO5>0,JP5="W"),JR4+(JO5*0.01),IF(AND(JO5>0,JP5="S"),JR4-(JO5*0.01),IF(AND(JO5="",JO4>0,JO6>0),(JN5*20)+$E$3,""))))) -> 408.17 | JS5: =IF(AND(JO4="",JO5>0,JO6>0),CONCATENATE(JQ5,",",JR5),IF(AND(JO4>0,JO5>0,JO6>0),CONCATENATE(JQ5,",",JR5),IF(AND(JO4>0,JO5>0,JO6=""),CONCATENATE(JQ5,",",JR5," C "),IF(AND(JO4>0,JO5="",JO6>0),CONCATENATE("PL ",JQ5,",",JR5),"")))) -> 2171.12,408.17 | JU5: =IF(AND(JV4="",JV5=""),"",IF(AND(JV4>0,JV5="",JV6>0),1+JU4,IF(AND(JV4="",JV5>0),JU4,IF(AND(JV4>0,JV5>0),JU4,"0")))) -> 0 | JV5: 4 | JW5: d | JX5: =IF(AND(JV5>0,JW5="D"),JX4+(JV5*0.01),IF(AND(JV5>0,JW5="A"),JX4-(JV5*0.01),IF(AND(JV5>0,JW5="W"),JX4,IF(AND(JV5>0,JW5="S"),JX4,IF(AND(JV5="",JV4>0,JV6>0),$D$3,""))))) -> 2200.04 | JY5: =IF(AND(JV5>0,JW5="D"),JY4,IF(AND(JV5>0,JW5="A"),JY4,IF(AND(JV5>0,JW5="W"),JY4+(JV5*0.01),IF(AND(JV5>0,JW5="S"),JY4-(JV5*0.01),IF(AND(JV5="",JV4>0,JV6>0),(JU5*20)+$E$3,""))))) -> 395.42 | JZ5: =IF(AND(JV4="",JV5>0,JV6>0),CONCATENATE(JX5,",",JY5),IF(AND(JV4>0,JV5>0,JV6>0),CONCATENATE(JX5,",",JY5),IF(AND(JV4>0,JV5>0,JV6=""),CONCATENATE(JX5,",",JY5," C "),IF(AND(JV4>0,JV5="",JV6>0),CONCATENATE("PL ",JX5,",",JY5),"")))) -> 2200.04,395.42 | KB5: =IF(AND(KC4="",KC5=""),"",IF(AND(KC4>0,KC5="",KC6>0),1+KB4,IF(AND(KC4="",KC5>0),KB4,IF(AND(KC4>0,KC5>0),KB4,"0")))) -> 0 | KC5: 112 | KD5: d | KE5: =IF(AND(KC5>0,KD5="D"),KE4+(KC5*0.01),IF(AND(KC5>0,KD5="A"),KE4-(KC5*0.01),IF(AND(KC5>0,KD5="W"),KE4,IF(AND(KC5>0,KD5="S"),KE4,IF(AND(KC5="",KC4>0,KC6>0),$D$3,""))))) -> 2231.12 | KF5: =IF(AND(KC5>0,KD5="D"),KF4,IF(AND(KC5>0,KD5="A"),KF4,IF(AND(KC5>0,KD5="W"),KF4+(KC5*0.01),IF(AND(KC5>0,KD5="S"),KF4-(KC5*0.01),IF(AND(KC5="",KC4>0,KC6>0),(KB5*20)+$E$3,""))))) -> 408.17 | KG5: =IF(AND(KC4="",KC5>0,KC6>0),CONCATENATE(KE5,",",KF5),IF(AND(KC4>0,KC5>0,KC6>0),CONCATENATE(KE5,",",KF5),IF(AND(KC4>0,KC5>0,KC6=""),CONCATENATE(KE5,",",KF5," C "),IF(AND(KC4>0,KC5="",KC6>0),CONCATENATE("PL ",KE5,",",KF5),"")))) -> 2231.12,408.17 | KI5: =IF(AND(KJ4="",KJ5=""),"",IF(AND(KJ4>0,KJ5="",KJ6>0),1+KI4,IF(AND(KJ4="",KJ5>0),KI4,IF(AND(KJ4>0,KJ5>0),KI4,"0")))) -> 0 | KJ5: 4 | KK5: d | KL5: =IF(AND(KJ5>0,KK5="D"),KL4+(KJ5*0.01),IF(AND(KJ5>0,KK5="A"),KL4-(KJ5*0.01),IF(AND(KJ5>0,KK5="W"),KL4,IF(AND(KJ5>0,KK5="S"),KL4,IF(AND(KJ5="",KJ4>0,KJ6>0),$D$3,""))))) -> 2260.04 | KM5: =IF(AND(KJ5>0,KK5="D"),KM4,IF(AND(KJ5>0,KK5="A"),KM4,IF(AND(KJ5>0,KK5="W"),KM4+(KJ5*0.01),IF(AND(KJ5>0,KK5="S"),KM4-(KJ5*0.01),IF(AND(KJ5="",KJ4>0,KJ6>0),(KI5*20)+$E$3,""))))) -> 395.42 | KN5: =IF(AND(KJ4="",KJ5>0,KJ6>0),CONCATENATE(KL5,",",KM5),IF(AND(KJ4>0,KJ5>0,KJ6>0),CONCATENATE(KL5,",",KM5),IF(AND(KJ4>0,KJ5>0,KJ6=""),CONCATENATE(KL5,",",KM5," C "),IF(AND(KJ4>0,KJ5="",KJ6>0),CONCATENATE("PL ",KL5,",",KM5),"")))) -> 2260.04,395.42 | KP5: =IF(AND(KQ4="",KQ5=""),"",IF(AND(KQ4>0,KQ5="",KQ6>0),1+KP4,IF(AND(KQ4="",KQ5>0),KP4,IF(AND(KQ4>0,KQ5>0),KP4,"0")))) -> 0 | KQ5: 112 | KR5: d | KS5: =IF(AND(KQ5>0,KR5="D"),KS4+(KQ5*0.01),IF(AND(KQ5>0,KR5="A"),KS4-(KQ5*0.01),IF(AND(KQ5>0,KR5="W"),KS4,IF(AND(KQ5>0,KR5="S"),KS4,IF(AND(KQ5="",KQ4>0,KQ6>0),$D$3,""))))) -> 2291.12 | KT5: =IF(AND(KQ5>0,KR5="D"),KT4,IF(AND(KQ5>0,KR5="A"),KT4,IF(AND(KQ5>0,KR5="W"),KT4+(KQ5*0.01),IF(AND(KQ5>0,KR5="S"),KT4-(KQ5*0.01),IF(AND(KQ5="",KQ4>0,KQ6>0),(KP5*20)+$E$3,""))))) -> 408.17 | KU5: =IF(AND(KQ4="",KQ5>0,KQ6>0),CONCATENATE(KS5,",",KT5),IF(AND(KQ4>0,KQ5>0,KQ6>0),CONCATENATE(KS5,",",KT5),IF(AND(KQ4>0,KQ5>0,KQ6=""),CONCATENATE(KS5,",",KT5," C "),IF(AND(KQ4>0,KQ5="",KQ6>0),CONCATENATE("PL ",KS5,",",KT5),"")))) -> 2291.12,408.17 | KW5: =IF(AND(KX4="",KX5=""),"",IF(AND(KX4>0,KX5="",KX6>0),1+KW4,IF(AND(KX4="",KX5>0),KW4,IF(AND(KX4>0,KX5>0),KW4,"0")))) -> 0 | KX5: 4 | KY5: d | KZ5: =IF(AND(KX5>0,KY5="D"),KZ4+(KX5*0.01),IF(AND(KX5>0,KY5="A"),KZ4-(KX5*0.01),IF(AND(KX5>0,KY5="W"),KZ4,IF(AND(KX5>0,KY5="S"),KZ4,IF(AND(KX5="",KX4>0,KX6>0),$D$3,""))))) -> 2320.04 | LA5: =IF(AND(KX5>0,KY5="D"),LA4,IF(AND(KX5>0,KY5="A"),LA4,IF(AND(KX5>0,KY5="W"),LA4+(KX5*0.01),IF(AND(KX5>0,KY5="S"),LA4-(KX5*0.01),IF(AND(KX5="",KX4>0,KX6>0),(KW5*20)+$E$3,""))))) -> 395.42 | LB5: =IF(AND(KX4="",KX5>0,KX6>0),CONCATENATE(KZ5,",",LA5),IF(AND(KX4>0,KX5>0,KX6>0),CONCATENATE(KZ5,",",LA5),IF(AND(KX4>0,KX5>0,KX6=""),CONCATENATE(KZ5,",",LA5," C "),IF(AND(KX4>0,KX5="",KX6>0),CONCATENATE("PL ",KZ5,",",LA5),"")))) -> 2320.04,395.42 | LD5: =IF(AND(LE4="",LE5=""),"",IF(AND(LE4>0,LE5="",LE6>0),1+LD4,IF(AND(LE4="",LE5>0),LD4,IF(AND(LE4>0,LE5>0),LD4,"0")))) -> 0 | LE5: 112 | LF5: d | LG5: =IF(AND(LE5>0,LF5="D"),LG4+(LE5*0.01),IF(AND(LE5>0,LF5="A"),LG4-(LE5*0.01),IF(AND(LE5>0,LF5="W"),LG4,IF(AND(LE5>0,LF5="S"),LG4,IF(AND(LE5="",LE4>0,LE6>0),$D$3,""))))) -> 2351.12 | LH5: =IF(AND(LE5>0,LF5="D"),LH4,IF(AND(LE5>0,LF5="A"),LH4,IF(AND(LE5>0,LF5="W"),LH4+(LE5*0.01),IF(AND(LE5>0,LF5="S"),LH4-(LE5*0.01),IF(AND(LE5="",LE4>0,LE6>0),(LD5*20)+$E$3,""))))) -> 408.17 | LI5: =IF(AND(LE4="",LE5>0,LE6>0),CONCATENATE(LG5,",",LH5),IF(AND(LE4>0,LE5>0,LE6>0),CONCATENATE(LG5,",",LH5),IF(AND(LE4>0,LE5>0,LE6=""),CONCATENATE(LG5,",",LH5," C "),IF(AND(LE4>0,LE5="",LE6>0),CONCATENATE("PL ",LG5,",",LH5),"")))) -> 2351.12,408.17 | LK5: =IF(AND(LL4="",LL5=""),"",IF(AND(LL4>0,LL5="",LL6>0),1+LK4,IF(AND(LL4="",LL5>0),LK4,IF(AND(LL4>0,LL5>0),LK4,"0")))) -> 0 | LL5: 112 | LM5: d | LN5: =IF(AND(LL5>0,LM5="D"),LN4+(LL5*0.01),IF(AND(LL5>0,LM5="A"),LN4-(LL5*0.01),IF(AND(LL5>0,LM5="W"),LN4,IF(AND(LL5>0,LM5="S"),LN4,IF(AND(LL5="",LL4>0,LL6>0),$D$3,""))))) -> 2381.12 | LO5: =IF(AND(LL5>0,LM5="D"),LO4,IF(AND(LL5>0,LM5="A"),LO4,IF(AND(LL5>0,LM5="W"),LO4+(LL5*0.01),IF(AND(LL5>0,LM5="S"),LO4-(LL5*0.01),IF(AND(LL5="",LL4>0,LL6>0),(LK5*20)+$E$3,""))))) -> 408.17 | LP5: =IF(AND(LL4="",LL5>0,LL6>0),CONCATENATE(LN5,",",LO5),IF(AND(LL4>0,LL5>0,LL6>0),CONCATENATE(LN5,",",LO5),IF(AND(LL4>0,LL5>0,LL6=""),CONCATENATE(LN5,",",LO5," C "),IF(AND(LL4>0,LL5="",LL6>0),CONCATENATE("PL ",LN5,",",LO5),"")))) -> 2381.12,408.17 | LR5: =IF(AND(LS4="",LS5=""),"",IF(AND(LS4>0,LS5="",LS6>0),1+LR4,IF(AND(LS4="",LS5>0),LR4,IF(AND(LS4>0,LS5>0),LR4,"0")))) -> 0 | LS5: 112 | LT5: d | LU5: =IF(AND(LS5>0,LT5="D"),LU4+(LS5*0.01),IF(AND(LS5>0,LT5="A"),LU4-(LS5*0.01),IF(AND(LS5>0,LT5="W"),LU4,IF(AND(LS5>0,LT5="S"),LU4,IF(AND(LS5="",LS4>0,LS6>0),$D$3,""))))) -> 2411.12 | LV5: =IF(AND(LS5>0,LT5="D"),LV4,IF(AND(LS5>0,LT5="A"),LV4,IF(AND(LS5>0,LT5="W"),LV4+(LS5*0.01),IF(AND(LS5>0,LT5="S"),LV4-(LS5*0.01),IF(AND(LS5="",LS4>0,LS6>0),(LR5*20)+$E$3,""))))) -> 408.17 | LW5: =IF(AND(LS4="",LS5>0,LS6>0),CONCATENATE(LU5,",",LV5),IF(AND(LS4>0,LS5>0,LS6>0),CONCATENATE(LU5,",",LV5),IF(AND(LS4>0,LS5>0,LS6=""),CONCATENATE(LU5,",",LV5," C "),IF(AND(LS4>0,LS5="",LS6>0),CONCATENATE("PL ",LU5,",",LV5),"")))) -> 2411.12,408.17 | LY5: =IF(AND(LZ4="",LZ5=""),"",IF(AND(LZ4>0,LZ5="",LZ6>0),1+LY4,IF(AND(LZ4="",LZ5>0),LY4,IF(AND(LZ4>0,LZ5>0),LY4,"0")))) -> 0 | LZ5: 112 | MA5: d | MB5: =IF(AND(LZ5>0,MA5="D"),MB4+(LZ5*0.01),IF(AND(LZ5>0,MA5="A"),MB4-(LZ5*0.01),IF(AND(LZ5>0,MA5="W"),MB4,IF(AND(LZ5>0,MA5="S"),MB4,IF(AND(LZ5="",LZ4>0,LZ6>0),$D$3,""))))) -> 2441.12 | MC5: =IF(AND(LZ5>0,MA5="D"),MC4,IF(AND(LZ5>0,MA5="A"),MC4,IF(AND(LZ5>0,MA5="W"),MC4+(LZ5*0.01),IF(AND(LZ5>0,MA5="S"),MC4-(LZ5*0.01),IF(AND(LZ5="",LZ4>0,LZ6>0),(LY5*20)+$E$3,""))))) -> 408.17 | MD5: =IF(AND(LZ4="",LZ5>0,LZ6>0),CONCATENATE(MB5,",",MC5),IF(AND(LZ4>0,LZ5>0,LZ6>0),CONCATENATE(MB5,",",MC5),IF(AND(LZ4>0,LZ5>0,LZ6=""),CONCATENATE(MB5,",",MC5," C "),IF(AND(LZ4>0,LZ5="",LZ6>0),CONCATENATE("PL ",MB5,",",MC5),"")))) -> 2441.12,408.17 | MF5: =IF(AND(MG4="",MG5=""),"",IF(AND(MG4>0,MG5="",MG6>0),1+MF4,IF(AND(MG4="",MG5>0),MF4,IF(AND(MG4>0,MG5>0),MF4,"0")))) -> 0 | MG5: 112 | MH5: d | MI5: =IF(AND(MG5>0,MH5="D"),MI4+(MG5*0.01),IF(AND(MG5>0,MH5="A"),MI4-(MG5*0.01),IF(AND(MG5>0,MH5="W"),MI4,IF(AND(MG5>0,MH5="S"),MI4,IF(AND(MG5="",MG4>0,MG6>0),$D$3,""))))) -> 2471.12 | MJ5: =IF(AND(MG5>0,MH5="D"),MJ4,IF(AND(MG5>0,MH5="A"),MJ4,IF(AND(MG5>0,MH5="W"),MJ4+(MG5*0.01),IF(AND(MG5>0,MH5="S"),MJ4-(MG5*0.01),IF(AND(MG5="",MG4>0,MG6>0),(MF5*20)+$E$3,""))))) -> 408.17 | MK5: =IF(AND(MG4="",MG5>0,MG6>0),CONCATENATE(MI5,",",MJ5),IF(AND(MG4>0,MG5>0,MG6>0),CONCATENATE(MI5,",",MJ5),IF(AND(MG4>0,MG5>0,MG6=""),CONCATENATE(MI5,",",MJ5," C "),IF(AND(MG4>0,MG5="",MG6>0),CONCATENATE("PL ",MI5,",",MJ5),"")))) -> 2471.12,408.17
A6: 0 | B6: 252 | C6: w | D6: 999.96 | E6: 1006.97 | F6: 999.96,1006.97 | H6: 0 | I6: 725 | J6: a | K6: =IF(AND(I6>0,J6="D"),K5+(I6*0.01),IF(AND(I6>0,J6="A"),K5-(I6*0.01),IF(AND(I6>0,J6="W"),K5,IF(AND(I6>0,J6="S"),K5,IF(AND(I6="",I5>0,I7>0),K$3,""))))) -> 1025.28 | L6: 998.57 | M6: 1025.28,998.57 | O6: 0 | P6: 211 | Q6: a | R6: 1059.64 | S6: 998.25 | T6: 1059.64,998.25 | V6: 0 | W6: 582 | X6: s | Y6: 1091.61 | Z6: 897.33 | AA6: 1091.61,897.33 | AC6: 0 | AD6: 142 | AE6: s | AF6: 1117.6 | AG6: 903.51 | AH6: 1117.6,903.51 | AJ6: 0 | AK6: 151 | AL6: w | AM6: 1148.5 | AN6: 903.89 | AO6: 1148.5,903.89 | AQ6: 0 | AR6: 215 | AS6: a | AT6: 1179.46 | AU6: 798.23 | AV6: 1179.46,798.23 | AX6: 0 | AY6: 583 | AZ6: s | BA6: 1211.59 | BB6: 797.51 | BC6: 1211.59,797.51 | BE6: 0 | BF6: 492 | BG6: a | BH6: 1237.76 | BI6: 798.57 | BJ6: 1237.76,798.57 | BL6: 0 | BM6: 30 | BN6: s | BO6: 1271.02 | BP6: 801.19 | BQ6: 1271.02,801.19 | BS6: 0 | BT6: 64 | BU6: d | BV6: 1301.68 | BW6: 699.87 | BX6: 1301.68,699.87 | BZ6: 0 | CA6: 332 | CB6: w | CC6: 1330.47 | CD6: 705.85 | CE6: 1330.47,705.85 | CG6: 0 | CH6: 326 | CI6: s | CJ6: 1362.32 | CK6: 698.16 | CL6: 1362.32,698.16 | CN6: 0 | CO6: 33 | CP6: s | CQ6: 1391.03 | CR6: 701.18 | CS6: 1391.03,701.18 | CU6: 0 | CV6: 209 | CW6: a | CX6: 1419.67 | CY6: 598.21 | CZ6: 1419.67,598.21 | DB6: 0 | DC6: 332 | DD6: W | DE6: 1450.95 | DF6: 605.83 | DG6: 1450.95,605.83 | DI6: 0 | DJ6: 50 | DK6: d | DL6: 1485.44 | DM6: 599.68 | DN6: 1485.44,599.68 | DP6: 0 | DQ6: 34 | DR6: s | DS6: 1510.86 | DT6: 601.17 | DU6: 1510.86,601.17 | DW6: 0 | DX6: 209 | DY6: a | DZ6: 1539.72 | EA6: 498.82 | EB6: 1539.72,498.82 | ED6: 0 | EE6: 332 | EF6: w | EG6: 1570.98 | EH6: 505.78 | EI6: 1570.98,505.78 | EK6: 0 | EL6: 481 | EM6: a | EN6: 1597.73 | EO6: 498.59 | EP6: 1597.73,498.59 | ER6: 0 | ES6: 34 | ET6: s | EU6: 1630.64 | EV6: 501.17 | EW6: 1630.64,501.17 | EY6: 0 | EZ6: 254 | FA6: s | FB6: 1660.04 | FC6: 392.88 | FD6: 1660.04,392.88 | FF6: 0 | FG6: 19 | FH6: s | FI6: 1691.12 | FJ6: 407.98 | FK6: 1691.12,407.98 | FM6: 0 | FN6: 254 | FO6: s | FP6: 1720.04 | FQ6: 392.88 | FR6: 1720.04,392.88 | FT6: 0 | FU6: 19 | FV6: s | FW6: 1751.12 | FX6: 407.98 | FY6: 1751.12,407.98 | GA6: 0 | GB6: 254 | GC6: s | GD6: 1780.04 | GE6: 392.88 | GF6: 1780.04,392.88 | GH6: 0 | GI6: 19 | GJ6: s | GK6: 1811.12 | GL6: 407.98 | GM6: 1811.12,407.98 | GO6: 0 | GP6: 254 | GQ6: s | GR6: 1840.04 | GS6: 392.88 | GT6: 1840.04,392.88 | GV6: 0 | GW6: 19 | GX6: s | GY6: 1871.12 | GZ6: 407.98 | HA6: 1871.12,407.98 | HC6: 0 | HD6: 254 | HE6: s | HF6: 1900.04 | HG6: 392.88 | HH6: 1900.04,392.88 | HJ6: 0 | HK6: 19 | HL6: s | HM6: 1931.12 | HN6: 407.98 | HO6: 1931.12,407.98 | HQ6: 0 | HR6: 254 | HS6: s | HT6: 1960.04 | HU6: 392.88 | HV6: 1960.04,392.88 | HX6: 0 | HY6: 19 | HZ6: s | IA6: 1991.12 | IB6: 407.98 | IC6: 1991.12,407.98 | IE6: 0 | IF6: 254 | IG6: s | IH6: 2020.04 | II6: 392.88 | IJ6: 2020.04,392.88 | IL6: 0 | IM6: 19 | IN6: s | IO6: 2051.12 | IP6: 407.98 | IQ6: 2051.12,407.98 | IS6: 0 | IT6: 254 | IU6: s | IV6: 2080.04 | IW6: 392.88 | IX6: 2080.04,392.88 | IZ6: 0 | JA6: 19 | JB6: s | JC6: 2111.12 | JD6: 407.98 | JE6: 2111.12,407.98 | JG6: 0 | JH6: 254 | JI6: s | JJ6: 2140.04 | JK6: 392.88 | JL6: 2140.04,392.88 | JN6: 0 | JO6: 19 | JP6: s | JQ6: 2171.12 | JR6: 407.98 | JS6: 2171.12,407.98 | JU6: 0 | JV6: 254 | JW6: s | JX6: 2200.04 | JY6: 392.88 | JZ6: 2200.04,392.88 | KB6: 0 | KC6: 19 | KD6: s | KE6: 2231.12 | KF6: 407.98 | KG6: 2231.12,407.98 | KI6: 0 | KJ6: 254 | KK6: s | KL6: 2260.04 | KM6: 392.88 | KN6: 2260.04,392.88 | KP6: 0 | KQ6: 19 | KR6: s | KS6: 2291.12 | KT6: 407.98 | KU6: 2291.12,407.98 | KW6: 0 | KX6: 254 | KY6: s | KZ6: 2320.04 | LA6: 392.88 | LB6: 2320.04,392.88 | LD6: 0 | LE6: 19 | LF6: s | LG6: 2351.12 | LH6: 407.98 | LI6: 2351.12,407.98 | LK6: 0 | LL6: 19 | LM6: s | LN6: 2381.12 | LO6: 407.98 | LP6: 2381.12,407.98 | LR6: 0 | LS6: 19 | LT6: s | LU6: 2411.12 | LV6: 407.98 | LW6: 2411.12,407.98 | LY6: 0 | LZ6: 19 | MA6: s | MB6: 2441.12 | MC6: 407.98 | MD6: 2441.12,407.98 | MF6: 0 | MG6: 19 | MH6: s | MI6: 2471.12 | MJ6: 407.98 | MK6: 2471.12,407.98
A7: 0 | B7: 725 | C7: d | D7: 1007.21 | E7: 1006.97 | F7: 1007.21,1006.97 | H7: 0 | I7: 143 | J7: w | K7: 1025.28 | L7: 1000 | M7: 1025.28,1000 | O7: 0 | P7: 31 | Q7: w | R7: 1059.64 | S7: 998.56 | T7: 1059.64,998.56 | V7: 0 | W7: 214 | X7: a | Y7: 1089.47 | Z7: 897.33 | AA7: 1089.47,897.33 | AC7: 0 | AD7: 85 | AE7: d | AF7: 1118.45 | AG7: 903.51 | AH7: 1118.45,903.51 | AJ7: 0 | AK7: 99 | AL7: d | AM7: 1149.49 | AN7: 903.89 | AO7: 1149.49,903.89 | AQ7: 0 | AR7: 30 | AS7: w | AT7: 1179.46 | AU7: 798.53 | AV7: 1179.46,798.53 | AX7: 0 | AY7: 209 | AZ7: a | BA7: 1209.5 | BB7: 797.51 | BC7: 1209.5,797.51 | BE7: 0 | BF7: 114 | BG7: w | BH7: 1237.76 | BI7: 799.71 | BJ7: 1237.76,799.71 | BL7: 0 | BM7: 51 | BN7: d | BO7: 1271.53 | BP7: 801.19 | BQ7: 1271.53,801.19 | BS7: 0 | BT7: 167 | BU7: s | BV7: 1301.68 | BW7: 698.2 | BX7: 1301.68,698.2 | BZ7: 0 | CA7: 160 | CB7: d | CC7: 1332.07 | CD7: 705.85 | CE7: 1332.07,705.85 | CG7: 0 | CH7: 25 | CI7: d | CJ7: 1362.57 | CK7: 698.16 | CL7: 1362.57,698.16 | CN7: 0 | CO7: 50 | CP7: d | CQ7: 1391.53 | CR7: 701.18 | CS7: 1391.53,701.18 | CU7: 0 | CV7: 31 | CW7: w | CX7: 1419.67 | CY7: 598.52 | CZ7: 1419.67,598.52 | DB7: 0 | DC7: 159 | DD7: D | DE7: 1452.54 | DF7: 605.83 | DG7: 1452.54,605.83 | DI7: 0 | DJ7: 33 | DK7: w | DL7: 1485.44 | DM7: 600.01 | DN7: 1485.44,600.01 | DP7: 0 | DQ7: 50 | DR7: d | DS7: 1511.36 | DT7: 601.17 | DU7: 1511.36,601.17 | DW7: 0 | DX7: 31 | DY7: w | DZ7: 1539.72 | EA7: 499.13 | EB7: 1539.72,499.13 | ED7: 0 | EE7: 160 | EF7: d | EG7: 1572.58 | EH7: 505.78 | EI7: 1572.58,505.78 | EK7: 0 | EL7: 113 | EM7: w | EN7: 1597.73 | EO7: 499.72 | EP7: 1597.73,499.72 | ER7: 0 | ES7: 50 | ET7: d | EU7: 1631.14 | EV7: 501.17 | EW7: 1631.14,501.17 | EY7: 0 | EZ7: 734 | FA7: a | FB7: 1652.7 | FC7: 392.88 | FD7: 1652.7,392.88 | FF7: 0 | FG7: 51 | FH7: d | FI7: 1691.63 | FJ7: 407.98 | FK7: 1691.63,407.98 | FM7: 0 | FN7: 734 | FO7: a | FP7: 1712.7 | FQ7: 392.88 | FR7: 1712.7,392.88 | FT7: 0 | FU7: 51 | FV7: d | FW7: 1751.63 | FX7: 407.98 | FY7: 1751.63,407.98 | GA7: 0 | GB7: 734 | GC7: a | GD7: 1772.7 | GE7: 392.88 | GF7: 1772.7,392.88 | GH7: 0 | GI7: 51 | GJ7: d | GK7: 1811.63 | GL7: 407.98 | GM7: 1811.63,407.98 | GO7: 0 | GP7: 734 | GQ7: a | GR7: 1832.7 | GS7: 392.88 | GT7: 1832.7,392.88 | GV7: 0 | GW7: 51 | GX7: d | GY7: 1871.63 | GZ7: 407.98 | HA7: 1871.63,407.98 | HC7: 0 | HD7: 734 | HE7: a | HF7: 1892.7 | HG7: 392.88 | HH7: 1892.7,392.88 | HJ7: 0 | HK7: 51 | HL7: d | HM7: 1931.63 | HN7: 407.98 | HO7: 1931.63,407.98 | HQ7: 0 | HR7: 734 | HS7: a | HT7: 1952.7 | HU7: 392.88 | HV7: 1952.7,392.88 | HX7: 0 | HY7: 51 | HZ7: d | IA7: 1991.63 | IB7: 407.98 | IC7: 1991.63,407.98 | IE7: 0 | IF7: 734 | IG7: a | IH7: 2012.7 | II7: 392.88 | IJ7: 2012.7,392.88 | IL7: 0 | IM7: 51 | IN7: d | IO7: 2051.63 | IP7: 407.98 | IQ7: 2051.63,407.98 | IS7: 0 | IT7: 734 | IU7: a | IV7: 2072.7 | IW7: 392.88 | IX7: 2072.7,392.88 | IZ7: 0 | JA7: 51 | JB7: d | JC7: 2111.63 | JD7: 407.98 | JE7: 2111.63,407.98 | JG7: 0 | JH7: 734 | JI7: a | JJ7: 2132.7 | JK7: 392.88 | JL7: 2132.7,392.88 | JN7: 0 | JO7: 51 | JP7: d | JQ7: 2171.63 | JR7: 407.98 | JS7: 2171.63,407.98 | JU7: 0 | JV7: 734 | JW7: a | JX7: 2192.7 | JY7: 392.88 | JZ7: 2192.7,392.88 | KB7: 0 | KC7: 51 | KD7: d | KE7: 2231.63 | KF7: 407.98 | KG7: 2231.63,407.98 | KI7: 0 | KJ7: 734 | KK7: a | KL7: 2252.7 | KM7: 392.88 | KN7: 2252.7,392.88 | KP7: 0 | KQ7: 51 | KR7: d | KS7: 2291.63 | KT7: 407.98 | KU7: 2291.63,407.98 | KW7: 0 | KX7: 734 | KY7: a | KZ7: 2312.7 | LA7: 392.88 | LB7: 2312.7,392.88 | LD7: 0 | LE7: 51 | LF7: d | LG7: 2351.63 | LH7: 407.98 | LI7: 2351.63,407.98 | LK7: 0 | LL7: 51 | LM7: d | LN7: 2381.63 | LO7: 407.98 | LP7: 2381.63,407.98 | LR7: 0 | LS7: 51 | LT7: d | LU7: 2411.63 | LV7: 407.98 | LW7: 2411.63,407.98 | LY7: 0 | LZ7: 51 | MA7: d | MB7: 2441.63 | MC7: 407.98 | MD7: 2441.63,407.98 | MF7: 0 | MG7: 51 | MH7: d | MI7: 2471.63 | MJ7: 407.98 | MK7: 2471.63,407.98
A8: 0 | B8: 107 | C8: s | D8: =IF(AND(B8>0,C8="D"),D7+(B8*0.01),IF(AND(B8>0,C8="A"),D7-(B8*0.01),IF(AND(B8>0,C8="W"),D7,IF(AND(B8>0,C8="S"),D7,IF(AND(B8="",B7>0,B9>0),D$3,""))))) -> 1007.21 | E8: 1005.9 | F8: 1007.21,1005.9 | H8: 0 | I8: 14 | J8: d | K8: 1025.42 | L8: 1000 | M8: 1025.42,1000 | O8: 0 | P8: 51 | Q8: a | R8: 1059.13 | S8: 998.56 | T8: 1059.13,998.56 | V8: 0 | W8: 251 | X8: w | Y8: 1089.47 | Z8: 899.84 | AA8: 1089.47,899.84 | AC8: 0 | AD8: 452 | AE8: s | AF8: 1118.45 | AG8: 898.99 | AH8: 1118.45,898.99 | AJ8: 0 | AK8: 30 | AL8: s | AM8: 1149.49 | AN8: 903.59 | AO8: 1149.49,903.59 | AQ8: 0 | AR8: 51 | AS8: a | AT8: 1178.95 | AU8: 798.53 | AV8: 1178.95,798.53 | AX8: 0 | AY8: 249 | AZ8: w | BA8: 1209.5 | BB8: 800 | BC8: 1209.5,800 | BE8: 0 | BF8: 3 | BG8: d | BH8: 1237.79 | BI8: 799.71 | BJ8: 1237.79,799.71 | BL8: 0 | BM8: 32 | BN8: w | BO8: 1271.53 | BP8: 801.51 | BQ8: 1271.53,801.51 | BS8: 0 | BT8: 210 | BU8: a | BV8: 1299.58 | BW8: 698.2 | BX8: 1299.58,698.2 | BZ8: 0 | CA8: 580 | CB8: s | CC8: 1332.07 | CD8: 700.05 | CE8: 1332.07,700.05 | CG8: 0 | CH8: 132 | CI8: w | CJ8: 1362.57 | CK8: 699.48 | CL8: 1362.57,699.48 | CN8: 0 | CO8: 32 | CP8: w | CQ8: 1391.53 | CR8: 701.5 | CS8: 1391.53,701.5 | CU8: 0 | CV8: 50 | CW8: a | CX8: 1419.17 | CY8: 598.52 | CZ8: 1419.17,598.52 | DB8: 0 | DC8: 583 | DD8: S | DE8: 1452.54 | DF8: 600 | DG8: 1452.54,600 | DI8: 0 | DJ8: 109 | DK8: d | DL8: 1486.53 | DM8: 600.01 | DN8: 1486.53,600.01 | DP8: 0 | DQ8: 32 | DR8: w | DS8: 1511.36 | DT8: 601.49 | DU8: 1511.36,601.49 | DW8: 0 | DX8: 51 | DY8: a | DZ8: 1539.21 | EA8: 499.13 | EB8: 1539.21,499.13 | ED8: 0 | EE8: 581 | EF8: s | EG8: 1572.58 | EH8: 499.97 | EI8: 1572.58,499.97 | EK8: 0 | EL8: 2 | EM8: d | EN8: 1597.75 | EO8: 499.72 | EP8: 1597.75,499.72 | ER8: 0 | ES8: 32 | ET8: w | EU8: 1631.14 | EV8: 501.49 | EW8: 1631.14,501.49 | EY8: 0 | EZ8: 241 | FA8: w | FB8: 1652.7 | FC8: 395.29 | FD8: 1652.7,395.29 | FF8: 0 | FG8: 24 | FH8: w | FI8: 1691.63 | FJ8: 408.22 | FK8: 1691.63,408.22 | FM8: 0 | FN8: 241 | FO8: w | FP8: 1712.7 | FQ8: 395.29 | FR8: 1712.7,395.29 | FT8: 0 | FU8: 24 | FV8: w | FW8: 1751.63 | FX8: 408.22 | FY8: 1751.63,408.22 | GA8: 0 | GB8: 241 | GC8: w | GD8: 1772.7 | GE8: 395.29 | GF8: 1772.7,395.29 | GH8: 0 | GI8: 24 | GJ8: w | GK8: 1811.63 | GL8: 408.22 | GM8: 1811.63,408.22 | GO8: 0 | GP8: 241 | GQ8: w | GR8: 1832.7 | GS8: 395.29 | GT8: 1832.7,395.29 | GV8: 0 | GW8: 24 | GX8: w | GY8: 1871.63 | GZ8: 408.22 | HA8: 1871.63,408.22 | HC8: 0 | HD8: 241 | HE8: w | HF8: 1892.7 | HG8: 395.29 | HH8: 1892.7,395.29 | HJ8: 0 | HK8: 24 | HL8: w | HM8: 1931.63 | HN8: 408.22 | HO8: 1931.63,408.22 | HQ8: 0 | HR8: 241 | HS8: w | HT8: 1952.7 | HU8: 395.29 | HV8: 1952.7,395.29 | HX8: 0 | HY8: 24 | HZ8: w | IA8: 1991.63 | IB8: 408.22 | IC8: 1991.63,408.22 | IE8: 0 | IF8: 241 | IG8: w | IH8: 2012.7 | II8: 395.29 | IJ8: 2012.7,395.29 | IL8: 0 | IM8: 24 | IN8: w | IO8: 2051.63 | IP8: 408.22 | IQ8: 2051.63,408.22 | IS8: 0 | IT8: 241 | IU8: w | IV8: 2072.7 | IW8: 395.29 | IX8: 2072.7,395.29 | IZ8: 0 | JA8: 24 | JB8: w | JC8: 2111.63 | JD8: 408.22 | JE8: 2111.63,408.22 | JG8: 0 | JH8: 241 | JI8: w | JJ8: 2132.7 | JK8: 395.29 | JL8: 2132.7,395.29 | JN8: 0 | JO8: 24 | JP8: w | JQ8: 2171.63 | JR8: 408.22 | JS8: 2171.63,408.22 | JU8: 0 | JV8: 241 | JW8: w | JX8: 2192.7 | JY8: 395.29 | JZ8: 2192.7,395.29 | KB8: 0 | KC8: 24 | KD8: w | KE8: 2231.63 | KF8: 408.22 | KG8: 2231.63,408.22 | KI8: 0 | KJ8: 241 | KK8: w | KL8: 2252.7 | KM8: 395.29 | KN8: 2252.7,395.29 | KP8: 0 | KQ8: 24 | KR8: w | KS8: 2291.63 | KT8: 408.22 | KU8: 2291.63,408.22 | KW8: 0 | KX8: 241 | KY8: w | KZ8: 2312.7 | LA8: 395.29 | LB8: 2312.7,395.29 | LD8: 0 | LE8: 24 | LF8: w | LG8: 2351.63 | LH8: 408.22 | LI8: 2351.63,408.22 | LK8: 0 | LL8: 24 | LM8: w | LN8: 2381.63 | LO8: 408.22 | LP8: 2381.63,408.22 | LR8: 0 | LS8: 24 | LT8: w | LU8: 2411.63 | LV8: 408.22 | LW8: 2411.63,408.22 | LY8: 0 | LZ8: 24 | MA8: w | MB8: 2441.63 | MC8: 408.22 | MD8: 2441.63,408.22 | MF8: 0 | MG8: 24 | MH8: w | MI8: 2471.63 | MJ8: 408.22 | MK8: 2471.63,408.22
A9: 0 | B9: 30 | C9: d | D9: 1007.51 | E9: 1005.9 | F9: 1007.51,1005.9 | H9: 0 | I9: 50 | J9: w | K9: 1025.42 | L9: 1000.5 | M9: 1025.42,1000.5 | O9: 0 | P9: 30 | Q9: s | R9: 1059.13 | S9: 998.26 | T9: 1059.13,998.26 | V9: 0 | W9: 68 | X9: d | Y9: 1090.15 | Z9: 899.84 | AA9: 1090.15,899.84 | AC9: 0 | AD9: 2 | AE9: a | AF9: 1118.43 | AG9: 898.99 | AH9: 1118.43,898.99 | AJ9: 0 | AK9: 50 | AL9: d | AM9: 1149.99 | AN9: 903.59 | AO9: 1149.99,903.59 | AQ9: 0 | AR9: 29 | AS9: s | AT9: 1178.95 | AU9: 798.24 | AV9: 1178.95,798.24 | AX9: 0 | AY9: 49 | AZ9: d | BA9: 1209.99 | BB9: 800 | BC9: 1209.99,800 C | BE9: 0 | BF9: 452 | BG9: w | BH9: 1237.79 | BI9: 804.23 | BJ9: 1237.79,804.23 | BL9: 0 | BM9: 178 | BN9: d | BO9: 1273.31 | BP9: 801.51 | BQ9: 1273.31,801.51 | BS9: 0 | BT9: 28 | BU9: w | BV9: 1299.58 | BW9: 698.48 | BX9: 1299.58,698.48 | BZ9: 0 | CA9: 206 | CB9: a | CC9: 1330.01 | CD9: 700.05 | CE9: 1330.01,700.05 C | CG9: 0 | CH9: 340 | CI9: d | CJ9: 1365.97 | CK9: 699.48 | CL9: 1365.97,699.48 | CN9: 0 | CO9: 168 | CP9: d | CQ9: 1393.21 | CR9: 701.5 | CS9: 1393.21,701.5 | CU9: 0 | CV9: 25 | CW9: s | CX9: 1419.17 | CY9: 598.27 | CZ9: 1419.17,598.27 | DB9: 0 | DC9: 256 | DD9: A | DE9: 1449.98 | DF9: 600 | DG9: 1449.98,600 C | DI9: 0 | DJ9: 435 | DK9: s | DL9: 1486.53 | DM9: 595.66 | DN9: 1486.53,595.66 | DP9: 0 | DQ9: 171 | DR9: d | DS9: 1513.07 | DT9: 601.49 | DU9: 1513.07,601.49 | DW9: 0 | DX9: 27 | DY9: s | DZ9: 1539.21 | EA9: 498.86 | EB9: 1539.21,498.86 | ED9: 0 | EE9: 264 | EF9: a | EG9: 1569.94 | EH9: 499.97 | EI9: 1569.94,499.97 C | EK9: 0 | EL9: 452 | EM9: w | EN9: 1597.75 | EO9: 504.24 | EP9: 1597.75,504.24 | ER9: 0 | ES9: 169 | ET9: d | EU9: 1632.83 | EV9: 501.49 | EW9: 1632.83,501.49 | EY9: 0 | EZ9: 10 | FA9: d | FB9: 1652.8 | FC9: 395.29 | FD9: 1652.8,395.29 | FF9: 0 | FG9: 209 | FH9: d | FI9: 1693.72 | FJ9: 408.22 | FK9: 1693.72,408.22 | FM9: 0 | FN9: 10 | FO9: d | FP9: 1712.8 | FQ9: 395.29 | FR9: 1712.8,395.29 | FT9: 0 | FU9: 209 | FV9: d | FW9: 1753.72 | FX9: 408.22 | FY9: 1753.72,408.22 | GA9: 0 | GB9: 10 | GC9: d | GD9: 1772.8 | GE9: 395.29 | GF9: 1772.8,395.29 | GH9: 0 | GI9: 209 | GJ9: d | GK9: 1813.72 | GL9: 408.22 | GM9: 1813.72,408.22 | GO9: 0 | GP9: 10 | GQ9: d | GR9: 1832.8 | GS9: 395.29 | GT9: 1832.8,395.29 | GV9: 0 | GW9: 209 | GX9: d | GY9: 1873.72 | GZ9: 408.22 | HA9: 1873.72,408.22 | HC9: 0 | HD9: 10 | HE9: d | HF9: 1892.8 | HG9: 395.29 | HH9: 1892.8,395.29 | HJ9: 0 | HK9: 209 | HL9: d | HM9: 1933.72 | HN9: 408.22 | HO9: 1933.72,408.22 | HQ9: 0 | HR9: 10 | HS9: d | HT9: 1952.8 | HU9: 395.29 | HV9: 1952.8,395.29 | HX9: 0 | HY9: 209 | HZ9: d | IA9: 1993.72 | IB9: 408.22 | IC9: 1993.72,408.22 | IE9: 0 | IF9: 10 | IG9: d | IH9: 2012.8 | II9: 395.29 | IJ9: 2012.8,395.29 | IL9: 0 | IM9: 209 | IN9: d | IO9: 2053.72 | IP9: 408.22 | IQ9: 2053.72,408.22 | IS9: 0 | IT9: 10 | IU9: d | IV9: 2072.8 | IW9: 395.29 | IX9: 2072.8,395.29 | IZ9: 0 | JA9: 209 | JB9: d | JC9: 2113.72 | JD9: 408.22 | JE9: 2113.72,408.22 | JG9: 0 | JH9: 10 | JI9: d | JJ9: 2132.8 | JK9: 395.29 | JL9: 2132.8,395.29 | JN9: 0 | JO9: 209 | JP9: d | JQ9: 2173.72 | JR9: 408.22 | JS9: 2173.72,408.22 | JU9: 0 | JV9: 10 | JW9: d | JX9: 2192.8 | JY9: 395.29 | JZ9: 2192.8,395.29 | KB9: 0 | KC9: 209 | KD9: d | KE9: 2233.72 | KF9: 408.22 | KG9: 2233.72,408.22 | KI9: 0 | KJ9: 10 | KK9: d | KL9: 2252.8 | KM9: 395.29 | KN9: 2252.8,395.29 | KP9: 0 | KQ9: 209 | KR9: d | KS9: 2293.72 | KT9: 408.22 | KU9: 2293.72,408.22 | KW9: 0 | KX9: 10 | KY9: d | KZ9: 2312.8 | LA9: 395.29 | LB9: 2312.8,395.29 | LD9: 0 | LE9: 209 | LF9: d | LG9: 2353.72 | LH9: 408.22 | LI9: 2353.72,408.22 | LK9: 0 | LL9: 209 | LM9: d | LN9: 2383.72 | LO9: 408.22 | LP9: 2383.72,408.22 | LR9: 0 | LS9: 209 | LT9: d | LU9: 2413.72 | LV9: 408.22 | LW9: 2413.72,408.22 | LY9: 0 | LZ9: 209 | MA9: d | MB9: 2443.72 | MC9: 408.22 | MD9: 2443.72,408.22 | MF9: 0 | MG9: 209 | MH9: d | MI9: 2473.72 | MJ9: 408.22 | MK9: 2473.72,408.22
A10: 0 | B10: 427 | C10: w | D10: 1007.51 | E10: 1010.17 | F10: 1007.51,1010.17 | H10: 0 | I10: 51 | J10: a | K10: 1024.91 | L10: 1000.5 | M10: 1024.91,1000.5 | O10: 0 | P10: 160 | Q10: a | R10: 1057.53 | S10: 998.26 | T10: 1057.53,998.26 | V10: 0 | W10: 20 | X10: w | Y10: 1090.15 | Z10: 900.04 | AA10: 1090.15,900.04 | AC10: 0 | AD10: 88 | AE10: s | AF10: 1118.43 | AG10: 898.11 | AH10: 1118.43,898.11 | AJ10: 0 | AK10: 32 | AL10: w | AM10: 1149.99 | AN10: 903.91 | AO10: 1149.99,903.91 | AQ10: 0 | AR10: 154 | AS10: a | AT10: 1177.41 | AU10: 798.24 | AV10: 1177.41,798.24 | AX10: 1 | BA10: 1000 | BB10: 1020 | BC10: PL 1000,1020 | BE10: 0 | BF10: 81 | BG10: a | BH10: 1236.98 | BI10: 804.23 | BJ10: 1236.98,804.23 | BL10: 0 | BM10: 388 | BN10: s | BO10: 1273.31 | BP10: 797.63 | BQ10: 1273.31,797.63 | BS10: 0 | BT10: 50 | BU10: a | BV10: 1299.08 | BW10: 698.48 | BX10: 1299.08,698.48 | BZ10: 1 | CC10: 1000 | CD10: 1020 | CE10: PL 1000,1020 | CG10: 0 | CH10: 40 | CI10: w | CJ10: 1365.97 | CK10: 699.88 | CL10: 1365.97,699.88 | CN10: 0 | CO10: 389 | CP10: s | CQ10: 1393.21 | CR10: 697.61 | CS10: 1393.21,697.61 | CU10: 0 | CV10: 160 | CW10: a | CX10: 1417.57 | CY10: 598.27 | CZ10: 1417.57,598.27 | DB10: 1 | DE10: 1000 | DF10: 1020 | DG10: PL 1000,1020 | DI10: 0 | DJ10: 111 | DK10: a | DL10: 1485.42 | DM10: 595.66 | DN10: 1485.42,595.66 | DP10: 0 | DQ10: 390 | DR10: s | DS10: 1513.07 | DT10: 597.59 | DU10: 1513.07,597.59 | DW10: 0 | DX10: 158 | DY10: a | DZ10: 1537.63 | EA10: 498.86 | EB10: 1537.63,498.86 | ED10: 1 | EG10: 1000 | EH10: 1020 | EI10: PL 1000,1020 | EK10: 0 | EL10: 126 | EM10: a | EN10: 1596.49 | EO10: 504.24 | EP10: 1596.49,504.24 | ER10: 0 | ES10: 390 | ET10: s | EU10: 1632.83 | EV10: 497.59 | EW10: 1632.83,497.59 | EY10: 0 | EZ10: 50 | FA10: w | FB10: 1652.8 | FC10: 395.79 | FD10: 1652.8,395.79 | FF10: 0 | FG10: 25 | FH10: s | FI10: 1693.72 | FJ10: 407.97 | FK10: 1693.72,407.97 | FM10: 0 | FN10: 50 | FO10: w | FP10: 1712.8 | FQ10: 395.79 | FR10: 1712.8,395.79 | FT10: 0 | FU10: 25 | FV10: s | FW10: 1753.72 | FX10: 407.97 | FY10: 1753.72,407.97 | GA10: 0 | GB10: 50 | GC10: w | GD10: 1772.8 | GE10: 395.79 | GF10: 1772.8,395.79 | GH10: 0 | GI10: 25 | GJ10: s | GK10: 1813.72 | GL10: 407.97 | GM10: 1813.72,407.97 | GO10: 0 | GP10: 50 | GQ10: w | GR10: 1832.8 | GS10: 395.79 | GT10: 1832.8,395.79 | GV10: 0 | GW10: 25 | GX10: s | GY10: 1873.72 | GZ10: 407.97 | HA10: 1873.72,407.97 | HC10: 0 | HD10: 50 | HE10: w | HF10: 1892.8 | HG10: 395.79 | HH10: 1892.8,395.79 | HJ10: 0 | HK10: 25 | HL10: s | HM10: 1933.72 | HN10: 407.97 | HO10: 1933.72,407.97 | HQ10: 0 | HR10: 50 | HS10: w | HT10: 1952.8 | HU10: 395.79 | HV10: 1952.8,395.79 | HX10: 0 | HY10: 25 | HZ10: s | IA10: 1993.72 | IB10: 407.97 | IC10: 1993.72,407.97 | IE10: 0 | IF10: 50 | IG10: w | IH10: 2012.8 | II10: 395.79 | IJ10: 2012.8,395.79 | IL10: 0 | IM10: 25 | IN10: s | IO10: 2053.72 | IP10: 407.97 | IQ10: 2053.72,407.97 | IS10: 0 | IT10: 50 | IU10: w | IV10: 2072.8 | IW10: 395.79 | IX10: 2072.8,395.79 | IZ10: 0 | JA10: 25 | JB10: s | JC10: 2113.72 | JD10: 407.97 | JE10: 2113.72,407.97 | JG10: 0 | JH10: 50 | JI10: w | JJ10: 2132.8 | JK10: 395.79 | JL10: 2132.8,395.79 | JN10: 0 | JO10: 25 | JP10: s | JQ10: 2173.72 | JR10: 407.97 | JS10: 2173.72,407.97 | JU10: 0 | JV10: 50 | JW10: w | JX10: 2192.8 | JY10: 395.79 | JZ10: 2192.8,395.79 | KB10: 0 | KC10: 25 | KD10: s | KE10: 2233.72 | KF10: 407.97 | KG10: 2233.72,407.97 | KI10: 0 | KJ10: 50 | KK10: w | KL10: 2252.8 | KM10: 395.79 | KN10: 2252.8,395.79 | KP10: 0 | KQ10: 25 | KR10: s | KS10: 2293.72 | KT10: 407.97 | KU10: 2293.72,407.97 | KW10: 0 | KX10: 50 | KY10: w | KZ10: 2312.8 | LA10: 395.79 | LB10: 2312.8,395.79 | LD10: 0 | LE10: 25 | LF10: s | LG10: 2353.72 | LH10: 407.97 | LI10: 2353.72,407.97 | LK10: 0 | LL10: 25 | LM10: s | LN10: 2383.72 | LO10: 407.97 | LP10: 2383.72,407.97 | LR10: 0 | LS10: 25 | LT10: s | LU10: 2413.72 | LV10: 407.97 | LW10: 2413.72,407.97 | LY10: 0 | LZ10: 25 | MA10: s | MB10: 2443.72 | MC10: 407.97 | MD10: 2443.72,407.97 | MF10: 0 | MG10: 25 | MH10: s | MI10: 2473.72 | MJ10: 407.97 | MK10: 2473.72,407.97
A11: 0 | B11: 212 | C11: d | D11: 1009.63 | E11: 1010.17 | F11: 1009.63,1010.17 | H11: 0 | I11: 43 | J11: s | K11: 1024.91 | L11: 1000.07 | M11: 1024.91,1000.07 | O11: 0 | P11: 564 | Q11: w | R11: 1057.53 | S11: 1003.9 | T11: 1057.53,1003.9 | V11: 0 | W11: 23 | X11: a | Y11: 1089.92 | Z11: 900.04 | AA11: 1089.92,900.04 C | AC11: 0 | AD11: 482 | AE11: d | AF11: 1123.25 | AG11: 898.11 | AH11: 1123.25,898.11 | AJ11: 0 | AK11: 177 | AL11: d | AM11: 1151.76 | AN11: 903.91 | AO11: 1151.76,903.91 | AQ11: 0 | AR11: 519 | AS11: w | AT11: 1177.41 | AU11: 803.43 | AV11: 1177.41,803.43 | AX11: 1 | AY11: 16 | AZ11: s | BA11: 1000 | BB11: 1019.84 | BC11: 1000,1019.84 | BE11: 0 | BF11: 144 | BG11: w | BH11: 1236.98 | BI11: 805.67 | BJ11: 1236.98,805.67 | BL11: 0 | BM11: 176 | BN11: a | BO11: 1271.55 | BP11: 797.63 | BQ11: 1271.55,797.63 | BS11: 0 | BT11: 28 | BU11: s | BV11: 1299.08 | BW11: 698.2 | BX11: 1299.08,698.2 | BZ11: 1 | CA11: 200 | CB11: a | CC11: 998 | CD11: 1020 | CE11: 998,1020 | CG11: 0 | CH11: 210 | CI11: d | CJ11: 1368.07 | CK11: 699.88 | CL11: 1368.07,699.88 | CN11: 0 | CO11: 165 | CP11: a | CQ11: 1391.56 | CR11: 697.61 | CS11: 1391.56,697.61 | CU11: 0 | CV11: 494 | CW11: w | CX11: 1417.57 | CY11: 603.21 | CZ11: 1417.57,603.21 | DB11: 1 | DC11: 204 | DD11: a | DE11: 997.96 | DF11: 1020 | DG11: 997.96,1020 | DI11: 0 | DJ11: 17 | DK11: w | DL11: 1485.42 | DM11: 595.83 | DN11: 1485.42,595.83 | DP11: 0 | DQ11: 167 | DR11: a | DS11: 1511.4 | DT11: 597.59 | DU11: 1511.4,597.59 | DW11: 0 | DX11: 496 | DY11: w | DZ11: 1537.63 | EA11: 503.82 | EB11: 1537.63,503.82 | ED11: 1 | EE11: 205 | EF11: a | EG11: 997.95 | EH11: 1020 | EI11: 997.95,1020 | EK11: 0 | EL11: 148 | EM11: w | EN11: 1596.49 | EO11: 505.72 | EP11: 1596.49,505.72 | ER11: 0 | ES11: 170 | ET11: a | EU11: 1631.13 | EV11: 497.59 | EW11: 1631.13,497.59 | EY11: 0 | EZ11: 30 | FA11: a | FB11: 1652.5 | FC11: 395.79 | FD11: 1652.5,395.79 | FF11: 0 | FG11: 51 | FH11: d | FI11: 1694.23 | FJ11: 407.97 | FK11: 1694.23,407.97 | FM11: 0 | FN11: 30 | FO11: a | FP11: 1712.5 | FQ11: 395.79 | FR11: 1712.5,395.79 | FT11: 0 | FU11: 51 | FV11: d | FW11: 1754.23 | FX11: 407.97 | FY11: 1754.23,407.97 | GA11: 0 | GB11: 30 | GC11: a | GD11: 1772.5 | GE11: 395.79 | GF11: 1772.5,395.79 | GH11: 0 | GI11: 51 | GJ11: d | GK11: 1814.23 | GL11: 407.97 | GM11: 1814.23,407.97 | GO11: 0 | GP11: 30 | GQ11: a | GR11: 1832.5 | GS11: 395.79 | GT11: 1832.5,395.79 | GV11: 0 | GW11: 51 | GX11: d | GY11: 1874.23 | GZ11: 407.97 | HA11: 1874.23,407.97 | HC11: 0 | HD11: 30 | HE11: a | HF11: 1892.5 | HG11: 395.79 | HH11: 1892.5,395.79 | HJ11: 0 | HK11: 51 | HL11: d | HM11: 1934.23 | HN11: 407.97 | HO11: 1934.23,407.97 | HQ11: 0 | HR11: 30 | HS11: a | HT11: 1952.5 | HU11: 395.79 | HV11: 1952.5,395.79 | HX11: 0 | HY11: 51 | HZ11: d | IA11: 1994.23 | IB11: 407.97 | IC11: 1994.23,407.97 | IE11: 0 | IF11: 30 | IG11: a | IH11: 2012.5 | II11: 395.79 | IJ11: 2012.5,395.79 | IL11: 0 | IM11: 51 | IN11: d | IO11: 2054.23 | IP11: 407.97 | IQ11: 2054.23,407.97 | IS11: 0 | IT11: 30 | IU11: a | IV11: 2072.5 | IW11: 395.79 | IX11: 2072.5,395.79 | IZ11: 0 | JA11: 51 | JB11: d | JC11: 2114.23 | JD11: 407.97 | JE11: 2114.23,407.97 | JG11: 0 | JH11: 30 | JI11: a | JJ11: 2132.5 | JK11: 395.79 | JL11: 2132.5,395.79 | JN11: 0 | JO11: 51 | JP11: d | JQ11: 2174.23 | JR11: 407.97 | JS11: 2174.23,407.97 | JU11: 0 | JV11: 30 | JW11: a | JX11: 2192.5 | JY11: 395.79 | JZ11: 2192.5,395.79 | KB11: 0 | KC11: 51 | KD11: d | KE11: 2234.23 | KF11: 407.97 | KG11: 2234.23,407.97 | KI11: 0 | KJ11: 30 | KK11: a | KL11: 2252.5 | KM11: 395.79 | KN11: 2252.5,395.79 | KP11: 0 | KQ11: 51 | KR11: d | KS11: 2294.23 | KT11: 407.97 | KU11: 2294.23,407.97 | KW11: 0 | KX11: 30 | KY11: a | KZ11: 2312.5 | LA11: 395.79 | LB11: 2312.5,395.79 | LD11: 0 | LE11: 51 | LF11: d | LG11: 2354.23 | LH11: 407.97 | LI11: 2354.23,407.97 | LK11: 0 | LL11: 51 | LM11: d | LN11: 2384.23 | LO11: 407.97 | LP11: 2384.23,407.97 | LR11: 0 | LS11: 51 | LT11: d | LU11: 2414.23 | LV11: 407.97 | LW11: 2414.23,407.97 | LY11: 0 | LZ11: 51 | MA11: d | MB11: 2444.23 | MC11: 407.97 | MD11: 2444.23,407.97 | MF11: 0 | MG11: 51 | MH11: d | MI11: 2474.23 | MJ11: 407.97 | MK11: 2474.23,407.97
A12: 0 | B12: 25 | C12: s | D12: 1009.63 | E12: 1009.92 | F12: 1009.63,1009.92 | H12: 0 | I12: 209 | J12: a | K12: 1022.82 | L12: 1000.07 | M12: 1022.82,1000.07 | O12: 0 | P12: 144 | Q12: d | R12: 1058.97 | S12: 1003.9 | T12: 1058.97,1003.9 | V12: 1 | Y12: 1000 | Z12: 1020 | AA12: PL 1000,1020 | AC12: 0 | AD12: 121 | AE12: w | AF12: 1123.25 | AG12: 899.32 | AH12: 1123.25,899.32 | AJ12: 0 | AK12: 389 | AL12: s | AM12: 1151.76 | AN12: 900.02 | AO12: 1151.76,900.02 | AQ12: 0 | AR12: 167 | AS12: d | AT12: 1179.08 | AU12: 803.43 | AV12: 1179.08,803.43 | AX12: 1 | AY12: 50 | AZ12: a | BA12: 999.5 | BB12: 1019.84 | BC12: 999.5,1019.84 | BE12: 0 | BF12: 556 | BG12: d | BH12: 1242.54 | BI12: 805.67 | BJ12: 1242.54,805.67 | BL12: 0 | BM12: 239 | BN12: w | BO12: 1271.55 | BP12: 800.02 | BQ12: 1271.55,800.02 | BS12: 0 | BT12: 157 | BU12: a | BV12: 1297.51 | BW12: 698.2 | BX12: 1297.51,698.2 | BZ12: 1 | CA12: 110 | CB12: w | CC12: 998 | CD12: 1021.1 | CE12: 998,1021.1 | CG12: 0 | CH12: 40 | CI12: s | CJ12: 1368.07 | CK12: 699.48 | CL12: 1368.07,699.48 | CN12: 0 | CO12: 239 | CP12: w | CQ12: 1391.56 | CR12: 700 | CS12: 1391.56,700 | CU12: 0 | CV12: 163 | CW12: d | CX12: 1419.2 | CY12: 603.21 | CZ12: 1419.2,603.21 | DB12: 1 | DC12: 108 | DD12: w | DE12: 997.96 | DF12: 1021.08 | DG12: 997.96,1021.08 | DI12: 0 | DJ12: 51 | DK12: a | DL12: 1484.91 | DM12: 595.83 | DN12: 1484.91,595.83 | DP12: 0 | DQ12: 241 | DR12: w | DS12: 1511.4 | DT12: 600 | DU12: 1511.4,600 | DW12: 0 | DX12: 161 | DY12: d | DZ12: 1539.24 | EA12: 503.82 | EB12: 1539.24,503.82 | ED12: 1 | EE12: 109 | EF12: w | EG12: 997.95 | EH12: 1021.09 | EI12: 997.95,1021.09 | EK12: 0 | EL12: 281 | EM12: d | EN12: 1599.3 | EO12: 505.72 | EP12: 1599.3,505.72 | ER12: 0 | ES12: 243 | ET12: w | EU12: 1631.13 | EV12: 500.02 | EW12: 1631.13,500.02 | EY12: 0 | EZ12: 32 | FA12: s | FB12: 1652.5 | FC12: 395.47 | FD12: 1652.5,395.47 | FF12: 0 | FG12: 25 | FH12: w | FI12: 1694.23 | FJ12: 408.22 | FK12: 1694.23,408.22 | FM12: 0 | FN12: 32 | FO12: s | FP12: 1712.5 | FQ12: 395.47 | FR12: 1712.5,395.47 | FT12: 0 | FU12: 25 | FV12: w | FW12: 1754.23 | FX12: 408.22 | FY12: 1754.23,408.22 | GA12: 0 | GB12: 32 | GC12: s | GD12: 1772.5 | GE12: 395.47 | GF12: 1772.5,395.47 | GH12: 0 | GI12: 25 | GJ12: w | GK12: 1814.23 | GL12: 408.22 | GM12: 1814.23,408.22 | GO12: 0 | GP12: 32 | GQ12: s | GR12: 1832.5 | GS12: 395.47 | GT12: 1832.5,395.47 | GV12: 0 | GW12: 25 | GX12: w | GY12: 1874.23 | GZ12: 408.22 | HA12: 1874.23,408.22 | HC12: 0 | HD12: 32 | HE12: s | HF12: 1892.5 | HG12: 395.47 | HH12: 1892.5,395.47 | HJ12: 0 | HK12: 25 | HL12: w | HM12: 1934.23 | HN12: 408.22 | HO12: 1934.23,408.22 | HQ12: 0 | HR12: 32 | HS12: s | HT12: 1952.5 | HU12: 395.47 | HV12: 1952.5,395.47 | HX12: 0 | HY12: 25 | HZ12: w | IA12: 1994.23 | IB12: 408.22 | IC12: 1994.23,408.22 | IE12: 0 | IF12: 32 | IG12: s | IH12: 2012.5 | II12: 395.47 | IJ12: 2012.5,395.47 | IL12: 0 | IM12: 25 | IN12: w | IO12: 2054.23 | IP12: 408.22 | IQ12: 2054.23,408.22 | IS12: 0 | IT12: 32 | IU12: s | IV12: 2072.5 | IW12: 395.47 | IX12: 2072.5,395.47 | IZ12: 0 | JA12: 25 | JB12: w | JC12: 2114.23 | JD12: 408.22 | JE12: 2114.23,408.22 | JG12: 0 | JH12: 32 | JI12: s | JJ12: 2132.5 | JK12: 395.47 | JL12: 2132.5,395.47 | JN12: 0 | JO12: 25 | JP12: w | JQ12: 2174.23 | JR12: 408.22 | JS12: 2174.23,408.22 | JU12: 0 | JV12: 32 | JW12: s | JX12: 2192.5 | JY12: 395.47 | JZ12: 2192.5,395.47 | KB12: 0 | KC12: 25 | KD12: w | KE12: 2234.23 | KF12: 408.22 | KG12: 2234.23,408.22 | KI12: 0 | KJ12: 32 | KK12: s | KL12: 2252.5 | KM12: 395.47 | KN12: 2252.5,395.47 | KP12: 0 | KQ12: 25 | KR12: w | KS12: 2294.23 | KT12: 408.22 | KU12: 2294.23,408.22 | KW12: 0 | KX12: 32 | KY12: s | KZ12: 2312.5 | LA12: 395.47 | LB12: 2312.5,395.47 | LD12: 0 | LE12: 25 | LF12: w | LG12: 2354.23 | LH12: 408.22 | LI12: 2354.23,408.22 | LK12: 0 | LL12: 25 | LM12: w | LN12: 2384.23 | LO12: 408.22 | LP12: 2384.23,408.22 | LR12: 0 | LS12: 25 | LT12: w | LU12: 2414.23 | LV12: 408.22 | LW12: 2414.23,408.22 | LY12: 0 | LZ12: 25 | MA12: w | MB12: 2444.23 | MC12: 408.22 | MD12: 2444.23,408.22 | MF12: 0 | MG12: 25 | MH12: w | MI12: 2474.23 | MJ12: 408.22 | MK12: 2474.23,408.22
A13: 0 | B13: 50 | C13: d | D13: 1010.13 | E13: 1009.92 | F13: 1010.13,1009.92 | H13: 0 | I13: 43 | J13: w | K13: 1022.82 | L13: 1000.5 | M13: 1022.82,1000.5 | O13: 0 | P13: 308 | Q13: s | R13: 1058.97 | S13: 1000.82 | T13: 1058.97,1000.82 C | V13: 1 | W13: 32 | X13: s | Y13: 1000 | Z13: 1019.68 | AA13: 1000,1019.68 | AC13: 0 | AD13: 260 | AE13: a | AF13: 1120.65 | AG13: 899.32 | AH13: 1120.65,899.32 C | AJ13: 0 | AK13: 177 | AL13: a | AM13: 1149.99 | AN13: 900.02 | AO13: 1149.99,900.02 C | AQ13: 0 | AR13: 259 | AS13: s | AT13: 1179.08 | AU13: 800.84 | AV13: 1179.08,800.84 C | AX13: 1 | AY13: 26 | AZ13: w | BA13: 999.5 | BB13: 1020.1 | BC13: 999.5,1020.1 | BE13: 0 | BF13: 141 | BG13: s | BH13: 1242.54 | BI13: 804.26 | BJ13: 1242.54,804.26 | BL13: 0 | BM13: 153 | BN13: a | BO13: 1270.02 | BP13: 800.02 | BQ13: 1270.02,800.02 C | BS13: 0 | BT13: 498 | BU13: w | BV13: 1297.51 | BW13: 703.18 | BX13: 1297.51,703.18 | BZ13: 1 | CA13: 200 | CB13: d | CC13: 1000 | CD13: 1021.1 | CE13: 1000,1021.1 | CG13: 0 | CH13: 50 | CI13: d | CJ13: 1368.57 | CK13: 699.48 | CL13: 1368.57,699.48 | CN13: 0 | CO13: 154 | CP13: a | CQ13: 1390.02 | CR13: 700 | CS13: 1390.02,700 C | CU13: 0 | CV13: 247 | CW13: s | CX13: 1419.2 | CY13: 600.74 | CZ13: 1419.2,600.74 C | DB13: 1 | DC13: 204 | DD13: d | DE13: 1000 | DF13: 1021.08 | DG13: 1000,1021.08 | DI13: 0 | DJ13: 25 | DK13: s | DL13: 1484.91 | DM13: 595.58 | DN13: 1484.91,595.58 | DP13: 0 | DQ13: 146 | DR13: a | DS13: 1509.94 | DT13: 600 | DU13: 1509.94,600 C | DW13: 0 | DX13: 245 | DY13: s | DZ13: 1539.24 | EA13: 501.37 | EB13: 1539.24,501.37 C | ED13: 1 | EE13: 205 | EF13: d | EG13: 1000 | EH13: 1021.09 | EI13: 1000,1021.09 | EK13: 0 | EL13: 497 | EM13: s | EN13: 1599.3 | EO13: 500.75 | EP13: 1599.3,500.75 C | ER13: 0 | ES13: 154 | ET13: a | EU13: 1629.59 | EV13: 500.02 | EW13: 1629.59,500.02 C | EY13: 0 | EZ13: 209 | FA13: a | FB13: 1650.41 | FC13: 395.47 | FD13: 1650.41,395.47 | FF13: 0 | FG13: 180 | FH13: d | FI13: 1696.03 | FJ13: 408.22 | FK13: 1696.03,408.22 | FM13: 0 | FN13: 209 | FO13: a | FP13: 1710.41 | FQ13: 395.47 | FR13: 1710.41,395.47 | FT13: 0 | FU13: 180 | FV13: d | FW13: 1756.03 | FX13: 408.22 | FY13: 1756.03,408.22 | GA13: 0 | GB13: 209 | GC13: a | GD13: 1770.41 | GE13: 395.47 | GF13: 1770.41,395.47 | GH13: 0 | GI13: 180 | GJ13: d | GK13: 1816.03 | GL13: 408.22 | GM13: 1816.03,408.22 | GO13: 0 | GP13: 209 | GQ13: a | GR13: 1830.41 | GS13: 395.47 | GT13: 1830.41,395.47 | GV13: 0 | GW13: 180 | GX13: d | GY13: 1876.03 | GZ13: 408.22 | HA13: 1876.03,408.22 | HC13: 0 | HD13: 209 | HE13: a | HF13: 1890.41 | HG13: 395.47 | HH13: 1890.41,395.47 | HJ13: 0 | HK13: 180 | HL13: d | HM13: 1936.03 | HN13: 408.22 | HO13: 1936.03,408.22 | HQ13: 0 | HR13: 209 | HS13: a | HT13: 1950.41 | HU13: 395.47 | HV13: 1950.41,395.47 | HX13: 0 | HY13: 180 | HZ13: d | IA13: 1996.03 | IB13: 408.22 | IC13: 1996.03,408.22 | IE13: 0 | IF13: 209 | IG13: a | IH13: 2010.41 | II13: 395.47 | IJ13: 2010.41,395.47 | IL13: 0 | IM13: 180 | IN13: d | IO13: 2056.03 | IP13: 408.22 | IQ13: 2056.03,408.22 | IS13: 0 | IT13: 209 | IU13: a | IV13: 2070.41 | IW13: 395.47 | IX13: 2070.41,395.47 | IZ13: 0 | JA13: 180 | JB13: d | JC13: 2116.03 | JD13: 408.22 | JE13: 2116.03,408.22 | JG13: 0 | JH13: 209 | JI13: a | JJ13: 2130.41 | JK13: 395.47 | JL13: 2130.41,395.47 | JN13: 0 | JO13: 180 | JP13: d | JQ13: 2176.03 | JR13: 408.22 | JS13: 2176.03,408.22 | JU13: 0 | JV13: 209 | JW13: a | JX13: 2190.41 | JY13: 395.47 | JZ13: 2190.41,395.47 | KB13: 0 | KC13: 180 | KD13: d | KE13: 2236.03 | KF13: 408.22 | KG13: 2236.03,408.22 | KI13: 0 | KJ13: 209 | KK13: a | KL13: 2250.41 | KM13: 395.47 | KN13: 2250.41,395.47 | KP13: 0 | KQ13: 180 | KR13: d | KS13: 2296.03 | KT13: 408.22 | KU13: 2296.03,408.22 | KW13: 0 | KX13: 209 | KY13: a | KZ13: 2310.41 | LA13: 395.47 | LB13: 2310.41,395.47 | LD13: 0 | LE13: 180 | LF13: d | LG13: 2356.03 | LH13: 408.22 | LI13: 2356.03,408.22 | LK13: 0 | LL13: 180 | LM13: d | LN13: 2386.03 | LO13: 408.22 | LP13: 2386.03,408.22 | LR13: 0 | LS13: 180 | LT13: d | LU13: 2416.03 | LV13: 408.22 | LW13: 2416.03,408.22 | LY13: 0 | LZ13: 180 | MA13: d | MB13: 2446.03 | MC13: 408.22 | MD13: 2446.03,408.22 | MF13: 0 | MG13: 180 | MH13: d | MI13: 2476.03 | MJ13: 408.22 | MK13: 2476.03,408.22
A14: 0 | B14: 30 | C14: w | D14: 1010.13 | E14: 1010.22 | F14: 1010.13,1010.22 | H14: 0 | I14: 50 | J14: a | K14: 1022.32 | L14: 1000.5 | M14: 1022.32,1000.5 | O14: 1 | R14: 1000 | S14: 1020 | T14: PL 1000,1020 | V14: 1 | W14: 339 | X14: a | Y14: 996.61 | Z14: 1019.68 | AA14: 996.61,1019.68 | AC14: 1 | AF14: 1000 | AG14: 1020 | AH14: PL 1000,1020 | AJ14: 1 | AM14: 1000 | AN14: 1020 | AO14: PL 1000,1020 | AQ14: 1 | AT14: 1000 | AU14: 1020 | AV14: PL 1000,1020 | AX14: 1 | AY14: 251 | AZ14: a | BA14: 996.99 | BB14: 1020.1 | BC14: 996.99,1020.1 | BE14: 0 | BF14: 19 | BG14: a | BH14: 1242.35 | BI14: 804.26 | BJ14: 1242.35,804.26 | BL14: 1 | BO14: 1000 | BP14: 1020 | BQ14: PL 1000,1020 | BS14: 0 | BT14: 162 | BU14: d | BV14: 1299.13 | BW14: 703.18 | BX14: 1299.13,703.18 | BZ14: 1 | CA14: 110 | CB14: s | CC14: 1000 | CD14: 1020 | CE14: 1000,1020 C | CG14: 0 | CH14: 29 | CI14: w | CJ14: 1368.57 | CK14: 699.77 | CL14: 1368.57,699.77 | CN14: 1 | CQ14: 1000 | CR14: 1020 | CS14: PL 1000,1020 | CU14: 1 | CX14: 1000 | CY14: 1020 | CZ14: PL 1000,1020 | DB14: 1 | DC14: 108 | DD14: s | DE14: 1000 | DF14: 1020 | DG14: 1000,1020 C | DI14: 0 | DJ14: 130 | DK14: a | DL14: 1483.61 | DM14: 595.58 | DN14: 1483.61,595.58 | DP14: 1 | DS14: 1000 | DT14: 1020 | DU14: PL 1000,1020 | DW14: 1 | DZ14: 1000 | EA14: 1020 | EB14: PL 1000,1020 | ED14: 1 | EE14: 109 | EF14: s | EG14: 1000 | EH14: 1020 | EI14: 1000,1020 C | EK14: 1 | EN14: 1000 | EO14: 1020 | EP14: PL 1000,1020 | ER14: 1 | EU14: 1000 | EV14: 1020 | EW14: PL 1000,1020 | EY14: 0 | EZ14: 32 | FA14: w | FB14: 1650.41 | FC14: 395.79 | FD14: 1650.41,395.79 | FF14: 0 | FG14: 167 | FH14: w | FI14: 1696.03 | FJ14: 409.89 | FK14: 1696.03,409.89 | FM14: 0 | FN14: 32 | FO14: w | FP14: 1710.41 | FQ14: 395.79 | FR14: 1710.41,395.79 | FT14: 0 | FU14: 167 | FV14: w | FW14: 1756.03 | FX14: 409.89 | FY14: 1756.03,409.89 | GA14: 0 | GB14: 32 | GC14: w | GD14: 1770.41 | GE14: 395.79 | GF14: 1770.41,395.79 | GH14: 0 | GI14: 167 | GJ14: w | GK14: 1816.03 | GL14: 409.89 | GM14: 1816.03,409.89 | GO14: 0 | GP14: 32 | GQ14: w | GR14: 1830.41 | GS14: 395.79 | GT14: 1830.41,395.79 | GV14: 0 | GW14: 167 | GX14: w | GY14: 1876.03 | GZ14: 409.89 | HA14: 1876.03,409.89 | HC14: 0 | HD14: 32 | HE14: w | HF14: 1890.41 | HG14: 395.79 | HH14: 1890.41,395.79 | HJ14: 0 | HK14: 167 | HL14: w | HM14: 1936.03 | HN14: 409.89 | HO14: 1936.03,409.89 | HQ14: 0 | HR14: 32 | HS14: w | HT14: 1950.41 | HU14: 395.79 | HV14: 1950.41,395.79 | HX14: 0 | HY14: 167 | HZ14: w | IA14: 1996.03 | IB14: 409.89 | IC14: 1996.03,409.89 | IE14: 0 | IF14: 32 | IG14: w | IH14: 2010.41 | II14: 395.79 | IJ14: 2010.41,395.79 | IL14: 0 | IM14: 167 | IN14: w | IO14: 2056.03 | IP14: 409.89 | IQ14: 2056.03,409.89 | IS14: 0 | IT14: 32 | IU14: w | IV14: 2070.41 | IW14: 395.79 | IX14: 2070.41,395.79 | IZ14: 0 | JA14: 167 | JB14: w | JC14: 2116.03 | JD14: 409.89 | JE14: 2116.03,409.89 | JG14: 0 | JH14: 32 | JI14: w | JJ14: 2130.41 | JK14: 395.79 | JL14: 2130.41,395.79 | JN14: 0 | JO14: 167 | JP14: w | JQ14: 2176.03 | JR14: 409.89 | JS14: 2176.03,409.89 | JU14: 0 | JV14: 32 | JW14: w | JX14: 2190.41 | JY14: 395.79 | JZ14: 2190.41,395.79 | KB14: 0 | KC14: 167 | KD14: w | KE14: 2236.03 | KF14: 409.89 | KG14: 2236.03,409.89 | KI14: 0 | KJ14: 32 | KK14: w | KL14: 2250.41 | KM14: 395.79 | KN14: 2250.41,395.79 | KP14: 0 | KQ14: 167 | KR14: w | KS14: 2296.03 | KT14: 409.89 | KU14: 2296.03,409.89 | KW14: 0 | KX14: 32 | KY14: w | KZ14: 2310.41 | LA14: 395.79 | LB14: 2310.41,395.79 | LD14: 0 | LE14: 167 | LF14: w | LG14: 2356.03 | LH14: 409.89 | LI14: 2356.03,409.89 | LK14: 0 | LL14: 167 | LM14: w | LN14: 2386.03 | LO14: 409.89 | LP14: 2386.03,409.89 | LR14: 0 | LS14: 167 | LT14: w | LU14: 2416.03 | LV14: 409.89 | LW14: 2416.03,409.89 | LY14: 0 | LZ14: 167 | MA14: w | MB14: 2446.03 | MC14: 409.89 | MD14: 2446.03,409.89 | MF14: 0 | MG14: 167 | MH14: w | MI14: 2476.03 | MJ14: 409.89 | MK14: 2476.03,409.89
A15: 0 | B15: 475 | C15: d | D15: 1014.88 | E15: 1010.22 | F15: 1014.88,1010.22 | H15: 0 | I15: 26 | J15: s | K15: 1022.32 | L15: 1000.24 | M15: 1022.32,1000.24 | O15: 1 | P15: 304 | Q15: a | R15: 996.96 | S15: 1020 | T15: 996.96,1020 | V15: 1 | W15: 83 | X15: s | Y15: 996.61 | Z15: 1018.85 | AA15: 996.61,1018.85 | AC15: 1 | AD15: 486 | AE15: w | AF15: 1000 | AG15: 1024.86 | AH15: 1000,1024.86 | AJ15: 1 | AK15: 401 | AL15: w | AM15: 1000 | AN15: 1024.01 | AO15: 1000,1024.01 | AQ15: 1 | AR15: 410 | AS15: w | AT15: 1000 | AU15: 1024.1 | AV15: 1000,1024.1 | AX15: 1 | AY15: 27 | AZ15: s | BA15: 996.99 | BB15: 1019.83 | BC15: 996.99,1019.83 | BE15: 0 | BF15: 50 | BG15: s | BH15: 1242.35 | BI15: 803.76 | BJ15: 1242.35,803.76 | BL15: 1 | BM15: 111 | BN15: w | BO15: 1000 | BP15: 1021.11 | BQ15: 1000,1021.11 | BS15: 0 | BT15: 249 | BU15: s | BV15: 1299.13 | BW15: 700.69 | BX15: 1299.13,700.69 C | BZ15: 2 | CC15: 1000 | CD15: 1040 | CE15: PL 1000,1040 | CG15: 0 | CH15: 106 | CI15: d | CJ15: 1369.63 | CK15: 699.77 | CL15: 1369.63,699.77 | CN15: 1 | CO15: 396 | CP15: w | CQ15: 1000 | CR15: 1023.96 | CS15: 1000,1023.96 | CU15: 1 | CV15: 307 | CW15: a | CX15: 996.93 | CY15: 1020 | CZ15: 996.93,1020 | DB15: 2 | DE15: 1000 | DF15: 1040 | DG15: PL 1000,1040 | DI15: 0 | DJ15: 299 | DK15: w | DL15: 1483.61 | DM15: 598.57 | DN15: 1483.61,598.57 | DP15: 1 | DQ15: 398 | DR15: w | DS15: 1000 | DT15: 1023.98 | DU15: 1000,1023.98 | DW15: 1 | DX15: 35 | DY15: w | DZ15: 1000 | EA15: 1020.35 | EB15: 1000,1020.35 | ED15: 2 | EG15: 1000 | EH15: 1040 | EI15: PL 1000,1040 | EK15: 1 | EL15: 488 | EM15: w | EN15: 1000 | EO15: 1024.88 | EP15: 1000,1024.88 | ER15: 1 | ES15: 399 | ET15: w | EU15: 1000 | EV15: 1023.99 | EW15: 1000,1023.99 | EY15: 0 | EZ15: 50 | FA15: a | FB15: 1649.91 | FC15: 395.79 | FD15: 1649.91,395.79 | FF15: 0 | FG15: 272 | FH15: d | FI15: 1698.75 | FJ15: 409.89 | FK15: 1698.75,409.89 | FM15: 0 | FN15: 50 | FO15: a | FP15: 1709.91 | FQ15: 395.79 | FR15: 1709.91,395.79 | FT15: 0 | FU15: 272 | FV15: d | FW15: 1758.75 | FX15: 409.89 | FY15: 1758.75,409.89 | GA15: 0 | GB15: 50 | GC15: a | GD15: 1769.91 | GE15: 395.79 | GF15: 1769.91,395.79 | GH15: 0 | GI15: 272 | GJ15: d | GK15: 1818.75 | GL15: 409.89 | GM15: 1818.75,409.89 | GO15: 0 | GP15: 50 | GQ15: a | GR15: 1829.91 | GS15: 395.79 | GT15: 1829.91,395.79 | GV15: 0 | GW15: 272 | GX15: d | GY15: 1878.75 | GZ15: 409.89 | HA15: 1878.75,409.89 | HC15: 0 | HD15: 50 | HE15: a | HF15: 1889.91 | HG15: 395.79 | HH15: 1889.91,395.79 | HJ15: 0 | HK15: 272 | HL15: d | HM15: 1938.75 | HN15: 409.89 | HO15: 1938.75,409.89 | HQ15: 0 | HR15: 50 | HS15: a | HT15: 1949.91 | HU15: 395.79 | HV15: 1949.91,395.79 | HX15: 0 | HY15: 272 | HZ15: d | IA15: 1998.75 | IB15: 409.89 | IC15: 1998.75,409.89 | IE15: 0 | IF15: 50 | IG15: a | IH15: 2009.91 | II15: 395.79 | IJ15: 2009.91,395.79 | IL15: 0 | IM15: 272 | IN15: d | IO15: 2058.75 | IP15: 409.89 | IQ15: 2058.75,409.89 | IS15: 0 | IT15: 50 | IU15: a | IV15: 2069.91 | IW15: 395.79 | IX15: 2069.91,395.79 | IZ15: 0 | JA15: 272 | JB15: d | JC15: 2118.75 | JD15: 409.89 | JE15: 2118.75,409.89 | JG15: 0 | JH15: 50 | JI15: a | JJ15: 2129.91 | JK15: 395.79 | JL15: 2129.91,395.79 | JN15: 0 | JO15: 272 | JP15: d | JQ15: 2178.75 | JR15: 409.89 | JS15: 2178.75,409.89 | JU15: 0 | JV15: 50 | JW15: a | JX15: 2189.91 | JY15: 395.79 | JZ15: 2189.91,395.79 | KB15: 0 | KC15: 272 | KD15: d | KE15: 2238.75 | KF15: 409.89 | KG15: 2238.75,409.89 | KI15: 0 | KJ15: 50 | KK15: a | KL15: 2249.91 | KM15: 395.79 | KN15: 2249.91,395.79 | KP15: 0 | KQ15: 272 | KR15: d | KS15: 2298.75 | KT15: 409.89 | KU15: 2298.75,409.89 | KW15: 0 | KX15: 50 | KY15: a | KZ15: 2309.91 | LA15: 395.79 | LB15: 2309.91,395.79 | LD15: 0 | LE15: 272 | LF15: d | LG15: 2358.75 | LH15: 409.89 | LI15: 2358.75,409.89 | LK15: 0 | LL15: 272 | LM15: d | LN15: 2388.75 | LO15: 409.89 | LP15: 2388.75,409.89 | LR15: 0 | LS15: 272 | LT15: d | LU15: 2418.75 | LV15: 409.89 | LW15: 2418.75,409.89 | LY15: 0 | LZ15: 272 | MA15: d | MB15: 2448.75 | MC15: 409.89 | MD15: 2448.75,409.89 | MF15: 0 | MG15: 272 | MH15: d | MI15: 2478.75 | MJ15: 409.89 | MK15: 2478.75,409.89
A16: 0 | B16: 432 | C16: s | D16: 1014.88 | E16: 1005.9 | F16: 1014.88,1005.9 | H16: 0 | I16: 106 | J16: a | K16: 1021.26 | L16: 1000.24 | M16: 1021.26,1000.24 | O16: 1 | P16: 316 | Q16: w | R16: 996.96 | S16: 1023.16 | T16: 996.96,1023.16 | V16: 1 | W16: 162 | X16: a | Y16: 994.99 | Z16: 1018.85 | AA16: 994.99,1018.85 | AC16: 1 | AD16: 297 | AE16: d | AF16: 1002.97 | AG16: 1024.86 | AH16: 1002.97,1024.86 | AJ16: 1 | AK16: 365 | AL16: d | AM16: 1003.65 | AN16: 1024.01 | AO16: 1003.65,1024.01 | AQ16: 1 | AR16: 17 | AS16: d | AT16: 1000.17 | AU16: 1024.1 | AV16: 1000.17,1024.1 | AX16: 1 | AY16: 21 | AZ16: a | BA16: 996.78 | BB16: 1019.83 | BC16: 996.78,1019.83 | BE16: 0 | BF16: 51 | BG16: d | BH16: 1242.86 | BI16: 803.76 | BJ16: 1242.86,803.76 | BL16: 1 | BM16: 10 | BN16: d | BO16: 1000.1 | BP16: 1021.11 | BQ16: 1000.1,1021.11 | BS16: 1 | BV16: 1000 | BW16: 1020 | BX16: PL 1000,1020 | BZ16: 2 | CA16: 202 | CB16: a | CC16: 997.98 | CD16: 1040 | CE16: 997.98,1040 | CG16: 0 | CH16: 409 | CI16: s | CJ16: 1369.63 | CK16: 695.68 | CL16: 1369.63,695.68 | CN16: 1 | CO16: 362 | CP16: d | CQ16: 1003.62 | CR16: 1023.96 | CS16: 1003.62,1023.96 | CU16: 1 | CV16: 377 | CW16: w | CX16: 996.93 | CY16: 1023.77 | CZ16: 996.93,1023.77 | DB16: 2 | DC16: 203 | DD16: a | DE16: 997.97 | DF16: 1040 | DG16: 997.97,1040 | DI16: 0 | DJ16: 293 | DK16: a | DL16: 1480.68 | DM16: 598.57 | DN16: 1480.68,598.57 | DP16: 1 | DQ16: 368 | DR16: d | DS16: 1003.68 | DT16: 1023.98 | DU16: 1003.68,1023.98 | DW16: 1 | DX16: 3 | DY16: a | DZ16: 999.97 | EA16: 1020.35 | EB16: 999.97,1020.35 | ED16: 2 | EE16: 205 | EF16: a | EG16: 997.95 | EH16: 1040 | EI16: 997.95,1040 | EK16: 1 | EL16: 301 | EM16: d | EN16: 1003.01 | EO16: 1024.88 | EP16: 1003.01,1024.88 | ER16: 1 | ES16: 361 | ET16: d | EU16: 1003.61 | EV16: 1023.99 | EW16: 1003.61,1023.99 | EY16: 0 | EZ16: 25 | FA16: s | FB16: 1649.91 | FC16: 395.54 | FD16: 1649.91,395.54 | FF16: 0 | FG16: 145 | FH16: s | FI16: 1698.75 | FJ16: 408.44 | FK16: 1698.75,408.44 | FM16: 0 | FN16: 25 | FO16: s | FP16: 1709.91 | FQ16: 395.54 | FR16: 1709.91,395.54 | FT16: 0 | FU16: 145 | FV16: s | FW16: 1758.75 | FX16: 408.44 | FY16: 1758.75,408.44 | GA16: 0 | GB16: 25 | GC16: s | GD16: 1769.91 | GE16: 395.54 | GF16: 1769.91,395.54 | GH16: 0 | GI16: 145 | GJ16: s | GK16: 1818.75 | GL16: 408.44 | GM16: 1818.75,408.44 | GO16: 0 | GP16: 25 | GQ16: s | GR16: 1829.91 | GS16: 395.54 | GT16: 1829.91,395.54 | GV16: 0 | GW16: 145 | GX16: s | GY16: 1878.75 | GZ16: 408.44 | HA16: 1878.75,408.44 | HC16: 0 | HD16: 25 | HE16: s | HF16: 1889.91 | HG16: 395.54 | HH16: 1889.91,395.54 | HJ16: 0 | HK16: 145 | HL16: s | HM16: 1938.75 | HN16: 408.44 | HO16: 1938.75,408.44 | HQ16: 0 | HR16: 25 | HS16: s | HT16: 1949.91 | HU16: 395.54 | HV16: 1949.91,395.54 | HX16: 0 | HY16: 145 | HZ16: s | IA16: 1998.75 | IB16: 408.44 | IC16: 1998.75,408.44 | IE16: 0 | IF16: 25 | IG16: s | IH16: 2009.91 | II16: 395.54 | IJ16: 2009.91,395.54 | IL16: 0 | IM16: 145 | IN16: s | IO16: 2058.75 | IP16: 408.44 | IQ16: 2058.75,408.44 | IS16: 0 | IT16: 25 | IU16: s | IV16: 2069.91 | IW16: 395.54 | IX16: 2069.91,395.54 | IZ16: 0 | JA16: 145 | JB16: s | JC16: 2118.75 | JD16: 408.44 | JE16: 2118.75,408.44 | JG16: 0 | JH16: 25 | JI16: s | JJ16: 2129.91 | JK16: 395.54 | JL16: 2129.91,395.54 | JN16: 0 | JO16: 145 | JP16: s | JQ16: 2178.75 | JR16: 408.44 | JS16: 2178.75,408.44 | JU16: 0 | JV16: 25 | JW16: s | JX16: 2189.91 | JY16: 395.54 | JZ16: 2189.91,395.54 | KB16: 0 | KC16: 145 | KD16: s | KE16: 2238.75 | KF16: 408.44 | KG16: 2238.75,408.44 | KI16: 0 | KJ16: 25 | KK16: s | KL16: 2249.91 | KM16: 395.54 | KN16: 2249.91,395.54 | KP16: 0 | KQ16: 145 | KR16: s | KS16: 2298.75 | KT16: 408.44 | KU16: 2298.75,408.44 | KW16: 0 | KX16: 25 | KY16: s | KZ16: 2309.91 | LA16: 395.54 | LB16: 2309.91,395.54 | LD16: 0 | LE16: 145 | LF16: s | LG16: 2358.75 | LH16: 408.44 | LI16: 2358.75,408.44 | LK16: 0 | LL16: 145 | LM16: s | LN16: 2388.75 | LO16: 408.44 | LP16: 2388.75,408.44 | LR16: 0 | LS16: 145 | LT16: s | LU16: 2418.75 | LV16: 408.44 | LW16: 2418.75,408.44 | LY16: 0 | LZ16: 145 | MA16: s | MB16: 2448.75 | MC16: 408.44 | MD16: 2448.75,408.44 | MF16: 0 | MG16: 145 | MH16: s | MI16: 2478.75 | MJ16: 408.44 | MK16: 2478.75,408.44
A17: 0 | B17: 5 | C17: d | D17: 1014.93 | E17: 1005.9 | F17: 1014.93,1005.9 | H17: 0 | I17: 825 | J17: w | K17: 1021.26 | L17: 1008.49 | M17: 1021.26,1008.49 | O17: 1 | P17: 304 | Q17: d | R17: 1000 | S17: 1023.16 | T17: 1000,1023.16 | V17: 1 | W17: 83 | X17: w | Y17: 994.99 | Z17: 1019.68 | AA17: 994.99,1019.68 | AC17: 1 | AD17: 144 | AE17: s | AF17: 1002.97 | AG17: 1023.42 | AH17: 1002.97,1023.42 | AJ17: 1 | AK17: 151 | AL17: s | AM17: 1003.65 | AN17: 1022.5 | AO17: 1003.65,1022.5 | AQ17: 1 | AR17: 26 | AS17: w | AT17: 1000.17 | AU17: 1024.36 | AV17: 1000.17,1024.36 | AX17: 1 | AY17: 258 | AZ17: s | BA17: 996.78 | BB17: 1017.25 | BC17: 996.78,1017.25 | BE17: 0 | BF17: 34 | BG17: w | BH17: 1242.86 | BI17: 804.1 | BJ17: 1242.86,804.1 | BL17: 1 | BM17: 50 | BN17: w | BO17: 1000.1 | BP17: 1021.61 | BQ17: 1000.1,1021.61 | BS17: 1 | BT17: 305 | BU17: a | BV17: 996.95 | BW17: 1020 | BX17: 996.95,1020 | BZ17: 2 | CA17: 258 | CB17: w | CC17: 997.98 | CD17: 1042.58 | CE17: 997.98,1042.58 | CG17: 0 | CH17: 110 | CI17: a | CJ17: 1368.53 | CK17: 695.68 | CL17: 1368.53,695.68 | CN17: 1 | CO17: 151 | CP17: s | CQ17: 1003.62 | CR17: 1022.45 | CS17: 1003.62,1022.45 | CU17: 1 | CV17: 307 | CW17: d | CX17: 1000 | CY17: 1023.77 | CZ17: 1000,1023.77 | DB17: 2 | DC17: 256 | DD17: w | DE17: 997.97 | DF17: 1042.56 | DG17: 997.97,1042.56 | DI17: 0 | DJ17: 106 | DK17: w | DL17: 1480.68 | DM17: 599.63 | DN17: 1480.68,599.63 | DP17: 1 | DQ17: 151 | DR17: s | DS17: 1003.68 | DT17: 1022.47 | DU17: 1003.68,1022.47 | DW17: 1 | DX17: 380 | DY17: w | DZ17: 999.97 | EA17: 1024.15 | EB17: 999.97,1024.15 | ED17: 2 | EE17: 257 | EF17: w | EG17: 997.95 | EH17: 1042.57 | EI17: 997.95,1042.57 | EK17: 1 | EL17: 143 | EM17: s | EN17: 1003.01 | EO17: 1023.45 | EP17: 1003.01,1023.45 | ER17: 1 | ES17: 151 | ET17: s | EU17: 1003.61 | EV17: 1022.48 | EW17: 1003.61,1022.48 | EY17: 0 | EZ17: 476 | FA17: a | FB17: 1645.15 | FC17: 395.54 | FD17: 1645.15,395.54 | FF17: 0 | FG17: 4 | FH17: a | FI17: 1698.71 | FJ17: 408.44 | FK17: 1698.71,408.44 | FM17: 0 | FN17: 476 | FO17: a | FP17: 1705.15 | FQ17: 395.54 | FR17: 1705.15,395.54 | FT17: 0 | FU17: 4 | FV17: a | FW17: 1758.71 | FX17: 408.44 | FY17: 1758.71,408.44 | GA17: 0 | GB17: 476 | GC17: a | GD17: 1765.15 | GE17: 395.54 | GF17: 1765.15,395.54 | GH17: 0 | GI17: 4 | GJ17: a | GK17: 1818.71 | GL17: 408.44 | GM17: 1818.71,408.44 | GO17: 0 | GP17: 476 | GQ17: a | GR17: 1825.15 | GS17: 395.54 | GT17: 1825.15,395.54 | GV17: 0 | GW17: 4 | GX17: a | GY17: 1878.71 | GZ17: 408.44 | HA17: 1878.71,408.44 | HC17: 0 | HD17: 476 | HE17: a | HF17: 1885.15 | HG17: 395.54 | HH17: 1885.15,395.54 | HJ17: 0 | HK17: 4 | HL17: a | HM17: 1938.71 | HN17: 408.44 | HO17: 1938.71,408.44 | HQ17: 0 | HR17: 476 | HS17: a | HT17: 1945.15 | HU17: 395.54 | HV17: 1945.15,395.54 | HX17: 0 | HY17: 4 | HZ17: a | IA17: 1998.71 | IB17: 408.44 | IC17: 1998.71,408.44 | IE17: 0 | IF17: 476 | IG17: a | IH17: 2005.15 | II17: 395.54 | IJ17: 2005.15,395.54 | IL17: 0 | IM17: 4 | IN17: a | IO17: 2058.71 | IP17: 408.44 | IQ17: 2058.71,408.44 | IS17: 0 | IT17: 476 | IU17: a | IV17: 2065.15 | IW17: 395.54 | IX17: 2065.15,395.54 | IZ17: 0 | JA17: 4 | JB17: a | JC17: 2118.71 | JD17: 408.44 | JE17: 2118.71,408.44 | JG17: 0 | JH17: 476 | JI17: a | JJ17: 2125.15 | JK17: 395.54 | JL17: 2125.15,395.54 | JN17: 0 | JO17: 4 | JP17: a | JQ17: 2178.71 | JR17: 408.44 | JS17: 2178.71,408.44 | JU17: 0 | JV17: 476 | JW17: a | JX17: 2185.15 | JY17: 395.54 | JZ17: 2185.15,395.54 | KB17: 0 | KC17: 4 | KD17: a | KE17: 2238.71 | KF17: 408.44 | KG17: 2238.71,408.44 | KI17: 0 | KJ17: 476 | KK17: a | KL17: 2245.15 | KM17: 395.54 | KN17: 2245.15,395.54 | KP17: 0 | KQ17: 4 | KR17: a | KS17: 2298.71 | KT17: 408.44 | KU17: 2298.71,408.44 | KW17: 0 | KX17: 476 | KY17: a | KZ17: 2305.15 | LA17: 395.54 | LB17: 2305.15,395.54 | LD17: 0 | LE17: 4 | LF17: a | LG17: 2358.71 | LH17: 408.44 | LI17: 2358.71,408.44 | LK17: 0 | LL17: 4 | LM17: a | LN17: 2388.71 | LO17: 408.44 | LP17: 2388.71,408.44 | LR17: 0 | LS17: 4 | LT17: a | LU17: 2418.71 | LV17: 408.44 | LW17: 2418.71,408.44 | LY17: 0 | LZ17: 4 | MA17: a | MB17: 2448.71 | MC17: 408.44 | MD17: 2448.71,408.44 | MF17: 0 | MG17: 4 | MH17: a | MI17: 2478.71 | MJ17: 408.44 | MK17: 2478.71,408.44
A18: 0 | B18: 385 | C18: s | D18: 1014.93 | E18: 1002.05 | F18: 1014.93,1002.05 | H18: 0 | I18: 108 | J18: d | K18: 1022.34 | L18: 1008.49 | M18: 1022.34,1008.49 | O18: 1 | P18: 316 | Q18: s | R18: 1000 | S18: 1020 | T18: 1000,1020 C | V18: 1 | W18: 220 | X18: a | Y18: 992.79 | Z18: 1019.68 | AA18: 992.79,1019.68 | AC18: 1 | AD18: 16 | AE18: a | AF18: 1002.81 | AG18: 1023.42 | AH18: 1002.81,1023.42 | AJ18: 1 | AK18: 91 | AL18: a | AM18: 1002.74 | AN18: 1022.5 | AO18: 1002.74,1022.5 | AQ18: 1 | AR18: 286 | AS18: d | AT18: 1003.03 | AU18: 1024.36 | AV18: 1003.03,1024.36 | AX18: 1 | AY18: 34 | AZ18: d | BA18: 997.12 | BB18: 1017.25 | BC18: 997.12,1017.25 | BE18: 0 | BF18: 209 | BG18: d | BH18: 1244.95 | BI18: 804.1 | BJ18: 1244.95,804.1 | BL18: 1 | BM18: 10 | BN18: a | BO18: 1000 | BP18: 1021.61 | BQ18: 1000,1021.61 | BS18: 1 | BT18: 376 | BU18: w | BV18: 996.95 | BW18: 1023.76 | BX18: 996.95,1023.76 | BZ18: 2 | CA18: 202 | CB18: d | CC18: 1000 | CD18: 1042.58 | CE18: 1000,1042.58 | CG18: 0 | CH18: 30 | CI18: w | CJ18: 1368.53 | CK18: 695.98 | CL18: 1368.53,695.98 | CN18: 1 | CO18: 92 | CP18: a | CQ18: 1002.7 | CR18: 1022.45 | CS18: 1002.7,1022.45 | CU18: 1 | CV18: 377 | CW18: s | CX18: 1000 | CY18: 1020 | CZ18: 1000,1020 C | DB18: 2 | DC18: 203 | DD18: d | DE18: 1000 | DF18: 1042.56 | DG18: 1000,1042.56 | DI18: 0 | DJ18: 3 | DK18: d | DL18: 1480.71 | DM18: 599.63 | DN18: 1480.71,599.63 | DP18: 1 | DQ18: 97 | DR18: a | DS18: 1002.71 | DT18: 1022.47 | DU18: 1002.71,1022.47 | DW18: 1 | DX18: 15 | DY18: d | DZ18: 1000.12 | EA18: 1024.15 | EB18: 1000.12,1024.15 | ED18: 2 | EE18: 205 | EF18: d | EG18: 1000 | EH18: 1042.57 | EI18: 1000,1042.57 | EK18: 1 | EL18: 15 | EM18: a | EN18: 1002.86 | EO18: 1023.45 | EP18: 1002.86,1023.45 | ER18: 1 | ES18: 86 | ET18: a | EU18: 1002.75 | EV18: 1022.48 | EW18: 1002.75,1022.48 | EY18: 0 | EZ18: 426 | FA18: w | FB18: 1645.15 | FC18: 399.8 | FD18: 1645.15,399.8 | FF18: 0 | FG18: 50 | FH18: s | FI18: 1698.71 | FJ18: 407.94 | FK18: 1698.71,407.94 | FM18: 0 | FN18: 426 | FO18: w | FP18: 1705.15 | FQ18: 399.8 | FR18: 1705.15,399.8 | FT18: 0 | FU18: 50 | FV18: s | FW18: 1758.71 | FX18: 407.94 | FY18: 1758.71,407.94 | GA18: 0 | GB18: 426 | GC18: w | GD18: 1765.15 | GE18: 399.8 | GF18: 1765.15,399.8 | GH18: 0 | GI18: 50 | GJ18: s | GK18: 1818.71 | GL18: 407.94 | GM18: 1818.71,407.94 | GO18: 0 | GP18: 426 | GQ18: w | GR18: 1825.15 | GS18: 399.8 | GT18: 1825.15,399.8 | GV18: 0 | GW18: 50 | GX18: s | GY18: 1878.71 | GZ18: 407.94 | HA18: 1878.71,407.94 | HC18: 0 | HD18: 426 | HE18: w | HF18: 1885.15 | HG18: 399.8 | HH18: 1885.15,399.8 | HJ18: 0 | HK18: 50 | HL18: s | HM18: 1938.71 | HN18: 407.94 | HO18: 1938.71,407.94 | HQ18: 0 | HR18: 426 | HS18: w | HT18: 1945.15 | HU18: 399.8 | HV18: 1945.15,399.8 | HX18: 0 | HY18: 50 | HZ18: s | IA18: 1998.71 | IB18: 407.94 | IC18: 1998.71,407.94 | IE18: 0 | IF18: 426 | IG18: w | IH18: 2005.15 | II18: 399.8 | IJ18: 2005.15,399.8 | IL18: 0 | IM18: 50 | IN18: s | IO18: 2058.71 | IP18: 407.94 | IQ18: 2058.71,407.94 | IS18: 0 | IT18: 426 | IU18: w | IV18: 2065.15 | IW18: 399.8 | IX18: 2065.15,399.8 | IZ18: 0 | JA18: 50 | JB18: s | JC18: 2118.71 | JD18: 407.94 | JE18: 2118.71,407.94 | JG18: 0 | JH18: 426 | JI18: w | JJ18: 2125.15 | JK18: 399.8 | JL18: 2125.15,399.8 | JN18: 0 | JO18: 50 | JP18: s | JQ18: 2178.71 | JR18: 407.94 | JS18: 2178.71,407.94 | JU18: 0 | JV18: 426 | JW18: w | JX18: 2185.15 | JY18: 399.8 | JZ18: 2185.15,399.8 | KB18: 0 | KC18: 50 | KD18: s | KE18: 2238.71 | KF18: 407.94 | KG18: 2238.71,407.94 | KI18: 0 | KJ18: 426 | KK18: w | KL18: 2245.15 | KM18: 399.8 | KN18: 2245.15,399.8 | KP18: 0 | KQ18: 50 | KR18: s | KS18: 2298.71 | KT18: 407.94 | KU18: 2298.71,407.94 | KW18: 0 | KX18: 426 | KY18: w | KZ18: 2305.15 | LA18: 399.8 | LB18: 2305.15,399.8 | LD18: 0 | LE18: 50 | LF18: s | LG18: 2358.71 | LH18: 407.94 | LI18: 2358.71,407.94 | LK18: 0 | LL18: 50 | LM18: s | LN18: 2388.71 | LO18: 407.94 | LP18: 2388.71,407.94 | LR18: 0 | LS18: 50 | LT18: s | LU18: 2418.71 | LV18: 407.94 | LW18: 2418.71,407.94 | LY18: 0 | LZ18: 50 | MA18: s | MB18: 2448.71 | MC18: 407.94 | MD18: 2448.71,407.94 | MF18: 0 | MG18: 50 | MH18: s | MI18: 2478.71 | MJ18: 407.94 | MK18: 2478.71,407.94
A19: 0 | B19: 13 | C19: a | D19: 1014.8 | E19: 1002.05 | F19: 1014.8,1002.05 | H19: 0 | I19: 19 | J19: s | K19: 1022.34 | L19: 1008.3 | M19: 1022.34,1008.3 | O19: 2 | R19: 1000 | S19: 1040 | T19: PL 1000,1040 | V19: 1 | W19: 70 | X19: w | Y19: 992.79 | Z19: 1020.38 | AA19: 992.79,1020.38 | AC19: 1 | AD19: 51 | AE19: s | AF19: 1002.81 | AG19: 1022.91 | AH19: 1002.81,1022.91 | AJ19: 1 | AK19: 248 | AL19: s | AM19: 1002.74 | AN19: 1020.02 | AO19: 1002.74,1020.02 | AQ19: 1 | AR19: 435 | AS19: s | AT19: 1003.03 | AU19: 1020.01 | AV19: 1003.03,1020.01 | AX19: 1 | AY19: 81 | AZ19: s | BA19: 997.12 | BB19: 1016.44 | BC19: 997.12,1016.44 | BE19: 0 | BF19: 34 | BG19: s | BH19: 1244.95 | BI19: 803.76 | BJ19: 1244.95,803.76 | BL19: 1 | BM19: 384 | BN19: w | BO19: 1000 | BP19: 1025.45 | BQ19: 1000,1025.45 | BS19: 1 | BT19: 305 | BU19: d | BV19: 1000 | BW19: 1023.76 | BX19: 1000,1023.76 | BZ19: 2 | CA19: 258 | CB19: s | CC19: 1000 | CD19: 1040 | CE19: 1000,1040 C | CG19: 0 | CH19: 50 | CI19: a | CJ19: 1368.03 | CK19: 695.98 | CL19: 1368.03,695.98 | CN19: 1 | CO19: 248 | CP19: s | CQ19: 1002.7 | CR19: 1019.97 | CS19: 1002.7,1019.97 | CU19: 2 | CX19: 1000 | CY19: 1040 | CZ19: PL 1000,1040 | DB19: 2 | DC19: 256 | DD19: s | DE19: 1000 | DF19: 1040 | DG19: 1000,1040 C | DI19: 0 | DJ19: 451 | DK19: w | DL19: 1480.71 | DM19: 604.14 | DN19: 1480.71,604.14 | DP19: 1 | DQ19: 249 | DR19: s | DS19: 1002.71 | DT19: 1019.98 | DU19: 1002.71,1019.98 | DW19: 1 | DX19: 26 | DY19: w | DZ19: 1000.12 | EA19: 1024.41 | EB19: 1000.12,1024.41 | ED19: 2 | EE19: 257 | EF19: s | EG19: 1000 | EH19: 1040 | EI19: 1000,1040 C | EK19: 1 | EL19: 50 | EM19: s | EN19: 1002.86 | EO19: 1022.95 | EP19: 1002.86,1022.95 | ER19: 1 | ES19: 252 | ET19: s | EU19: 1002.75 | EV19: 1019.96 | EW19: 1002.75,1019.96 | EY19: 0 | EZ19: 4 | FA19: a | FB19: 1645.11 | FC19: 399.8 | FD19: 1645.11,399.8 | FF19: 0 | FG19: 51 | FH19: d | FI19: 1699.22 | FJ19: 407.94 | FK19: 1699.22,407.94 | FM19: 0 | FN19: 4 | FO19: a | FP19: 1705.11 | FQ19: 399.8 | FR19: 1705.11,399.8 | FT19: 0 | FU19: 51 | FV19: d | FW19: 1759.22 | FX19: 407.94 | FY19: 1759.22,407.94 | GA19: 0 | GB19: 4 | GC19: a | GD19: 1765.11 | GE19: 399.8 | GF19: 1765.11,399.8 | GH19: 0 | GI19: 51 | GJ19: d | GK19: 1819.22 | GL19: 407.94 | GM19: 1819.22,407.94 | GO19: 0 | GP19: 4 | GQ19: a | GR19: 1825.11 | GS19: 399.8 | GT19: 1825.11,399.8 | GV19: 0 | GW19: 51 | GX19: d | GY19: 1879.22 | GZ19: 407.94 | HA19: 1879.22,407.94 | HC19: 0 | HD19: 4 | HE19: a | HF19: 1885.11 | HG19: 399.8 | HH19: 1885.11,399.8 | HJ19: 0 | HK19: 51 | HL19: d | HM19: 1939.22 | HN19: 407.94 | HO19: 1939.22,407.94 | HQ19: 0 | HR19: 4 | HS19: a | HT19: 1945.11 | HU19: 399.8 | HV19: 1945.11,399.8 | HX19: 0 | HY19: 51 | HZ19: d | IA19: 1999.22 | IB19: 407.94 | IC19: 1999.22,407.94 | IE19: 0 | IF19: 4 | IG19: a | IH19: 2005.11 | II19: 399.8 | IJ19: 2005.11,399.8 | IL19: 0 | IM19: 51 | IN19: d | IO19: 2059.22 | IP19: 407.94 | IQ19: 2059.22,407.94 | IS19: 0 | IT19: 4 | IU19: a | IV19: 2065.11 | IW19: 399.8 | IX19: 2065.11,399.8 | IZ19: 0 | JA19: 51 | JB19: d | JC19: 2119.22 | JD19: 407.94 | JE19: 2119.22,407.94 | JG19: 0 | JH19: 4 | JI19: a | JJ19: 2125.11 | JK19: 399.8 | JL19: 2125.11,399.8 | JN19: 0 | JO19: 51 | JP19: d | JQ19: 2179.22 | JR19: 407.94 | JS19: 2179.22,407.94 | JU19: 0 | JV19: 4 | JW19: a | JX19: 2185.11 | JY19: 399.8 | JZ19: 2185.11,399.8 | KB19: 0 | KC19: 51 | KD19: d | KE19: 2239.22 | KF19: 407.94 | KG19: 2239.22,407.94 | KI19: 0 | KJ19: 4 | KK19: a | KL19: 2245.11 | KM19: 399.8 | KN19: 2245.11,399.8 | KP19: 0 | KQ19: 51 | KR19: d | KS19: 2299.22 | KT19: 407.94 | KU19: 2299.22,407.94 | KW19: 0 | KX19: 4 | KY19: a | KZ19: 2305.11 | LA19: 399.8 | LB19: 2305.11,399.8 | LD19: 0 | LE19: 51 | LF19: d | LG19: 2359.22 | LH19: 407.94 | LI19: 2359.22,407.94 | LK19: 0 | LL19: 51 | LM19: d | LN19: 2389.22 | LO19: 407.94 | LP19: 2389.22,407.94 | LR19: 0 | LS19: 51 | LT19: d | LU19: 2419.22 | LV19: 407.94 | LW19: 2419.22,407.94 | LY19: 0 | LZ19: 51 | MA19: d | MB19: 2449.22 | MC19: 407.94 | MD19: 2449.22,407.94 | MF19: 0 | MG19: 51 | MH19: d | MI19: 2479.22 | MJ19: 407.94 | MK19: 2479.22,407.94
A20: 0 | B20: 25 | C20: s | D20: 1014.8 | E20: 1001.8 | F20: 1014.8,1001.8 | H20: 0 | I20: 50 | J20: d | K20: 1022.84 | L20: 1008.3 | M20: 1022.84,1008.3 | O20: 2 | P20: 304 | Q20: a | R20: 996.96 | S20: 1040 | T20: 996.96,1040 | V20: 1 | W20: 30 | X20: d | Y20: 993.09 | Z20: 1020.38 | AA20: 993.09,1020.38 | AC20: 1 | AD20: 51 | AE20: d | AF20: 1003.32 | AG20: 1022.91 | AH20: 1003.32,1022.91 | AJ20: 1 | AK20: 272 | AL20: a | AM20: 1000.02 | AN20: 1020.02 | AO20: 1000.02,1020.02 C | AQ20: 1 | AR20: 305 | AS20: a | AT20: 999.98 | AU20: 1020.01 | AV20: 999.98,1020.01 C | AX20: 1 | AY20: 34 | AZ20: a | BA20: 996.78 | BB20: 1016.44 | BC20: 996.78,1016.44 | BE20: 0 | BF20: 51 | BG20: d | BH20: 1245.46 | BI20: 803.76 | BJ20: 1245.46,803.76 | BL20: 1 | BM20: 10 | BN20: d | BO20: 1000.1 | BP20: 1025.45 | BQ20: 1000.1,1025.45 | BS20: 1 | BT20: 376 | BU20: s | BV20: 1000 | BW20: 1020 | BX20: 1000,1020 C | BZ20: 3 | CC20: 1000 | CD20: 1060 | CE20: PL 1000,1060 | CG20: 0 | CH20: 30 | CI20: s | CJ20: 1368.03 | CK20: 695.68 | CL20: 1368.03,695.68 | CN20: 1 | CO20: 272 | CP20: a | CQ20: 999.98 | CR20: 1019.97 | CS20: 999.98,1019.97 C | CU20: 2 | CV20: 428 | CW20: w | CX20: 1000 | CY20: 1044.28 | CZ20: 1000,1044.28 | DB20: 3 | DE20: 1000 | DF20: 1060 | DG20: PL 1000,1060 | DI20: 0 | DJ20: 125 | DK20: a | DL20: 1479.46 | DM20: 604.14 | DN20: 1479.46,604.14 | DP20: 1 | DQ20: 274 | DR20: a | DS20: 999.97 | DT20: 1019.98 | DU20: 999.97,1019.98 C | DW20: 1 | DX20: 295 | DY20: d | DZ20: 1003.07 | EA20: 1024.41 | EB20: 1003.07,1024.41 | ED20: 3 | EG20: 1000 | EH20: 1060 | EI20: PL 1000,1060 | EK20: 1 | EL20: 51 | EM20: d | EN20: 1003.37 | EO20: 1022.95 | EP20: 1003.37,1022.95 | ER20: 1 | ES20: 274 | ET20: a | EU20: 1000.01 | EV20: 1019.96 | EW20: 1000.01,1019.96 C | EY20: 0 | EZ20: 383 | FA20: w | FB20: 1645.11 | FC20: 403.63 | FD20: 1645.11,403.63 | FF20: 0 | FG20: 23 | FH20: w | FI20: 1699.22 | FJ20: 408.17 | FK20: 1699.22,408.17 | FM20: 0 | FN20: 383 | FO20: w | FP20: 1705.11 | FQ20: 403.63 | FR20: 1705.11,403.63 | FT20: 0 | FU20: 23 | FV20: w | FW20: 1759.22 | FX20: 408.17 | FY20: 1759.22,408.17 | GA20: 0 | GB20: 383 | GC20: w | GD20: 1765.11 | GE20: 403.63 | GF20: 1765.11,403.63 | GH20: 0 | GI20: 23 | GJ20: w | GK20: 1819.22 | GL20: 408.17 | GM20: 1819.22,408.17 | GO20: 0 | GP20: 383 | GQ20: w | GR20: 1825.11 | GS20: 403.63 | GT20: 1825.11,403.63 | GV20: 0 | GW20: 23 | GX20: w | GY20: 1879.22 | GZ20: 408.17 | HA20: 1879.22,408.17 | HC20: 0 | HD20: 383 | HE20: w | HF20: 1885.11 | HG20: 403.63 | HH20: 1885.11,403.63 | HJ20: 0 | HK20: 23 | HL20: w | HM20: 1939.22 | HN20: 408.17 | HO20: 1939.22,408.17 | HQ20: 0 | HR20: 383 | HS20: w | HT20: 1945.11 | HU20: 403.63 | HV20: 1945.11,403.63 | HX20: 0 | HY20: 23 | HZ20: w | IA20: 1999.22 | IB20: 408.17 | IC20: 1999.22,408.17 | IE20: 0 | IF20: 383 | IG20: w | IH20: 2005.11 | II20: 403.63 | IJ20: 2005.11,403.63 | IL20: 0 | IM20: 23 | IN20: w | IO20: 2059.22 | IP20: 408.17 | IQ20: 2059.22,408.17 | IS20: 0 | IT20: 383 | IU20: w | IV20: 2065.11 | IW20: 403.63 | IX20: 2065.11,403.63 | IZ20: 0 | JA20: 23 | JB20: w | JC20: 2119.22 | JD20: 408.17 | JE20: 2119.22,408.17 | JG20: 0 | JH20: 383 | JI20: w | JJ20: 2125.11 | JK20: 403.63 | JL20: 2125.11,403.63 | JN20: 0 | JO20: 23 | JP20: w | JQ20: 2179.22 | JR20: 408.17 | JS20: 2179.22,408.17 | JU20: 0 | JV20: 383 | JW20: w | JX20: 2185.11 | JY20: 403.63 | JZ20: 2185.11,403.63 | KB20: 0 | KC20: 23 | KD20: w | KE20: 2239.22 | KF20: 408.17 | KG20: 2239.22,408.17 | KI20: 0 | KJ20: 383 | KK20: w | KL20: 2245.11 | KM20: 403.63 | KN20: 2245.11,403.63 | KP20: 0 | KQ20: 23 | KR20: w | KS20: 2299.22 | KT20: 408.17 | KU20: 2299.22,408.17 | KW20: 0 | KX20: 383 | KY20: w | KZ20: 2305.11 | LA20: 403.63 | LB20: 2305.11,403.63 | LD20: 0 | LE20: 23 | LF20: w | LG20: 2359.22 | LH20: 408.17 | LI20: 2359.22,408.17 | LK20: 0 | LL20: 23 | LM20: w | LN20: 2389.22 | LO20: 408.17 | LP20: 2389.22,408.17 | LR20: 0 | LS20: 23 | LT20: w | LU20: 2419.22 | LV20: 408.17 | LW20: 2419.22,408.17 | LY20: 0 | LZ20: 23 | MA20: w | MB20: 2449.22 | MC20: 408.17 | MD20: 2449.22,408.17 | MF20: 0 | MG20: 23 | MH20: w | MI20: 2479.22 | MJ20: 408.17 | MK20: 2479.22,408.17
A21: 0 | B21: 329 | C21: a | D21: 1011.51 | E21: 1001.8 | F21: 1011.51,1001.8 | H21: 0 | I21: 26 | J21: w | K21: 1022.84 | L21: 1008.56 | M21: 1022.84,1008.56 | O21: 2 | P21: 100 | Q21: w | R21: 996.96 | S21: 1041 | T21: 996.96,1041 | V21: 1 | W21: 53 | X21: w | Y21: 993.09 | Z21: 1020.91 | AA21: 993.09,1020.91 | AC21: 1 | AD21: 44 | AE21: w | AF21: 1003.32 | AG21: 1023.35 | AH21: 1003.32,1023.35 | AJ21: 2 | AM21: 1000 | AN21: 1040 | AO21: PL 1000,1040 | AQ21: 2 | AT21: 1000 | AU21: 1040 | AV21: PL 1000,1040 | AX21: 1 | AY21: 67 | AZ21: s | BA21: 996.78 | BB21: 1015.77 | BC21: 996.78,1015.77 | BE21: 0 | BF21: 20 | BG21: w | BH21: 1245.46 | BI21: 803.96 | BJ21: 1245.46,803.96 | BL21: 1 | BM21: 25 | BN21: w | BO21: 1000.1 | BP21: 1025.7 | BQ21: 1000.1,1025.7 | BS21: 2 | BV21: 1000 | BW21: 1040 | BX21: PL 1000,1040 | BZ21: 3 | CA21: 15 | CB21: s | CC21: 1000 | CD21: 1059.85 | CE21: 1000,1059.85 | CG21: 0 | CH21: 320 | CI21: a | CJ21: 1364.83 | CK21: 695.68 | CL21: 1364.83,695.68 | CN21: 2 | CQ21: 1000 | CR21: 1040 | CS21: PL 1000,1040 | CU21: 2 | CV21: 10 | CW21: d | CX21: 1000.1 | CY21: 1044.28 | CZ21: 1000.1,1044.28 | DB21: 3 | DC21: 16 | DD21: S | DE21: 1000 | DF21: 1059.84 | DG21: 1000,1059.84 | DI21: 0 | DJ21: 145 | DK21: w | DL21: 1479.46 | DM21: 605.59 | DN21: 1479.46,605.59 | DP21: 2 | DS21: 1000 | DT21: 1040 | DU21: PL 1000,1040 | DW21: 1 | DX21: 443 | DY21: s | DZ21: 1003.07 | EA21: 1019.98 | EB21: 1003.07,1019.98 | ED21: 3 | EE21: 15 | EF21: s | EG21: 1000 | EH21: 1059.85 | EI21: 1000,1059.85 | EK21: 1 | EL21: 32 | EM21: w | EN21: 1003.37 | EO21: 1023.27 | EP21: 1003.37,1023.27 | ER21: 2 | EU21: 1000 | EV21: 1040 | EW21: PL 1000,1040 | EY21: 0 | EZ21: 14 | FA21: d | FB21: 1645.25 | FC21: 403.63 | FD21: 1645.25,403.63 | FF21: 0 | FG21: 226 | FH21: d | FI21: 1701.48 | FJ21: 408.17 | FK21: 1701.48,408.17 | FM21: 0 | FN21: 14 | FO21: d | FP21: 1705.25 | FQ21: 403.63 | FR21: 1705.25,403.63 | FT21: 0 | FU21: 226 | FV21: d | FW21: 1761.48 | FX21: 408.17 | FY21: 1761.48,408.17 | GA21: 0 | GB21: 14 | GC21: d | GD21: 1765.25 | GE21: 403.63 | GF21: 1765.25,403.63 | GH21: 0 | GI21: 226 | GJ21: d | GK21: 1821.48 | GL21: 408.17 | GM21: 1821.48,408.17 | GO21: 0 | GP21: 14 | GQ21: d | GR21: 1825.25 | GS21: 403.63 | GT21: 1825.25,403.63 | GV21: 0 | GW21: 226 | GX21: d | GY21: 1881.48 | GZ21: 408.17 | HA21: 1881.48,408.17 | HC21: 0 | HD21: 14 | HE21: d | HF21: 1885.25 | HG21: 403.63 | HH21: 1885.25,403.63 | HJ21: 0 | HK21: 226 | HL21: d | HM21: 1941.48 | HN21: 408.17 | HO21: 1941.48,408.17 | HQ21: 0 | HR21: 14 | HS21: d | HT21: 1945.25 | HU21: 403.63 | HV21: 1945.25,403.63 | HX21: 0 | HY21: 226 | HZ21: d | IA21: 2001.48 | IB21: 408.17 | IC21: 2001.48,408.17 | IE21: 0 | IF21: 14 | IG21: d | IH21: 2005.25 | II21: 403.63 | IJ21: 2005.25,403.63 | IL21: 0 | IM21: 226 | IN21: d | IO21: 2061.48 | IP21: 408.17 | IQ21: 2061.48,408.17 | IS21: 0 | IT21: 14 | IU21: d | IV21: 2065.25 | IW21: 403.63 | IX21: 2065.25,403.63 | IZ21: 0 | JA21: 226 | JB21: d | JC21: 2121.48 | JD21: 408.17 | JE21: 2121.48,408.17 | JG21: 0 | JH21: 14 | JI21: d | JJ21: 2125.25 | JK21: 403.63 | JL21: 2125.25,403.63 | JN21: 0 | JO21: 226 | JP21: d | JQ21: 2181.48 | JR21: 408.17 | JS21: 2181.48,408.17 | JU21: 0 | JV21: 14 | JW21: d | JX21: 2185.25 | JY21: 403.63 | JZ21: 2185.25,403.63 | KB21: 0 | KC21: 226 | KD21: d | KE21: 2241.48 | KF21: 408.17 | KG21: 2241.48,408.17 | KI21: 0 | KJ21: 14 | KK21: d | KL21: 2245.25 | KM21: 403.63 | KN21: 2245.25,403.63 | KP21: 0 | KQ21: 226 | KR21: d | KS21: 2301.48 | KT21: 408.17 | KU21: 2301.48,408.17 | KW21: 0 | KX21: 14 | KY21: d | KZ21: 2305.25 | LA21: 403.63 | LB21: 2305.25,403.63 | LD21: 0 | LE21: 226 | LF21: d | LG21: 2361.48 | LH21: 408.17 | LI21: 2361.48,408.17 | LK21: 0 | LL21: 226 | LM21: d | LN21: 2391.48 | LO21: 408.17 | LP21: 2391.48,408.17 | LR21: 0 | LS21: 226 | LT21: d | LU21: 2421.48 | LV21: 408.17 | LW21: 2421.48,408.17 | LY21: 0 | LZ21: 226 | MA21: d | MB21: 2451.48 | MC21: 408.17 | MD21: 2451.48,408.17 | MF21: 0 | MG21: 226 | MH21: d | MI21: 2481.48 | MJ21: 408.17 | MK21: 2481.48,408.17
A22: 0 | B22: 125 | C22: s | D22: 1011.51 | E22: 1000.55 | F22: 1011.51,1000.55 | H22: 0 | I22: 209 | J22: d | K22: 1024.93 | L22: 1008.56 | M22: 1024.93,1008.56 | O22: 2 | P22: 304 | Q22: d | R22: 1000 | S22: 1041 | T22: 1000,1041 | V22: 1 | W22: 30 | X22: a | Y22: 992.79 | Z22: 1020.91 | AA22: 992.79,1020.91 | AC22: 1 | AD22: 208 | AE22: d | AF22: 1005.4 | AG22: 1023.35 | AH22: 1005.4,1023.35 | AJ22: 2 | AK22: 216 | AL22: a | AM22: 997.84 | AN22: 1040 | AO22: 997.84,1040 | AQ22: 2 | AR22: 151 | AS22: w | AT22: 1000 | AU22: 1041.51 | AV22: 1000,1041.51 | AX22: 1 | AY22: 212 | AZ22: d | BA22: 998.9 | BB22: 1015.77 | BC22: 998.9,1015.77 | BE22: 0 | BF22: 111 | BG22: d | BH22: 1246.57 | BI22: 803.96 | BJ22: 1246.57,803.96 | BL22: 1 | BM22: 175 | BN22: d | BO22: 1001.85 | BP22: 1025.7 | BQ22: 1001.85,1025.7 | BS22: 2 | BT22: 43 | BU22: w | BV22: 1000 | BW22: 1040.43 | BX22: 1000,1040.43 | BZ22: 3 | CA22: 50 | CB22: a | CC22: 999.5 | CD22: 1059.85 | CE22: 999.5,1059.85 | CG22: 0 | CH22: 25 | CI22: s | CJ22: 1364.83 | CK22: 695.43 | CL22: 1364.83,695.43 | CN22: 2 | CO22: 229 | CP22: w | CQ22: 1000 | CR22: 1042.29 | CS22: 1000,1042.29 | CU22: 2 | CV22: 26 | CW22: w | CX22: 1000.1 | CY22: 1044.54 | CZ22: 1000.1,1044.54 | DB22: 3 | DC22: 52 | DD22: A | DE22: 999.48 | DF22: 1059.84 | DG22: 999.48,1059.84 | DI22: 0 | DJ22: 281 | DK22: d | DL22: 1482.27 | DM22: 605.59 | DN22: 1482.27,605.59 | DP22: 2 | DQ22: 231 | DR22: w | DS22: 1000 | DT22: 1042.31 | DU22: 1000,1042.31 | DW22: 1 | DX22: 306 | DY22: a | DZ22: 1000.01 | EA22: 1019.98 | EB22: 1000.01,1019.98 C | ED22: 3 | EE22: 51 | EF22: a | EG22: 999.49 | EH22: 1059.85 | EI22: 999.49,1059.85 | EK22: 1 | EL22: 207 | EM22: d | EN22: 1005.44 | EO22: 1023.27 | EP22: 1005.44,1023.27 | ER22: 2 | ES22: 234 | ET22: w | EU22: 1000 | EV22: 1042.34 | EW22: 1000,1042.34 | EY22: 0 | EZ22: 26 | FA22: w | FB22: 1645.25 | FC22: 403.89 | FD22: 1645.25,403.89 | FF22: 0 | FG22: 140 | FH22: w | FI22: 1701.48 | FJ22: 409.57 | FK22: 1701.48,409.57 | FM22: 0 | FN22: 26 | FO22: w | FP22: 1705.25 | FQ22: 403.89 | FR22: 1705.25,403.89 | FT22: 0 | FU22: 140 | FV22: w | FW22: 1761.48 | FX22: 409.57 | FY22: 1761.48,409.57 | GA22: 0 | GB22: 26 | GC22: w | GD22: 1765.25 | GE22: 403.89 | GF22: 1765.25,403.89 | GH22: 0 | GI22: 140 | GJ22: w | GK22: 1821.48 | GL22: 409.57 | GM22: 1821.48,409.57 | GO22: 0 | GP22: 26 | GQ22: w | GR22: 1825.25 | GS22: 403.89 | GT22: 1825.25,403.89 | GV22: 0 | GW22: 140 | GX22: w | GY22: 1881.48 | GZ22: 409.57 | HA22: 1881.48,409.57 | HC22: 0 | HD22: 26 | HE22: w | HF22: 1885.25 | HG22: 403.89 | HH22: 1885.25,403.89 | HJ22: 0 | HK22: 140 | HL22: w | HM22: 1941.48 | HN22: 409.57 | HO22: 1941.48,409.57 | HQ22: 0 | HR22: 26 | HS22: w | HT22: 1945.25 | HU22: 403.89 | HV22: 1945.25,403.89 | HX22: 0 | HY22: 140 | HZ22: w | IA22: 2001.48 | IB22: 409.57 | IC22: 2001.48,409.57 | IE22: 0 | IF22: 26 | IG22: w | IH22: 2005.25 | II22: 403.89 | IJ22: 2005.25,403.89 | IL22: 0 | IM22: 140 | IN22: w | IO22: 2061.48 | IP22: 409.57 | IQ22: 2061.48,409.57 | IS22: 0 | IT22: 26 | IU22: w | IV22: 2065.25 | IW22: 403.89 | IX22: 2065.25,403.89 | IZ22: 0 | JA22: 140 | JB22: w | JC22: 2121.48 | JD22: 409.57 | JE22: 2121.48,409.57 | JG22: 0 | JH22: 26 | JI22: w | JJ22: 2125.25 | JK22: 403.89 | JL22: 2125.25,403.89 | JN22: 0 | JO22: 140 | JP22: w | JQ22: 2181.48 | JR22: 409.57 | JS22: 2181.48,409.57 | JU22: 0 | JV22: 26 | JW22: w | JX22: 2185.25 | JY22: 403.89 | JZ22: 2185.25,403.89 | KB22: 0 | KC22: 140 | KD22: w | KE22: 2241.48 | KF22: 409.57 | KG22: 2241.48,409.57 | KI22: 0 | KJ22: 26 | KK22: w | KL22: 2245.25 | KM22: 403.89 | KN22: 2245.25,403.89 | KP22: 0 | KQ22: 140 | KR22: w | KS22: 2301.48 | KT22: 409.57 | KU22: 2301.48,409.57 | KW22: 0 | KX22: 26 | KY22: w | KZ22: 2305.25 | LA22: 403.89 | LB22: 2305.25,403.89 | LD22: 0 | LE22: 140 | LF22: w | LG22: 2361.48 | LH22: 409.57 | LI22: 2361.48,409.57 | LK22: 0 | LL22: 140 | LM22: w | LN22: 2391.48 | LO22: 409.57 | LP22: 2391.48,409.57 | LR22: 0 | LS22: 140 | LT22: w | LU22: 2421.48 | LV22: 409.57 | LW22: 2421.48,409.57 | LY22: 0 | LZ22: 140 | MA22: w | MB22: 2451.48 | MC22: 409.57 | MD22: 2451.48,409.57 | MF22: 0 | MG22: 140 | MH22: w | MI22: 2481.48 | MJ22: 409.57 | MK22: 2481.48,409.57
A23: 0 | B23: 401 | C23: a | D23: 1007.5 | E23: 1000.55 | F23: 1007.5,1000.55 | H23: 0 | I23: 26 | J23: s | K23: 1024.93 | L23: 1008.3 | M23: 1024.93,1008.3 | O23: 2 | P23: 100 | Q23: s | R23: 1000 | S23: 1040 | T23: 1000,1040 C | V23: 1 | W23: 285 | X23: w | Y23: 992.79 | Z23: 1023.76 | AA23: 992.79,1023.76 | AC23: 1 | AD23: 44 | AE23: s | AF23: 1005.4 | AG23: 1022.91 | AH23: 1005.4,1022.91 | AJ23: 2 | AK23: 229 | AL23: w | AM23: 997.84 | AN23: 1042.29 | AO23: 997.84,1042.29 | AQ23: 2 | AR23: 336 | AS23: d | AT23: 1003.36 | AU23: 1041.51 | AV23: 1003.36,1041.51 | AX23: 1 | AY23: 99 | AZ23: w | BA23: 998.9 | BB23: 1016.76 | BC23: 998.9,1016.76 | BE23: 0 | BF23: 373 | BG23: s | BH23: 1246.57 | BI23: 800.23 | BJ23: 1246.57,800.23 | BL23: 1 | BM23: 87 | BN23: s | BO23: 1001.85 | BP23: 1024.83 | BQ23: 1001.85,1024.83 | BS23: 2 | BT23: 3 | BU23: a | BV23: 999.97 | BW23: 1040.43 | BX23: 999.97,1040.43 | BZ23: 3 | CA23: 25 | CB23: w | CC23: 999.5 | CD23: 1060.1 | CE23: 999.5,1060.1 | CG23: 0 | CH23: 84 | CI23: d | CJ23: 1365.67 | CK23: 695.43 | CL23: 1365.67,695.43 | CN23: 2 | CO23: 219 | CP23: d | CQ23: 1002.19 | CR23: 1042.29 | CS23: 1002.19,1042.29 | CU23: 2 | CV23: 295 | CW23: d | CX23: 1003.05 | CY23: 1044.54 | CZ23: 1003.05,1044.54 | DB23: 3 | DC23: 26 | DD23: W | DE23: 999.48 | DF23: 1060.1 | DG23: 999.48,1060.1 | DI23: 0 | DJ23: 489 | DK23: s | DL23: 1482.27 | DM23: 600.7 | DN23: 1482.27,600.7 C | DP23: 2 | DQ23: 217 | DR23: d | DS23: 1002.17 | DT23: 1042.31 | DU23: 1002.17,1042.31 | DW23: 2 | DZ23: 1000 | EA23: 1040 | EB23: PL 1000,1040 | ED23: 3 | EE23: 26 | EF23: w | EG23: 999.49 | EH23: 1060.11 | EI23: 999.49,1060.11 | EK23: 1 | EL23: 31 | EM23: s | EN23: 1005.44 | EO23: 1022.96 | EP23: 1005.44,1022.96 | ER23: 2 | ES23: 217 | ET23: d | EU23: 1002.17 | EV23: 1042.34 | EW23: 1002.17,1042.34 | EY23: 0 | EZ23: 326 | FA23: d | FB23: 1648.51 | FC23: 403.89 | FD23: 1648.51,403.89 | FF23: 0 | FG23: 238 | FH23: d | FI23: 1703.86 | FJ23: 409.57 | FK23: 1703.86,409.57 | FM23: 0 | FN23: 326 | FO23: d | FP23: 1708.51 | FQ23: 403.89 | FR23: 1708.51,403.89 | FT23: 0 | FU23: 238 | FV23: d | FW23: 1763.86 | FX23: 409.57 | FY23: 1763.86,409.57 | GA23: 0 | GB23: 326 | GC23: d | GD23: 1768.51 | GE23: 403.89 | GF23: 1768.51,403.89 | GH23: 0 | GI23: 238 | GJ23: d | GK23: 1823.86 | GL23: 409.57 | GM23: 1823.86,409.57 | GO23: 0 | GP23: 326 | GQ23: d | GR23: 1828.51 | GS23: 403.89 | GT23: 1828.51,403.89 | GV23: 0 | GW23: 238 | GX23: d | GY23: 1883.86 | GZ23: 409.57 | HA23: 1883.86,409.57 | HC23: 0 | HD23: 326 | HE23: d | HF23: 1888.51 | HG23: 403.89 | HH23: 1888.51,403.89 | HJ23: 0 | HK23: 238 | HL23: d | HM23: 1943.86 | HN23: 409.57 | HO23: 1943.86,409.57 | HQ23: 0 | HR23: 326 | HS23: d | HT23: 1948.51 | HU23: 403.89 | HV23: 1948.51,403.89 | HX23: 0 | HY23: 238 | HZ23: d | IA23: 2003.86 | IB23: 409.57 | IC23: 2003.86,409.57 | IE23: 0 | IF23: 326 | IG23: d | IH23: 2008.51 | II23: 403.89 | IJ23: 2008.51,403.89 | IL23: 0 | IM23: 238 | IN23: d | IO23: 2063.86 | IP23: 409.57 | IQ23: 2063.86,409.57 | IS23: 0 | IT23: 326 | IU23: d | IV23: 2068.51 | IW23: 403.89 | IX23: 2068.51,403.89 | IZ23: 0 | JA23: 238 | JB23: d | JC23: 2123.86 | JD23: 409.57 | JE23: 2123.86,409.57 | JG23: 0 | JH23: 326 | JI23: d | JJ23: 2128.51 | JK23: 403.89 | JL23: 2128.51,403.89 | JN23: 0 | JO23: 238 | JP23: d | JQ23: 2183.86 | JR23: 409.57 | JS23: 2183.86,409.57 | JU23: 0 | JV23: 326 | JW23: d | JX23: 2188.51 | JY23: 403.89 | JZ23: 2188.51,403.89 | KB23: 0 | KC23: 238 | KD23: d | KE23: 2243.86 | KF23: 409.57 | KG23: 2243.86,409.57 | KI23: 0 | KJ23: 326 | KK23: d | KL23: 2248.51 | KM23: 403.89 | KN23: 2248.51,403.89 | KP23: 0 | KQ23: 238 | KR23: d | KS23: 2303.86 | KT23: 409.57 | KU23: 2303.86,409.57 | KW23: 0 | KX23: 326 | KY23: d | KZ23: 2308.51 | LA23: 403.89 | LB23: 2308.51,403.89 | LD23: 0 | LE23: 238 | LF23: d | LG23: 2363.86 | LH23: 409.57 | LI23: 2363.86,409.57 | LK23: 0 | LL23: 238 | LM23: d | LN23: 2393.86 | LO23: 409.57 | LP23: 2393.86,409.57 | LR23: 0 | LS23: 238 | LT23: d | LU23: 2423.86 | LV23: 409.57 | LW23: 2423.86,409.57 | LY23: 0 | LZ23: 238 | MA23: d | MB23: 2453.86 | MC23: 409.57 | MD23: 2453.86,409.57 | MF23: 0 | MG23: 238 | MH23: d | MI23: 2483.86 | MJ23: 409.57 | MK23: 2483.86,409.57
A24: 0 | B24: 99 | C24: w | D24: 1007.5 | E24: 1001.54 | F24: 1007.5,1001.54 | H24: 0 | I24: 50 | J24: d | K24: 1025.43 | L24: 1008.3 | M24: 1025.43,1008.3 | O24: 3 | R24: 1000 | S24: 1060 | T24: PL 1000,1060 | V24: 1 | W24: 12 | X24: d | Y24: 992.91 | Z24: 1023.76 | AA24: 992.91,1023.76 | AC24: 1 | AD24: 51 | AE24: d | AF24: 1005.91 | AG24: 1022.91 | AH24: 1005.91,1022.91 | AJ24: 2 | AK24: 216 | AL24: d | AM24: 1000 | AN24: 1042.29 | AO24: 1000,1042.29 | AQ24: 2 | AR24: 28 | AS24: s | AT24: 1003.36 | AU24: 1041.23 | AV24: 1003.36,1041.23 | AX24: 1 | AY24: 12 | AZ24: d | BA24: 999.02 | BB24: 1016.76 | BC24: 999.02,1016.76 | BE24: 0 | BF24: 653 | BG24: a | BH24: 1240.04 | BI24: 800.23 | BJ24: 1240.04,800.23 C | BL24: 1 | BM24: 12 | BN24: d | BO24: 1001.97 | BP24: 1024.83 | BQ24: 1001.97,1024.83 | BS24: 2 | BT24: 384 | BU24: w | BV24: 999.97 | BW24: 1044.27 | BX24: 999.97,1044.27 | BZ24: 3 | CA24: 250 | CB24: a | CC24: 997 | CD24: 1060.1 | CE24: 997,1060.1 | CG24: 0 | CH24: 112 | CI24: s | CJ24: 1365.67 | CK24: 694.31 | CL24: 1365.67,694.31 | CN24: 2 | CO24: 212 | CP24: s | CQ24: 1002.19 | CR24: 1040.17 | CS24: 1002.19,1040.17 | CU24: 2 | CV24: 449 | CW24: s | CX24: 1003.05 | CY24: 1040.05 | CZ24: 1003.05,1040.05 | DB24: 3 | DC24: 249 | DD24: A | DE24: 996.99 | DF24: 1060.1 | DG24: 996.99,1060.1 | DI24: 1 | DL24: 1000 | DM24: 1020 | DN24: PL 1000,1020 | DP24: 2 | DQ24: 216 | DR24: s | DS24: 1002.17 | DT24: 1040.15 | DU24: 1002.17,1040.15 | DW24: 2 | DX24: 159 | DY24: w | DZ24: 1000 | EA24: 1041.59 | EB24: 1000,1041.59 | ED24: 3 | EE24: 250 | EF24: a | EG24: 996.99 | EH24: 1060.11 | EI24: 996.99,1060.11 | EK24: 1 | EL24: 50 | EM24: d | EN24: 1005.94 | EO24: 1022.96 | EP24: 1005.94,1022.96 | ER24: 2 | ES24: 214 | ET24: s | EU24: 1002.17 | EV24: 1040.2 | EW24: 1002.17,1040.2 | EY24: 0 | EZ24: 134 | FA24: w | FB24: 1648.51 | FC24: 405.23 | FD24: 1648.51,405.23 | FF24: 0 | FG24: 111 | FH24: s | FI24: 1703.86 | FJ24: 408.46 | FK24: 1703.86,408.46 | FM24: 0 | FN24: 134 | FO24: w | FP24: 1708.51 | FQ24: 405.23 | FR24: 1708.51,405.23 | FT24: 0 | FU24: 111 | FV24: s | FW24: 1763.86 | FX24: 408.46 | FY24: 1763.86,408.46 | GA24: 0 | GB24: 134 | GC24: w | GD24: 1768.51 | GE24: 405.23 | GF24: 1768.51,405.23 | GH24: 0 | GI24: 111 | GJ24: s | GK24: 1823.86 | GL24: 408.46 | GM24: 1823.86,408.46 | GO24: 0 | GP24: 134 | GQ24: w | GR24: 1828.51 | GS24: 405.23 | GT24: 1828.51,405.23 | GV24: 0 | GW24: 111 | GX24: s | GY24: 1883.86 | GZ24: 408.46 | HA24: 1883.86,408.46 | HC24: 0 | HD24: 134 | HE24: w | HF24: 1888.51 | HG24: 405.23 | HH24: 1888.51,405.23 | HJ24: 0 | HK24: 111 | HL24: s | HM24: 1943.86 | HN24: 408.46 | HO24: 1943.86,408.46 | HQ24: 0 | HR24: 134 | HS24: w | HT24: 1948.51 | HU24: 405.23 | HV24: 1948.51,405.23 | HX24: 0 | HY24: 111 | HZ24: s | IA24: 2003.86 | IB24: 408.46 | IC24: 2003.86,408.46 | IE24: 0 | IF24: 134 | IG24: w | IH24: 2008.51 | II24: 405.23 | IJ24: 2008.51,405.23 | IL24: 0 | IM24: 111 | IN24: s | IO24: 2063.86 | IP24: 408.46 | IQ24: 2063.86,408.46 | IS24: 0 | IT24: 134 | IU24: w | IV24: 2068.51 | IW24: 405.23 | IX24: 2068.51,405.23 | IZ24: 0 | JA24: 111 | JB24: s | JC24: 2123.86 | JD24: 408.46 | JE24: 2123.86,408.46 | JG24: 0 | JH24: 134 | JI24: w | JJ24: 2128.51 | JK24: 405.23 | JL24: 2128.51,405.23 | JN24: 0 | JO24: 111 | JP24: s | JQ24: 2183.86 | JR24: 408.46 | JS24: 2183.86,408.46 | JU24: 0 | JV24: 134 | JW24: w | JX24: 2188.51 | JY24: 405.23 | JZ24: 2188.51,405.23 | KB24: 0 | KC24: 111 | KD24: s | KE24: 2243.86 | KF24: 408.46 | KG24: 2243.86,408.46 | KI24: 0 | KJ24: 134 | KK24: w | KL24: 2248.51 | KM24: 405.23 | KN24: 2248.51,405.23 | KP24: 0 | KQ24: 111 | KR24: s | KS24: 2303.86 | KT24: 408.46 | KU24: 2303.86,408.46 | KW24: 0 | KX24: 134 | KY24: w | KZ24: 2308.51 | LA24: 405.23 | LB24: 2308.51,405.23 | LD24: 0 | LE24: 111 | LF24: s | LG24: 2363.86 | LH24: 408.46 | LI24: 2363.86,408.46 | LK24: 0 | LL24: 111 | LM24: s | LN24: 2393.86 | LO24: 408.46 | LP24: 2393.86,408.46 | LR24: 0 | LS24: 111 | LT24: s | LU24: 2423.86 | LV24: 408.46 | LW24: 2423.86,408.46 | LY24: 0 | LZ24: 111 | MA24: s | MB24: 2453.86 | MC24: 408.46 | MD24: 2453.86,408.46 | MF24: 0 | MG24: 111 | MH24: s | MI24: 2483.86 | MJ24: 408.46 | MK24: 2483.86,408.46
A25: 0 | B25: 12 | C25: d | D25: 1007.62 | E25: 1001.54 | F25: 1007.62,1001.54 | H25: 0 | I25: 25 | J25: w | K25: 1025.43 | L25: 1008.55 | M25: 1025.43,1008.55 | O25: 3 | P25: 382 | Q25: w | R25: 1000 | S25: 1063.82 | T25: 1000,1063.82 | V25: 1 | W25: 21 | X25: w | Y25: 992.91 | Z25: 1023.97 | AA25: 992.91,1023.97 | AC25: 1 | AD25: 26 | AE25: w | AF25: 1005.91 | AG25: 1023.17 | AH25: 1005.91,1023.17 | AJ25: 2 | AK25: 229 | AL25: s | AM25: 1000 | AN25: 1040 | AO25: 1000,1040 C | AQ25: 2 | AR25: 22 | AS25: a | AT25: 1003.14 | AU25: 1041.23 | AV25: 1003.14,1041.23 | AX25: 1 | AY25: 186 | AZ25: s | BA25: 999.02 | BB25: 1014.9 | BC25: 999.02,1014.9 | BE25: 1 | BH25: 1000 | BI25: 1020 | BJ25: PL 1000,1020 | BL25: 1 | BM25: 106 | BN25: w | BO25: 1001.97 | BP25: 1025.89 | BQ25: 1001.97,1025.89 | BS25: 2 | BT25: 14 | BU25: d | BV25: 1000.11 | BW25: 1044.27 | BX25: 1000.11,1044.27 | BZ25: 3 | CA25: 27 | CB25: s | CC25: 997 | CD25: 1059.83 | CE25: 997,1059.83 | CG25: 0 | CH25: 480 | CI25: a | CJ25: 1360.87 | CK25: 694.31 | CL25: 1360.87,694.31 | CN25: 2 | CO25: 32 | CP25: a | CQ25: 1001.87 | CR25: 1040.17 | CS25: 1001.87,1040.17 | CU25: 2 | CV25: 307 | CW25: a | CX25: 999.98 | CY25: 1040.05 | CZ25: 999.98,1040.05 C | DB25: 3 | DC25: 20 | DD25: S | DE25: 996.99 | DF25: 1059.9 | DG25: 996.99,1059.9 | DI25: 1 | DJ25: 481 | DK25: w | DL25: 1000 | DM25: 1024.81 | DN25: 1000,1024.81 | DP25: 2 | DQ25: 30 | DR25: a | DS25: 1001.87 | DT25: 1040.15 | DU25: 1001.87,1040.15 | DW25: 2 | DX25: 337 | DY25: d | DZ25: 1003.37 | EA25: 1041.59 | EB25: 1003.37,1041.59 | ED25: 3 | EE25: 26 | EF25: s | EG25: 996.99 | EH25: 1059.85 | EI25: 996.99,1059.85 | EK25: 1 | EL25: 15 | EM25: w | EN25: 1005.94 | EO25: 1023.11 | EP25: 1005.94,1023.11 | ER25: 2 | ES25: 33 | ET25: a | EU25: 1001.84 | EV25: 1040.2 | EW25: 1001.84,1040.2 | EY25: 0 | EZ25: 403 | FA25: d | FB25: 1652.54 | FC25: 405.23 | FD25: 1652.54,405.23 C | FF25: 0 | FG25: 12 | FH25: a | FI25: 1703.74 | FJ25: 408.46 | FK25: 1703.74,408.46 | FM25: 0 | FN25: 403 | FO25: d | FP25: 1712.54 | FQ25: 405.23 | FR25: 1712.54,405.23 C | FT25: 0 | FU25: 12 | FV25: a | FW25: 1763.74 | FX25: 408.46 | FY25: 1763.74,408.46 | GA25: 0 | GB25: 403 | GC25: d | GD25: 1772.54 | GE25: 405.23 | GF25: 1772.54,405.23 C | GH25: 0 | GI25: 12 | GJ25: a | GK25: 1823.74 | GL25: 408.46 | GM25: 1823.74,408.46 | GO25: 0 | GP25: 403 | GQ25: d | GR25: 1832.54 | GS25: 405.23 | GT25: 1832.54,405.23 C | GV25: 0 | GW25: 12 | GX25: a | GY25: 1883.74 | GZ25: 408.46 | HA25: 1883.74,408.46 | HC25: 0 | HD25: 403 | HE25: d | HF25: 1892.54 | HG25: 405.23 | HH25: 1892.54,405.23 C | HJ25: 0 | HK25: 12 | HL25: a | HM25: 1943.74 | HN25: 408.46 | HO25: 1943.74,408.46 | HQ25: 0 | HR25: 403 | HS25: d | HT25: 1952.54 | HU25: 405.23 | HV25: 1952.54,405.23 C | HX25: 0 | HY25: 12 | HZ25: a | IA25: 2003.74 | IB25: 408.46 | IC25: 2003.74,408.46 | IE25: 0 | IF25: 403 | IG25: d | IH25: 2012.54 | II25: 405.23 | IJ25: 2012.54,405.23 C | IL25: 0 | IM25: 12 | IN25: a | IO25: 2063.74 | IP25: 408.46 | IQ25: 2063.74,408.46 | IS25: 0 | IT25: 403 | IU25: d | IV25: 2072.54 | IW25: 405.23 | IX25: 2072.54,405.23 C | IZ25: 0 | JA25: 12 | JB25: a | JC25: 2123.74 | JD25: 408.46 | JE25: 2123.74,408.46 | JG25: 0 | JH25: 403 | JI25: d | JJ25: 2132.54 | JK25: 405.23 | JL25: 2132.54,405.23 C | JN25: 0 | JO25: 12 | JP25: a | JQ25: 2183.74 | JR25: 408.46 | JS25: 2183.74,408.46 | JU25: 0 | JV25: 403 | JW25: d | JX25: 2192.54 | JY25: 405.23 | JZ25: 2192.54,405.23 C | KB25: 0 | KC25: 12 | KD25: a | KE25: 2243.74 | KF25: 408.46 | KG25: 2243.74,408.46 | KI25: 0 | KJ25: 403 | KK25: d | KL25: 2252.54 | KM25: 405.23 | KN25: 2252.54,405.23 C | KP25: 0 | KQ25: 12 | KR25: a | KS25: 2303.74 | KT25: 408.46 | KU25: 2303.74,408.46 | KW25: 0 | KX25: 403 | KY25: d | KZ25: 2312.54 | LA25: 405.23 | LB25: 2312.54,405.23 C | LD25: 0 | LE25: 12 | LF25: a | LG25: 2363.74 | LH25: 408.46 | LI25: 2363.74,408.46 | LK25: 0 | LL25: 12 | LM25: a | LN25: 2393.74 | LO25: 408.46 | LP25: 2393.74,408.46 | LR25: 0 | LS25: 12 | LT25: a | LU25: 2423.74 | LV25: 408.46 | LW25: 2423.74,408.46 | LY25: 0 | LZ25: 12 | MA25: a | MB25: 2453.74 | MC25: 408.46 | MD25: 2453.74,408.46 | MF25: 0 | MG25: 12 | MH25: a | MI25: 2483.74 | MJ25: 408.46 | MK25: 2483.74,408.46
A26: =IF(AND(B25="",B26=""),"",IF(AND(B25>0,B26="",B27>0),1+A25,IF(AND(B25="",B26>0),A25,IF(AND(B25>0,B26>0),A25,"0")))) -> 0 | B26: 50 | C26: w | D26: 1007.62 | E26: 1002.04 | F26: 1007.62,1002.04 | H26: 0 | I26: 176 | J26: d | K26: 1027.19 | L26: 1008.55 | M26: 1027.19,1008.55 | O26: 3 | P26: 14 | Q26: d | R26: 1000.14 | S26: 1063.82 | T26: 1000.14,1063.82 | V26: 1 | W26: 250 | X26: d | Y26: 995.41 | Z26: 1023.97 | AA26: 995.41,1023.97 | AC26: 1 | AD26: 106 | AE26: d | AF26: 1006.97 | AG26: 1023.17 | AH26: 1006.97,1023.17 | AJ26: 3 | AM26: 1000 | AN26: 1060 | AO26: PL 1000,1060 | AQ26: 2 | AR26: 123 | AS26: s | AT26: 1003.14 | AU26: 1040 | AV26: 1003.14,1040 | AX26: 1 | AY26: 159 | AZ26: d | BA26: 1000.61 | BB26: 1014.9 | BC26: 1000.61,1014.9 | BE26: 1 | BF26: 194 | BG26: w | BH26: 1000 | BI26: 1021.94 | BJ26: 1000,1021.94 | BL26: 1 | BM26: 271 | BN26: d | BO26: 1004.68 | BP26: 1025.89 | BQ26: 1004.68,1025.89 | BS26: 2 | BT26: 25 | BU26: w | BV26: 1000.11 | BW26: 1044.52 | BX26: 1000.11,1044.52 | BZ26: 3 | CA26: 15 | CB26: a | CC26: 996.85 | CD26: 1059.83 | CE26: 996.85,1059.83 | CG26: 0 | CH26: 113 | CI26: w | CJ26: 1360.87 | CK26: 695.44 | CL26: 1360.87,695.44 | CN26: 2 | CO26: 20 | CP26: s | CQ26: 1001.87 | CR26: 1039.97 | CS26: 1001.87,1039.97 | CU26: 3 | CX26: 1000 | CY26: 1060 | CZ26: PL 1000,1060 | DB26: 3 | DC26: 17 | DD26: A | DE26: 996.82 | DF26: 1059.9 | DG26: 996.82,1059.9 | DI26: 1 | DJ26: 297 | DK26: d | DL26: 1002.97 | DM26: 1024.81 | DN26: 1002.97,1024.81 | DP26: 2 | DQ26: 20 | DR26: s | DS26: 1001.87 | DT26: 1039.95 | DU26: 1001.87,1039.95 | DW26: 2 | DX26: 31 | DY26: s | DZ26: 1003.37 | EA26: 1041.28 | EB26: 1003.37,1041.28 | ED26: 3 | EE26: 14 | EF26: a | EG26: 996.85 | EH26: 1059.85 | EI26: 996.85,1059.85 | EK26: 1 | EL26: 109 | EM26: d | EN26: 1007.03 | EO26: 1023.11 | EP26: 1007.03,1023.11 | ER26: 2 | ES26: 18 | ET26: s | EU26: 1001.84 | EV26: 1040.02 | EW26: 1001.84,1040.02 | EY26: 1 | FB26: 1000 | FC26: 1020 | FD26: PL 1000,1020 | FF26: 0 | FG26: 50 | FH26: s | FI26: 1703.74 | FJ26: 407.96 | FK26: 1703.74,407.96 | FM26: 1 | FP26: 1000 | FQ26: 1020 | FR26: PL 1000,1020 | FT26: 0 | FU26: 50 | FV26: s | FW26: 1763.74 | FX26: 407.96 | FY26: 1763.74,407.96 | GA26: 1 | GD26: 1000 | GE26: 1020 | GF26: PL 1000,1020 | GH26: 0 | GI26: 50 | GJ26: s | GK26: 1823.74 | GL26: 407.96 | GM26: 1823.74,407.96 | GO26: 1 | GR26: 1000 | GS26: 1020 | GT26: PL 1000,1020 | GV26: 0 | GW26: 50 | GX26: s | GY26: 1883.74 | GZ26: 407.96 | HA26: 1883.74,407.96 | HC26: 1 | HF26: 1000 | HG26: 1020 | HH26: PL 1000,1020 | HJ26: 0 | HK26: 50 | HL26: s | HM26: 1943.74 | HN26: 407.96 | HO26: 1943.74,407.96 | HQ26: 1 | HT26: 1000 | HU26: 1020 | HV26: PL 1000,1020 | HX26: 0 | HY26: 50 | HZ26: s | IA26: 2003.74 | IB26: 407.96 | IC26: 2003.74,407.96 | IE26: 1 | IH26: 1000 | II26: 1020 | IJ26: PL 1000,1020 | IL26: 0 | IM26: 50 | IN26: s | IO26: 2063.74 | IP26: 407.96 | IQ26: 2063.74,407.96 | IS26: 1 | IV26: 1000 | IW26: 1020 | IX26: PL 1000,1020 | IZ26: 0 | JA26: 50 | JB26: s | JC26: 2123.74 | JD26: 407.96 | JE26: 2123.74,407.96 | JG26: 1 | JJ26: 1000 | JK26: 1020 | JL26: PL 1000,1020 | JN26: 0 | JO26: 50 | JP26: s | JQ26: 2183.74 | JR26: 407.96 | JS26: 2183.74,407.96 | JU26: 1 | JX26: 1000 | JY26: 1020 | JZ26: PL 1000,1020 | KB26: 0 | KC26: 50 | KD26: s | KE26: 2243.74 | KF26: 407.96 | KG26: 2243.74,407.96 | KI26: 1 | KL26: 1000 | KM26: 1020 | KN26: PL 1000,1020 | KP26: 0 | KQ26: 50 | KR26: s | KS26: 2303.74 | KT26: 407.96 | KU26: 2303.74,407.96 | KW26: 1 | KZ26: 1000 | LA26: 1020 | LB26: PL 1000,1020 | LD26: 0 | LE26: 50 | LF26: s | LG26: 2363.74 | LH26: 407.96 | LI26: 2363.74,407.96 | LK26: 0 | LL26: 50 | LM26: s | LN26: 2393.74 | LO26: 407.96 | LP26: 2393.74,407.96 | LR26: 0 | LS26: 50 | LT26: s | LU26: 2423.74 | LV26: 407.96 | LW26: 2423.74,407.96 | LY26: 0 | LZ26: 50 | MA26: s | MB26: 2453.74 | MC26: 407.96 | MD26: 2453.74,407.96 | MF26: 0 | MG26: 50 | MH26: s | MI26: 2483.74 | MJ26: 407.96 | MK26: 2483.74,407.96
A27: 0 | B27: 50 | C27: a | D27: 1007.12 | E27: 1002.04 | F27: 1007.12,1002.04 | H27: 0 | I27: 167 | J27: w | K27: 1027.19 | L27: 1010.22 | M27: 1027.19,1010.22 | O27: 3 | P27: 26 | Q27: w | R27: 1000.14 | S27: 1064.08 | T27: 1000.14,1064.08 | V27: 1 | W27: 23 | X27: s | Y27: 995.41 | Z27: 1023.74 | AA27: 995.41,1023.74 | AC27: 1 | AD27: 372 | AE27: s | AF27: 1006.97 | AG27: 1019.45 | AH27: 1006.97,1019.45 | AJ27: 3 | AK27: 385 | AL27: w | AM27: 1000 | AN27: 1063.85 | AO27: 1000,1063.85 | AQ27: 2 | AR27: 315 | AS27: a | AT27: 999.99 | AU27: 1040 | AV27: 999.99,1040 C | AX27: 1 | AY27: 84 | AZ27: w | BA27: 1000.61 | BB27: 1015.74 | BC27: 1000.61,1015.74 | BE27: 1 | BF27: 19 | BG27: a | BH27: 999.81 | BI27: 1021.94 | BJ27: 999.81,1021.94 | BL27: 1 | BM27: 47 | BN27: s | BO27: 1004.68 | BP27: 1025.42 | BQ27: 1004.68,1025.42 | BS27: 2 | BT27: 295 | BU27: d | BV27: 1003.06 | BW27: 1044.52 | BX27: 1003.06,1044.52 | BZ27: 3 | CA27: 231 | CB27: s | CC27: 996.85 | CD27: 1057.52 | CE27: 996.85,1057.52 | CG27: 0 | CH27: 2 | CI27: d | CJ27: 1360.89 | CK27: 695.44 | CL27: 1360.89,695.44 | CN27: 2 | CO27: 187 | CP27: a | CQ27: 1000 | CR27: 1039.97 | CS27: 1000,1039.97 C | CU27: 3 | CV27: 154 | CW27: w | CX27: 1000 | CY27: 1061.54 | CZ27: 1000,1061.54 | DB27: 3 | DC27: 202 | DD27: S | DE27: 996.82 | DF27: 1057.88 | DG27: 996.82,1057.88 | DI27: 1 | DJ27: 144 | DK27: s | DL27: 1002.97 | DM27: 1023.37 | DN27: 1002.97,1023.37 | DP27: 2 | DQ27: 187 | DR27: a | DS27: 1000 | DT27: 1039.95 | DU27: 1000,1039.95 C | DW27: 2 | DX27: 18 | DY27: a | DZ27: 1003.19 | EA27: 1041.28 | EB27: 1003.19,1041.28 | ED27: 3 | EE27: 173 | EF27: s | EG27: 996.85 | EH27: 1058.12 | EI27: 996.85,1058.12 | EK27: 1 | EL27: 274 | EM27: s | EN27: 1007.03 | EO27: 1020.37 | EP27: 1007.03,1020.37 | ER27: 2 | ES27: 183 | ET27: a | EU27: 1000.01 | EV27: 1040.02 | EW27: 1000.01,1040.02 C | EY27: 1 | EZ27: 12 | FA27: a | FB27: 999.88 | FC27: 1020 | FD27: 999.88,1020 | FF27: 0 | FG27: 15 | FH27: d | FI27: 1703.89 | FJ27: 407.96 | FK27: 1703.89,407.96 | FM27: 1 | FN27: 12 | FO27: a | FP27: 999.88 | FQ27: 1020 | FR27: 999.88,1020 | FT27: 0 | FU27: 15 | FV27: d | FW27: 1763.89 | FX27: 407.96 | FY27: 1763.89,407.96 | GA27: 1 | GB27: 12 | GC27: a | GD27: 999.88 | GE27: 1020 | GF27: 999.88,1020 | GH27: 0 | GI27: 15 | GJ27: d | GK27: 1823.89 | GL27: 407.96 | GM27: 1823.89,407.96 | GO27: 1 | GP27: 12 | GQ27: a | GR27: 999.88 | GS27: 1020 | GT27: 999.88,1020 | GV27: 0 | GW27: 15 | GX27: d | GY27: 1883.89 | GZ27: 407.96 | HA27: 1883.89,407.96 | HC27: 1 | HD27: 12 | HE27: a | HF27: 999.88 | HG27: 1020 | HH27: 999.88,1020 | HJ27: 0 | HK27: 15 | HL27: d | HM27: 1943.89 | HN27: 407.96 | HO27: 1943.89,407.96 | HQ27: 1 | HR27: 12 | HS27: a | HT27: 999.88 | HU27: 1020 | HV27: 999.88,1020 | HX27: 0 | HY27: 15 | HZ27: d | IA27: 2003.89 | IB27: 407.96 | IC27: 2003.89,407.96 | IE27: 1 | IF27: 12 | IG27: a | IH27: 999.88 | II27: 1020 | IJ27: 999.88,1020 | IL27: 0 | IM27: 15 | IN27: d | IO27: 2063.89 | IP27: 407.96 | IQ27: 2063.89,407.96 | IS27: 1 | IT27: 12 | IU27: a | IV27: 999.88 | IW27: 1020 | IX27: 999.88,1020 | IZ27: 0 | JA27: 15 | JB27: d | JC27: 2123.89 | JD27: 407.96 | JE27: 2123.89,407.96 | JG27: 1 | JH27: 12 | JI27: a | JJ27: 999.88 | JK27: 1020 | JL27: 999.88,1020 | JN27: 0 | JO27: 15 | JP27: d | JQ27: 2183.89 | JR27: 407.96 | JS27: 2183.89,407.96 | JU27: 1 | JV27: 12 | JW27: a | JX27: 999.88 | JY27: 1020 | JZ27: 999.88,1020 | KB27: 0 | KC27: 15 | KD27: d | KE27: 2243.89 | KF27: 407.96 | KG27: 2243.89,407.96 | KI27: 1 | KJ27: 12 | KK27: a | KL27: 999.88 | KM27: 1020 | KN27: 999.88,1020 | KP27: 0 | KQ27: 15 | KR27: d | KS27: 2303.89 | KT27: 407.96 | KU27: 2303.89,407.96 | KW27: 1 | KX27: 12 | KY27: a | KZ27: 999.88 | LA27: 1020 | LB27: 999.88,1020 | LD27: 0 | LE27: 15 | LF27: d | LG27: 2363.89 | LH27: 407.96 | LI27: 2363.89,407.96 | LK27: 0 | LL27: 15 | LM27: d | LN27: 2393.89 | LO27: 407.96 | LP27: 2393.89,407.96 | LR27: 0 | LS27: 15 | LT27: d | LU27: 2423.89 | LV27: 407.96 | LW27: 2423.89,407.96 | LY27: 0 | LZ27: 15 | MA27: d | MB27: 2453.89 | MC27: 407.96 | MD27: 2453.89,407.96 | MF27: 0 | MG27: 15 | MH27: d | MI27: 2483.89 | MJ27: 407.96 | MK27: 2483.89,407.96
A28: 0 | B28: 25 | C28: s | D28: 1007.12 | E28: 1001.79 | F28: 1007.12,1001.79 | H28: 0 | I28: 272 | J28: d | K28: 1029.91 | L28: 1010.22 | M28: 1029.91,1010.22 | O28: 3 | P28: 290 | Q28: d | R28: 1003.04 | S28: 1064.08 | T28: 1003.04,1064.08 | V28: 1 | W28: 50 | X28: d | Y28: 995.91 | Z28: 1023.74 | AA28: 995.91,1023.74 | AC28: 1 | AD28: 652 | AE28: a | AF28: 1000.45 | AG28: 1019.45 | AH28: 1000.45,1019.45 C | AJ28: 3 | AK28: 11 | AL28: d | AM28: 1000.11 | AN28: 1063.85 | AO28: 1000.11,1063.85 | AQ28: 3 | AT28: 1000 | AU28: 1060 | AV28: PL 1000,1060 | AX28: 1 | AY28: 339 | AZ28: d | BA28: 1004 | BB28: 1015.74 | BC28: 1004,1015.74 | BE28: 1 | BF28: 200 | BG28: s | BH28: 999.81 | BI28: 1019.94 | BJ28: 999.81,1019.94 C | BL28: 1 | BM28: 3 | BN28: d | BO28: 1004.71 | BP28: 1025.42 | BQ28: 1004.71,1025.42 | BS28: 2 | BT28: 449 | BU28: s | BV28: 1003.06 | BW28: 1040.03 | BX28: 1003.06,1040.03 | BZ28: 3 | CA28: 32 | CB28: d | CC28: 997.17 | CD28: 1057.52 | CE28: 997.17,1057.52 | CG28: 0 | CH28: 451 | CI28: w | CJ28: 1360.89 | CK28: 699.95 | CL28: 1360.89,699.95 | CN28: 3 | CQ28: 1000 | CR28: 1060 | CS28: PL 1000,1060 | CU28: 3 | CV28: 338 | CW28: d | CX28: 1003.38 | CY28: 1061.54 | CZ28: 1003.38,1061.54 | DB28: 3 | DC28: 33 | DD28: D | DE28: 997.15 | DF28: 1057.88 | DG28: 997.15,1057.88 | DI28: 1 | DJ28: 13 | DK28: a | DL28: 1002.84 | DM28: 1023.37 | DN28: 1002.84,1023.37 | DP28: 3 | DS28: 1000 | DT28: 1060 | DU28: PL 1000,1060 | DW28: 2 | DX28: 136 | DY28: s | DZ28: 1003.19 | EA28: 1039.92 | EB28: 1003.19,1039.92 | ED28: 3 | EE28: 29 | EF28: d | EG28: 997.14 | EH28: 1058.12 | EI28: 997.14,1058.12 | EK28: 1 | EL28: 646 | EM28: a | EN28: 1000.57 | EO28: 1020.37 | EP28: 1000.57,1020.37 C | ER28: 3 | EU28: 1000 | EV28: 1060 | EW28: PL 1000,1060 | EY28: 1 | EZ28: 50 | FA28: s | FB28: 999.88 | FC28: 1019.5 | FD28: 999.88,1019.5 | FF28: 0 | FG28: 383 | FH28: s | FI28: 1703.89 | FJ28: 404.13 | FK28: 1703.89,404.13 | FM28: 1 | FN28: 50 | FO28: s | FP28: 999.88 | FQ28: 1019.5 | FR28: 999.88,1019.5 | FT28: 0 | FU28: 383 | FV28: s | FW28: 1763.89 | FX28: 404.13 | FY28: 1763.89,404.13 | GA28: 1 | GB28: 50 | GC28: s | GD28: 999.88 | GE28: 1019.5 | GF28: 999.88,1019.5 | GH28: 0 | GI28: 383 | GJ28: s | GK28: 1823.89 | GL28: 404.13 | GM28: 1823.89,404.13 | GO28: 1 | GP28: 50 | GQ28: s | GR28: 999.88 | GS28: 1019.5 | GT28: 999.88,1019.5 | GV28: 0 | GW28: 383 | GX28: s | GY28: 1883.89 | GZ28: 404.13 | HA28: 1883.89,404.13 | HC28: 1 | HD28: 50 | HE28: s | HF28: 999.88 | HG28: 1019.5 | HH28: 999.88,1019.5 | HJ28: 0 | HK28: 383 | HL28: s | HM28: 1943.89 | HN28: 404.13 | HO28: 1943.89,404.13 | HQ28: 1 | HR28: 50 | HS28: s | HT28: 999.88 | HU28: 1019.5 | HV28: 999.88,1019.5 | HX28: 0 | HY28: 383 | HZ28: s | IA28: 2003.89 | IB28: 404.13 | IC28: 2003.89,404.13 | IE28: 1 | IF28: 50 | IG28: s | IH28: 999.88 | II28: 1019.5 | IJ28: 999.88,1019.5 | IL28: 0 | IM28: 383 | IN28: s | IO28: 2063.89 | IP28: 404.13 | IQ28: 2063.89,404.13 | IS28: 1 | IT28: 50 | IU28: s | IV28: 999.88 | IW28: 1019.5 | IX28: 999.88,1019.5 | IZ28: 0 | JA28: 383 | JB28: s | JC28: 2123.89 | JD28: 404.13 | JE28: 2123.89,404.13 | JG28: 1 | JH28: 50 | JI28: s | JJ28: 999.88 | JK28: 1019.5 | JL28: 999.88,1019.5 | JN28: 0 | JO28: 383 | JP28: s | JQ28: 2183.89 | JR28: 404.13 | JS28: 2183.89,404.13 | JU28: 1 | JV28: 50 | JW28: s | JX28: 999.88 | JY28: 1019.5 | JZ28: 999.88,1019.5 | KB28: 0 | KC28: 383 | KD28: s | KE28: 2243.89 | KF28: 404.13 | KG28: 2243.89,404.13 | KI28: 1 | KJ28: 50 | KK28: s | KL28: 999.88 | KM28: 1019.5 | KN28: 999.88,1019.5 | KP28: 0 | KQ28: 383 | KR28: s | KS28: 2303.89 | KT28: 404.13 | KU28: 2303.89,404.13 | KW28: 1 | KX28: 50 | KY28: s | KZ28: 999.88 | LA28: 1019.5 | LB28: 999.88,1019.5 | LD28: 0 | LE28: 383 | LF28: s | LG28: 2363.89 | LH28: 404.13 | LI28: 2363.89,404.13 | LK28: 0 | LL28: 383 | LM28: s | LN28: 2393.89 | LO28: 404.13 | LP28: 2393.89,404.13 | LR28: 0 | LS28: 383 | LT28: s | LU28: 2423.89 | LV28: 404.13 | LW28: 2423.89,404.13 | LY28: 0 | LZ28: 383 | MA28: s | MB28: 2453.89 | MC28: 404.13 | MD28: 2453.89,404.13 | MF28: 0 | MG28: 383 | MH28: s | MI28: 2483.89 | MJ28: 404.13 | MK28: 2483.89,404.13
A29: 0 | B29: 249 | C29: a | D29: =IF(AND(B29>0,C29="D"),D28+(B29*0.01),IF(AND(B29>0,C29="A"),D28-(B29*0.01),IF(AND(B29>0,C29="W"),D28,IF(AND(B29>0,C29="S"),D28,IF(AND(B29="",B28>0,B30>0),$D$3,""))))) -> 1004.63 | E29: =IF(AND(B29>0,C29="D"),E28,IF(AND(B29>0,C29="A"),E28,IF(AND(B29>0,C29="W"),E28+(B29*0.01),IF(AND(B29>0,C29="S"),E28-(B29*0.01),IF(AND(B29="",B28>0,B30>0),(A29*20)+$E$3,""))))) -> 1001.79 | F29: 1004.63,1001.79 | H29: 0 | I29: 192 | J29: s | K29: 1029.91 | L29: 1008.3 | M29: 1029.91,1008.3 | O29: 3 | P29: 402 | Q29: s | R29: 1003.04 | S29: 1060.06 | T29: 1003.04,1060.06 | V29: 1 | W29: 17 | X29: w | Y29: 995.91 | Z29: 1023.91 | AA29: 995.91,1023.91 C | AC29: 2 | AF29: 1000 | AG29: 1040 | AH29: PL 1000,1040 | AJ29: 3 | AK29: 23 | AL29: w | AM29: 1000.11 | AN29: 1064.08 | AO29: 1000.11,1064.08 | AQ29: 3 | AR29: 310 | AS29: w | AT29: 1000 | AU29: 1063.1 | AV29: 1000,1063.1 | AX29: 1 | AY29: 30 | AZ29: w | BA29: 1004 | BB29: 1016.04 | BC29: 1004,1016.04 C | BE29: 2 | BH29: 1000 | BI29: 1040 | BJ29: PL 1000,1040 | BL29: 1 | BM29: 274 | BN29: s | BO29: 1004.71 | BP29: 1022.68 | BQ29: 1004.71,1022.68 | BS29: 2 | BT29: 305 | BU29: a | BV29: 1000.01 | BW29: 1040.03 | BX29: 1000.01,1040.03 C | BZ29: 3 | CA29: 108 | CB29: s | CC29: 997.17 | CD29: 1056.44 | CE29: 997.17,1056.44 | CG29: 0 | CH29: 80 | CI29: a | CJ29: 1360.09 | CK29: 699.95 | CL29: 1360.09,699.95 C | CN29: 3 | CO29: 112 | CP29: w | CQ29: 1000 | CR29: 1061.12 | CS29: 1000,1061.12 | CU29: 3 | CV29: 28 | CW29: s | CX29: 1003.38 | CY29: 1061.26 | CZ29: 1003.38,1061.26 | DB29: 3 | DC29: 136 | DD29: S | DE29: 997.15 | DF29: 1056.52 | DG29: 997.15,1056.52 | DI29: 1 | DJ29: 50 | DK29: s | DL29: 1002.84 | DM29: 1022.87 | DN29: 1002.84,1022.87 | DP29: 3 | DQ29: 112 | DR29: w | DS29: 1000 | DT29: 1061.12 | DU29: 1000,1061.12 | DW29: 2 | DX29: 322 | DY29: a | DZ29: 999.97 | EA29: 1039.92 | EB29: 999.97,1039.92 C | ED29: 3 | EE29: 163 | EF29: s | EG29: 997.14 | EH29: 1056.49 | EI29: 997.14,1056.49 | EK29: 2 | EN29: 1000 | EO29: 1040 | EP29: PL 1000,1040 | ER29: 3 | ES29: 111 | ET29: w | EU29: 1000 | EV29: 1061.11 | EW29: 1000,1061.11 | EY29: 1 | EZ29: 50 | FA29: d | FB29: 1000.38 | FC29: 1019.5 | FD29: 1000.38,1019.5 | FF29: 0 | FG29: 14 | FH29: a | FI29: 1703.75 | FJ29: 404.13 | FK29: 1703.75,404.13 | FM29: 1 | FN29: 50 | FO29: d | FP29: 1000.38 | FQ29: 1019.5 | FR29: 1000.38,1019.5 | FT29: 0 | FU29: 14 | FV29: a | FW29: 1763.75 | FX29: 404.13 | FY29: 1763.75,404.13 | GA29: 1 | GB29: 50 | GC29: d | GD29: 1000.38 | GE29: 1019.5 | GF29: 1000.38,1019.5 | GH29: 0 | GI29: 14 | GJ29: a | GK29: 1823.75 | GL29: 404.13 | GM29: 1823.75,404.13 | GO29: 1 | GP29: 50 | GQ29: d | GR29: 1000.38 | GS29: 1019.5 | GT29: 1000.38,1019.5 | GV29: 0 | GW29: 14 | GX29: a | GY29: 1883.75 | GZ29: 404.13 | HA29: 1883.75,404.13 | HC29: 1 | HD29: 50 | HE29: d | HF29: 1000.38 | HG29: 1019.5 | HH29: 1000.38,1019.5 | HJ29: 0 | HK29: 14 | HL29: a | HM29: 1943.75 | HN29: 404.13 | HO29: 1943.75,404.13 | HQ29: 1 | HR29: 50 | HS29: d | HT29: 1000.38 | HU29: 1019.5 | HV29: 1000.38,1019.5 | HX29: 0 | HY29: 14 | HZ29: a | IA29: 2003.75 | IB29: 404.13 | IC29: 2003.75,404.13 | IE29: 1 | IF29: 50 | IG29: d | IH29: 1000.38 | II29: 1019.5 | IJ29: 1000.38,1019.5 | IL29: 0 | IM29: 14 | IN29: a | IO29: 2063.75 | IP29: 404.13 | IQ29: 2063.75,404.13 | IS29: 1 | IT29: 50 | IU29: d | IV29: 1000.38 | IW29: 1019.5 | IX29: 1000.38,1019.5 | IZ29: 0 | JA29: 14 | JB29: a | JC29: 2123.75 | JD29: 404.13 | JE29: 2123.75,404.13 | JG29: 1 | JH29: 50 | JI29: d | JJ29: 1000.38 | JK29: 1019.5 | JL29: 1000.38,1019.5 | JN29: 0 | JO29: 14 | JP29: a | JQ29: 2183.75 | JR29: 404.13 | JS29: 2183.75,404.13 | JU29: 1 | JV29: 50 | JW29: d | JX29: 1000.38 | JY29: 1019.5 | JZ29: 1000.38,1019.5 | KB29: 0 | KC29: 14 | KD29: a | KE29: 2243.75 | KF29: 404.13 | KG29: 2243.75,404.13 | KI29: 1 | KJ29: 50 | KK29: d | KL29: 1000.38 | KM29: 1019.5 | KN29: 1000.38,1019.5 | KP29: 0 | KQ29: 14 | KR29: a | KS29: 2303.75 | KT29: 404.13 | KU29: 2303.75,404.13 | KW29: 1 | KX29: 50 | KY29: d | KZ29: 1000.38 | LA29: 1019.5 | LB29: 1000.38,1019.5 | LD29: 0 | LE29: 14 | LF29: a | LG29: 2363.75 | LH29: 404.13 | LI29: 2363.75,404.13 | LK29: 0 | LL29: 14 | LM29: a | LN29: 2393.75 | LO29: 404.13 | LP29: 2393.75,404.13 | LR29: 0 | LS29: 14 | LT29: a | LU29: 2423.75 | LV29: 404.13 | LW29: 2423.75,404.13 | LY29: 0 | LZ29: 14 | MA29: a | MB29: 2453.75 | MC29: 404.13 | MD29: 2453.75,404.13 | MF29: 0 | MG29: 14 | MH29: a | MI29: 2483.75 | MJ29: 404.13 | MK29: 2483.75,404.13
A30: 0 | B30: 26 | C30: w | D30: 1004.63 | E30: 1002.05 | F30: 1004.63,1002.05 | H30: 0 | I30: 13 | J30: d | K30: 1030.04 | L30: 1008.3 | M30: 1030.04,1008.3 | O30: 3 | P30: 304 | Q30: a | R30: 1000 | S30: 1060.06 | T30: 1000,1060.06 C | V30: 2 | Y30: 1000 | Z30: 1040 | AA30: PL 1000,1040 | AC30: 2 | AD30: 192 | AE30: w | AF30: 1000 | AG30: 1041.92 | AH30: 1000,1041.92 | AJ30: 3 | AK30: 177 | AL30: d | AM30: 1001.88 | AN30: 1064.08 | AO30: 1001.88,1064.08 | AQ30: 3 | AR30: 27 | AS30: d | AT30: 1000.27 | AU30: 1063.1 | AV30: 1000.27,1063.1 | AX30: 2 | BA30: 1000 | BB30: 1040 | BC30: PL 1000,1040 | BE30: 2 | BF30: 193 | BG30: w | BH30: 1000 | BI30: 1041.93 | BJ30: 1000,1041.93 | BL30: 1 | BM30: 14 | BN30: a | BO30: 1004.57 | BP30: 1022.68 | BQ30: 1004.57,1022.68 | BS30: 3 | BV30: 1000 | BW30: 1060 | BX30: PL 1000,1060 | BZ30: 3 | CA30: 34 | CB30: a | CC30: 996.83 | CD30: 1056.44 | CE30: 996.83,1056.44 | CG30: 1 | CJ30: 1000 | CK30: 1020 | CL30: PL 1000,1020 | CN30: 3 | CO30: 15 | CP30: d | CQ30: 1000.15 | CR30: 1061.12 | CS30: 1000.15,1061.12 | CU30: 3 | CV30: 20 | CW30: a | CX30: 1003.18 | CY30: 1061.26 | CZ30: 1003.18,1061.26 | DB30: 3 | DC30: 32 | DD30: A | DE30: 996.83 | DF30: 1056.52 | DG30: 996.83,1056.52 | DI30: 1 | DJ30: 50 | DK30: d | DL30: 1003.34 | DM30: 1022.87 | DN30: 1003.34,1022.87 | DP30: 3 | DQ30: 17 | DR30: d | DS30: 1000.17 | DT30: 1061.12 | DU30: 1000.17,1061.12 | DW30: 3 | DZ30: 1000 | EA30: 1060 | EB30: PL 1000,1060 | ED30: 3 | EE30: 30 | EF30: a | EG30: 996.84 | EH30: 1056.49 | EI30: 996.84,1056.49 | EK30: 2 | EL30: 265 | EM30: a | EN30: 997.35 | EO30: 1040 | EP30: 997.35,1040 | ER30: 3 | ES30: 17 | ET30: d | EU30: 1000.17 | EV30: 1061.11 | EW30: 1000.17,1061.11 | EY30: 1 | EZ30: 25 | FA30: w | FB30: 1000.38 | FC30: 1019.75 | FD30: 1000.38,1019.75 | FF30: 0 | FG30: 51 | FH30: s | FI30: 1703.75 | FJ30: 403.62 | FK30: 1703.75,403.62 | FM30: 1 | FN30: 25 | FO30: w | FP30: 1000.38 | FQ30: 1019.75 | FR30: 1000.38,1019.75 | FT30: 0 | FU30: 51 | FV30: s | FW30: 1763.75 | FX30: 403.62 | FY30: 1763.75,403.62 | GA30: 1 | GB30: 25 | GC30: w | GD30: 1000.38 | GE30: 1019.75 | GF30: 1000.38,1019.75 | GH30: 0 | GI30: 51 | GJ30: s | GK30: 1823.75 | GL30: 403.62 | GM30: 1823.75,403.62 | GO30: 1 | GP30: 25 | GQ30: w | GR30: 1000.38 | GS30: 1019.75 | GT30: 1000.38,1019.75 | GV30: 0 | GW30: 51 | GX30: s | GY30: 1883.75 | GZ30: 403.62 | HA30: 1883.75,403.62 | HC30: 1 | HD30: 25 | HE30: w | HF30: 1000.38 | HG30: 1019.75 | HH30: 1000.38,1019.75 | HJ30: 0 | HK30: 51 | HL30: s | HM30: 1943.75 | HN30: 403.62 | HO30: 1943.75,403.62 | HQ30: 1 | HR30: 25 | HS30: w | HT30: 1000.38 | HU30: 1019.75 | HV30: 1000.38,1019.75 | HX30: 0 | HY30: 51 | HZ30: s | IA30: 2003.75 | IB30: 403.62 | IC30: 2003.75,403.62 | IE30: 1 | IF30: 25 | IG30: w | IH30: 1000.38 | II30: 1019.75 | IJ30: 1000.38,1019.75 | IL30: 0 | IM30: 51 | IN30: s | IO30: 2063.75 | IP30: 403.62 | IQ30: 2063.75,403.62 | IS30: 1 | IT30: 25 | IU30: w | IV30: 1000.38 | IW30: 1019.75 | IX30: 1000.38,1019.75 | IZ30: 0 | JA30: 51 | JB30: s | JC30: 2123.75 | JD30: 403.62 | JE30: 2123.75,403.62 | JG30: 1 | JH30: 25 | JI30: w | JJ30: 1000.38 | JK30: 1019.75 | JL30: 1000.38,1019.75 | JN30: 0 | JO30: 51 | JP30: s | JQ30: 2183.75 | JR30: 403.62 | JS30: 2183.75,403.62 | JU30: 1 | JV30: 25 | JW30: w | JX30: 1000.38 | JY30: 1019.75 | JZ30: 1000.38,1019.75 | KB30: 0 | KC30: 51 | KD30: s | KE30: 2243.75 | KF30: 403.62 | KG30: 2243.75,403.62 | KI30: 1 | KJ30: 25 | KK30: w | KL30: 1000.38 | KM30: 1019.75 | KN30: 1000.38,1019.75 | KP30: 0 | KQ30: 51 | KR30: s | KS30: 2303.75 | KT30: 403.62 | KU30: 2303.75,403.62 | KW30: 1 | KX30: 25 | KY30: w | KZ30: 1000.38 | LA30: 1019.75 | LB30: 1000.38,1019.75 | LD30: 0 | LE30: 51 | LF30: s | LG30: 2363.75 | LH30: 403.62 | LI30: 2363.75,403.62 | LK30: 0 | LL30: 51 | LM30: s | LN30: 2393.75 | LO30: 403.62 | LP30: 2393.75,403.62 | LR30: 0 | LS30: 51 | LT30: s | LU30: 2423.75 | LV30: 403.62 | LW30: 2423.75,403.62 | LY30: 0 | LZ30: 51 | MA30: s | MB30: 2453.75 | MC30: 403.62 | MD30: 2453.75,403.62 | MF30: 0 | MG30: 51 | MH30: s | MI30: 2483.75 | MJ30: 403.62 | MK30: 2483.75,403.62
A31: 0 | B31: 50 | C31: a | D31: 1004.13 | E31: 1002.05 | F31: 1004.13,1002.05 | H31: 0 | I31: 384 | J31: s | K31: 1030.04 | L31: 1004.46 | M31: 1030.04,1004.46 | O31: 4 | R31: 1000 | S31: 1080 | T31: PL 1000,1080 | V31: 2 | W31: 136 | X31: w | Y31: 1000 | Z31: 1041.36 | AA31: 1000,1041.36 | AC31: 2 | AD31: 12 | AE31: a | AF31: 999.88 | AG31: 1041.92 | AH31: 999.88,1041.92 | AJ31: 3 | AK31: 84 | AL31: s | AM31: 1001.88 | AN31: 1063.24 | AO31: 1001.88,1063.24 | AQ31: 3 | AR31: 123 | AS31: w | AT31: 1000.27 | AU31: 1064.33 | AV31: 1000.27,1064.33 | AX31: 2 | AY31: 133 | AZ31: w | BA31: 1000 | BB31: 1041.33 | BC31: 1000,1041.33 | BE31: 2 | BF31: 12 | BG31: a | BH31: 999.88 | BI31: 1041.93 | BJ31: 999.88,1041.93 | BL31: 1 | BM31: 26 | BN31: s | BO31: 1004.57 | BP31: 1022.42 | BQ31: 1004.57,1022.42 | BS31: 3 | BT31: 152 | BU31: w | BV31: 1000 | BW31: 1061.52 | BX31: 1000,1061.52 | BZ31: 3 | CA31: 71 | CB31: s | CC31: 996.83 | CD31: 1055.73 | CE31: 996.83,1055.73 | CG31: 1 | CH31: 180 | CI31: w | CJ31: 1000 | CK31: 1021.8 | CL31: 1000,1021.8 | CN31: 3 | CO31: 50 | CP31: w | CQ31: 1000.15 | CR31: 1061.62 | CS31: 1000.15,1061.62 | CU31: 3 | CV31: 131 | CW31: s | CX31: 1003.18 | CY31: 1059.95 | CZ31: 1003.18,1059.95 | DB31: 3 | DC31: 72 | DD31: S | DE31: 996.83 | DF31: 1055.8 | DG31: 996.83,1055.8 | DI31: 1 | DJ31: 33 | DK31: w | DL31: 1003.34 | DM31: 1023.2 | DN31: 1003.34,1023.2 | DP31: 3 | DQ31: 50 | DR31: w | DS31: 1000.17 | DT31: 1061.62 | DU31: 1000.17,1061.62 | DW31: 3 | DX31: 330 | DY31: w | DZ31: 1000 | EA31: 1063.3 | EB31: 1000,1063.3 | ED31: 3 | EE31: 75 | EF31: s | EG31: 996.84 | EH31: 1055.74 | EI31: 996.84,1055.74 | EK31: 2 | EL31: 228 | EM31: w | EN31: 997.35 | EO31: 1042.28 | EP31: 997.35,1042.28 | ER31: 3 | ES31: 50 | ET31: w | EU31: 1000.17 | EV31: 1061.61 | EW31: 1000.17,1061.61 | EY31: 1 | EZ31: 250 | FA31: d | FB31: 1002.88 | FC31: 1019.75 | FD31: 1002.88,1019.75 | FF31: 0 | FG31: 51 | FH31: d | FI31: 1704.26 | FJ31: 403.62 | FK31: 1704.26,403.62 | FM31: 1 | FN31: 250 | FO31: d | FP31: 1002.88 | FQ31: 1019.75 | FR31: 1002.88,1019.75 | FT31: 0 | FU31: 51 | FV31: d | FW31: 1764.26 | FX31: 403.62 | FY31: 1764.26,403.62 | GA31: 1 | GB31: 250 | GC31: d | GD31: 1002.88 | GE31: 1019.75 | GF31: 1002.88,1019.75 | GH31: 0 | GI31: 51 | GJ31: d | GK31: 1824.26 | GL31: 403.62 | GM31: 1824.26,403.62 | GO31: 1 | GP31: 250 | GQ31: d | GR31: 1002.88 | GS31: 1019.75 | GT31: 1002.88,1019.75 | GV31: 0 | GW31: 51 | GX31: d | GY31: 1884.26 | GZ31: 403.62 | HA31: 1884.26,403.62 | HC31: 1 | HD31: 250 | HE31: d | HF31: 1002.88 | HG31: 1019.75 | HH31: 1002.88,1019.75 | HJ31: 0 | HK31: 51 | HL31: d | HM31: 1944.26 | HN31: 403.62 | HO31: 1944.26,403.62 | HQ31: 1 | HR31: 250 | HS31: d | HT31: 1002.88 | HU31: 1019.75 | HV31: 1002.88,1019.75 | HX31: 0 | HY31: 51 | HZ31: d | IA31: 2004.26 | IB31: 403.62 | IC31: 2004.26,403.62 | IE31: 1 | IF31: 250 | IG31: d | IH31: 1002.88 | II31: 1019.75 | IJ31: 1002.88,1019.75 | IL31: 0 | IM31: 51 | IN31: d | IO31: 2064.26 | IP31: 403.62 | IQ31: 2064.26,403.62 | IS31: 1 | IT31: 250 | IU31: d | IV31: 1002.88 | IW31: 1019.75 | IX31: 1002.88,1019.75 | IZ31: 0 | JA31: 51 | JB31: d | JC31: 2124.26 | JD31: 403.62 | JE31: 2124.26,403.62 | JG31: 1 | JH31: 250 | JI31: d | JJ31: 1002.88 | JK31: 1019.75 | JL31: 1002.88,1019.75 | JN31: 0 | JO31: 51 | JP31: d | JQ31: 2184.26 | JR31: 403.62 | JS31: 2184.26,403.62 | JU31: 1 | JV31: 250 | JW31: d | JX31: 1002.88 | JY31: 1019.75 | JZ31: 1002.88,1019.75 | KB31: 0 | KC31: 51 | KD31: d | KE31: 2244.26 | KF31: 403.62 | KG31: 2244.26,403.62 | KI31: 1 | KJ31: 250 | KK31: d | KL31: 1002.88 | KM31: 1019.75 | KN31: 1002.88,1019.75 | KP31: 0 | KQ31: 51 | KR31: d | KS31: 2304.26 | KT31: 403.62 | KU31: 2304.26,403.62 | KW31: 1 | KX31: 250 | KY31: d | KZ31: 1002.88 | LA31: 1019.75 | LB31: 1002.88,1019.75 | LD31: 0 | LE31: 51 | LF31: d | LG31: 2364.26 | LH31: 403.62 | LI31: 2364.26,403.62 | LK31: 0 | LL31: 51 | LM31: d | LN31: 2394.26 | LO31: 403.62 | LP31: 2394.26,403.62 | LR31: 0 | LS31: 51 | LT31: d | LU31: 2424.26 | LV31: 403.62 | LW31: 2424.26,403.62 | LY31: 0 | LZ31: 51 | MA31: d | MB31: 2454.26 | MC31: 403.62 | MD31: 2454.26,403.62 | MF31: 0 | MG31: 51 | MH31: d | MI31: 2484.26 | MJ31: 403.62 | MK31: 2484.26,403.62
A32: 0 | B32: 14 | C32: s | D32: 1004.13 | E32: 1001.91 | F32: 1004.13,1001.91 C | H32: 0 | I32: 3 | J32: a | K32: 1030.01 | L32: 1004.46 | M32: 1030.01,1004.46 | O32: 4 | P32: 149 | Q32: w | R32: 1000 | S32: 1081.49 | T32: 1000,1081.49 | V32: 2 | W32: 71 | X32: d | Y32: 1000.71 | Z32: 1041.36 | AA32: 1000.71,1041.36 | AC32: 2 | AD32: 283 | AE32: w | AF32: 999.88 | AG32: 1044.75 | AH32: 999.88,1044.75 | AJ32: 3 | AK32: 12 | AL32: d | AM32: 1002 | AN32: 1063.24 | AO32: 1002,1063.24 | AQ32: 3 | AR32: 407 | AS32: d | AT32: 1004.34 | AU32: 1064.33 | AV32: 1004.34,1064.33 | AX32: 2 | AY32: 73 | AZ32: d | BA32: 1000.73 | BB32: 1041.33 | BC32: 1000.73,1041.33 | BE32: 2 | BF32: 257 | BG32: w | BH32: 999.88 | BI32: 1044.5 | BJ32: 999.88,1044.5 | BL32: 1 | BM32: 218 | BN32: a | BO32: 1002.39 | BP32: 1022.42 | BQ32: 1002.39,1022.42 | BS32: 3 | BT32: 337 | BU32: d | BV32: 1003.37 | BW32: 1061.52 | BX32: 1003.37,1061.52 | BZ32: 3 | CA32: 214 | CB32: d | CC32: 998.97 | CD32: 1055.73 | CE32: 998.97,1055.73 | CG32: 1 | CH32: 301 | CI32: d | CJ32: 1003.01 | CK32: 1021.8 | CL32: 1003.01,1021.8 | CN32: 3 | CO32: 17 | CP32: a | CQ32: 999.98 | CR32: 1061.62 | CS32: 999.98,1061.62 | CU32: 3 | CV32: 326 | CW32: a | CX32: 999.92 | CY32: 1059.95 | CZ32: 999.92,1059.95 C | DB32: 3 | DC32: 213 | DD32: D | DE32: 998.96 | DF32: 1055.8 | DG32: 998.96,1055.8 | DI32: 1 | DJ32: 210 | DK32: d | DL32: 1005.44 | DM32: 1023.2 | DN32: 1005.44,1023.2 | DP32: 3 | DQ32: 19 | DR32: a | DS32: 999.98 | DT32: 1061.62 | DU32: 999.98,1061.62 | DW32: 3 | DX32: 27 | DY32: d | DZ32: 1000.27 | EA32: 1063.3 | EB32: 1000.27,1063.3 | ED32: 3 | EE32: 215 | EF32: d | EG32: 998.99 | EH32: 1055.74 | EI32: 998.99,1055.74 | EK32: 2 | EL32: 265 | EM32: d | EN32: 1000 | EO32: 1042.28 | EP32: 1000,1042.28 | ER32: 3 | ES32: 20 | ET32: a | EU32: 999.97 | EV32: 1061.61 | EW32: 999.97,1061.61 | EY32: 1 | EZ32: 26 | FA32: s | FB32: 1002.88 | FC32: 1019.49 | FD32: 1002.88,1019.49 | FF32: 0 | FG32: 16 | FH32: w | FI32: 1704.26 | FJ32: 403.78 | FK32: 1704.26,403.78 | FM32: 1 | FN32: 26 | FO32: s | FP32: 1002.88 | FQ32: 1019.49 | FR32: 1002.88,1019.49 | FT32: 0 | FU32: 16 | FV32: w | FW32: 1764.26 | FX32: 403.78 | FY32: 1764.26,403.78 | GA32: 1 | GB32: 26 | GC32: s | GD32: 1002.88 | GE32: 1019.49 | GF32: 1002.88,1019.49 | GH32: 0 | GI32: 16 | GJ32: w | GK32: 1824.26 | GL32: 403.78 | GM32: 1824.26,403.78 | GO32: 1 | GP32: 26 | GQ32: s | GR32: 1002.88 | GS32: 1019.49 | GT32: 1002.88,1019.49 | GV32: 0 | GW32: 16 | GX32: w | GY32: 1884.26 | GZ32: 403.78 | HA32: 1884.26,403.78 | HC32: 1 | HD32: 26 | HE32: s | HF32: 1002.88 | HG32: 1019.49 | HH32: 1002.88,1019.49 | HJ32: 0 | HK32: 16 | HL32: w | HM32: 1944.26 | HN32: 403.78 | HO32: 1944.26,403.78 | HQ32: 1 | HR32: 26 | HS32: s | HT32: 1002.88 | HU32: 1019.49 | HV32: 1002.88,1019.49 | HX32: 0 | HY32: 16 | HZ32: w | IA32: 2004.26 | IB32: 403.78 | IC32: 2004.26,403.78 | IE32: 1 | IF32: 26 | IG32: s | IH32: 1002.88 | II32: 1019.49 | IJ32: 1002.88,1019.49 | IL32: 0 | IM32: 16 | IN32: w | IO32: 2064.26 | IP32: 403.78 | IQ32: 2064.26,403.78 | IS32: 1 | IT32: 26 | IU32: s | IV32: 1002.88 | IW32: 1019.49 | IX32: 1002.88,1019.49 | IZ32: 0 | JA32: 16 | JB32: w | JC32: 2124.26 | JD32: 403.78 | JE32: 2124.26,403.78 | JG32: 1 | JH32: 26 | JI32: s | JJ32: 1002.88 | JK32: 1019.49 | JL32: 1002.88,1019.49 | JN32: 0 | JO32: 16 | JP32: w | JQ32: 2184.26 | JR32: 403.78 | JS32: 2184.26,403.78 | JU32: 1 | JV32: 26 | JW32: s | JX32: 1002.88 | JY32: 1019.49 | JZ32: 1002.88,1019.49 | KB32: 0 | KC32: 16 | KD32: w | KE32: 2244.26 | KF32: 403.78 | KG32: 2244.26,403.78 | KI32: 1 | KJ32: 26 | KK32: s | KL32: 1002.88 | KM32: 1019.49 | KN32: 1002.88,1019.49 | KP32: 0 | KQ32: 16 | KR32: w | KS32: 2304.26 | KT32: 403.78 | KU32: 2304.26,403.78 | KW32: 1 | KX32: 26 | KY32: s | KZ32: 1002.88 | LA32: 1019.49 | LB32: 1002.88,1019.49 | LD32: 0 | LE32: 16 | LF32: w | LG32: 2364.26 | LH32: 403.78 | LI32: 2364.26,403.78 | LK32: 0 | LL32: 16 | LM32: w | LN32: 2394.26 | LO32: 403.78 | LP32: 2394.26,403.78 | LR32: 0 | LS32: 16 | LT32: w | LU32: 2424.26 | LV32: 403.78 | LW32: 2424.26,403.78 | LY32: 0 | LZ32: 16 | MA32: w | MB32: 2454.26 | MC32: 403.78 | MD32: 2454.26,403.78 | MF32: 0 | MG32: 16 | MH32: w | MI32: 2484.26 | MJ32: 403.78 | MK32: 2484.26,403.78
A33: 1 | D33: 1000 | E33: 1020 | F33: PL 1000,1020 | H33: 0 | I33: 100 | J33: s | K33: 1030.01 | L33: 1003.46 | M33: 1030.01,1003.46 | O33: 4 | P33: 326 | Q33: d | R33: 1003.26 | S33: 1081.49 | T33: 1003.26,1081.49 | V33: 2 | W33: 15 | X33: w | Y33: 1000.71 | Z33: 1041.51 | AA33: 1000.71,1041.51 | AC33: 2 | AD33: 288 | AE33: d | AF33: 1002.76 | AG33: 1044.75 | AH33: 1002.76,1044.75 | AJ33: 3 | AK33: 104 | AL33: w | AM33: 1002 | AN33: 1064.28 | AO33: 1002,1064.28 | AQ33: 3 | AR33: 66 | AS33: s | AT33: 1004.34 | AU33: 1063.67 | AV33: 1004.34,1063.67 | AX33: 2 | AY33: 16 | AZ33: w | BA33: 1000.73 | BB33: 1041.49 | BC33: 1000.73,1041.49 | BE33: 2 | BF33: 289 | BG33: d | BH33: 1002.77 | BI33: 1044.5 | BJ33: 1002.77,1044.5 | BL33: 1 | BM33: 136 | BN33: s | BO33: 1002.39 | BP33: 1021.06 | BQ33: 1002.39,1021.06 | BS33: 3 | BT33: 31 | BU33: s | BV33: 1003.37 | BW33: 1061.21 | BX33: 1003.37,1061.21 | BZ33: 3 | CA33: 100 | CB33: w | CC33: 998.97 | CD33: 1056.73 | CE33: 998.97,1056.73 | CG33: 1 | CH33: 142 | CI33: s | CJ33: 1003.01 | CK33: 1020.38 | CL33: 1003.01,1020.38 | CN33: 3 | CO33: 385 | CP33: w | CQ33: 999.98 | CR33: 1065.47 | CS33: 999.98,1065.47 | CU33: 4 | CX33: 1000 | CY33: 1080 | CZ33: PL 1000,1080 | DB33: 3 | DC33: 99 | DD33: W | DE33: 998.96 | DF33: 1056.79 | DG33: 998.96,1056.79 | DI33: 1 | DJ33: 44 | DK33: s | DL33: 1005.44 | DM33: 1022.76 | DN33: 1005.44,1022.76 | DP33: 3 | DQ33: 383 | DR33: w | DS33: 999.98 | DT33: 1065.45 | DU33: 999.98,1065.45 | DW33: 3 | DX33: 130 | DY33: w | DZ33: 1000.27 | EA33: 1064.6 | EB33: 1000.27,1064.6 | ED33: 3 | EE33: 102 | EF33: w | EG33: 998.99 | EH33: 1056.76 | EI33: 998.99,1056.76 | EK33: 2 | EL33: 228 | EM33: s | EN33: 1000 | EO33: 1040 | EP33: 1000,1040 C | ER33: 3 | ES33: 384 | ET33: w | EU33: 999.97 | EV33: 1065.45 | EW33: 999.97,1065.45 | EY33: 1 | EZ33: 20 | FA33: d | FB33: 1003.08 | FC33: 1019.49 | FD33: 1003.08,1019.49 | FF33: 0 | FG33: 474 | FH33: d | FI33: 1709 | FJ33: 403.78 | FK33: 1709,403.78 | FM33: 1 | FN33: 20 | FO33: d | FP33: 1003.08 | FQ33: 1019.49 | FR33: 1003.08,1019.49 | FT33: 0 | FU33: 474 | FV33: d | FW33: 1769 | FX33: 403.78 | FY33: 1769,403.78 | GA33: 1 | GB33: 20 | GC33: d | GD33: 1003.08 | GE33: 1019.49 | GF33: 1003.08,1019.49 | GH33: 0 | GI33: 474 | GJ33: d | GK33: 1829 | GL33: 403.78 | GM33: 1829,403.78 | GO33: 1 | GP33: 20 | GQ33: d | GR33: 1003.08 | GS33: 1019.49 | GT33: 1003.08,1019.49 | GV33: 0 | GW33: 474 | GX33: d | GY33: 1889 | GZ33: 403.78 | HA33: 1889,403.78 | HC33: 1 | HD33: 20 | HE33: d | HF33: 1003.08 | HG33: 1019.49 | HH33: 1003.08,1019.49 | HJ33: 0 | HK33: 474 | HL33: d | HM33: 1949 | HN33: 403.78 | HO33: 1949,403.78 | HQ33: 1 | HR33: 20 | HS33: d | HT33: 1003.08 | HU33: 1019.49 | HV33: 1003.08,1019.49 | HX33: 0 | HY33: 474 | HZ33: d | IA33: 2009 | IB33: 403.78 | IC33: 2009,403.78 | IE33: 1 | IF33: 20 | IG33: d | IH33: 1003.08 | II33: 1019.49 | IJ33: 1003.08,1019.49 | IL33: 0 | IM33: 474 | IN33: d | IO33: 2069 | IP33: 403.78 | IQ33: 2069,403.78 | IS33: 1 | IT33: 20 | IU33: d | IV33: 1003.08 | IW33: 1019.49 | IX33: 1003.08,1019.49 | IZ33: 0 | JA33: 474 | JB33: d | JC33: 2129 | JD33: 403.78 | JE33: 2129,403.78 | JG33: 1 | JH33: 20 | JI33: d | JJ33: 1003.08 | JK33: 1019.49 | JL33: 1003.08,1019.49 | JN33: 0 | JO33: 474 | JP33: d | JQ33: 2189 | JR33: 403.78 | JS33: 2189,403.78 | JU33: 1 | JV33: 20 | JW33: d | JX33: 1003.08 | JY33: 1019.49 | JZ33: 1003.08,1019.49 | KB33: 0 | KC33: 474 | KD33: d | KE33: 2249 | KF33: 403.78 | KG33: 2249,403.78 | KI33: 1 | KJ33: 20 | KK33: d | KL33: 1003.08 | KM33: 1019.49 | KN33: 1003.08,1019.49 | KP33: 0 | KQ33: 474 | KR33: d | KS33: 2309 | KT33: 403.78 | KU33: 2309,403.78 | KW33: 1 | KX33: 20 | KY33: d | KZ33: 1003.08 | LA33: 1019.49 | LB33: 1003.08,1019.49 | LD33: 0 | LE33: 474 | LF33: d | LG33: 2369 | LH33: 403.78 | LI33: 2369,403.78 | LK33: 0 | LL33: 474 | LM33: d | LN33: 2399 | LO33: 403.78 | LP33: 2399,403.78 | LR33: 0 | LS33: 474 | LT33: d | LU33: 2429 | LV33: 403.78 | LW33: 2429,403.78 | LY33: 0 | LZ33: 474 | MA33: d | MB33: 2459 | MC33: 403.78 | MD33: 2459,403.78 | MF33: 0 | MG33: 474 | MH33: d | MI33: 2489 | MJ33: 403.78 | MK33: 2489,403.78
A34: =IF(AND(B33="",B34=""),"",IF(AND(B33>0,B34="",B35>0),1+A33,IF(AND(B33="",B34>0),A33,IF(AND(B33>0,B34>0),A33,"0")))) -> 1 | B34: 137 | C34: w | D34: =IF(AND(B34>0,C34="D"),D33+(B34*0.01),IF(AND(B34>0,C34="A"),D33-(B34*0.01),IF(AND(B34>0,C34="W"),D33,IF(AND(B34>0,C34="S"),D33,IF(AND(B34="",B33>0,B35>0),$D$3,""))))) -> 1000 | E34: =IF(AND(B34>0,C34="D"),E33,IF(AND(B34>0,C34="A"),E33,IF(AND(B34>0,C34="W"),E33+(B34*0.01),IF(AND(B34>0,C34="S"),E33-(B34*0.01),IF(AND(B34="",B33>0,B35>0),(A34*20)+$E$3,""))))) -> 1021.37 | F34: 1000,1021.37 | H34: =IF(AND(I33="",I34=""),"",IF(AND(I33>0,I34="",I35>0),1+H33,IF(AND(I33="",I34>0),H33,IF(AND(I33>0,I34>0),H33,"0")))) -> 0 | I34: 30 | J34: d | K34: 1030.31 | L34: 1003.46 | M34: 1030.31,1003.46 | O34: =IF(AND(P33="",P34=""),"",IF(AND(P33>0,P34="",P35>0),1+O33,IF(AND(P33="",P34>0),O33,IF(AND(P33>0,P34>0),O33,"0")))) -> 4 | P34: 26 | Q34: s | R34: 1003.26 | S34: 1081.23 | T34: 1003.26,1081.23 | V34: =IF(AND(W33="",W34=""),"",IF(AND(W33>0,W34="",W35>0),1+V33,IF(AND(W33="",W34>0),V33,IF(AND(W33>0,W34>0),V33,"0")))) -> 2 | W34: 439 | X34: d | Y34: 1005.1 | Z34: 1041.51 | AA34: 1005.1,1041.51 | AC34: =IF(AND(AD33="",AD34=""),"",IF(AND(AD33>0,AD34="",AD35>0),1+AC33,IF(AND(AD33="",AD34>0),AC33,IF(AND(AD33>0,AD34>0),AC33,"0")))) -> 2 | AD34: 475 | AE34: s | AF34: 1002.76 | AG34: 1040 | AH34: 1002.76,1040 | AJ34: =IF(AND(AK33="",AK34=""),"",IF(AND(AK33>0,AK34="",AK35>0),1+AJ33,IF(AND(AK33="",AK34>0),AJ33,IF(AND(AK33>0,AK34>0),AJ33,"0")))) -> 3 | AK34: 272 | AL34: d | AM34: 1004.72 | AN34: 1064.28 | AO34: 1004.72,1064.28 | AQ34: =IF(AND(AR33="",AR34=""),"",IF(AND(AR33>0,AR34="",AR35>0),1+AQ33,IF(AND(AR33="",AR34>0),AQ33,IF(AND(AR33>0,AR34>0),AQ33,"0")))) -> 3 | AR34: 9 | AS34: a | AT34: 1004.25 | AU34: 1063.67 | AV34: 1004.25,1063.67 | AX34: =IF(AND(AY33="",AY34=""),"",IF(AND(AY33>0,AY34="",AY35>0),1+AX33,IF(AND(AY33="",AY34>0),AX33,IF(AND(AY33>0,AY34>0),AX33,"0")))) -> 2 | AY34: 436 | AZ34: d | BA34: 1005.09 | BB34: 1041.49 | BC34: 1005.09,1041.49 | BE34: =IF(AND(BF33="",BF34=""),"",IF(AND(BF33>0,BF34="",BF35>0),1+BE33,IF(AND(BF33="",BF34>0),BE33,IF(AND(BF33>0,BF34>0),BE33,"0")))) -> 2 | BF34: 452 | BG34: s | BH34: 1002.77 | BI34: 1039.98 | BJ34: 1002.77,1039.98 | BL34: =IF(AND(BM33="",BM34=""),"",IF(AND(BM33>0,BM34="",BM35>0),1+BL33,IF(AND(BM33="",BM34>0),BL33,IF(AND(BM33>0,BM34>0),BL33,"0")))) -> 1 | BM34: 238 | BN34: a | BO34: 1000.01 | BP34: 1021.06 | BQ34: 1000.01,1021.06 C | BS34: =IF(AND(BT33="",BT34=""),"",IF(AND(BT33>0,BT34="",BT35>0),1+BS33,IF(AND(BT33="",BT34>0),BS33,IF(AND(BT33>0,BT34>0),BS33,"0")))) -> 3 | BT34: 20 | BU34: a | BV34: 1003.17 | BW34: 1061.21 | BX34: 1003.17,1061.21 | BZ34: =IF(AND(CA33="",CA34=""),"",IF(AND(CA33>0,CA34="",CA35>0),1+BZ33,IF(AND(CA33="",CA34>0),BZ33,IF(AND(CA33>0,CA34>0),BZ33,"0")))) -> 3 | CA34: 12 | CB34: d | CC34: 999.09 | CD34: 1056.73 | CE34: 999.09,1056.73 | CG34: =IF(AND(CH33="",CH34=""),"",IF(AND(CH33>0,CH34="",CH35>0),1+CG33,IF(AND(CH33="",CH34>0),CG33,IF(AND(CH33>0,CH34>0),CG33,"0")))) -> 1 | CH34: 15 | CI34: a | CJ34: 1002.86 | CK34: 1020.38 | CL34: 1002.86,1020.38 | CN34: =IF(AND(CO33="",CO34=""),"",IF(AND(CO33>0,CO34="",CO35>0),1+CN33,IF(AND(CO33="",CO34>0),CN33,IF(AND(CO33>0,CO34>0),CN33,"0")))) -> 3 | CO34: 14 | CP34: d | CQ34: 1000.12 | CR34: 1065.47 | CS34: 1000.12,1065.47 | CU34: =IF(AND(CV33="",CV34=""),"",IF(AND(CV33>0,CV34="",CV35>0),1+CU33,IF(AND(CV33="",CV34>0),CU33,IF(AND(CV33>0,CV34>0),CU33,"0")))) -> 4 | CV34: 331 | CW34: w | CX34: 1000 | CY34: 1083.31 | CZ34: 1000,1083.31 | DB34: =IF(AND(DC33="",DC34=""),"",IF(AND(DC33>0,DC34="",DC35>0),1+DB33,IF(AND(DC33="",DC34>0),DB33,IF(AND(DC33>0,DC34>0),DB33,"0")))) -> 3 | DC34: 12 | DD34: D | DE34: 999.08 | DF34: 1056.79 | DG34: 999.08,1056.79 | DI34: =IF(AND(DJ33="",DJ34=""),"",IF(AND(DJ33>0,DJ34="",DJ35>0),1+DI33,IF(AND(DJ33="",DJ34>0),DI33,IF(AND(DJ33>0,DJ34>0),DI33,"0")))) -> 1 | DJ34: 51 | DK34: d | DL34: 1005.95 | DM34: 1022.76 | DN34: 1005.95,1022.76 | DP34: =IF(AND(DQ33="",DQ34=""),"",IF(AND(DQ33>0,DQ34="",DQ35>0),1+DP33,IF(AND(DQ33="",DQ34>0),DP33,IF(AND(DQ33>0,DQ34>0),DP33,"0")))) -> 3 | DQ34: 16 | DR34: d | DS34: 1000.14 | DT34: 1065.45 | DU34: 1000.14,1065.45 | DW34: =IF(AND(DX33="",DX34=""),"",IF(AND(DX33>0,DX34="",DX35>0),1+DW33,IF(AND(DX33="",DX34>0),DW33,IF(AND(DX33>0,DX34>0),DW33,"0")))) -> 3 | DX34: 398 | DY34: d | DZ34: 1004.25 | EA34: 1064.6 | EB34: 1004.25,1064.6 | ED34: =IF(AND(EE33="",EE34=""),"",IF(AND(EE33>0,EE34="",EE35>0),1+ED33,IF(AND(EE33="",EE34>0),ED33,IF(AND(EE33>0,EE34>0),ED33,"0")))) -> 3 | EE34: 12 | EF34: d | EG34: 999.11 | EH34: 1056.76 | EI34: 999.11,1056.76 | EK34: =IF(AND(EL33="",EL34=""),"",IF(AND(EL33>0,EL34="",EL35>0),1+EK33,IF(AND(EL33="",EL34>0),EK33,IF(AND(EL33>0,EL34>0),EK33,"0")))) -> 3 | EN34: 1000 | EO34: 1060 | EP34: PL 1000,1060 | ER34: =IF(AND(ES33="",ES34=""),"",IF(AND(ES33>0,ES34="",ES35>0),1+ER33,IF(AND(ES33="",ES34>0),ER33,IF(AND(ES33>0,ES34>0),ER33,"0")))) -> 3 | ES34: 13 | ET34: d | EU34: 1000.1 | EV34: 1065.45 | EW34: 1000.1,1065.45 | EY34: =IF(AND(EZ33="",EZ34=""),"",IF(AND(EZ33>0,EZ34="",EZ35>0),1+EY33,IF(AND(EZ33="",EZ34>0),EY33,IF(AND(EZ33>0,EZ34>0),EY33,"0")))) -> 1 | EZ34: 16 | FA34: w | FB34: 1003.08 | FC34: 1019.65 | FD34: 1003.08,1019.65 C | FF34: =IF(AND(FG33="",FG34=""),"",IF(AND(FG33>0,FG34="",FG35>0),1+FF33,IF(AND(FG33="",FG34>0),FF33,IF(AND(FG33>0,FG34>0),FF33,"0")))) -> 0 | FG34: 397 | FH34: s | FI34: 1709 | FJ34: 399.81 | FK34: 1709,399.81 | FM34: =IF(AND(FN33="",FN34=""),"",IF(AND(FN33>0,FN34="",FN35>0),1+FM33,IF(AND(FN33="",FN34>0),FM33,IF(AND(FN33>0,FN34>0),FM33,"0")))) -> 1 | FN34: 16 | FO34: w | FP34: 1003.08 | FQ34: 1019.65 | FR34: 1003.08,1019.65 C | FT34: =IF(AND(FU33="",FU34=""),"",IF(AND(FU33>0,FU34="",FU35>0),1+FT33,IF(AND(FU33="",FU34>0),FT33,IF(AND(FU33>0,FU34>0),FT33,"0")))) -> 0 | FU34: 397 | FV34: s | FW34: 1769 | FX34: 399.81 | FY34: 1769,399.81 | GA34: =IF(AND(GB33="",GB34=""),"",IF(AND(GB33>0,GB34="",GB35>0),1+GA33,IF(AND(GB33="",GB34>0),GA33,IF(AND(GB33>0,GB34>0),GA33,"0")))) -> 1 | GB34: 16 | GC34: w | GD34: 1003.08 | GE34: 1019.65 | GF34: 1003.08,1019.65 C | GH34: =IF(AND(GI33="",GI34=""),"",IF(AND(GI33>0,GI34="",GI35>0),1+GH33,IF(AND(GI33="",GI34>0),GH33,IF(AND(GI33>0,GI34>0),GH33,"0")))) -> 0 | GI34: 397 | GJ34: s | GK34: 1829 | GL34: 399.81 | GM34: 1829,399.81 | GO34: =IF(AND(GP33="",GP34=""),"",IF(AND(GP33>0,GP34="",GP35>0),1+GO33,IF(AND(GP33="",GP34>0),GO33,IF(AND(GP33>0,GP34>0),GO33,"0")))) -> 1 | GP34: 16 | GQ34: w | GR34: 1003.08 | GS34: 1019.65 | GT34: 1003.08,1019.65 C | GV34: =IF(AND(GW33="",GW34=""),"",IF(AND(GW33>0,GW34="",GW35>0),1+GV33,IF(AND(GW33="",GW34>0),GV33,IF(AND(GW33>0,GW34>0),GV33,"0")))) -> 0 | GW34: 397 | GX34: s | GY34: 1889 | GZ34: 399.81 | HA34: 1889,399.81 | HC34: =IF(AND(HD33="",HD34=""),"",IF(AND(HD33>0,HD34="",HD35>0),1+HC33,IF(AND(HD33="",HD34>0),HC33,IF(AND(HD33>0,HD34>0),HC33,"0")))) -> 1 | HD34: 16 | HE34: w | HF34: 1003.08 | HG34: 1019.65 | HH34: 1003.08,1019.65 C | HJ34: =IF(AND(HK33="",HK34=""),"",IF(AND(HK33>0,HK34="",HK35>0),1+HJ33,IF(AND(HK33="",HK34>0),HJ33,IF(AND(HK33>0,HK34>0),HJ33,"0")))) -> 0 | HK34: 397 | HL34: s | HM34: 1949 | HN34: 399.81 | HO34: 1949,399.81 | HQ34: =IF(AND(HR33="",HR34=""),"",IF(AND(HR33>0,HR34="",HR35>0),1+HQ33,IF(AND(HR33="",HR34>0),HQ33,IF(AND(HR33>0,HR34>0),HQ33,"0")))) -> 1 | HR34: 16 | HS34: w | HT34: 1003.08 | HU34: 1019.65 | HV34: 1003.08,1019.65 C | HX34: =IF(AND(HY33="",HY34=""),"",IF(AND(HY33>0,HY34="",HY35>0),1+HX33,IF(AND(HY33="",HY34>0),HX33,IF(AND(HY33>0,HY34>0),HX33,"0")))) -> 0 | HY34: 397 | HZ34: s | IA34: 2009 | IB34: 399.81 | IC34: 2009,399.81 | IE34: =IF(AND(IF33="",IF34=""),"",IF(AND(IF33>0,IF34="",IF35>0),1+IE33,IF(AND(IF33="",IF34>0),IE33,IF(AND(IF33>0,IF34>0),IE33,"0")))) -> 1 | IF34: 16 | IG34: w | IH34: 1003.08 | II34: 1019.65 | IJ34: 1003.08,1019.65 C | IL34: =IF(AND(IM33="",IM34=""),"",IF(AND(IM33>0,IM34="",IM35>0),1+IL33,IF(AND(IM33="",IM34>0),IL33,IF(AND(IM33>0,IM34>0),IL33,"0")))) -> 0 | IM34: 397 | IN34: s | IO34: 2069 | IP34: 399.81 | IQ34: 2069,399.81 | IS34: =IF(AND(IT33="",IT34=""),"",IF(AND(IT33>0,IT34="",IT35>0),1+IS33,IF(AND(IT33="",IT34>0),IS33,IF(AND(IT33>0,IT34>0),IS33,"0")))) -> 1 | IT34: 16 | IU34: w | IV34: 1003.08 | IW34: 1019.65 | IX34: 1003.08,1019.65 C | IZ34: =IF(AND(JA33="",JA34=""),"",IF(AND(JA33>0,JA34="",JA35>0),1+IZ33,IF(AND(JA33="",JA34>0),IZ33,IF(AND(JA33>0,JA34>0),IZ33,"0")))) -> 0 | JA34: 397 | JB34: s | JC34: 2129 | JD34: 399.81 | JE34: 2129,399.81 | JG34: =IF(AND(JH33="",JH34=""),"",IF(AND(JH33>0,JH34="",JH35>0),1+JG33,IF(AND(JH33="",JH34>0),JG33,IF(AND(JH33>0,JH34>0),JG33,"0")))) -> 1 | JH34: 16 | JI34: w | JJ34: 1003.08 | JK34: 1019.65 | JL34: 1003.08,1019.65 C | JN34: =IF(AND(JO33="",JO34=""),"",IF(AND(JO33>0,JO34="",JO35>0),1+JN33,IF(AND(JO33="",JO34>0),JN33,IF(AND(JO33>0,JO34>0),JN33,"0")))) -> 0 | JO34: 397 | JP34: s | JQ34: 2189 | JR34: 399.81 | JS34: 2189,399.81 | JU34: =IF(AND(JV33="",JV34=""),"",IF(AND(JV33>0,JV34="",JV35>0),1+JU33,IF(AND(JV33="",JV34>0),JU33,IF(AND(JV33>0,JV34>0),JU33,"0")))) -> 1 | JV34: 16 | JW34: w | JX34: 1003.08 | JY34: 1019.65 | JZ34: 1003.08,1019.65 C | KB34: =IF(AND(KC33="",KC34=""),"",IF(AND(KC33>0,KC34="",KC35>0),1+KB33,IF(AND(KC33="",KC34>0),KB33,IF(AND(KC33>0,KC34>0),KB33,"0")))) -> 0 | KC34: 397 | KD34: s | KE34: 2249 | KF34: 399.81 | KG34: 2249,399.81 | KI34: =IF(AND(KJ33="",KJ34=""),"",IF(AND(KJ33>0,KJ34="",KJ35>0),1+KI33,IF(AND(KJ33="",KJ34>0),KI33,IF(AND(KJ33>0,KJ34>0),KI33,"0")))) -> 1 | KJ34: 16 | KK34: w | KL34: 1003.08 | KM34: 1019.65 | KN34: 1003.08,1019.65 C | KP34: =IF(AND(KQ33="",KQ34=""),"",IF(AND(KQ33>0,KQ34="",KQ35>0),1+KP33,IF(AND(KQ33="",KQ34>0),KP33,IF(AND(KQ33>0,KQ34>0),KP33,"0")))) -> 0 | KQ34: 397 | KR34: s | KS34: 2309 | KT34: 399.81 | KU34: 2309,399.81 | KW34: =IF(AND(KX33="",KX34=""),"",IF(AND(KX33>0,KX34="",KX35>0),1+KW33,IF(AND(KX33="",KX34>0),KW33,IF(AND(KX33>0,KX34>0),KW33,"0")))) -> 1 | KX34: 16 | KY34: w | KZ34: 1003.08 | LA34: 1019.65 | LB34: 1003.08,1019.65 C | LD34: =IF(AND(LE33="",LE34=""),"",IF(AND(LE33>0,LE34="",LE35>0),1+LD33,IF(AND(LE33="",LE34>0),LD33,IF(AND(LE33>0,LE34>0),LD33,"0")))) -> 0 | LE34: 397 | LF34: s | LG34: 2369 | LH34: 399.81 | LI34: 2369,399.81 | LK34: =IF(AND(LL33="",LL34=""),"",IF(AND(LL33>0,LL34="",LL35>0),1+LK33,IF(AND(LL33="",LL34>0),LK33,IF(AND(LL33>0,LL34>0),LK33,"0")))) -> 0 | LL34: 397 | LM34: s | LN34: 2399 | LO34: 399.81 | LP34: 2399,399.81 | LR34: =IF(AND(LS33="",LS34=""),"",IF(AND(LS33>0,LS34="",LS35>0),1+LR33,IF(AND(LS33="",LS34>0),LR33,IF(AND(LS33>0,LS34>0),LR33,"0")))) -> 0 | LS34: 397 | LT34: s | LU34: 2429 | LV34: 399.81 | LW34: 2429,399.81 | LY34: =IF(AND(LZ33="",LZ34=""),"",IF(AND(LZ33>0,LZ34="",LZ35>0),1+LY33,IF(AND(LZ33="",LZ34>0),LY33,IF(AND(LZ33>0,LZ34>0),LY33,"0")))) -> 0 | LZ34: 397 | MA34: s | MB34: 2459 | MC34: 399.81 | MD34: 2459,399.81 | MF34: =IF(AND(MG33="",MG34=""),"",IF(AND(MG33>0,MG34="",MG35>0),1+MF33,IF(AND(MG33="",MG34>0),MF33,IF(AND(MG33>0,MG34>0),MF33,"0")))) -> 0 | MG34: 397 | MH34: s | MI34: 2489 | MJ34: 399.81 | MK34: 2489,399.81
A35: =IF(AND(B34="",B35=""),"",IF(AND(B34>0,B35="",B36>0),1+A34,IF(AND(B34="",B35>0),A34,IF(AND(B34>0,B35>0),A34,"0")))) -> 1 | B35: 71 | C35: d | D35: =IF(AND(B35>0,C35="D"),D34+(B35*0.01),IF(AND(B35>0,C35="A"),D34-(B35*0.01),IF(AND(B35>0,C35="W"),D34,IF(AND(B35>0,C35="S"),D34,IF(AND(B35="",B34>0,B36>0),$D$3,""))))) -> 1000.71 | E35: =IF(AND(B35>0,C35="D"),E34,IF(AND(B35>0,C35="A"),E34,IF(AND(B35>0,C35="W"),E34+(B35*0.01),IF(AND(B35>0,C35="S"),E34-(B35*0.01),IF(AND(B35="",B34>0,B36>0),(A35*20)+$E$3,""))))) -> 1021.37 | F35: 1000.71,1021.37 | H35: =IF(AND(I34="",I35=""),"",IF(AND(I34>0,I35="",I36>0),1+H34,IF(AND(I34="",I35>0),H34,IF(AND(I34>0,I35>0),H34,"0")))) -> 0 | I35: 32 | J35: w | K35: 1030.31 | L35: 1003.78 | M35: 1030.31,1003.78 | O35: =IF(AND(P34="",P35=""),"",IF(AND(P34>0,P35="",P36>0),1+O34,IF(AND(P34="",P35>0),O34,IF(AND(P34>0,P35>0),O34,"0")))) -> 4 | P35: 14 | Q35: a | R35: 1003.12 | S35: 1081.23 | T35: 1003.12,1081.23 | V35: =IF(AND(W34="",W35=""),"",IF(AND(W34>0,W35="",W36>0),1+V34,IF(AND(W34="",W35>0),V34,IF(AND(W34>0,W35>0),V34,"0")))) -> 2 | W35: 15 | X35: s | Y35: 1005.1 | Z35: 1041.36 | AA35: 1005.1,1041.36 | AC35: =IF(AND(AD34="",AD35=""),"",IF(AND(AD34>0,AD35="",AD36>0),1+AC34,IF(AND(AD34="",AD35>0),AC34,IF(AND(AD34>0,AD35>0),AC34,"0")))) -> 2 | AD35: 193 | AE35: a | AF35: 1000.83 | AG35: 1040 | AH35: 1000.83,1040 C | AJ35: =IF(AND(AK34="",AK35=""),"",IF(AND(AK34>0,AK35="",AK36>0),1+AJ34,IF(AND(AK34="",AK35>0),AJ34,IF(AND(AK34>0,AK35>0),AJ34,"0")))) -> 3 | AK35: 44 | AL35: s | AM35: 1004.72 | AN35: 1063.84 | AO35: 1004.72,1063.84 | AQ35: =IF(AND(AR34="",AR35=""),"",IF(AND(AR34>0,AR35="",AR36>0),1+AQ34,IF(AND(AR34="",AR35>0),AQ34,IF(AND(AR34>0,AR35>0),AQ34,"0")))) -> 3 | AR35: 61 | AS35: s | AT35: 1004.25 | AU35: 1063.06 | AV35: 1004.25,1063.06 | AX35: =IF(AND(AY34="",AY35=""),"",IF(AND(AY34>0,AY35="",AY36>0),1+AX34,IF(AND(AY34="",AY35>0),AX34,IF(AND(AY34>0,AY35>0),AX34,"0")))) -> 2 | AY35: 15 | AZ35: s | BA35: 1005.09 | BB35: 1041.34 | BC35: 1005.09,1041.34 | BE35: =IF(AND(BF34="",BF35=""),"",IF(AND(BF34>0,BF35="",BF36>0),1+BE34,IF(AND(BF34="",BF35>0),BE34,IF(AND(BF34>0,BF35>0),BE34,"0")))) -> 2 | BF35: 272 | BG35: a | BH35: 1000.05 | BI35: 1039.98 | BJ35: 1000.05,1039.98 C | BL35: =IF(AND(BM34="",BM35=""),"",IF(AND(BM34>0,BM35="",BM36>0),1+BL34,IF(AND(BM34="",BM35>0),BL34,IF(AND(BM34>0,BM35>0),BL34,"0")))) -> 2 | BO35: 1000 | BP35: 1040 | BQ35: PL 1000,1040 | BS35: =IF(AND(BT34="",BT35=""),"",IF(AND(BT34>0,BT35="",BT36>0),1+BS34,IF(AND(BT34="",BT35>0),BS34,IF(AND(BT34>0,BT35>0),BS34,"0")))) -> 3 | BT35: 126 | BU35: s | BV35: 1003.17 | BW35: 1059.95 | BX35: 1003.17,1059.95 | BZ35: =IF(AND(CA34="",CA35=""),"",IF(AND(CA34>0,CA35="",CA36>0),1+BZ34,IF(AND(CA34="",CA35>0),BZ34,IF(AND(CA34>0,CA35>0),BZ34,"0")))) -> 3 | CA35: 181 | CB35: s | CC35: 999.09 | CD35: 1054.92 | CE35: 999.09,1054.92 | CG35: =IF(AND(CH34="",CH35=""),"",IF(AND(CH34>0,CH35="",CH36>0),1+CG34,IF(AND(CH34="",CH35>0),CG34,IF(AND(CH34>0,CH35>0),CG34,"0")))) -> 1 | CH35: 39 | CI35: s | CJ35: 1002.86 | CK35: 1019.99 | CL35: 1002.86,1019.99 | CN35: =IF(AND(CO34="",CO35=""),"",IF(AND(CO34>0,CO35="",CO36>0),1+CN34,IF(AND(CO34="",CO35>0),CN34,IF(AND(CO34>0,CO35>0),CN34,"0")))) -> 3 | CO35: 26 | CP35: w | CQ35: 1000.12 | CR35: 1065.73 | CS35: 1000.12,1065.73 | CU35: =IF(AND(CV34="",CV35=""),"",IF(AND(CV34>0,CV35="",CV36>0),1+CU34,IF(AND(CV34="",CV35>0),CU34,IF(AND(CV34>0,CV35>0),CU34,"0")))) -> 4 | CV35: 28 | CW35: d | CX35: 1000.28 | CY35: 1083.31 | CZ35: 1000.28,1083.31 | DB35: =IF(AND(DC34="",DC35=""),"",IF(AND(DC34>0,DC35="",DC36>0),1+DB34,IF(AND(DC34="",DC35>0),DB34,IF(AND(DC34>0,DC35>0),DB34,"0")))) -> 3 | DC35: 179 | DD35: S | DE35: 999.08 | DF35: 1055 | DG35: 999.08,1055 | DI35: =IF(AND(DJ34="",DJ35=""),"",IF(AND(DJ34>0,DJ35="",DJ36>0),1+DI34,IF(AND(DJ34="",DJ35>0),DI34,IF(AND(DJ34>0,DJ35>0),DI34,"0")))) -> 1 | DJ35: 26 | DK35: w | DL35: 1005.95 | DM35: 1023.02 | DN35: 1005.95,1023.02 | DP35: =IF(AND(DQ34="",DQ35=""),"",IF(AND(DQ34>0,DQ35="",DQ36>0),1+DP34,IF(AND(DQ34="",DQ35>0),DP34,IF(AND(DQ34>0,DQ35>0),DP34,"0")))) -> 3 | DQ35: 25 | DR35: w | DS35: 1000.14 | DT35: 1065.7 | DU35: 1000.14,1065.7 | DW35: =IF(AND(DX34="",DX35=""),"",IF(AND(DX34>0,DX35="",DX36>0),1+DW34,IF(AND(DX34="",DX35>0),DW34,IF(AND(DX34>0,DX35>0),DW34,"0")))) -> 3 | DX35: 105 | DY35: s | DZ35: 1004.25 | EA35: 1063.55 | EB35: 1004.25,1063.55 | ED35: =IF(AND(EE34="",EE35=""),"",IF(AND(EE34>0,EE35="",EE36>0),1+ED34,IF(AND(EE34="",EE35>0),ED34,IF(AND(EE34>0,EE35>0),ED34,"0")))) -> 3 | EE35: 181 | EF35: s | EG35: 999.11 | EH35: 1054.95 | EI35: 999.11,1054.95 | EK35: =IF(AND(EL34="",EL35=""),"",IF(AND(EL34>0,EL35="",EL36>0),1+EK34,IF(AND(EL34="",EL35>0),EK34,IF(AND(EL34>0,EL35>0),EK34,"0")))) -> 3 | EL35: 265 | EM35: a | EN35: 997.35 | EO35: 1060 | EP35: 997.35,1060 | ER35: =IF(AND(ES34="",ES35=""),"",IF(AND(ES34>0,ES35="",ES36>0),1+ER34,IF(AND(ES34="",ES35>0),ER34,IF(AND(ES34>0,ES35>0),ER34,"0")))) -> 3 | ES35: 21 | ET35: w | EU35: 1000.1 | EV35: 1065.66 | EW35: 1000.1,1065.66 | EY35: =IF(AND(EZ34="",EZ35=""),"",IF(AND(EZ34>0,EZ35="",EZ36>0),1+EY34,IF(AND(EZ34="",EZ35>0),EY34,IF(AND(EZ34>0,EZ35>0),EY34,"0")))) -> 2 | FB35: 1000 | FC35: 1040 | FD35: PL 1000,1040 | FF35: =IF(AND(FG34="",FG35=""),"",IF(AND(FG34>0,FG35="",FG36>0),1+FF34,IF(AND(FG34="",FG35>0),FF34,IF(AND(FG34>0,FG35>0),FF34,"0")))) -> 0 | FG35: 475 | FH35: a | FI35: 1704.25 | FJ35: 399.81 | FK35: 1704.25,399.81 | FM35: =IF(AND(FN34="",FN35=""),"",IF(AND(FN34>0,FN35="",FN36>0),1+FM34,IF(AND(FN34="",FN35>0),FM34,IF(AND(FN34>0,FN35>0),FM34,"0")))) -> 2 | FP35: 1000 | FQ35: 1040 | FR35: PL 1000,1040 | FT35: =IF(AND(FU34="",FU35=""),"",IF(AND(FU34>0,FU35="",FU36>0),1+FT34,IF(AND(FU34="",FU35>0),FT34,IF(AND(FU34>0,FU35>0),FT34,"0")))) -> 0 | FU35: 475 | FV35: a | FW35: 1764.25 | FX35: 399.81 | FY35: 1764.25,399.81 | GA35: =IF(AND(GB34="",GB35=""),"",IF(AND(GB34>0,GB35="",GB36>0),1+GA34,IF(AND(GB34="",GB35>0),GA34,IF(AND(GB34>0,GB35>0),GA34,"0")))) -> 2 | GD35: 1000 | GE35: 1040 | GF35: PL 1000,1040 | GH35: =IF(AND(GI34="",GI35=""),"",IF(AND(GI34>0,GI35="",GI36>0),1+GH34,IF(AND(GI34="",GI35>0),GH34,IF(AND(GI34>0,GI35>0),GH34,"0")))) -> 0 | GI35: 475 | GJ35: a | GK35: 1824.25 | GL35: 399.81 | GM35: 1824.25,399.81 | GO35: =IF(AND(GP34="",GP35=""),"",IF(AND(GP34>0,GP35="",GP36>0),1+GO34,IF(AND(GP34="",GP35>0),GO34,IF(AND(GP34>0,GP35>0),GO34,"0")))) -> 2 | GR35: 1000 | GS35: 1040 | GT35: PL 1000,1040 | GV35: =IF(AND(GW34="",GW35=""),"",IF(AND(GW34>0,GW35="",GW36>0),1+GV34,IF(AND(GW34="",GW35>0),GV34,IF(AND(GW34>0,GW35>0),GV34,"0")))) -> 0 | GW35: 475 | GX35: a | GY35: 1884.25 | GZ35: 399.81 | HA35: 1884.25,399.81 | HC35: =IF(AND(HD34="",HD35=""),"",IF(AND(HD34>0,HD35="",HD36>0),1+HC34,IF(AND(HD34="",HD35>0),HC34,IF(AND(HD34>0,HD35>0),HC34,"0")))) -> 2 | HF35: 1000 | HG35: 1040 | HH35: PL 1000,1040 | HJ35: =IF(AND(HK34="",HK35=""),"",IF(AND(HK34>0,HK35="",HK36>0),1+HJ34,IF(AND(HK34="",HK35>0),HJ34,IF(AND(HK34>0,HK35>0),HJ34,"0")))) -> 0 | HK35: 475 | HL35: a | HM35: 1944.25 | HN35: 399.81 | HO35: 1944.25,399.81 | HQ35: =IF(AND(HR34="",HR35=""),"",IF(AND(HR34>0,HR35="",HR36>0),1+HQ34,IF(AND(HR34="",HR35>0),HQ34,IF(AND(HR34>0,HR35>0),HQ34,"0")))) -> 2 | HT35: 1000 | HU35: 1040 | HV35: PL 1000,1040 | HX35: =IF(AND(HY34="",HY35=""),"",IF(AND(HY34>0,HY35="",HY36>0),1+HX34,IF(AND(HY34="",HY35>0),HX34,IF(AND(HY34>0,HY35>0),HX34,"0")))) -> 0 | HY35: 475 | HZ35: a | IA35: 2004.25 | IB35: 399.81 | IC35: 2004.25,399.81 | IE35: =IF(AND(IF34="",IF35=""),"",IF(AND(IF34>0,IF35="",IF36>0),1+IE34,IF(AND(IF34="",IF35>0),IE34,IF(AND(IF34>0,IF35>0),IE34,"0")))) -> 2 | IH35: 1000 | II35: 1040 | IJ35: PL 1000,1040 | IL35: =IF(AND(IM34="",IM35=""),"",IF(AND(IM34>0,IM35="",IM36>0),1+IL34,IF(AND(IM34="",IM35>0),IL34,IF(AND(IM34>0,IM35>0),IL34,"0")))) -> 0 | IM35: 475 | IN35: a | IO35: 2064.25 | IP35: 399.81 | IQ35: 2064.25,399.81 | IS35: =IF(AND(IT34="",IT35=""),"",IF(AND(IT34>0,IT35="",IT36>0),1+IS34,IF(AND(IT34="",IT35>0),IS34,IF(AND(IT34>0,IT35>0),IS34,"0")))) -> 2 | IV35: 1000 | IW35: 1040 | IX35: PL 1000,1040 | IZ35: =IF(AND(JA34="",JA35=""),"",IF(AND(JA34>0,JA35="",JA36>0),1+IZ34,IF(AND(JA34="",JA35>0),IZ34,IF(AND(JA34>0,JA35>0),IZ34,"0")))) -> 0 | JA35: 475 | JB35: a | JC35: 2124.25 | JD35: 399.81 | JE35: 2124.25,399.81 | JG35: =IF(AND(JH34="",JH35=""),"",IF(AND(JH34>0,JH35="",JH36>0),1+JG34,IF(AND(JH34="",JH35>0),JG34,IF(AND(JH34>0,JH35>0),JG34,"0")))) -> 2 | JJ35: 1000 | JK35: 1040 | JL35: PL 1000,1040 | JN35: =IF(AND(JO34="",JO35=""),"",IF(AND(JO34>0,JO35="",JO36>0),1+JN34,IF(AND(JO34="",JO35>0),JN34,IF(AND(JO34>0,JO35>0),JN34,"0")))) -> 0 | JO35: 475 | JP35: a | JQ35: 2184.25 | JR35: 399.81 | JS35: 2184.25,399.81 | JU35: =IF(AND(JV34="",JV35=""),"",IF(AND(JV34>0,JV35="",JV36>0),1+JU34,IF(AND(JV34="",JV35>0),JU34,IF(AND(JV34>0,JV35>0),JU34,"0")))) -> 2 | JX35: 1000 | JY35: 1040 | JZ35: PL 1000,1040 | KB35: =IF(AND(KC34="",KC35=""),"",IF(AND(KC34>0,KC35="",KC36>0),1+KB34,IF(AND(KC34="",KC35>0),KB34,IF(AND(KC34>0,KC35>0),KB34,"0")))) -> 0 | KC35: 475 | KD35: a | KE35: 2244.25 | KF35: 399.81 | KG35: 2244.25,399.81 | KI35: =IF(AND(KJ34="",KJ35=""),"",IF(AND(KJ34>0,KJ35="",KJ36>0),1+KI34,IF(AND(KJ34="",KJ35>0),KI34,IF(AND(KJ34>0,KJ35>0),KI34,"0")))) -> 2 | KL35: 1000 | KM35: 1040 | KN35: PL 1000,1040 | KP35: =IF(AND(KQ34="",KQ35=""),"",IF(AND(KQ34>0,KQ35="",KQ36>0),1+KP34,IF(AND(KQ34="",KQ35>0),KP34,IF(AND(KQ34>0,KQ35>0),KP34,"0")))) -> 0 | KQ35: 475 | KR35: a | KS35: 2304.25 | KT35: 399.81 | KU35: 2304.25,399.81 | KW35: =IF(AND(KX34="",KX35=""),"",IF(AND(KX34>0,KX35="",KX36>0),1+KW34,IF(AND(KX34="",KX35>0),KW34,IF(AND(KX34>0,KX35>0),KW34,"0")))) -> 2 | KZ35: 1000 | LA35: 1040 | LB35: PL 1000,1040 | LD35: =IF(AND(LE34="",LE35=""),"",IF(AND(LE34>0,LE35="",LE36>0),1+LD34,IF(AND(LE34="",LE35>0),LD34,IF(AND(LE34>0,LE35>0),LD34,"0")))) -> 0 | LE35: 475 | LF35: a | LG35: 2364.25 | LH35: 399.81 | LI35: 2364.25,399.81 | LK35: =IF(AND(LL34="",LL35=""),"",IF(AND(LL34>0,LL35="",LL36>0),1+LK34,IF(AND(LL34="",LL35>0),LK34,IF(AND(LL34>0,LL35>0),LK34,"0")))) -> 0 | LL35: 475 | LM35: a | LN35: 2394.25 | LO35: 399.81 | LP35: 2394.25,399.81 | LR35: =IF(AND(LS34="",LS35=""),"",IF(AND(LS34>0,LS35="",LS36>0),1+LR34,IF(AND(LS34="",LS35>0),LR34,IF(AND(LS34>0,LS35>0),LR34,"0")))) -> 0 | LS35: 475 | LT35: a | LU35: 2424.25 | LV35: 399.81 | LW35: 2424.25,399.81 | LY35: =IF(AND(LZ34="",LZ35=""),"",IF(AND(LZ34>0,LZ35="",LZ36>0),1+LY34,IF(AND(LZ34="",LZ35>0),LY34,IF(AND(LZ34>0,LZ35>0),LY34,"0")))) -> 0 | LZ35: 475 | MA35: a | MB35: 2454.25 | MC35: 399.81 | MD35: 2454.25,399.81 | MF35: =IF(AND(MG34="",MG35=""),"",IF(AND(MG34>0,MG35="",MG36>0),1+MF34,IF(AND(MG34="",MG35>0),MF34,IF(AND(MG34>0,MG35>0),MF34,"0")))) -> 0 | MG35: 475 | MH35: a | MI35: 2484.25 | MJ35: 399.81 | MK35: 2484.25,399.81
A36: =IF(AND(B35="",B36=""),"",IF(AND(B35>0,B36="",B37>0),1+A35,IF(AND(B35="",B36>0),A35,IF(AND(B35>0,B36>0),A35,"0")))) -> 1 | B36: 15 | C36: w | D36: 1000.71 | E36: 1021.52 | F36: 1000.71,1021.52 | H36: =IF(AND(I35="",I36=""),"",IF(AND(I35>0,I36="",I37>0),1+H35,IF(AND(I35="",I36>0),H35,IF(AND(I35>0,I36>0),H35,"0")))) -> 0 | I36: 35 | J36: d | K36: 1030.66 | L36: 1003.78 | M36: 1030.66,1003.78 | O36: =IF(AND(P35="",P36=""),"",IF(AND(P35>0,P36="",P37>0),1+O35,IF(AND(P35="",P36>0),O35,IF(AND(P35>0,P36>0),O35,"0")))) -> 4 | P36: 124 | Q36: s | R36: 1003.12 | S36: 1079.99 | T36: 1003.12,1079.99 C | V36: =IF(AND(W35="",W36=""),"",IF(AND(W35>0,W36="",W37>0),1+V35,IF(AND(W35="",W36>0),V35,IF(AND(W35>0,W36>0),V35,"0")))) -> 2 | W36: 62 | X36: d | Y36: 1005.72 | Z36: 1041.36 | AA36: 1005.72,1041.36 | AC36: =IF(AND(AD35="",AD36=""),"",IF(AND(AD35>0,AD36="",AD37>0),1+AC35,IF(AND(AD35="",AD36>0),AC35,IF(AND(AD35>0,AD36>0),AC35,"0")))) -> 3 | AF36: 1000 | AG36: 1060 | AH36: PL 1000,1060 | AJ36: =IF(AND(AK35="",AK36=""),"",IF(AND(AK35>0,AK36="",AK37>0),1+AJ35,IF(AND(AK35="",AK36>0),AJ35,IF(AND(AK35>0,AK36>0),AJ35,"0")))) -> 3 | AK36: 2 | AL36: d | AM36: 1004.74 | AN36: 1063.84 | AO36: 1004.74,1063.84 | AQ36: =IF(AND(AR35="",AR36=""),"",IF(AND(AR35>0,AR36="",AR37>0),1+AQ35,IF(AND(AR35="",AR36>0),AQ35,IF(AND(AR35>0,AR36>0),AQ35,"0")))) -> 3 | AR36: 9 | AS36: d | AT36: 1004.34 | AU36: 1063.06 | AV36: 1004.34,1063.06 | AX36: =IF(AND(AY35="",AY36=""),"",IF(AND(AY35>0,AY36="",AY37>0),1+AX35,IF(AND(AY35="",AY36>0),AX35,IF(AND(AY35>0,AY36>0),AX35,"0")))) -> 2 | AY36: 61 | AZ36: d | BA36: 1005.7 | BB36: 1041.34 | BC36: 1005.7,1041.34 | BE36: =IF(AND(BF35="",BF36=""),"",IF(AND(BF35>0,BF36="",BF37>0),1+BE35,IF(AND(BF35="",BF36>0),BE35,IF(AND(BF35>0,BF36>0),BE35,"0")))) -> 3 | BH36: 1000 | BI36: 1060 | BJ36: PL 1000,1060 | BL36: =IF(AND(BM35="",BM36=""),"",IF(AND(BM35>0,BM36="",BM37>0),1+BL35,IF(AND(BM35="",BM36>0),BL35,IF(AND(BM35>0,BM36>0),BL35,"0")))) -> 2 | BM36: 230 | BN36: w | BO36: 1000 | BP36: 1042.3 | BQ36: 1000,1042.3 | BS36: =IF(AND(BT35="",BT36=""),"",IF(AND(BT35>0,BT36="",BT37>0),1+BS35,IF(AND(BT35="",BT36>0),BS35,IF(AND(BT35>0,BT36>0),BS35,"0")))) -> 3 | BT36: 316 | BU36: a | BV36: 1000.01 | BW36: 1059.95 | BX36: 1000.01,1059.95 C | BZ36: =IF(AND(CA35="",CA36=""),"",IF(AND(CA35>0,CA36="",CA37>0),1+BZ35,IF(AND(CA35="",CA36>0),BZ35,IF(AND(CA35>0,CA36>0),BZ35,"0")))) -> 3 | CA36: 160 | CB36: d | CC36: 1000.69 | CD36: 1054.92 | CE36: 1000.69,1054.92 | CG36: =IF(AND(CH35="",CH36=""),"",IF(AND(CH35>0,CH36="",CH37>0),1+CG35,IF(AND(CH35="",CH36>0),CG35,IF(AND(CH35>0,CH36>0),CG35,"0")))) -> 1 | CH36: 289 | CI36: a | CJ36: 999.97 | CK36: 1019.99 | CL36: 999.97,1019.99 C | CN36: =IF(AND(CO35="",CO36=""),"",IF(AND(CO35>0,CO36="",CO37>0),1+CN35,IF(AND(CO35="",CO36>0),CN35,IF(AND(CO35>0,CO36>0),CN35,"0")))) -> 3 | CO36: 165 | CP36: d | CQ36: 1001.77 | CR36: 1065.73 | CS36: 1001.77,1065.73 | CU36: =IF(AND(CV35="",CV36=""),"",IF(AND(CV35>0,CV36="",CV37>0),1+CU35,IF(AND(CV35="",CV36>0),CU35,IF(AND(CV35>0,CV36>0),CU35,"0")))) -> 4 | CV36: 131 | CW36: w | CX36: 1000.28 | CY36: 1084.62 | CZ36: 1000.28,1084.62 | DB36: =IF(AND(DC35="",DC36=""),"",IF(AND(DC35>0,DC36="",DC37>0),1+DB35,IF(AND(DC35="",DC36>0),DB35,IF(AND(DC35>0,DC36>0),DB35,"0")))) -> 3 | DC36: 160 | DD36: D | DE36: 1000.68 | DF36: 1055 | DG36: 1000.68,1055 | DI36: =IF(AND(DJ35="",DJ36=""),"",IF(AND(DJ35>0,DJ36="",DJ37>0),1+DI35,IF(AND(DJ35="",DJ36>0),DI35,IF(AND(DJ35>0,DJ36>0),DI35,"0")))) -> 1 | DJ36: 107 | DK36: d | DL36: 1007.02 | DM36: 1023.02 | DN36: 1007.02,1023.02 | DP36: =IF(AND(DQ35="",DQ36=""),"",IF(AND(DQ35>0,DQ36="",DQ37>0),1+DP35,IF(AND(DQ35="",DQ36>0),DP35,IF(AND(DQ35>0,DQ36>0),DP35,"0")))) -> 3 | DQ36: 165 | DR36: d | DS36: 1001.79 | DT36: 1065.7 | DU36: 1001.79,1065.7 | DW36: =IF(AND(DX35="",DX36=""),"",IF(AND(DX35>0,DX36="",DX37>0),1+DW35,IF(AND(DX35="",DX36>0),DW35,IF(AND(DX35>0,DX36>0),DW35,"0")))) -> 3 | DX36: 13 | DY36: a | DZ36: 1004.12 | EA36: 1063.55 | EB36: 1004.12,1063.55 | ED36: =IF(AND(EE35="",EE36=""),"",IF(AND(EE35>0,EE36="",EE37>0),1+ED35,IF(AND(EE35="",EE36>0),ED35,IF(AND(EE35>0,EE36>0),ED35,"0")))) -> 3 | EE36: 160 | EF36: d | EG36: 1000.71 | EH36: 1054.95 | EI36: 1000.71,1054.95 | EK36: =IF(AND(EL35="",EL36=""),"",IF(AND(EL35>0,EL36="",EL37>0),1+EK35,IF(AND(EL35="",EL36>0),EK35,IF(AND(EL35>0,EL36>0),EK35,"0")))) -> 3 | EL36: 119 | EM36: w | EN36: 997.35 | EO36: 1061.19 | EP36: 997.35,1061.19 | ER36: =IF(AND(ES35="",ES36=""),"",IF(AND(ES35>0,ES36="",ES37>0),1+ER35,IF(AND(ES35="",ES36>0),ER35,IF(AND(ES35>0,ES36>0),ER35,"0")))) -> 3 | ES36: 170 | ET36: d | EU36: 1001.8 | EV36: 1065.66 | EW36: 1001.8,1065.66 | EY36: =IF(AND(EZ35="",EZ36=""),"",IF(AND(EZ35>0,EZ36="",EZ37>0),1+EY35,IF(AND(EZ35="",EZ36>0),EY35,IF(AND(EZ35>0,EZ36>0),EY35,"0")))) -> 2 | EZ36: 141 | FA36: w | FB36: 1000 | FC36: 1041.41 | FD36: 1000,1041.41 | FF36: =IF(AND(FG35="",FG36=""),"",IF(AND(FG35>0,FG36="",FG37>0),1+FF35,IF(AND(FG35="",FG36>0),FF35,IF(AND(FG35>0,FG36>0),FF35,"0")))) -> 0 | FG36: 32 | FH36: w | FI36: 1704.25 | FJ36: 400.13 | FK36: 1704.25,400.13 | FM36: =IF(AND(FN35="",FN36=""),"",IF(AND(FN35>0,FN36="",FN37>0),1+FM35,IF(AND(FN35="",FN36>0),FM35,IF(AND(FN35>0,FN36>0),FM35,"0")))) -> 2 | FN36: 141 | FO36: w | FP36: 1000 | FQ36: 1041.41 | FR36: 1000,1041.41 | FT36: =IF(AND(FU35="",FU36=""),"",IF(AND(FU35>0,FU36="",FU37>0),1+FT35,IF(AND(FU35="",FU36>0),FT35,IF(AND(FU35>0,FU36>0),FT35,"0")))) -> 0 | FU36: 32 | FV36: w | FW36: 1764.25 | FX36: 400.13 | FY36: 1764.25,400.13 | GA36: =IF(AND(GB35="",GB36=""),"",IF(AND(GB35>0,GB36="",GB37>0),1+GA35,IF(AND(GB35="",GB36>0),GA35,IF(AND(GB35>0,GB36>0),GA35,"0")))) -> 2 | GB36: 141 | GC36: w | GD36: 1000 | GE36: 1041.41 | GF36: 1000,1041.41 | GH36: =IF(AND(GI35="",GI36=""),"",IF(AND(GI35>0,GI36="",GI37>0),1+GH35,IF(AND(GI35="",GI36>0),GH35,IF(AND(GI35>0,GI36>0),GH35,"0")))) -> 0 | GI36: 32 | GJ36: w | GK36: 1824.25 | GL36: 400.13 | GM36: 1824.25,400.13 | GO36: =IF(AND(GP35="",GP36=""),"",IF(AND(GP35>0,GP36="",GP37>0),1+GO35,IF(AND(GP35="",GP36>0),GO35,IF(AND(GP35>0,GP36>0),GO35,"0")))) -> 2 | GP36: 141 | GQ36: w | GR36: 1000 | GS36: 1041.41 | GT36: 1000,1041.41 | GV36: =IF(AND(GW35="",GW36=""),"",IF(AND(GW35>0,GW36="",GW37>0),1+GV35,IF(AND(GW35="",GW36>0),GV35,IF(AND(GW35>0,GW36>0),GV35,"0")))) -> 0 | GW36: 32 | GX36: w | GY36: 1884.25 | GZ36: 400.13 | HA36: 1884.25,400.13 | HC36: =IF(AND(HD35="",HD36=""),"",IF(AND(HD35>0,HD36="",HD37>0),1+HC35,IF(AND(HD35="",HD36>0),HC35,IF(AND(HD35>0,HD36>0),HC35,"0")))) -> 2 | HD36: 141 | HE36: w | HF36: 1000 | HG36: 1041.41 | HH36: 1000,1041.41 | HJ36: =IF(AND(HK35="",HK36=""),"",IF(AND(HK35>0,HK36="",HK37>0),1+HJ35,IF(AND(HK35="",HK36>0),HJ35,IF(AND(HK35>0,HK36>0),HJ35,"0")))) -> 0 | HK36: 32 | HL36: w | HM36: 1944.25 | HN36: 400.13 | HO36: 1944.25,400.13 | HQ36: =IF(AND(HR35="",HR36=""),"",IF(AND(HR35>0,HR36="",HR37>0),1+HQ35,IF(AND(HR35="",HR36>0),HQ35,IF(AND(HR35>0,HR36>0),HQ35,"0")))) -> 2 | HR36: 141 | HS36: w | HT36: 1000 | HU36: 1041.41 | HV36: 1000,1041.41 | HX36: =IF(AND(HY35="",HY36=""),"",IF(AND(HY35>0,HY36="",HY37>0),1+HX35,IF(AND(HY35="",HY36>0),HX35,IF(AND(HY35>0,HY36>0),HX35,"0")))) -> 0 | HY36: 32 | HZ36: w | IA36: 2004.25 | IB36: 400.13 | IC36: 2004.25,400.13 | IE36: =IF(AND(IF35="",IF36=""),"",IF(AND(IF35>0,IF36="",IF37>0),1+IE35,IF(AND(IF35="",IF36>0),IE35,IF(AND(IF35>0,IF36>0),IE35,"0")))) -> 2 | IF36: 141 | IG36: w | IH36: 1000 | II36: 1041.41 | IJ36: 1000,1041.41 | IL36: =IF(AND(IM35="",IM36=""),"",IF(AND(IM35>0,IM36="",IM37>0),1+IL35,IF(AND(IM35="",IM36>0),IL35,IF(AND(IM35>0,IM36>0),IL35,"0")))) -> 0 | IM36: 32 | IN36: w | IO36: 2064.25 | IP36: 400.13 | IQ36: 2064.25,400.13 | IS36: =IF(AND(IT35="",IT36=""),"",IF(AND(IT35>0,IT36="",IT37>0),1+IS35,IF(AND(IT35="",IT36>0),IS35,IF(AND(IT35>0,IT36>0),IS35,"0")))) -> 2 | IT36: 141 | IU36: w | IV36: 1000 | IW36: 1041.41 | IX36: 1000,1041.41 | IZ36: =IF(AND(JA35="",JA36=""),"",IF(AND(JA35>0,JA36="",JA37>0),1+IZ35,IF(AND(JA35="",JA36>0),IZ35,IF(AND(JA35>0,JA36>0),IZ35,"0")))) -> 0 | JA36: 32 | JB36: w | JC36: 2124.25 | JD36: 400.13 | JE36: 2124.25,400.13 | JG36: =IF(AND(JH35="",JH36=""),"",IF(AND(JH35>0,JH36="",JH37>0),1+JG35,IF(AND(JH35="",JH36>0),JG35,IF(AND(JH35>0,JH36>0),JG35,"0")))) -> 2 | JH36: 141 | JI36: w | JJ36: 1000 | JK36: 1041.41 | JL36: 1000,1041.41 | JN36: =IF(AND(JO35="",JO36=""),"",IF(AND(JO35>0,JO36="",JO37>0),1+JN35,IF(AND(JO35="",JO36>0),JN35,IF(AND(JO35>0,JO36>0),JN35,"0")))) -> 0 | JO36: 32 | JP36: w | JQ36: 2184.25 | JR36: 400.13 | JS36: 2184.25,400.13 | JU36: =IF(AND(JV35="",JV36=""),"",IF(AND(JV35>0,JV36="",JV37>0),1+JU35,IF(AND(JV35="",JV36>0),JU35,IF(AND(JV35>0,JV36>0),JU35,"0")))) -> 2 | JV36: 141 | JW36: w | JX36: 1000 | JY36: 1041.41 | JZ36: 1000,1041.41 | KB36: =IF(AND(KC35="",KC36=""),"",IF(AND(KC35>0,KC36="",KC37>0),1+KB35,IF(AND(KC35="",KC36>0),KB35,IF(AND(KC35>0,KC36>0),KB35,"0")))) -> 0 | KC36: 32 | KD36: w | KE36: 2244.25 | KF36: 400.13 | KG36: 2244.25,400.13 | KI36: =IF(AND(KJ35="",KJ36=""),"",IF(AND(KJ35>0,KJ36="",KJ37>0),1+KI35,IF(AND(KJ35="",KJ36>0),KI35,IF(AND(KJ35>0,KJ36>0),KI35,"0")))) -> 2 | KJ36: 141 | KK36: w | KL36: 1000 | KM36: 1041.41 | KN36: 1000,1041.41 | KP36: =IF(AND(KQ35="",KQ36=""),"",IF(AND(KQ35>0,KQ36="",KQ37>0),1+KP35,IF(AND(KQ35="",KQ36>0),KP35,IF(AND(KQ35>0,KQ36>0),KP35,"0")))) -> 0 | KQ36: 32 | KR36: w | KS36: 2304.25 | KT36: 400.13 | KU36: 2304.25,400.13 | KW36: =IF(AND(KX35="",KX36=""),"",IF(AND(KX35>0,KX36="",KX37>0),1+KW35,IF(AND(KX35="",KX36>0),KW35,IF(AND(KX35>0,KX36>0),KW35,"0")))) -> 2 | KX36: 141 | KY36: w | KZ36: 1000 | LA36: 1041.41 | LB36: 1000,1041.41 | LD36: =IF(AND(LE35="",LE36=""),"",IF(AND(LE35>0,LE36="",LE37>0),1+LD35,IF(AND(LE35="",LE36>0),LD35,IF(AND(LE35>0,LE36>0),LD35,"0")))) -> 0 | LE36: 32 | LF36: w | LG36: 2364.25 | LH36: 400.13 | LI36: 2364.25,400.13 | LK36: =IF(AND(LL35="",LL36=""),"",IF(AND(LL35>0,LL36="",LL37>0),1+LK35,IF(AND(LL35="",LL36>0),LK35,IF(AND(LL35>0,LL36>0),LK35,"0")))) -> 0 | LL36: 32 | LM36: w | LN36: 2394.25 | LO36: 400.13 | LP36: 2394.25,400.13 | LR36: =IF(AND(LS35="",LS36=""),"",IF(AND(LS35>0,LS36="",LS37>0),1+LR35,IF(AND(LS35="",LS36>0),LR35,IF(AND(LS35>0,LS36>0),LR35,"0")))) -> 0 | LS36: 32 | LT36: w | LU36: 2424.25 | LV36: 400.13 | LW36: 2424.25,400.13 | LY36: =IF(AND(LZ35="",LZ36=""),"",IF(AND(LZ35>0,LZ36="",LZ37>0),1+LY35,IF(AND(LZ35="",LZ36>0),LY35,IF(AND(LZ35>0,LZ36>0),LY35,"0")))) -> 0 | LZ36: 32 | MA36: w | MB36: 2454.25 | MC36: 400.13 | MD36: 2454.25,400.13 | MF36: =IF(AND(MG35="",MG36=""),"",IF(AND(MG35>0,MG36="",MG37>0),1+MF35,IF(AND(MG35="",MG36>0),MF35,IF(AND(MG35>0,MG36>0),MF35,"0")))) -> 0 | MG36: 32 | MH36: w | MI36: 2484.25 | MJ36: 400.13 | MK36: 2484.25,400.13
A37: 1 | B37: 438 | C37: d | D37: 1005.09 | E37: 1021.52 | F37: 1005.09,1021.52 | H37: 0 | I37: 25 | J37: w | K37: 1030.66 | L37: 1004.03 | M37: 1030.66,1004.03 | O37: 5 | R37: 1000 | S37: 1100 | T37: PL 1000,1100 | V37: 2 | W37: 130 | X37: s | Y37: 1005.72 | Z37: 1040.06 | AA37: 1005.72,1040.06 C | AC37: 3 | AD37: 309 | AE37: w | AF37: 1000 | AG37: 1063.09 | AH37: 1000,1063.09 | AJ37: 3 | AK37: 384 | AL37: s | AM37: 1004.74 | AN37: 1060 | AO37: 1004.74,1060 | AQ37: 3 | AR37: 261 | AS37: s | AT37: 1004.34 | AU37: 1060.45 | AV37: 1004.34,1060.45 | AX37: 2 | AY37: 133 | AZ37: s | BA37: 1005.7 | BB37: 1040.01 | BC37: 1005.7,1040.01 C | BE37: 3 | BF37: 287 | BG37: w | BH37: 1000 | BI37: 1062.87 | BJ37: 1000,1062.87 | BL37: 2 | BM37: 218 | BN37: d | BO37: 1002.18 | BP37: 1042.3 | BQ37: 1002.18,1042.3 | BS37: 4 | BV37: 1000 | BW37: 1080 | BX37: PL 1000,1080 | BZ37: 3 | CA37: 87 | CB37: w | CC37: 1000.69 | CD37: 1055.79 | CE37: 1000.69,1055.79 | CG37: 2 | CJ37: 1000 | CK37: 1040 | CL37: PL 1000,1040 | CN37: 3 | CO37: 61 | CP37: s | CQ37: 1001.77 | CR37: 1065.12 | CS37: 1001.77,1065.12 | CU37: 4 | CV37: 397 | CW37: d | CX37: 1004.25 | CY37: 1084.62 | CZ37: 1004.25,1084.62 | DB37: 3 | DC37: 80 | DD37: W | DE37: 1000.68 | DF37: 1055.8 | DG37: 1000.68,1055.8 | DI37: 1 | DJ37: 374 | DK37: s | DL37: 1007.02 | DM37: 1019.28 | DN37: 1007.02,1019.28 | DP37: 3 | DQ37: 65 | DR37: s | DS37: 1001.79 | DT37: 1065.05 | DU37: 1001.79,1065.05 | DW37: 3 | DX37: 50 | DY37: s | DZ37: 1004.12 | EA37: 1063.05 | EB37: 1004.12,1063.05 | ED37: 3 | EE37: 81 | EF37: w | EG37: 1000.71 | EH37: 1055.76 | EI37: 1000.71,1055.76 | EK37: 3 | EL37: 265 | EM37: d | EN37: 1000 | EO37: 1061.19 | EP37: 1000,1061.19 | ER37: 3 | ES37: 62 | ET37: s | EU37: 1001.8 | EV37: 1065.04 | EW37: 1001.8,1065.04 | EY37: 2 | EZ37: 76 | FA37: d | FB37: 1000.76 | FC37: 1041.41 | FD37: 1000.76,1041.41 | FF37: 0 | FG37: 51 | FH37: a | FI37: 1703.74 | FJ37: 400.13 | FK37: 1703.74,400.13 | FM37: 2 | FN37: 76 | FO37: d | FP37: 1000.76 | FQ37: 1041.41 | FR37: 1000.76,1041.41 | FT37: 0 | FU37: 51 | FV37: a | FW37: 1763.74 | FX37: 400.13 | FY37: 1763.74,400.13 | GA37: 2 | GB37: 76 | GC37: d | GD37: 1000.76 | GE37: 1041.41 | GF37: 1000.76,1041.41 | GH37: 0 | GI37: 51 | GJ37: a | GK37: 1823.74 | GL37: 400.13 | GM37: 1823.74,400.13 | GO37: 2 | GP37: 76 | GQ37: d | GR37: 1000.76 | GS37: 1041.41 | GT37: 1000.76,1041.41 | GV37: 0 | GW37: 51 | GX37: a | GY37: 1883.74 | GZ37: 400.13 | HA37: 1883.74,400.13 | HC37: 2 | HD37: 76 | HE37: d | HF37: 1000.76 | HG37: 1041.41 | HH37: 1000.76,1041.41 | HJ37: 0 | HK37: 51 | HL37: a | HM37: 1943.74 | HN37: 400.13 | HO37: 1943.74,400.13 | HQ37: 2 | HR37: 76 | HS37: d | HT37: 1000.76 | HU37: 1041.41 | HV37: 1000.76,1041.41 | HX37: 0 | HY37: 51 | HZ37: a | IA37: 2003.74 | IB37: 400.13 | IC37: 2003.74,400.13 | IE37: 2 | IF37: 76 | IG37: d | IH37: 1000.76 | II37: 1041.41 | IJ37: 1000.76,1041.41 | IL37: 0 | IM37: 51 | IN37: a | IO37: 2063.74 | IP37: 400.13 | IQ37: 2063.74,400.13 | IS37: 2 | IT37: 76 | IU37: d | IV37: 1000.76 | IW37: 1041.41 | IX37: 1000.76,1041.41 | IZ37: 0 | JA37: 51 | JB37: a | JC37: 2123.74 | JD37: 400.13 | JE37: 2123.74,400.13 | JG37: 2 | JH37: 76 | JI37: d | JJ37: 1000.76 | JK37: 1041.41 | JL37: 1000.76,1041.41 | JN37: 0 | JO37: 51 | JP37: a | JQ37: 2183.74 | JR37: 400.13 | JS37: 2183.74,400.13 | JU37: 2 | JV37: 76 | JW37: d | JX37: 1000.76 | JY37: 1041.41 | JZ37: 1000.76,1041.41 | KB37: 0 | KC37: 51 | KD37: a | KE37: 2243.74 | KF37: 400.13 | KG37: 2243.74,400.13 | KI37: 2 | KJ37: 76 | KK37: d | KL37: 1000.76 | KM37: 1041.41 | KN37: 1000.76,1041.41 | KP37: 0 | KQ37: 51 | KR37: a | KS37: 2303.74 | KT37: 400.13 | KU37: 2303.74,400.13 | KW37: 2 | KX37: 76 | KY37: d | KZ37: 1000.76 | LA37: 1041.41 | LB37: 1000.76,1041.41 | LD37: 0 | LE37: 51 | LF37: a | LG37: 2363.74 | LH37: 400.13 | LI37: 2363.74,400.13 | LK37: 0 | LL37: 51 | LM37: a | LN37: 2393.74 | LO37: 400.13 | LP37: 2393.74,400.13 | LR37: 0 | LS37: 51 | LT37: a | LU37: 2423.74 | LV37: 400.13 | LW37: 2423.74,400.13 | LY37: 0 | LZ37: 51 | MA37: a | MB37: 2453.74 | MC37: 400.13 | MD37: 2453.74,400.13 | MF37: 0 | MG37: 51 | MH37: a | MI37: 2483.74 | MJ37: 400.13 | MK37: 2483.74,400.13
A38: 1 | B38: 15 | C38: s | D38: 1005.09 | E38: 1021.37 | F38: 1005.09,1021.37 | H38: 0 | I38: 35 | J38: a | K38: 1030.31 | L38: 1004.03 | M38: 1030.31,1004.03 | O38: 5 | P38: 265 | Q38: w | R38: 1000 | S38: 1102.65 | T38: 1000,1102.65 | V38: 3 | Y38: 1000 | Z38: 1060 | AA38: PL 1000,1060 | AC38: 3 | AD38: 282 | AE38: d | AF38: 1002.82 | AG38: 1063.09 | AH38: 1002.82,1063.09 | AJ38: 3 | AK38: 16 | AL38: a | AM38: 1004.58 | AN38: 1060 | AO38: 1004.58,1060 | AQ38: 3 | AR38: 30 | AS38: a | AT38: 1004.04 | AU38: 1060.45 | AV38: 1004.04,1060.45 | AX38: 3 | BA38: 1000 | BB38: 1060 | BC38: PL 1000,1060 | BE38: 3 | BF38: 282 | BG38: d | BH38: 1002.82 | BI38: 1062.87 | BJ38: 1002.82,1062.87 | BL38: 2 | BM38: 213 | BN38: s | BO38: 1002.18 | BP38: 1040.17 | BQ38: 1002.18,1040.17 | BS38: 4 | BT38: 124 | BU38: w | BV38: 1000 | BW38: 1081.24 | BX38: 1000,1081.24 | BZ38: 3 | CA38: 338 | CB38: d | CC38: 1004.07 | CD38: 1055.79 | CE38: 1004.07,1055.79 | CG38: 2 | CH38: 390 | CI38: a | CJ38: 996.1 | CK38: 1040 | CL38: 996.1,1040 | CN38: 3 | CO38: 12 | CP38: d | CQ38: 1001.89 | CR38: 1065.12 | CS38: 1001.89,1065.12 | CU38: 4 | CV38: 103 | CW38: s | CX38: 1004.25 | CY38: 1083.59 | CZ38: 1004.25,1083.59 | DB38: 3 | DC38: 340 | DD38: D | DE38: 1004.08 | DF38: 1055.8 | DG38: 1004.08,1055.8 | DI38: 1 | DJ38: 646 | DK38: a | DL38: 1000.56 | DM38: 1019.28 | DN38: 1000.56,1019.28 C | DP38: 3 | DQ38: 12 | DR38: d | DS38: 1001.91 | DT38: 1065.05 | DU38: 1001.91,1065.05 | DW38: 3 | DX38: 12 | DY38: d | DZ38: 1004.24 | EA38: 1063.05 | EB38: 1004.24,1063.05 | ED38: 3 | EE38: 335 | EF38: d | EG38: 1004.06 | EH38: 1055.76 | EI38: 1004.06,1055.76 | EK38: 3 | EL38: 119 | EM38: s | EN38: 1000 | EO38: 1060 | EP38: 1000,1060 C | ER38: 3 | ES38: 12 | ET38: d | EU38: 1001.92 | EV38: 1065.04 | EW38: 1001.92,1065.04 | EY38: 2 | EZ38: 10 | FA38: w | FB38: 1000.76 | FC38: 1041.51 | FD38: 1000.76,1041.51 | FF38: 0 | FG38: 32 | FH38: s | FI38: 1703.74 | FJ38: 399.81 | FK38: 1703.74,399.81 | FM38: 2 | FN38: 10 | FO38: w | FP38: 1000.76 | FQ38: 1041.51 | FR38: 1000.76,1041.51 | FT38: 0 | FU38: 32 | FV38: s | FW38: 1763.74 | FX38: 399.81 | FY38: 1763.74,399.81 | GA38: 2 | GB38: 10 | GC38: w | GD38: 1000.76 | GE38: 1041.51 | GF38: 1000.76,1041.51 | GH38: 0 | GI38: 32 | GJ38: s | GK38: 1823.74 | GL38: 399.81 | GM38: 1823.74,399.81 | GO38: 2 | GP38: 10 | GQ38: w | GR38: 1000.76 | GS38: 1041.51 | GT38: 1000.76,1041.51 | GV38: 0 | GW38: 32 | GX38: s | GY38: 1883.74 | GZ38: 399.81 | HA38: 1883.74,399.81 | HC38: 2 | HD38: 10 | HE38: w | HF38: 1000.76 | HG38: 1041.51 | HH38: 1000.76,1041.51 | HJ38: 0 | HK38: 32 | HL38: s | HM38: 1943.74 | HN38: 399.81 | HO38: 1943.74,399.81 | HQ38: 2 | HR38: 10 | HS38: w | HT38: 1000.76 | HU38: 1041.51 | HV38: 1000.76,1041.51 | HX38: 0 | HY38: 32 | HZ38: s | IA38: 2003.74 | IB38: 399.81 | IC38: 2003.74,399.81 | IE38: 2 | IF38: 10 | IG38: w | IH38: 1000.76 | II38: 1041.51 | IJ38: 1000.76,1041.51 | IL38: 0 | IM38: 32 | IN38: s | IO38: 2063.74 | IP38: 399.81 | IQ38: 2063.74,399.81 | IS38: 2 | IT38: 10 | IU38: w | IV38: 1000.76 | IW38: 1041.51 | IX38: 1000.76,1041.51 | IZ38: 0 | JA38: 32 | JB38: s | JC38: 2123.74 | JD38: 399.81 | JE38: 2123.74,399.81 | JG38: 2 | JH38: 10 | JI38: w | JJ38: 1000.76 | JK38: 1041.51 | JL38: 1000.76,1041.51 | JN38: 0 | JO38: 32 | JP38: s | JQ38: 2183.74 | JR38: 399.81 | JS38: 2183.74,399.81 | JU38: 2 | JV38: 10 | JW38: w | JX38: 1000.76 | JY38: 1041.51 | JZ38: 1000.76,1041.51 | KB38: 0 | KC38: 32 | KD38: s | KE38: 2243.74 | KF38: 399.81 | KG38: 2243.74,399.81 | KI38: 2 | KJ38: 10 | KK38: w | KL38: 1000.76 | KM38: 1041.51 | KN38: 1000.76,1041.51 | KP38: 0 | KQ38: 32 | KR38: s | KS38: 2303.74 | KT38: 399.81 | KU38: 2303.74,399.81 | KW38: 2 | KX38: 10 | KY38: w | KZ38: 1000.76 | LA38: 1041.51 | LB38: 1000.76,1041.51 | LD38: 0 | LE38: 32 | LF38: s | LG38: 2363.74 | LH38: 399.81 | LI38: 2363.74,399.81 | LK38: 0 | LL38: 32 | LM38: s | LN38: 2393.74 | LO38: 399.81 | LP38: 2393.74,399.81 | LR38: 0 | LS38: 32 | LT38: s | LU38: 2423.74 | LV38: 399.81 | LW38: 2423.74,399.81 | LY38: 0 | LZ38: 32 | MA38: s | MB38: 2453.74 | MC38: 399.81 | MD38: 2453.74,399.81 | MF38: 0 | MG38: 32 | MH38: s | MI38: 2483.74 | MJ38: 399.81 | MK38: 2483.74,399.81
A39: 1 | B39: 64 | C39: d | D39: 1005.73 | E39: 1021.37 | F39: 1005.73,1021.37 | H39: 0 | I39: 430 | J39: w | K39: 1030.31 | L39: 1008.33 | M39: 1030.31,1008.33 | O39: 5 | P39: 26 | Q39: d | R39: 1000.26 | S39: 1102.65 | T39: 1000.26,1102.65 | V39: 3 | W39: 313 | X39: a | Y39: 996.87 | Z39: 1060 | AA39: 996.87,1060 | AC39: 3 | AD39: 310 | AE39: s | AF39: 1002.82 | AG39: 1059.99 | AH39: 1002.82,1059.99 | AJ39: 3 | AK39: 26 | AL39: s | AM39: 1004.58 | AN39: 1059.74 | AO39: 1004.58,1059.74 | AQ39: 3 | AR39: 80 | AS39: s | AT39: 1004.04 | AU39: 1059.65 | AV39: 1004.04,1059.65 | AX39: 3 | AY39: 62 | AZ39: w | BA39: 1000 | BB39: 1060.62 | BC39: 1000,1060.62 | BE39: 3 | BF39: 288 | BG39: s | BH39: 1002.82 | BI39: 1059.99 | BJ39: 1002.82,1059.99 | BL39: 2 | BM39: 32 | BN39: a | BO39: 1001.86 | BP39: 1040.17 | BQ39: 1001.86,1040.17 | BS39: 4 | BT39: 236 | BU39: d | BV39: 1002.36 | BW39: 1081.24 | BX39: 1002.36,1081.24 | BZ39: 3 | CA39: 31 | CB39: w | CC39: 1004.07 | CD39: 1056.1 | CE39: 1004.07,1056.1 C | CG39: 2 | CH39: 137 | CI39: w | CJ39: 996.1 | CK39: 1041.37 | CL39: 996.1,1041.37 | CN39: 3 | CO39: 81 | CP39: w | CQ39: 1001.89 | CR39: 1065.93 | CS39: 1001.89,1065.93 | CU39: 4 | CV39: 12 | CW39: a | CX39: 1004.13 | CY39: 1083.59 | CZ39: 1004.13,1083.59 | DB39: 3 | DC39: 30 | DD39: W | DE39: 1004.08 | DF39: 1056.1 | DG39: 1004.08,1056.1 C | DI39: 2 | DL39: 1000 | DM39: 1040 | DN39: PL 1000,1040 | DP39: 3 | DQ39: 80 | DR39: w | DS39: 1001.91 | DT39: 1065.85 | DU39: 1001.91,1065.85 | DW39: 3 | DX39: 173 | DY39: s | DZ39: 1004.24 | EA39: 1061.32 | EB39: 1004.24,1061.32 | ED39: 3 | EE39: 29 | EF39: w | EG39: 1004.06 | EH39: 1056.05 | EI39: 1004.06,1056.05 C | EK39: 4 | EN39: 1000 | EO39: 1080 | EP39: PL 1000,1080 | ER39: 3 | ES39: 81 | ET39: w | EU39: 1001.92 | EV39: 1065.85 | EW39: 1001.92,1065.85 | EY39: 2 | EZ39: 433 | FA39: d | FB39: 1005.09 | FC39: 1041.51 | FD39: 1005.09,1041.51 | FF39: 0 | FG39: 458 | FH39: a | FI39: 1699.16 | FJ39: 399.81 | FK39: 1699.16,399.81 | FM39: 2 | FN39: 433 | FO39: d | FP39: 1005.09 | FQ39: 1041.51 | FR39: 1005.09,1041.51 | FT39: 0 | FU39: 458 | FV39: a | FW39: 1759.16 | FX39: 399.81 | FY39: 1759.16,399.81 | GA39: 2 | GB39: 433 | GC39: d | GD39: 1005.09 | GE39: 1041.51 | GF39: 1005.09,1041.51 | GH39: 0 | GI39: 458 | GJ39: a | GK39: 1819.16 | GL39: 399.81 | GM39: 1819.16,399.81 | GO39: 2 | GP39: 433 | GQ39: d | GR39: 1005.09 | GS39: 1041.51 | GT39: 1005.09,1041.51 | GV39: 0 | GW39: 458 | GX39: a | GY39: 1879.16 | GZ39: 399.81 | HA39: 1879.16,399.81 | HC39: 2 | HD39: 433 | HE39: d | HF39: 1005.09 | HG39: 1041.51 | HH39: 1005.09,1041.51 | HJ39: 0 | HK39: 458 | HL39: a | HM39: 1939.16 | HN39: 399.81 | HO39: 1939.16,399.81 | HQ39: 2 | HR39: 433 | HS39: d | HT39: 1005.09 | HU39: 1041.51 | HV39: 1005.09,1041.51 | HX39: 0 | HY39: 458 | HZ39: a | IA39: 1999.16 | IB39: 399.81 | IC39: 1999.16,399.81 | IE39: 2 | IF39: 433 | IG39: d | IH39: 1005.09 | II39: 1041.51 | IJ39: 1005.09,1041.51 | IL39: 0 | IM39: 458 | IN39: a | IO39: 2059.16 | IP39: 399.81 | IQ39: 2059.16,399.81 | IS39: 2 | IT39: 433 | IU39: d | IV39: 1005.09 | IW39: 1041.51 | IX39: 1005.09,1041.51 | IZ39: 0 | JA39: 458 | JB39: a | JC39: 2119.16 | JD39: 399.81 | JE39: 2119.16,399.81 | JG39: 2 | JH39: 433 | JI39: d | JJ39: 1005.09 | JK39: 1041.51 | JL39: 1005.09,1041.51 | JN39: 0 | JO39: 458 | JP39: a | JQ39: 2179.16 | JR39: 399.81 | JS39: 2179.16,399.81 | JU39: 2 | JV39: 433 | JW39: d | JX39: 1005.09 | JY39: 1041.51 | JZ39: 1005.09,1041.51 | KB39: 0 | KC39: 458 | KD39: a | KE39: 2239.16 | KF39: 399.81 | KG39: 2239.16,399.81 | KI39: 2 | KJ39: 433 | KK39: d | KL39: 1005.09 | KM39: 1041.51 | KN39: 1005.09,1041.51 | KP39: 0 | KQ39: 458 | KR39: a | KS39: 2299.16 | KT39: 399.81 | KU39: 2299.16,399.81 | KW39: 2 | KX39: 433 | KY39: d | KZ39: 1005.09 | LA39: 1041.51 | LB39: 1005.09,1041.51 | LD39: 0 | LE39: 458 | LF39: a | LG39: 2359.16 | LH39: 399.81 | LI39: 2359.16,399.81 | LK39: 0 | LL39: 458 | LM39: a | LN39: 2389.16 | LO39: 399.81 | LP39: 2389.16,399.81 | LR39: 0 | LS39: 458 | LT39: a | LU39: 2419.16 | LV39: 399.81 | LW39: 2419.16,399.81 | LY39: 0 | LZ39: 458 | MA39: a | MB39: 2449.16 | MC39: 399.81 | MD39: 2449.16,399.81 | MF39: 0 | MG39: 458 | MH39: a | MI39: 2479.16 | MJ39: 399.81 | MK39: 2479.16,399.81
A40: 1 | B40: 132 | C40: s | D40: 1005.73 | E40: 1020.05 | F40: 1005.73,1020.05 C | H40: 0 | I40: 12 | J40: d | K40: 1030.43 | L40: 1008.33 | M40: 1030.43,1008.33 | O40: 5 | P40: 125 | Q40: w | R40: 1000.26 | S40: 1103.9 | T40: 1000.26,1103.9 | V40: 3 | W40: 128 | X40: w | Y40: 996.87 | Z40: 1061.28 | AA40: 996.87,1061.28 | AC40: 3 | AD40: 69 | AE40: a | AF40: 1002.13 | AG40: 1059.99 | AH40: 1002.13,1059.99 | AJ40: 3 | AK40: 224 | AL40: a | AM40: 1002.34 | AN40: 1059.74 | AO40: 1002.34,1059.74 | AQ40: 3 | AR40: 30 | AS40: d | AT40: 1004.34 | AU40: 1059.65 | AV40: 1004.34,1059.65 | AX40: 3 | AY40: 413 | AZ40: a | BA40: 995.87 | BB40: 1060.62 | BC40: 995.87,1060.62 | BE40: 3 | BF40: 70 | BG40: a | BH40: 1002.12 | BI40: 1059.99 | BJ40: 1002.12,1059.99 | BL40: 2 | BM40: 16 | BN40: s | BO40: 1001.86 | BP40: 1040.01 | BQ40: 1001.86,1040.01 | BS40: 4 | BT40: 186 | BU40: s | BV40: 1002.36 | BW40: 1079.38 | BX40: 1002.36,1079.38 | BZ40: 4 | CC40: 1000 | CD40: 1080 | CE40: PL 1000,1080 | CG40: 2 | CH40: 390 | CI40: d | CJ40: 1000 | CK40: 1041.37 | CL40: 1000,1041.37 | CN40: 3 | CO40: 281 | CP40: d | CQ40: 1004.7 | CR40: 1065.93 | CS40: 1004.7,1065.93 | CU40: 4 | CV40: 50 | CW40: s | CX40: 1004.13 | CY40: 1083.09 | CZ40: 1004.13,1083.09 | DB40: 4 | DE40: 1000 | DF40: 1080 | DG40: PL 1000,1080 | DI40: 2 | DJ40: 288 | DK40: w | DL40: 1000 | DM40: 1042.88 | DN40: 1000,1042.88 | DP40: 3 | DQ40: 280 | DR40: d | DS40: 1004.71 | DT40: 1065.85 | DU40: 1004.71,1065.85 | DW40: 3 | DX40: 30 | DY40: a | DZ40: 1003.94 | EA40: 1061.32 | EB40: 1003.94,1061.32 | ED40: 4 | EG40: 1000 | EH40: 1080 | EI40: PL 1000,1080 | EK40: 4 | EL40: 194 | EM40: w | EN40: 1000 | EO40: 1081.94 | EP40: 1000,1081.94 | ER40: 3 | ES40: 278 | ET40: d | EU40: 1004.7 | EV40: 1065.85 | EW40: 1004.7,1065.85 | EY40: 2 | EZ40: 10 | FA40: s | FB40: 1005.09 | FC40: 1041.41 | FD40: 1005.09,1041.41 | FF40: 0 | FG40: 80 | FH40: w | FI40: 1699.16 | FJ40: 400.61 | FK40: 1699.16,400.61 | FM40: 2 | FN40: 10 | FO40: s | FP40: 1005.09 | FQ40: 1041.41 | FR40: 1005.09,1041.41 | FT40: 0 | FU40: 80 | FV40: w | FW40: 1759.16 | FX40: 400.61 | FY40: 1759.16,400.61 | GA40: 2 | GB40: 10 | GC40: s | GD40: 1005.09 | GE40: 1041.41 | GF40: 1005.09,1041.41 | GH40: 0 | GI40: 80 | GJ40: w | GK40: 1819.16 | GL40: 400.61 | GM40: 1819.16,400.61 | GO40: 2 | GP40: 10 | GQ40: s | GR40: 1005.09 | GS40: 1041.41 | GT40: 1005.09,1041.41 | GV40: 0 | GW40: 80 | GX40: w | GY40: 1879.16 | GZ40: 400.61 | HA40: 1879.16,400.61 | HC40: 2 | HD40: 10 | HE40: s | HF40: 1005.09 | HG40: 1041.41 | HH40: 1005.09,1041.41 | HJ40: 0 | HK40: 80 | HL40: w | HM40: 1939.16 | HN40: 400.61 | HO40: 1939.16,400.61 | HQ40: 2 | HR40: 10 | HS40: s | HT40: 1005.09 | HU40: 1041.41 | HV40: 1005.09,1041.41 | HX40: 0 | HY40: 80 | HZ40: w | IA40: 1999.16 | IB40: 400.61 | IC40: 1999.16,400.61 | IE40: 2 | IF40: 10 | IG40: s | IH40: 1005.09 | II40: 1041.41 | IJ40: 1005.09,1041.41 | IL40: 0 | IM40: 80 | IN40: w | IO40: 2059.16 | IP40: 400.61 | IQ40: 2059.16,400.61 | IS40: 2 | IT40: 10 | IU40: s | IV40: 1005.09 | IW40: 1041.41 | IX40: 1005.09,1041.41 | IZ40: 0 | JA40: 80 | JB40: w | JC40: 2119.16 | JD40: 400.61 | JE40: 2119.16,400.61 | JG40: 2 | JH40: 10 | JI40: s | JJ40: 1005.09 | JK40: 1041.41 | JL40: 1005.09,1041.41 | JN40: 0 | JO40: 80 | JP40: w | JQ40: 2179.16 | JR40: 400.61 | JS40: 2179.16,400.61 | JU40: 2 | JV40: 10 | JW40: s | JX40: 1005.09 | JY40: 1041.41 | JZ40: 1005.09,1041.41 | KB40: 0 | KC40: 80 | KD40: w | KE40: 2239.16 | KF40: 400.61 | KG40: 2239.16,400.61 | KI40: 2 | KJ40: 10 | KK40: s | KL40: 1005.09 | KM40: 1041.41 | KN40: 1005.09,1041.41 | KP40: 0 | KQ40: 80 | KR40: w | KS40: 2299.16 | KT40: 400.61 | KU40: 2299.16,400.61 | KW40: 2 | KX40: 10 | KY40: s | KZ40: 1005.09 | LA40: 1041.41 | LB40: 1005.09,1041.41 | LD40: 0 | LE40: 80 | LF40: w | LG40: 2359.16 | LH40: 400.61 | LI40: 2359.16,400.61 | LK40: 0 | LL40: 80 | LM40: w | LN40: 2389.16 | LO40: 400.61 | LP40: 2389.16,400.61 | LR40: 0 | LS40: 80 | LT40: w | LU40: 2419.16 | LV40: 400.61 | LW40: 2419.16,400.61 | LY40: 0 | LZ40: 80 | MA40: w | MB40: 2449.16 | MC40: 400.61 | MD40: 2449.16,400.61 | MF40: 0 | MG40: 80 | MH40: w | MI40: 2479.16 | MJ40: 400.61 | MK40: 2479.16,400.61
A41: 2 | D41: 1000 | E41: 1040 | F41: PL 1000,1040 | H41: 0 | I41: 25 | J41: w | K41: 1030.43 | L41: 1008.58 | M41: 1030.43,1008.58 | O41: 5 | P41: 402 | Q41: d | R41: 1004.28 | S41: 1103.9 | T41: 1004.28,1103.9 | V41: 3 | W41: 17 | X41: a | Y41: 996.7 | Z41: 1061.28 | AA41: 996.7,1061.28 | AC41: 3 | AD41: 25 | AE41: w | AF41: 1002.13 | AG41: 1060.24 | AH41: 1002.13,1060.24 | AJ41: 3 | AK41: 133 | AL41: s | AM41: 1002.34 | AN41: 1058.41 | AO41: 1002.34,1058.41 | AQ41: 3 | AR41: 61 | AS41: s | AT41: 1004.34 | AU41: 1059.04 | AV41: 1004.34,1059.04 | AX41: 3 | AY41: 124 | AZ41: s | BA41: 995.87 | BB41: 1059.38 | BC41: 995.87,1059.38 | BE41: 3 | BF41: 25 | BG41: w | BH41: 1002.12 | BI41: 1060.24 | BJ41: 1002.12,1060.24 | BL41: 2 | BM41: 186 | BN41: a | BO41: 1000 | BP41: 1040.01 | BQ41: 1000,1040.01 C | BS41: 4 | BT41: 162 | BU41: a | BV41: 1000.74 | BW41: 1079.38 | BX41: 1000.74,1079.38 C | BZ41: 4 | CA41: 137 | CB41: w | CC41: 1000 | CD41: 1081.37 | CE41: 1000,1081.37 | CG41: 2 | CH41: 137 | CI41: s | CJ41: 1000 | CK41: 1040 | CL41: 1000,1040 C | CN41: 3 | CO41: 46 | CP41: s | CQ41: 1004.7 | CR41: 1065.47 | CS41: 1004.7,1065.47 | CU41: 4 | CV41: 10 | CW41: d | CX41: 1004.23 | CY41: 1083.09 | CZ41: 1004.23,1083.09 | DB41: 4 | DC41: 139 | DD41: W | DE41: 1000 | DF41: 1081.39 | DG41: 1000,1081.39 | DI41: 2 | DJ41: 289 | DK41: d | DL41: 1002.89 | DM41: 1042.88 | DN41: 1002.89,1042.88 | DP41: 3 | DQ41: 46 | DR41: s | DS41: 1004.71 | DT41: 1065.39 | DU41: 1004.71,1065.39 | DW41: 3 | DX41: 168 | DY41: s | DZ41: 1003.94 | EA41: 1059.64 | EB41: 1003.94,1059.64 | ED41: 4 | EE41: 141 | EF41: w | EG41: 1000 | EH41: 1081.41 | EI41: 1000,1081.41 | EK41: 4 | EL41: 12 | EM41: a | EN41: 999.88 | EO41: 1081.94 | EP41: 999.88,1081.94 | ER41: 3 | ES41: 43 | ET41: s | EU41: 1004.7 | EV41: 1065.42 | EW41: 1004.7,1065.42 | EY41: 2 | EZ41: 63 | FA41: d | FB41: 1005.72 | FC41: 1041.41 | FD41: 1005.72,1041.41 | FF41: 0 | FG41: 30 | FH41: a | FI41: 1698.86 | FJ41: 400.61 | FK41: 1698.86,400.61 | FM41: 2 | FN41: 63 | FO41: d | FP41: 1005.72 | FQ41: 1041.41 | FR41: 1005.72,1041.41 | FT41: 0 | FU41: 30 | FV41: a | FW41: 1758.86 | FX41: 400.61 | FY41: 1758.86,400.61 | GA41: 2 | GB41: 63 | GC41: d | GD41: 1005.72 | GE41: 1041.41 | GF41: 1005.72,1041.41 | GH41: 0 | GI41: 30 | GJ41: a | GK41: 1818.86 | GL41: 400.61 | GM41: 1818.86,400.61 | GO41: 2 | GP41: 63 | GQ41: d | GR41: 1005.72 | GS41: 1041.41 | GT41: 1005.72,1041.41 | GV41: 0 | GW41: 30 | GX41: a | GY41: 1878.86 | GZ41: 400.61 | HA41: 1878.86,400.61 | HC41: 2 | HD41: 63 | HE41: d | HF41: 1005.72 | HG41: 1041.41 | HH41: 1005.72,1041.41 | HJ41: 0 | HK41: 30 | HL41: a | HM41: 1938.86 | HN41: 400.61 | HO41: 1938.86,400.61 | HQ41: 2 | HR41: 63 | HS41: d | HT41: 1005.72 | HU41: 1041.41 | HV41: 1005.72,1041.41 | HX41: 0 | HY41: 30 | HZ41: a | IA41: 1998.86 | IB41: 400.61 | IC41: 1998.86,400.61 | IE41: 2 | IF41: 63 | IG41: d | IH41: 1005.72 | II41: 1041.41 | IJ41: 1005.72,1041.41 | IL41: 0 | IM41: 30 | IN41: a | IO41: 2058.86 | IP41: 400.61 | IQ41: 2058.86,400.61 | IS41: 2 | IT41: 63 | IU41: d | IV41: 1005.72 | IW41: 1041.41 | IX41: 1005.72,1041.41 | IZ41: 0 | JA41: 30 | JB41: a | JC41: 2118.86 | JD41: 400.61 | JE41: 2118.86,400.61 | JG41: 2 | JH41: 63 | JI41: d | JJ41: 1005.72 | JK41: 1041.41 | JL41: 1005.72,1041.41 | JN41: 0 | JO41: 30 | JP41: a | JQ41: 2178.86 | JR41: 400.61 | JS41: 2178.86,400.61 | JU41: 2 | JV41: 63 | JW41: d | JX41: 1005.72 | JY41: 1041.41 | JZ41: 1005.72,1041.41 | KB41: 0 | KC41: 30 | KD41: a | KE41: 2238.86 | KF41: 400.61 | KG41: 2238.86,400.61 | KI41: 2 | KJ41: 63 | KK41: d | KL41: 1005.72 | KM41: 1041.41 | KN41: 1005.72,1041.41 | KP41: 0 | KQ41: 30 | KR41: a | KS41: 2298.86 | KT41: 400.61 | KU41: 2298.86,400.61 | KW41: 2 | KX41: 63 | KY41: d | KZ41: 1005.72 | LA41: 1041.41 | LB41: 1005.72,1041.41 | LD41: 0 | LE41: 30 | LF41: a | LG41: 2358.86 | LH41: 400.61 | LI41: 2358.86,400.61 | LK41: 0 | LL41: 30 | LM41: a | LN41: 2388.86 | LO41: 400.61 | LP41: 2388.86,400.61 | LR41: 0 | LS41: 30 | LT41: a | LU41: 2418.86 | LV41: 400.61 | LW41: 2418.86,400.61 | LY41: 0 | LZ41: 30 | MA41: a | MB41: 2448.86 | MC41: 400.61 | MD41: 2448.86,400.61 | MF41: 0 | MG41: 30 | MH41: a | MI41: 2478.86 | MJ41: 400.61 | MK41: 2478.86,400.61
A42: 2 | B42: 484 | C42: w | D42: 1000 | E42: 1044.84 | F42: 1000,1044.84 | H42: 0 | I42: 225 | J42: d | K42: 1032.68 | L42: 1008.58 | M42: 1032.68,1008.58 | O42: 5 | P42: 100 | Q42: s | R42: 1004.28 | S42: 1102.9 | T42: 1004.28,1102.9 | V42: 3 | W42: 23 | X42: w | Y42: 996.7 | Z42: 1061.51 | AA42: 996.7,1061.51 | AC42: 3 | AD42: 50 | AE42: a | AF42: 1001.63 | AG42: 1060.24 | AH42: 1001.63,1060.24 | AJ42: 3 | AK42: 239 | AL42: a | AM42: 999.95 | AN42: 1058.41 | AO42: 999.95,1058.41 | AQ42: 3 | AR42: 2 | AS42: a | AT42: 1004.32 | AU42: 1059.04 | AV42: 1004.32,1059.04 | AX42: 3 | AY42: 315 | AZ42: d | BA42: 999.02 | BB42: 1059.38 | BC42: 999.02,1059.38 C | BE42: 3 | BF42: 51 | BG42: a | BH42: 1001.61 | BI42: 1060.24 | BJ42: 1001.61,1060.24 | BL42: 3 | BO42: 1000 | BP42: 1060 | BQ42: PL 1000,1060 | BS42: 0 | BZ42: 4 | CA42: 73 | CB42: d | CC42: 1000.73 | CD42: 1081.37 | CE42: 1000.73,1081.37 | CG42: 3 | CJ42: 1000 | CK42: 1060 | CL42: PL 1000,1060 | CN42: 3 | CO42: 3 | CP42: d | CQ42: 1004.73 | CR42: 1065.47 | CS42: 1004.73,1065.47 | CU42: 4 | CV42: 204 | CW42: s | CX42: 1004.23 | CY42: 1081.05 | CZ42: 1004.23,1081.05 | DB42: 4 | DC42: 75 | DD42: D | DE42: 1000.75 | DF42: 1081.39 | DG42: 1000.75,1081.39 | DI42: 2 | DJ42: 287 | DK42: s | DL42: 1002.89 | DM42: 1040.01 | DN42: 1002.89,1040.01 | DP42: 3 | DQ42: 2 | DR42: d | DS42: 1004.73 | DT42: 1065.39 | DU42: 1004.73,1065.39 | DW42: 3 | DX42: 30 | DY42: d | DZ42: 1004.24 | EA42: 1059.64 | EB42: 1004.24,1059.64 | ED42: 4 | EE42: 76 | EF42: d | EG42: 1000.76 | EH42: 1081.41 | EI42: 1000.76,1081.41 | EK42: 4 | EL42: 259 | EM42: w | EN42: 999.88 | EO42: 1084.53 | EP42: 999.88,1084.53 | ER42: 3 | ES42: 3 | ET42: d | EU42: 1004.73 | EV42: 1065.42 | EW42: 1004.73,1065.42 | EY42: 2 | EZ42: 133 | FA42: s | FB42: 1005.72 | FC42: 1040.08 | FD42: 1005.72,1040.08 C | FF42: 0 | FG42: 105 | FH42: s | FI42: 1698.86 | FJ42: 399.56 | FK42: 1698.86,399.56 | FM42: 2 | FN42: 133 | FO42: s | FP42: 1005.72 | FQ42: 1040.08 | FR42: 1005.72,1040.08 C | FT42: 0 | FU42: 105 | FV42: s | FW42: 1758.86 | FX42: 399.56 | FY42: 1758.86,399.56 | GA42: 2 | GB42: 133 | GC42: s | GD42: 1005.72 | GE42: 1040.08 | GF42: 1005.72,1040.08 C | GH42: 0 | GI42: 105 | GJ42: s | GK42: 1818.86 | GL42: 399.56 | GM42: 1818.86,399.56 | GO42: 2 | GP42: 133 | GQ42: s | GR42: 1005.72 | GS42: 1040.08 | GT42: 1005.72,1040.08 C | GV42: 0 | GW42: 105 | GX42: s | GY42: 1878.86 | GZ42: 399.56 | HA42: 1878.86,399.56 | HC42: 2 | HD42: 133 | HE42: s | HF42: 1005.72 | HG42: 1040.08 | HH42: 1005.72,1040.08 C | HJ42: 0 | HK42: 105 | HL42: s | HM42: 1938.86 | HN42: 399.56 | HO42: 1938.86,399.56 | HQ42: 2 | HR42: 133 | HS42: s | HT42: 1005.72 | HU42: 1040.08 | HV42: 1005.72,1040.08 C | HX42: 0 | HY42: 105 | HZ42: s | IA42: 1998.86 | IB42: 399.56 | IC42: 1998.86,399.56 | IE42: 2 | IF42: 133 | IG42: s | IH42: 1005.72 | II42: 1040.08 | IJ42: 1005.72,1040.08 C | IL42: 0 | IM42: 105 | IN42: s | IO42: 2058.86 | IP42: 399.56 | IQ42: 2058.86,399.56 | IS42: 2 | IT42: 133 | IU42: s | IV42: 1005.72 | IW42: 1040.08 | IX42: 1005.72,1040.08 C | IZ42: 0 | JA42: 105 | JB42: s | JC42: 2118.86 | JD42: 399.56 | JE42: 2118.86,399.56 | JG42: 2 | JH42: 133 | JI42: s | JJ42: 1005.72 | JK42: 1040.08 | JL42: 1005.72,1040.08 C | JN42: 0 | JO42: 105 | JP42: s | JQ42: 2178.86 | JR42: 399.56 | JS42: 2178.86,399.56 | JU42: 2 | JV42: 133 | JW42: s | JX42: 1005.72 | JY42: 1040.08 | JZ42: 1005.72,1040.08 C | KB42: 0 | KC42: 105 | KD42: s | KE42: 2238.86 | KF42: 399.56 | KG42: 2238.86,399.56 | KI42: 2 | KJ42: 133 | KK42: s | KL42: 1005.72 | KM42: 1040.08 | KN42: 1005.72,1040.08 C | KP42: 0 | KQ42: 105 | KR42: s | KS42: 2298.86 | KT42: 399.56 | KU42: 2298.86,399.56 | KW42: 2 | KX42: 133 | KY42: s | KZ42: 1005.72 | LA42: 1040.08 | LB42: 1005.72,1040.08 C | LD42: 0 | LE42: 105 | LF42: s | LG42: 2358.86 | LH42: 399.56 | LI42: 2358.86,399.56 | LK42: 0 | LL42: 105 | LM42: s | LN42: 2388.86 | LO42: 399.56 | LP42: 2388.86,399.56 | LR42: 0 | LS42: 105 | LT42: s | LU42: 2418.86 | LV42: 399.56 | LW42: 2418.86,399.56 | LY42: 0 | LZ42: 105 | MA42: s | MB42: 2448.86 | MC42: 399.56 | MD42: 2448.86,399.56 | MF42: 0 | MG42: 105 | MH42: s | MI42: 2478.86 | MJ42: 399.56 | MK42: 2478.86,399.56
A43: 2 | B43: 143 | C43: d | D43: 1001.43 | E43: 1044.84 | F43: 1001.43,1044.84 | H43: 0 | I43: 136 | J43: w | K43: 1032.68 | L43: 1009.94 | M43: 1032.68,1009.94 | O43: 5 | P43: 13 | Q43: a | R43: 1004.15 | S43: 1102.9 | T43: 1004.15,1102.9 | V43: 3 | W43: 410 | X43: d | Y43: 1000.8 | Z43: 1061.51 | AA43: 1000.8,1061.51 | AC43: 3 | AD43: 25 | AE43: s | AF43: 1001.63 | AG43: 1059.99 | AH43: 1001.63,1059.99 | AJ43: 3 | AK43: 110 | AL43: w | AM43: 999.95 | AN43: 1059.51 | AO43: 999.95,1059.51 | AQ43: 3 | AR43: 17 | AS43: s | AT43: 1004.32 | AU43: 1058.87 | AV43: 1004.32,1058.87 | AX43: 4 | BA43: 1000 | BB43: 1080 | BC43: PL 1000,1080 | BE43: 3 | BF43: 25 | BG43: s | BH43: 1001.61 | BI43: 1059.99 | BJ43: 1001.61,1059.99 | BL43: 3 | BM43: 398 | BN43: w | BO43: 1000 | BP43: 1063.98 | BQ43: 1000,1063.98 | BZ43: 4 | CA43: 15 | CB43: w | CC43: 1000.73 | CD43: 1081.52 | CE43: 1000.73,1081.52 | CG43: 3 | CH43: 363 | CI43: w | CJ43: 1000 | CK43: 1063.63 | CL43: 1000,1063.63 | CN43: 3 | CO43: 384 | CP43: s | CQ43: 1004.73 | CR43: 1061.63 | CS43: 1004.73,1061.63 | CU43: 4 | CV43: 31 | CW43: a | CX43: 1003.92 | CY43: 1081.05 | CZ43: 1003.92,1081.05 | DB43: 4 | DC43: 14 | DD43: W | DE43: 1000.75 | DF43: 1081.53 | DG43: 1000.75,1081.53 | DI43: 2 | DJ43: 67 | DK43: a | DL43: 1002.22 | DM43: 1040.01 | DN43: 1002.22,1040.01 | DP43: 3 | DQ43: 381 | DR43: s | DS43: 1004.73 | DT43: 1061.58 | DU43: 1004.73,1061.58 | DW43: 3 | DX43: 43 | DY43: s | DZ43: 1004.24 | EA43: 1059.21 | EB43: 1004.24,1059.21 | ED43: 4 | EE43: 13 | EF43: w | EG43: 1000.76 | EH43: 1081.54 | EI43: 1000.76,1081.54 | EK43: 4 | EL43: 281 | EM43: d | EN43: 1002.69 | EO43: 1084.53 | EP43: 1002.69,1084.53 | ER43: 3 | ES43: 383 | ET43: s | EU43: 1004.73 | EV43: 1061.59 | EW43: 1004.73,1061.59 | EY43: 3 | FB43: 1000 | FC43: 1060 | FD43: PL 1000,1060 | FF43: 0 | FG43: 261 | FH43: d | FI43: 1701.47 | FJ43: 399.56 | FK43: 1701.47,399.56 | FM43: 3 | FP43: 1000 | FQ43: 1060 | FR43: PL 1000,1060 | FT43: 0 | FU43: 261 | FV43: d | FW43: 1761.47 | FX43: 399.56 | FY43: 1761.47,399.56 | GA43: 3 | GD43: 1000 | GE43: 1060 | GF43: PL 1000,1060 | GH43: 0 | GI43: 261 | GJ43: d | GK43: 1821.47 | GL43: 399.56 | GM43: 1821.47,399.56 | GO43: 3 | GR43: 1000 | GS43: 1060 | GT43: PL 1000,1060 | GV43: 0 | GW43: 261 | GX43: d | GY43: 1881.47 | GZ43: 399.56 | HA43: 1881.47,399.56 | HC43: 3 | HF43: 1000 | HG43: 1060 | HH43: PL 1000,1060 | HJ43: 0 | HK43: 261 | HL43: d | HM43: 1941.47 | HN43: 399.56 | HO43: 1941.47,399.56 | HQ43: 3 | HT43: 1000 | HU43: 1060 | HV43: PL 1000,1060 | HX43: 0 | HY43: 261 | HZ43: d | IA43: 2001.47 | IB43: 399.56 | IC43: 2001.47,399.56 | IE43: 3 | IH43: 1000 | II43: 1060 | IJ43: PL 1000,1060 | IL43: 0 | IM43: 261 | IN43: d | IO43: 2061.47 | IP43: 399.56 | IQ43: 2061.47,399.56 | IS43: 3 | IV43: 1000 | IW43: 1060 | IX43: PL 1000,1060 | IZ43: 0 | JA43: 261 | JB43: d | JC43: 2121.47 | JD43: 399.56 | JE43: 2121.47,399.56 | JG43: 3 | JJ43: 1000 | JK43: 1060 | JL43: PL 1000,1060 | JN43: 0 | JO43: 261 | JP43: d | JQ43: 2181.47 | JR43: 399.56 | JS43: 2181.47,399.56 | JU43: 3 | JX43: 1000 | JY43: 1060 | JZ43: PL 1000,1060 | KB43: 0 | KC43: 261 | KD43: d | KE43: 2241.47 | KF43: 399.56 | KG43: 2241.47,399.56 | KI43: 3 | KL43: 1000 | KM43: 1060 | KN43: PL 1000,1060 | KP43: 0 | KQ43: 261 | KR43: d | KS43: 2301.47 | KT43: 399.56 | KU43: 2301.47,399.56 | KW43: 3 | KZ43: 1000 | LA43: 1060 | LB43: PL 1000,1060 | LD43: 0 | LE43: 261 | LF43: d | LG43: 2361.47 | LH43: 399.56 | LI43: 2361.47,399.56 | LK43: 0 | LL43: 261 | LM43: d | LN43: 2391.47 | LO43: 399.56 | LP43: 2391.47,399.56 | LR43: 0 | LS43: 261 | LT43: d | LU43: 2421.47 | LV43: 399.56 | LW43: 2421.47,399.56 | LY43: 0 | LZ43: 261 | MA43: d | MB43: 2451.47 | MC43: 399.56 | MD43: 2451.47,399.56 | MF43: 0 | MG43: 261 | MH43: d | MI43: 2481.47 | MJ43: 399.56 | MK43: 2481.47,399.56
A44: 2 | B44: 428 | C44: s | D44: 1001.43 | E44: 1040.56 | F44: 1001.43,1040.56 C | H44: 0 | I44: 240 | J44: d | K44: 1035.08 | L44: 1009.94 | M44: 1035.08,1009.94 | O44: 5 | P44: 50 | Q44: s | R44: 1004.15 | S44: 1102.4 | T44: 1004.15,1102.4 | V44: 3 | W44: 62 | X44: s | Y44: 1000.8 | Z44: 1060.89 | AA44: 1000.8,1060.89 C | AC44: 3 | AD44: 160 | AE44: a | AF44: 1000.03 | AG44: 1059.99 | AH44: 1000.03,1059.99 C | AJ44: 3 | AK44: 10 | AL44: d | AM44: 1000.05 | AN44: 1059.51 | AO44: 1000.05,1059.51 | AQ44: 3 | AR44: 242 | AS44: a | AT44: 1001.9 | AU44: 1058.87 | AV44: 1001.9,1058.87 | AX44: 4 | AY44: 432 | AZ44: s | BA44: 1000 | BB44: 1075.68 | BC44: 1000,1075.68 | BE44: 3 | BF44: 159 | BG44: a | BH44: 1000.02 | BI44: 1059.99 | BJ44: 1000.02,1059.99 C | BL44: 3 | BM44: 362 | BN44: d | BO44: 1003.62 | BP44: 1063.98 | BQ44: 1003.62,1063.98 | BZ44: 4 | CA44: 436 | CB44: d | CC44: 1005.09 | CD44: 1081.52 | CE44: 1005.09,1081.52 | CG44: 3 | CH44: 267 | CI44: d | CJ44: 1002.67 | CK44: 1063.63 | CL44: 1002.67,1063.63 | CN44: 3 | CO44: 13 | CP44: a | CQ44: 1004.6 | CR44: 1061.63 | CS44: 1004.6,1061.63 | CU44: 4 | CV44: 139 | CW44: s | CX44: 1003.92 | CY44: 1079.66 | CZ44: 1003.92,1079.66 | DB44: 4 | DC44: 435 | DD44: D | DE44: 1005.1 | DF44: 1081.53 | DG44: 1005.1,1081.53 | DI44: 2 | DJ44: 25 | DK44: w | DL44: 1002.22 | DM44: 1040.26 | DN44: 1002.22,1040.26 | DP44: 3 | DQ44: 12 | DR44: a | DS44: 1004.61 | DT44: 1061.58 | DU44: 1004.61,1061.58 | DW44: 3 | DX44: 2 | DY44: a | DZ44: 1004.22 | EA44: 1059.21 | EB44: 1004.22,1059.21 | ED44: 4 | EE44: 433 | EF44: d | EG44: 1005.09 | EH44: 1081.54 | EI44: 1005.09,1081.54 | EK44: 4 | EL44: 453 | EM44: s | EN44: 1002.69 | EO44: 1080 | EP44: 1002.69,1080 | ER44: 3 | ES44: 13 | ET44: a | EU44: 1004.6 | EV44: 1061.59 | EW44: 1004.6,1061.59 | EY44: 3 | EZ44: 163 | FA44: w | FB44: 1000 | FC44: 1061.63 | FD44: 1000,1061.63 | FF44: 0 | FG44: 152 | FH44: s | FI44: 1701.47 | FJ44: 398.04 | FK44: 1701.47,398.04 | FM44: 3 | FN44: 163 | FO44: w | FP44: 1000 | FQ44: 1061.63 | FR44: 1000,1061.63 | FT44: 0 | FU44: 152 | FV44: s | FW44: 1761.47 | FX44: 398.04 | FY44: 1761.47,398.04 | GA44: 3 | GB44: 163 | GC44: w | GD44: 1000 | GE44: 1061.63 | GF44: 1000,1061.63 | GH44: 0 | GI44: 152 | GJ44: s | GK44: 1821.47 | GL44: 398.04 | GM44: 1821.47,398.04 | GO44: 3 | GP44: 163 | GQ44: w | GR44: 1000 | GS44: 1061.63 | GT44: 1000,1061.63 | GV44: 0 | GW44: 152 | GX44: s | GY44: 1881.47 | GZ44: 398.04 | HA44: 1881.47,398.04 | HC44: 3 | HD44: 163 | HE44: w | HF44: 1000 | HG44: 1061.63 | HH44: 1000,1061.63 | HJ44: 0 | HK44: 152 | HL44: s | HM44: 1941.47 | HN44: 398.04 | HO44: 1941.47,398.04 | HQ44: 3 | HR44: 163 | HS44: w | HT44: 1000 | HU44: 1061.63 | HV44: 1000,1061.63 | HX44: 0 | HY44: 152 | HZ44: s | IA44: 2001.47 | IB44: 398.04 | IC44: 2001.47,398.04 | IE44: 3 | IF44: 163 | IG44: w | IH44: 1000 | II44: 1061.63 | IJ44: 1000,1061.63 | IL44: 0 | IM44: 152 | IN44: s | IO44: 2061.47 | IP44: 398.04 | IQ44: 2061.47,398.04 | IS44: 3 | IT44: 163 | IU44: w | IV44: 1000 | IW44: 1061.63 | IX44: 1000,1061.63 | IZ44: 0 | JA44: 152 | JB44: s | JC44: 2121.47 | JD44: 398.04 | JE44: 2121.47,398.04 | JG44: 3 | JH44: 163 | JI44: w | JJ44: 1000 | JK44: 1061.63 | JL44: 1000,1061.63 | JN44: 0 | JO44: 152 | JP44: s | JQ44: 2181.47 | JR44: 398.04 | JS44: 2181.47,398.04 | JU44: 3 | JV44: 163 | JW44: w | JX44: 1000 | JY44: 1061.63 | JZ44: 1000,1061.63 | KB44: 0 | KC44: 152 | KD44: s | KE44: 2241.47 | KF44: 398.04 | KG44: 2241.47,398.04 | KI44: 3 | KJ44: 163 | KK44: w | KL44: 1000 | KM44: 1061.63 | KN44: 1000,1061.63 | KP44: 0 | KQ44: 152 | KR44: s | KS44: 2301.47 | KT44: 398.04 | KU44: 2301.47,398.04 | KW44: 3 | KX44: 163 | KY44: w | KZ44: 1000 | LA44: 1061.63 | LB44: 1000,1061.63 | LD44: 0 | LE44: 152 | LF44: s | LG44: 2361.47 | LH44: 398.04 | LI44: 2361.47,398.04 | LK44: 0 | LL44: 152 | LM44: s | LN44: 2391.47 | LO44: 398.04 | LP44: 2391.47,398.04 | LR44: 0 | LS44: 152 | LT44: s | LU44: 2421.47 | LV44: 398.04 | LW44: 2421.47,398.04 | LY44: 0 | LZ44: 152 | MA44: s | MB44: 2451.47 | MC44: 398.04 | MD44: 2451.47,398.04 | MF44: 0 | MG44: 152 | MH44: s | MI44: 2481.47 | MJ44: 398.04 | MK44: 2481.47,398.04
A45: 3 | D45: 1000 | E45: 1060 | F45: PL 1000,1060 | H45: 0 | I45: 111 | J45: s | K45: 1035.08 | L45: 1008.83 | M45: 1035.08,1008.83 | O45: 5 | P45: 14 | Q45: d | R45: 1004.29 | S45: 1102.4 | T45: 1004.29,1102.4 | V45: 4 | Y45: 1000 | Z45: 1080 | AA45: PL 1000,1080 | AC45: 4 | AF45: 1000 | AG45: 1080 | AH45: PL 1000,1080 | AJ45: 3 | AK45: 50 | AL45: w | AM45: 1000.05 | AN45: 1060.01 | AO45: 1000.05,1060.01 | AQ45: 3 | AR45: 127 | AS45: w | AT45: 1001.9 | AU45: 1060.14 | AV45: 1001.9,1060.14 | AX45: 4 | AY45: 142 | AZ45: d | BA45: 1001.42 | BB45: 1075.68 | BC45: 1001.42,1075.68 | BE45: 4 | BH45: 1000 | BI45: 1080 | BJ45: PL 1000,1080 | BL45: 3 | BM45: 149 | BN45: s | BO45: 1003.62 | BP45: 1062.49 | BQ45: 1003.62,1062.49 | BZ45: 4 | CA45: 15 | CB45: s | CC45: 1005.09 | CD45: 1081.37 | CE45: 1005.09,1081.37 | CG45: 3 | CH45: 234 | CI45: s | CJ45: 1002.67 | CK45: 1061.29 | CL45: 1002.67,1061.29 | CN45: 3 | CO45: 26 | CP45: s | CQ45: 1004.6 | CR45: 1061.37 | CS45: 1004.6,1061.37 | CU45: 4 | CV45: 31 | CW45: d | CX45: 1004.23 | CY45: 1079.66 | CZ45: 1004.23,1079.66 | DB45: 4 | DC45: 14 | DD45: S | DE45: 1005.1 | DF45: 1081.39 | DG45: 1005.1,1081.39 | DI45: 2 | DJ45: 51 | DK45: a | DL45: 1001.71 | DM45: 1040.26 | DN45: 1001.71,1040.26 | DP45: 3 | DQ45: 26 | DR45: s | DS45: 1004.61 | DT45: 1061.32 | DU45: 1004.61,1061.32 | DW45: 3 | DX45: 26 | DY45: s | DZ45: 1004.22 | EA45: 1058.95 | EB45: 1004.22,1058.95 | ED45: 4 | EE45: 13 | EF45: s | EG45: 1005.09 | EH45: 1081.41 | EI45: 1005.09,1081.41 | EK45: 4 | EL45: 272 | EM45: a | EN45: 999.97 | EO45: 1080 | EP45: 999.97,1080 C | ER45: 3 | ES45: 27 | ET45: s | EU45: 1004.6 | EV45: 1061.32 | EW45: 1004.6,1061.32 | EY45: 3 | EZ45: 335 | FA45: d | FB45: 1003.35 | FC45: 1061.63 | FD45: 1003.35,1061.63 | FF45: 0 | FG45: 733 | FH45: a | FI45: 1694.14 | FJ45: 398.04 | FK45: 1694.14,398.04 | FM45: 3 | FN45: 335 | FO45: d | FP45: 1003.35 | FQ45: 1061.63 | FR45: 1003.35,1061.63 | FT45: 0 | FU45: 733 | FV45: a | FW45: 1754.14 | FX45: 398.04 | FY45: 1754.14,398.04 | GA45: 3 | GB45: 335 | GC45: d | GD45: 1003.35 | GE45: 1061.63 | GF45: 1003.35,1061.63 | GH45: 0 | GI45: 733 | GJ45: a | GK45: 1814.14 | GL45: 398.04 | GM45: 1814.14,398.04 | GO45: 3 | GP45: 335 | GQ45: d | GR45: 1003.35 | GS45: 1061.63 | GT45: 1003.35,1061.63 | GV45: 0 | GW45: 733 | GX45: a | GY45: 1874.14 | GZ45: 398.04 | HA45: 1874.14,398.04 | HC45: 3 | HD45: 335 | HE45: d | HF45: 1003.35 | HG45: 1061.63 | HH45: 1003.35,1061.63 | HJ45: 0 | HK45: 733 | HL45: a | HM45: 1934.14 | HN45: 398.04 | HO45: 1934.14,398.04 | HQ45: 3 | HR45: 335 | HS45: d | HT45: 1003.35 | HU45: 1061.63 | HV45: 1003.35,1061.63 | HX45: 0 | HY45: 733 | HZ45: a | IA45: 1994.14 | IB45: 398.04 | IC45: 1994.14,398.04 | IE45: 3 | IF45: 335 | IG45: d | IH45: 1003.35 | II45: 1061.63 | IJ45: 1003.35,1061.63 | IL45: 0 | IM45: 733 | IN45: a | IO45: 2054.14 | IP45: 398.04 | IQ45: 2054.14,398.04 | IS45: 3 | IT45: 335 | IU45: d | IV45: 1003.35 | IW45: 1061.63 | IX45: 1003.35,1061.63 | IZ45: 0 | JA45: 733 | JB45: a | JC45: 2114.14 | JD45: 398.04 | JE45: 2114.14,398.04 | JG45: 3 | JH45: 335 | JI45: d | JJ45: 1003.35 | JK45: 1061.63 | JL45: 1003.35,1061.63 | JN45: 0 | JO45: 733 | JP45: a | JQ45: 2174.14 | JR45: 398.04 | JS45: 2174.14,398.04 | JU45: 3 | JV45: 335 | JW45: d | JX45: 1003.35 | JY45: 1061.63 | JZ45: 1003.35,1061.63 | KB45: 0 | KC45: 733 | KD45: a | KE45: 2234.14 | KF45: 398.04 | KG45: 2234.14,398.04 | KI45: 3 | KJ45: 335 | KK45: d | KL45: 1003.35 | KM45: 1061.63 | KN45: 1003.35,1061.63 | KP45: 0 | KQ45: 733 | KR45: a | KS45: 2294.14 | KT45: 398.04 | KU45: 2294.14,398.04 | KW45: 3 | KX45: 335 | KY45: d | KZ45: 1003.35 | LA45: 1061.63 | LB45: 1003.35,1061.63 | LD45: 0 | LE45: 733 | LF45: a | LG45: 2354.14 | LH45: 398.04 | LI45: 2354.14,398.04 | LK45: 0 | LL45: 733 | LM45: a | LN45: 2384.14 | LO45: 398.04 | LP45: 2384.14,398.04 | LR45: 0 | LS45: 733 | LT45: a | LU45: 2414.14 | LV45: 398.04 | LW45: 2414.14,398.04 | LY45: 0 | LZ45: 733 | MA45: a | MB45: 2444.14 | MC45: 398.04 | MD45: 2444.14,398.04 | MF45: 0 | MG45: 733 | MH45: a | MI45: 2474.14 | MJ45: 398.04 | MK45: 2474.14,398.04
A46: 3 | B46: 319 | C46: a | D46: 996.81 | E46: 1060 | F46: 996.81,1060 | H46: 0 | I46: 15 | J46: a | K46: 1034.93 | L46: 1008.83 | M46: 1034.93,1008.83 | O46: 5 | P46: 288 | Q46: s | R46: 1004.29 | S46: 1099.52 | T46: 1004.29,1099.52 | V46: 4 | W46: 430 | X46: s | Y46: 1000 | Z46: 1075.7 | AA46: 1000,1075.7 | AC46: 4 | AD46: 121 | AE46: w | AF46: 1000 | AG46: 1081.21 | AH46: 1000,1081.21 | AJ46: 3 | AK46: 13 | AL46: a | AM46: 999.92 | AN46: 1060.01 | AO46: 999.92,1060.01 C | AQ46: 3 | AR46: 179 | AS46: a | AT46: 1000.11 | AU46: 1060.14 | AV46: 1000.11,1060.14 C | AX46: 4 | AY46: 514 | AZ46: w | BA46: 1001.42 | BB46: 1080.82 | BC46: 1001.42,1080.82 | BE46: 4 | BF46: 440 | BG46: a | BH46: 995.6 | BI46: 1080 | BJ46: 995.6,1080 | BL46: 3 | BM46: 92 | BN46: a | BO46: 1002.7 | BP46: 1062.49 | BQ46: 1002.7,1062.49 | BZ46: 4 | CA46: 61 | CB46: d | CC46: 1005.7 | CD46: 1081.37 | CE46: 1005.7,1081.37 | CG46: 3 | CH46: 163 | CI46: a | CJ46: 1001.04 | CK46: 1061.29 | CL46: 1001.04,1061.29 | CN46: 3 | CO46: 222 | CP46: a | CQ46: 1002.38 | CR46: 1061.37 | CS46: 1002.38,1061.37 | CU46: 4 | CV46: 42 | CW46: s | CX46: 1004.23 | CY46: 1079.24 | CZ46: 1004.23,1079.24 | DB46: 4 | DC46: 64 | DD46: D | DE46: 1005.74 | DF46: 1081.39 | DG46: 1005.74,1081.39 | DI46: 2 | DJ46: 25 | DK46: s | DL46: 1001.71 | DM46: 1040.01 | DN46: 1001.71,1040.01 | DP46: 3 | DQ46: 226 | DR46: a | DS46: 1002.35 | DT46: 1061.32 | DU46: 1002.35,1061.32 | DW46: 3 | DX46: 236 | DY46: a | DZ46: 1001.86 | EA46: 1058.95 | EB46: 1001.86,1058.95 | ED46: 4 | EE46: 62 | EF46: d | EG46: 1005.71 | EH46: 1081.41 | EI46: 1005.71,1081.41 | EK46: 5 | EN46: 1000 | EO46: 1100 | EP46: PL 1000,1100 | ER46: 3 | ES46: 228 | ET46: a | EU46: 1002.32 | EV46: 1061.32 | EW46: 1002.32,1061.32 | EY46: 3 | EZ46: 31 | FA46: s | FB46: 1003.35 | FC46: 1061.32 | FD46: 1003.35,1061.32 | FF46: 0 | FG46: 142 | FH46: w | FI46: 1694.14 | FJ46: 399.46 | FK46: 1694.14,399.46 | FM46: 3 | FN46: 31 | FO46: s | FP46: 1003.35 | FQ46: 1061.32 | FR46: 1003.35,1061.32 | FT46: 0 | FU46: 142 | FV46: w | FW46: 1754.14 | FX46: 399.46 | FY46: 1754.14,399.46 | GA46: 3 | GB46: 31 | GC46: s | GD46: 1003.35 | GE46: 1061.32 | GF46: 1003.35,1061.32 | GH46: 0 | GI46: 142 | GJ46: w | GK46: 1814.14 | GL46: 399.46 | GM46: 1814.14,399.46 | GO46: 3 | GP46: 31 | GQ46: s | GR46: 1003.35 | GS46: 1061.32 | GT46: 1003.35,1061.32 | GV46: 0 | GW46: 142 | GX46: w | GY46: 1874.14 | GZ46: 399.46 | HA46: 1874.14,399.46 | HC46: 3 | HD46: 31 | HE46: s | HF46: 1003.35 | HG46: 1061.32 | HH46: 1003.35,1061.32 | HJ46: 0 | HK46: 142 | HL46: w | HM46: 1934.14 | HN46: 399.46 | HO46: 1934.14,399.46 | HQ46: 3 | HR46: 31 | HS46: s | HT46: 1003.35 | HU46: 1061.32 | HV46: 1003.35,1061.32 | HX46: 0 | HY46: 142 | HZ46: w | IA46: 1994.14 | IB46: 399.46 | IC46: 1994.14,399.46 | IE46: 3 | IF46: 31 | IG46: s | IH46: 1003.35 | II46: 1061.32 | IJ46: 1003.35,1061.32 | IL46: 0 | IM46: 142 | IN46: w | IO46: 2054.14 | IP46: 399.46 | IQ46: 2054.14,399.46 | IS46: 3 | IT46: 31 | IU46: s | IV46: 1003.35 | IW46: 1061.32 | IX46: 1003.35,1061.32 | IZ46: 0 | JA46: 142 | JB46: w | JC46: 2114.14 | JD46: 399.46 | JE46: 2114.14,399.46 | JG46: 3 | JH46: 31 | JI46: s | JJ46: 1003.35 | JK46: 1061.32 | JL46: 1003.35,1061.32 | JN46: 0 | JO46: 142 | JP46: w | JQ46: 2174.14 | JR46: 399.46 | JS46: 2174.14,399.46 | JU46: 3 | JV46: 31 | JW46: s | JX46: 1003.35 | JY46: 1061.32 | JZ46: 1003.35,1061.32 | KB46: 0 | KC46: 142 | KD46: w | KE46: 2234.14 | KF46: 399.46 | KG46: 2234.14,399.46 | KI46: 3 | KJ46: 31 | KK46: s | KL46: 1003.35 | KM46: 1061.32 | KN46: 1003.35,1061.32 | KP46: 0 | KQ46: 142 | KR46: w | KS46: 2294.14 | KT46: 399.46 | KU46: 2294.14,399.46 | KW46: 3 | KX46: 31 | KY46: s | KZ46: 1003.35 | LA46: 1061.32 | LB46: 1003.35,1061.32 | LD46: 0 | LE46: 142 | LF46: w | LG46: 2354.14 | LH46: 399.46 | LI46: 2354.14,399.46 | LK46: 0 | LL46: 142 | LM46: w | LN46: 2384.14 | LO46: 399.46 | LP46: 2384.14,399.46 | LR46: 0 | LS46: 142 | LT46: w | LU46: 2414.14 | LV46: 399.46 | LW46: 2414.14,399.46 | LY46: 0 | LZ46: 142 | MA46: w | MB46: 2444.14 | MC46: 399.46 | MD46: 2444.14,399.46 | MF46: 0 | MG46: 142 | MH46: w | MI46: 2474.14 | MJ46: 399.46 | MK46: 2474.14,399.46
A47: 3 | B47: 145 | C47: w | D47: 996.81 | E47: 1061.45 | F47: 996.81,1061.45 | H47: 0 | I47: 50 | J47: s | K47: 1034.93 | L47: 1008.33 | M47: 1034.93,1008.33 | O47: 5 | P47: 33 | Q47: a | R47: 1003.96 | S47: 1099.52 | T47: 1003.96,1099.52 | V47: 4 | W47: 136 | X47: d | Y47: 1001.36 | Z47: 1075.7 | AA47: 1001.36,1075.7 | AC47: 4 | AD47: 228 | AE47: d | AF47: 1002.28 | AG47: 1081.21 | AH47: 1002.28,1081.21 | AJ47: 4 | AM47: 1000 | AN47: 1080 | AO47: PL 1000,1080 | AQ47: 4 | AT47: 1000 | AU47: 1080 | AV47: PL 1000,1080 | AX47: 4 | AY47: 57 | AZ47: a | BA47: 1000.85 | BB47: 1080.82 | BC47: 1000.85,1080.82 C | BE47: 4 | BF47: 153 | BG47: w | BH47: 995.6 | BI47: 1081.53 | BJ47: 995.6,1081.53 | BL47: 3 | BM47: 248 | BN47: s | BO47: 1002.7 | BP47: 1060.01 | BQ47: 1002.7,1060.01 | BZ47: 4 | CA47: 130 | CB47: s | CC47: 1005.7 | CD47: 1080.07 | CE47: 1005.7,1080.07 C | CG47: 3 | CH47: 131 | CI47: s | CJ47: 1001.04 | CK47: 1059.98 | CL47: 1001.04,1059.98 | CN47: 3 | CO47: 139 | CP47: s | CQ47: 1002.38 | CR47: 1059.98 | CS47: 1002.38,1059.98 | CU47: 4 | CV47: 2 | CW47: a | CX47: 1004.21 | CY47: 1079.24 | CZ47: 1004.21,1079.24 | DB47: 4 | DC47: 136 | DD47: S | DE47: 1005.74 | DF47: 1080.03 | DG47: 1005.74,1080.03 C | DI47: 2 | DJ47: 170 | DK47: a | DL47: 1000.01 | DM47: 1040.01 | DN47: 1000.01,1040.01 C | DP47: 3 | DQ47: 136 | DR47: s | DS47: 1002.35 | DT47: 1059.96 | DU47: 1002.35,1059.96 | DW47: 3 | DX47: 110 | DY47: w | DZ47: 1001.86 | EA47: 1060.05 | EB47: 1001.86,1060.05 | ED47: 4 | EE47: 136 | EF47: s | EG47: 1005.71 | EH47: 1080.05 | EI47: 1005.71,1080.05 C | EK47: 5 | EL47: 286 | EM47: w | EN47: 1000 | EO47: 1102.86 | EP47: 1000,1102.86 | ER47: 3 | ES47: 142 | ET47: s | EU47: 1002.32 | EV47: 1059.9 | EW47: 1002.32,1059.9 | EY47: 3 | EZ47: 20 | FA47: a | FB47: 1003.15 | FC47: 1061.32 | FD47: 1003.15,1061.32 | FF47: 0 | FG47: 15 | FH47: d | FI47: 1694.29 | FJ47: 399.46 | FK47: 1694.29,399.46 | FM47: 3 | FN47: 20 | FO47: a | FP47: 1003.15 | FQ47: 1061.32 | FR47: 1003.15,1061.32 | FT47: 0 | FU47: 15 | FV47: d | FW47: 1754.29 | FX47: 399.46 | FY47: 1754.29,399.46 | GA47: 3 | GB47: 20 | GC47: a | GD47: 1003.15 | GE47: 1061.32 | GF47: 1003.15,1061.32 | GH47: 0 | GI47: 15 | GJ47: d | GK47: 1814.29 | GL47: 399.46 | GM47: 1814.29,399.46 | GO47: 3 | GP47: 20 | GQ47: a | GR47: 1003.15 | GS47: 1061.32 | GT47: 1003.15,1061.32 | GV47: 0 | GW47: 15 | GX47: d | GY47: 1874.29 | GZ47: 399.46 | HA47: 1874.29,399.46 | HC47: 3 | HD47: 20 | HE47: a | HF47: 1003.15 | HG47: 1061.32 | HH47: 1003.15,1061.32 | HJ47: 0 | HK47: 15 | HL47: d | HM47: 1934.29 | HN47: 399.46 | HO47: 1934.29,399.46 | HQ47: 3 | HR47: 20 | HS47: a | HT47: 1003.15 | HU47: 1061.32 | HV47: 1003.15,1061.32 | HX47: 0 | HY47: 15 | HZ47: d | IA47: 1994.29 | IB47: 399.46 | IC47: 1994.29,399.46 | IE47: 3 | IF47: 20 | IG47: a | IH47: 1003.15 | II47: 1061.32 | IJ47: 1003.15,1061.32 | IL47: 0 | IM47: 15 | IN47: d | IO47: 2054.29 | IP47: 399.46 | IQ47: 2054.29,399.46 | IS47: 3 | IT47: 20 | IU47: a | IV47: 1003.15 | IW47: 1061.32 | IX47: 1003.15,1061.32 | IZ47: 0 | JA47: 15 | JB47: d | JC47: 2114.29 | JD47: 399.46 | JE47: 2114.29,399.46 | JG47: 3 | JH47: 20 | JI47: a | JJ47: 1003.15 | JK47: 1061.32 | JL47: 1003.15,1061.32 | JN47: 0 | JO47: 15 | JP47: d | JQ47: 2174.29 | JR47: 399.46 | JS47: 2174.29,399.46 | JU47: 3 | JV47: 20 | JW47: a | JX47: 1003.15 | JY47: 1061.32 | JZ47: 1003.15,1061.32 | KB47: 0 | KC47: 15 | KD47: d | KE47: 2234.29 | KF47: 399.46 | KG47: 2234.29,399.46 | KI47: 3 | KJ47: 20 | KK47: a | KL47: 1003.15 | KM47: 1061.32 | KN47: 1003.15,1061.32 | KP47: 0 | KQ47: 15 | KR47: d | KS47: 2294.29 | KT47: 399.46 | KU47: 2294.29,399.46 | KW47: 3 | KX47: 20 | KY47: a | KZ47: 1003.15 | LA47: 1061.32 | LB47: 1003.15,1061.32 | LD47: 0 | LE47: 15 | LF47: d | LG47: 2354.29 | LH47: 399.46 | LI47: 2354.29,399.46 | LK47: 0 | LL47: 15 | LM47: d | LN47: 2384.29 | LO47: 399.46 | LP47: 2384.29,399.46 | LR47: 0 | LS47: 15 | LT47: d | LU47: 2414.29 | LV47: 399.46 | LW47: 2414.29,399.46 | LY47: 0 | LZ47: 15 | MA47: d | MB47: 2444.29 | MC47: 399.46 | MD47: 2444.29,399.46 | MF47: 0 | MG47: 15 | MH47: d | MI47: 2474.29 | MJ47: 399.46 | MK47: 2474.29,399.46
A48: 3 | B48: 319 | C48: d | D48: 1000 | E48: 1061.45 | F48: 1000,1061.45 | H48: 0 | I48: 14 | J48: d | K48: 1035.07 | L48: 1008.33 | M48: 1035.07,1008.33 | O48: 5 | P48: 52 | Q48: s | R48: 1003.96 | S48: 1099 | T48: 1003.96,1099 | V48: 4 | W48: 513 | X48: w | Y48: 1001.36 | Z48: 1080.83 | AA48: 1001.36,1080.83 | AC48: 4 | AD48: 32 | AE48: s | AF48: 1002.28 | AG48: 1080.89 | AH48: 1002.28,1080.89 | AJ48: 4 | AK48: 135 | AL48: w | AM48: 1000 | AN48: 1081.35 | AO48: 1000,1081.35 | AQ48: 4 | AR48: 120 | AS48: w | AT48: 1000 | AU48: 1081.2 | AV48: 1000,1081.2 | AX48: 5 | BA48: 1000 | BB48: 1100 | BC48: PL 1000,1100 | BE48: 4 | BF48: 440 | BG48: d | BH48: 1000 | BI48: 1081.53 | BJ48: 1000,1081.53 | BL48: 3 | BM48: 272 | BN48: a | BO48: 999.98 | BP48: 1060.01 | BQ48: 999.98,1060.01 C | BZ48: 5 | CC48: 1000 | CD48: 1100 | CE48: PL 1000,1100 | CG48: 3 | CH48: 104 | CI48: a | CJ48: 1000 | CK48: 1059.98 | CL48: 1000,1059.98 C | CN48: 3 | CO48: 240 | CP48: a | CQ48: 999.98 | CR48: 1059.98 | CS48: 999.98,1059.98 C | CU48: 4 | CV48: 25 | CW48: s | CX48: 1004.21 | CY48: 1078.99 | CZ48: 1004.21,1078.99 | DB48: 5 | DE48: 1000 | DF48: 1100 | DG48: PL 1000,1100 | DI48: 3 | DL48: 1000 | DM48: 1060 | DN48: PL 1000,1060 | DP48: 3 | DQ48: 241 | DR48: a | DS48: 999.94 | DT48: 1059.96 | DU48: 999.94,1059.96 C | DW48: 3 | DX48: 179 | DY48: a | DZ48: 1000.07 | EA48: 1060.05 | EB48: 1000.07,1060.05 C | ED48: 5 | EG48: 1000 | EH48: 1100 | EI48: PL 1000,1100 | EK48: 5 | EL48: 294 | EM48: d | EN48: 1002.94 | EO48: 1102.86 | EP48: 1002.94,1102.86 | ER48: 3 | ES48: 239 | ET48: a | EU48: 999.93 | EV48: 1059.9 | EW48: 999.93,1059.9 C | EY48: 3 | EZ48: 134 | FA48: s | FB48: 1003.15 | FC48: 1059.98 | FD48: 1003.15,1059.98 | FF48: 0 | FG48: 51 | FH48: w | FI48: 1694.29 | FJ48: 399.97 | FK48: 1694.29,399.97 | FM48: 3 | FN48: 134 | FO48: s | FP48: 1003.15 | FQ48: 1059.98 | FR48: 1003.15,1059.98 | FT48: 0 | FU48: 51 | FV48: w | FW48: 1754.29 | FX48: 399.97 | FY48: 1754.29,399.97 | GA48: 3 | GB48: 134 | GC48: s | GD48: 1003.15 | GE48: 1059.98 | GF48: 1003.15,1059.98 | GH48: 0 | GI48: 51 | GJ48: w | GK48: 1814.29 | GL48: 399.97 | GM48: 1814.29,399.97 | GO48: 3 | GP48: 134 | GQ48: s | GR48: 1003.15 | GS48: 1059.98 | GT48: 1003.15,1059.98 | GV48: 0 | GW48: 51 | GX48: w | GY48: 1874.29 | GZ48: 399.97 | HA48: 1874.29,399.97 | HC48: 3 | HD48: 134 | HE48: s | HF48: 1003.15 | HG48: 1059.98 | HH48: 1003.15,1059.98 | HJ48: 0 | HK48: 51 | HL48: w | HM48: 1934.29 | HN48: 399.97 | HO48: 1934.29,399.97 | HQ48: 3 | HR48: 134 | HS48: s | HT48: 1003.15 | HU48: 1059.98 | HV48: 1003.15,1059.98 | HX48: 0 | HY48: 51 | HZ48: w | IA48: 1994.29 | IB48: 399.97 | IC48: 1994.29,399.97 | IE48: 3 | IF48: 134 | IG48: s | IH48: 1003.15 | II48: 1059.98 | IJ48: 1003.15,1059.98 | IL48: 0 | IM48: 51 | IN48: w | IO48: 2054.29 | IP48: 399.97 | IQ48: 2054.29,399.97 | IS48: 3 | IT48: 134 | IU48: s | IV48: 1003.15 | IW48: 1059.98 | IX48: 1003.15,1059.98 | IZ48: 0 | JA48: 51 | JB48: w | JC48: 2114.29 | JD48: 399.97 | JE48: 2114.29,399.97 | JG48: 3 | JH48: 134 | JI48: s | JJ48: 1003.15 | JK48: 1059.98 | JL48: 1003.15,1059.98 | JN48: 0 | JO48: 51 | JP48: w | JQ48: 2174.29 | JR48: 399.97 | JS48: 2174.29,399.97 | JU48: 3 | JV48: 134 | JW48: s | JX48: 1003.15 | JY48: 1059.98 | JZ48: 1003.15,1059.98 | KB48: 0 | KC48: 51 | KD48: w | KE48: 2234.29 | KF48: 399.97 | KG48: 2234.29,399.97 | KI48: 3 | KJ48: 134 | KK48: s | KL48: 1003.15 | KM48: 1059.98 | KN48: 1003.15,1059.98 | KP48: 0 | KQ48: 51 | KR48: w | KS48: 2294.29 | KT48: 399.97 | KU48: 2294.29,399.97 | KW48: 3 | KX48: 134 | KY48: s | KZ48: 1003.15 | LA48: 1059.98 | LB48: 1003.15,1059.98 | LD48: 0 | LE48: 51 | LF48: w | LG48: 2354.29 | LH48: 399.97 | LI48: 2354.29,399.97 | LK48: 0 | LL48: 51 | LM48: w | LN48: 2384.29 | LO48: 399.97 | LP48: 2384.29,399.97 | LR48: 0 | LS48: 51 | LT48: w | LU48: 2414.29 | LV48: 399.97 | LW48: 2414.29,399.97 | LY48: 0 | LZ48: 51 | MA48: w | MB48: 2444.29 | MC48: 399.97 | MD48: 2444.29,399.97 | MF48: 0 | MG48: 51 | MH48: w | MI48: 2474.29 | MJ48: 399.97 | MK48: 2474.29,399.97
A49: 3 | B49: 145 | C49: s | D49: 1000 | E49: 1060 | F49: 1000,1060 C | H49: 0 | I49: 385 | J49: s | K49: 1035.07 | L49: 1004.48 | M49: 1035.07,1004.48 | O49: 5 | P49: 33 | Q49: d | R49: 1004.29 | S49: 1099 | T49: 1004.29,1099 | V49: 4 | W49: 56 | X49: a | Y49: 1000.8 | Z49: 1080.83 | AA49: 1000.8,1080.83 C | AC49: 4 | AD49: 50 | AE49: d | AF49: 1002.78 | AG49: 1080.89 | AH49: 1002.78,1080.89 | AJ49: 4 | AK49: 319 | AL49: d | AM49: 1003.19 | AN49: 1081.35 | AO49: 1003.19,1081.35 | AQ49: 4 | AR49: 235 | AS49: d | AT49: 1002.35 | AU49: 1081.2 | AV49: 1002.35,1081.2 | AX49: 5 | AY49: 330 | AZ49: a | BA49: 996.7 | BB49: 1100 | BC49: 996.7,1100 | BE49: 4 | BF49: 153 | BG49: s | BH49: 1000 | BI49: 1080 | BJ49: 1000,1080 C | BL49: 4 | BO49: 1000 | BP49: 1080 | BQ49: PL 1000,1080 | BZ49: 5 | CA49: 314 | CB49: a | CC49: 996.86 | CD49: 1100 | CE49: 996.86,1100 | CG49: 4 | CJ49: 1000 | CK49: 1080 | CL49: PL 1000,1080 | CN49: 4 | CQ49: 1000 | CR49: 1080 | CS49: PL 1000,1080 | CU49: 4 | CV49: 234 | CW49: a | CX49: 1001.87 | CY49: 1078.99 | CZ49: 1001.87,1078.99 | DB49: 5 | DC49: 63 | DD49: W | DE49: 1000 | DF49: 1100.63 | DG49: 1000,1100.63 | DI49: 3 | DJ49: 449 | DK49: a | DL49: 995.51 | DM49: 1060 | DN49: 995.51,1060 | DP49: 4 | DS49: 1000 | DT49: 1080 | DU49: PL 1000,1080 | DW49: 4 | DZ49: 1000 | EA49: 1080 | EB49: PL 1000,1080 | ED49: 5 | EE49: 312 | EF49: a | EG49: 996.88 | EH49: 1100 | EI49: 996.88,1100 | EK49: 5 | EL49: 288 | EM49: s | EN49: 1002.94 | EO49: 1099.98 | EP49: 1002.94,1099.98 | ER49: 4 | EU49: 1000 | EV49: 1080 | EW49: PL 1000,1080 | EY49: 3 | EZ49: 315 | FA49: a | FB49: 1000 | FC49: 1059.98 | FD49: 1000,1059.98 C | FF49: 0 | FG49: 51 | FH49: a | FI49: 1693.78 | FJ49: 399.97 | FK49: 1693.78,399.97 | FM49: 3 | FN49: 315 | FO49: a | FP49: 1000 | FQ49: 1059.98 | FR49: 1000,1059.98 C | FT49: 0 | FU49: 51 | FV49: a | FW49: 1753.78 | FX49: 399.97 | FY49: 1753.78,399.97 | GA49: 3 | GB49: 315 | GC49: a | GD49: 1000 | GE49: 1059.98 | GF49: 1000,1059.98 C | GH49: 0 | GI49: 51 | GJ49: a | GK49: 1813.78 | GL49: 399.97 | GM49: 1813.78,399.97 | GO49: 3 | GP49: 315 | GQ49: a | GR49: 1000 | GS49: 1059.98 | GT49: 1000,1059.98 C | GV49: 0 | GW49: 51 | GX49: a | GY49: 1873.78 | GZ49: 399.97 | HA49: 1873.78,399.97 | HC49: 3 | HD49: 315 | HE49: a | HF49: 1000 | HG49: 1059.98 | HH49: 1000,1059.98 C | HJ49: 0 | HK49: 51 | HL49: a | HM49: 1933.78 | HN49: 399.97 | HO49: 1933.78,399.97 | HQ49: 3 | HR49: 315 | HS49: a | HT49: 1000 | HU49: 1059.98 | HV49: 1000,1059.98 C | HX49: 0 | HY49: 51 | HZ49: a | IA49: 1993.78 | IB49: 399.97 | IC49: 1993.78,399.97 | IE49: 3 | IF49: 315 | IG49: a | IH49: 1000 | II49: 1059.98 | IJ49: 1000,1059.98 C | IL49: 0 | IM49: 51 | IN49: a | IO49: 2053.78 | IP49: 399.97 | IQ49: 2053.78,399.97 | IS49: 3 | IT49: 315 | IU49: a | IV49: 1000 | IW49: 1059.98 | IX49: 1000,1059.98 C | IZ49: 0 | JA49: 51 | JB49: a | JC49: 2113.78 | JD49: 399.97 | JE49: 2113.78,399.97 | JG49: 3 | JH49: 315 | JI49: a | JJ49: 1000 | JK49: 1059.98 | JL49: 1000,1059.98 C | JN49: 0 | JO49: 51 | JP49: a | JQ49: 2173.78 | JR49: 399.97 | JS49: 2173.78,399.97 | JU49: 3 | JV49: 315 | JW49: a | JX49: 1000 | JY49: 1059.98 | JZ49: 1000,1059.98 C | KB49: 0 | KC49: 51 | KD49: a | KE49: 2233.78 | KF49: 399.97 | KG49: 2233.78,399.97 | KI49: 3 | KJ49: 315 | KK49: a | KL49: 1000 | KM49: 1059.98 | KN49: 1000,1059.98 C | KP49: 0 | KQ49: 51 | KR49: a | KS49: 2293.78 | KT49: 399.97 | KU49: 2293.78,399.97 | KW49: 3 | KX49: 315 | KY49: a | KZ49: 1000 | LA49: 1059.98 | LB49: 1000,1059.98 C | LD49: 0 | LE49: 51 | LF49: a | LG49: 2353.78 | LH49: 399.97 | LI49: 2353.78,399.97 | LK49: 0 | LL49: 51 | LM49: a | LN49: 2383.78 | LO49: 399.97 | LP49: 2383.78,399.97 | LR49: 0 | LS49: 51 | LT49: a | LU49: 2413.78 | LV49: 399.97 | LW49: 2413.78,399.97 | LY49: 0 | LZ49: 51 | MA49: a | MB49: 2443.78 | MC49: 399.97 | MD49: 2443.78,399.97 | MF49: 0 | MG49: 51 | MH49: a | MI49: 2473.78 | MJ49: 399.97 | MK49: 2473.78,399.97
A50: 4 | C50: s | D50: 1000 | E50: 1080 | F50: PL 1000,1080 | H50: 0 | I50: 13 | J50: a | K50: 1034.94 | L50: 1004.48 | M50: 1034.94,1004.48 | O50: 5 | P50: 45 | Q50: s | R50: 1004.29 | S50: 1098.55 | T50: 1004.29,1098.55 | V50: 5 | Y50: 1000 | Z50: 1100 | AA50: PL 1000,1100 | AC50: 4 | AD50: 32 | AE50: w | AF50: 1002.78 | AG50: 1081.21 | AH50: 1002.78,1081.21 | AJ50: 4 | AK50: 154 | AL50: s | AM50: 1003.19 | AN50: 1079.81 | AO50: 1003.19,1079.81 | AQ50: 4 | AR50: 200 | AS50: s | AT50: 1002.35 | AU50: 1079.2 | AV50: 1002.35,1079.2 | AX50: 5 | AY50: 362 | AZ50: w | BA50: 996.7 | BB50: 1103.62 | BC50: 996.7,1103.62 | BE50: 5 | BH50: 1000 | BI50: 1100 | BJ50: PL 1000,1100 | BL50: 4 | BM50: 135 | BN50: w | BO50: 1000 | BP50: 1081.35 | BQ50: 1000,1081.35 | BZ50: 5 | CA50: 124 | CB50: w | CC50: 996.86 | CD50: 1101.24 | CE50: 996.86,1101.24 | CG50: 4 | CH50: 152 | CI50: a | CJ50: 998.48 | CK50: 1080 | CL50: 998.48,1080 | CN50: 4 | CO50: 138 | CP50: w | CQ50: 1000 | CR50: 1081.38 | CS50: 1000,1081.38 | CU50: 4 | CV50: 112 | CW50: w | CX50: 1001.87 | CY50: 1080.11 | CZ50: 1001.87,1080.11 | DB50: 5 | DC50: 414 | DD50: A | DE50: 995.86 | DF50: 1100.63 | DG50: 995.86,1100.63 | DI50: 3 | DJ50: 156 | DK50: w | DL50: 995.51 | DM50: 1061.56 | DN50: 995.51,1061.56 | DP50: 4 | DQ50: 136 | DR50: w | DS50: 1000 | DT50: 1081.36 | DU50: 1000,1081.36 | DW50: 4 | DX50: 120 | DY50: w | DZ50: 1000 | EA50: 1081.2 | EB50: 1000,1081.2 | ED50: 5 | EE50: 129 | EF50: w | EG50: 996.88 | EH50: 1101.29 | EI50: 996.88,1101.29 | EK50: 5 | EL50: 68 | EM50: a | EN50: 1002.26 | EO50: 1099.98 | EP50: 1002.26,1099.98 | ER50: 4 | ES50: 142 | ET50: w | EU50: 1000 | EV50: 1081.42 | EW50: 1000,1081.42 | EY50: 4 | FB50: 1000 | FC50: 1080 | FD50: PL 1000,1080 | FF50: 0 | FG50: 32 | FH50: s | FI50: 1693.78 | FJ50: 399.65 | FK50: 1693.78,399.65 | FM50: 4 | FP50: 1000 | FQ50: 1080 | FR50: PL 1000,1080 | FT50: 0 | FU50: 32 | FV50: s | FW50: 1753.78 | FX50: 399.65 | FY50: 1753.78,399.65 | GA50: 4 | GD50: 1000 | GE50: 1080 | GF50: PL 1000,1080 | GH50: 0 | GI50: 32 | GJ50: s | GK50: 1813.78 | GL50: 399.65 | GM50: 1813.78,399.65 | GO50: 4 | GR50: 1000 | GS50: 1080 | GT50: PL 1000,1080 | GV50: 0 | GW50: 32 | GX50: s | GY50: 1873.78 | GZ50: 399.65 | HA50: 1873.78,399.65 | HC50: 4 | HF50: 1000 | HG50: 1080 | HH50: PL 1000,1080 | HJ50: 0 | HK50: 32 | HL50: s | HM50: 1933.78 | HN50: 399.65 | HO50: 1933.78,399.65 | HQ50: 4 | HT50: 1000 | HU50: 1080 | HV50: PL 1000,1080 | HX50: 0 | HY50: 32 | HZ50: s | IA50: 1993.78 | IB50: 399.65 | IC50: 1993.78,399.65 | IE50: 4 | IH50: 1000 | II50: 1080 | IJ50: PL 1000,1080 | IL50: 0 | IM50: 32 | IN50: s | IO50: 2053.78 | IP50: 399.65 | IQ50: 2053.78,399.65 | IS50: 4 | IV50: 1000 | IW50: 1080 | IX50: PL 1000,1080 | IZ50: 0 | JA50: 32 | JB50: s | JC50: 2113.78 | JD50: 399.65 | JE50: 2113.78,399.65 | JG50: 4 | JJ50: 1000 | JK50: 1080 | JL50: PL 1000,1080 | JN50: 0 | JO50: 32 | JP50: s | JQ50: 2173.78 | JR50: 399.65 | JS50: 2173.78,399.65 | JU50: 4 | JX50: 1000 | JY50: 1080 | JZ50: PL 1000,1080 | KB50: 0 | KC50: 32 | KD50: s | KE50: 2233.78 | KF50: 399.65 | KG50: 2233.78,399.65 | KI50: 4 | KL50: 1000 | KM50: 1080 | KN50: PL 1000,1080 | KP50: 0 | KQ50: 32 | KR50: s | KS50: 2293.78 | KT50: 399.65 | KU50: 2293.78,399.65 | KW50: 4 | KZ50: 1000 | LA50: 1080 | LB50: PL 1000,1080 | LD50: 0 | LE50: 32 | LF50: s | LG50: 2353.78 | LH50: 399.65 | LI50: 2353.78,399.65 | LK50: 0 | LL50: 32 | LM50: s | LN50: 2383.78 | LO50: 399.65 | LP50: 2383.78,399.65 | LR50: 0 | LS50: 32 | LT50: s | LU50: 2413.78 | LV50: 399.65 | LW50: 2413.78,399.65 | LY50: 0 | LZ50: 32 | MA50: s | MB50: 2443.78 | MC50: 399.65 | MD50: 2443.78,399.65 | MF50: 0 | MG50: 32 | MH50: s | MI50: 2473.78 | MJ50: 399.65 | MK50: 2473.78,399.65
A51: 4 | B51: 311 | C51: d | D51: =IF(AND(B51>0,C51="D"),D50+(B51*0.01),IF(AND(B51>0,C51="A"),D50-(B51*0.01),IF(AND(B51>0,C51="W"),D50,IF(AND(B51>0,C51="S"),D50,IF(AND(B51="",B50>0,B52>0),$D$3,""))))) -> 1003.11 | E51: =IF(AND(B51>0,C51="D"),E50,IF(AND(B51>0,C51="A"),E50,IF(AND(B51>0,C51="W"),E50+(B51*0.01),IF(AND(B51>0,C51="S"),E50-(B51*0.01),IF(AND(B51="",B50>0,B52>0),(A51*20)+$E$3,""))))) -> 1080 | F51: 1003.11,1080 | H51: 0 | I51: 50 | J51: s | K51: 1034.94 | L51: 1003.98 | M51: 1034.94,1003.98 | O51: 5 | P51: 2 | Q51: a | R51: 1004.27 | S51: 1098.55 | T51: 1004.27,1098.55 | V51: 5 | W51: 329 | X51: a | Y51: 996.71 | Z51: 1100 | AA51: 996.71,1100 | AC51: 4 | AD51: 110 | AE51: d | AF51: 1003.88 | AG51: 1081.21 | AH51: 1003.88,1081.21 | AJ51: 4 | AK51: 267 | AL51: a | AM51: 1000.52 | AN51: 1079.81 | AO51: 1000.52,1079.81 | AQ51: 4 | AR51: 152 | AS51: a | AT51: 1000.83 | AU51: 1079.2 | AV51: 1000.83,1079.2 C | AX51: 5 | AY51: 330 | AZ51: d | BA51: 1000 | BB51: 1103.62 | BC51: 1000,1103.62 | BE51: 5 | BF51: 142 | BG51: w | BH51: 1000 | BI51: 1101.42 | BJ51: 1000,1101.42 | BL51: 4 | BM51: 219 | BN51: d | BO51: 1002.19 | BP51: 1081.35 | BQ51: 1002.19,1081.35 | BZ51: 5 | CA51: 15 | CB51: d | CC51: 997.01 | CD51: 1101.24 | CE51: 997.01,1101.24 | CG51: 4 | CH51: 116 | CI51: w | CJ51: 998.48 | CK51: 1081.16 | CL51: 998.48,1081.16 | CN51: 4 | CO51: 223 | CP51: d | CQ51: 1002.23 | CR51: 1081.38 | CS51: 1002.23,1081.38 | CU51: 4 | CV51: 180 | CW51: a | CX51: 1000.07 | CY51: 1080.11 | CZ51: 1000.07,1080.11 C | DB51: 5 | DC51: 126 | DD51: S | DE51: 995.86 | DF51: 1099.37 | DG51: 995.86,1099.37 | DI51: 3 | DJ51: 449 | DK51: d | DL51: 1000 | DM51: 1061.56 | DN51: 1000,1061.56 | DP51: 4 | DQ51: 227 | DR51: d | DS51: 1002.27 | DT51: 1081.36 | DU51: 1002.27,1081.36 | DW51: 4 | DX51: 237 | DY51: d | DZ51: 1002.37 | EA51: 1081.2 | EB51: 1002.37,1081.2 | ED51: 5 | EE51: 416 | EF51: d | EG51: 1001.04 | EH51: 1101.29 | EI51: 1001.04,1101.29 | EK51: 5 | EL51: 26 | EM51: w | EN51: 1002.26 | EO51: 1100.24 | EP51: 1002.26,1100.24 | ER51: 4 | ES51: 228 | ET51: d | EU51: 1002.28 | EV51: 1081.42 | EW51: 1002.28,1081.42 | EY51: 4 | EZ51: 67 | FA51: w | FB51: 1000 | FC51: 1080.67 | FD51: 1000,1080.67 | FF51: 0 | FG51: 208 | FH51: a | FI51: 1691.7 | FJ51: 399.65 | FK51: 1691.7,399.65 | FM51: 4 | FN51: 67 | FO51: w | FP51: 1000 | FQ51: 1080.67 | FR51: 1000,1080.67 | FT51: 0 | FU51: 208 | FV51: a | FW51: 1751.7 | FX51: 399.65 | FY51: 1751.7,399.65 | GA51: 4 | GB51: 67 | GC51: w | GD51: 1000 | GE51: 1080.67 | GF51: 1000,1080.67 | GH51: 0 | GI51: 208 | GJ51: a | GK51: 1811.7 | GL51: 399.65 | GM51: 1811.7,399.65 | GO51: 4 | GP51: 67 | GQ51: w | GR51: 1000 | GS51: 1080.67 | GT51: 1000,1080.67 | GV51: 0 | GW51: 208 | GX51: a | GY51: 1871.7 | GZ51: 399.65 | HA51: 1871.7,399.65 | HC51: 4 | HD51: 67 | HE51: w | HF51: 1000 | HG51: 1080.67 | HH51: 1000,1080.67 | HJ51: 0 | HK51: 208 | HL51: a | HM51: 1931.7 | HN51: 399.65 | HO51: 1931.7,399.65 | HQ51: 4 | HR51: 67 | HS51: w | HT51: 1000 | HU51: 1080.67 | HV51: 1000,1080.67 | HX51: 0 | HY51: 208 | HZ51: a | IA51: 1991.7 | IB51: 399.65 | IC51: 1991.7,399.65 | IE51: 4 | IF51: 67 | IG51: w | IH51: 1000 | II51: 1080.67 | IJ51: 1000,1080.67 | IL51: 0 | IM51: 208 | IN51: a | IO51: 2051.7 | IP51: 399.65 | IQ51: 2051.7,399.65 | IS51: 4 | IT51: 67 | IU51: w | IV51: 1000 | IW51: 1080.67 | IX51: 1000,1080.67 | IZ51: 0 | JA51: 208 | JB51: a | JC51: 2111.7 | JD51: 399.65 | JE51: 2111.7,399.65 | JG51: 4 | JH51: 67 | JI51: w | JJ51: 1000 | JK51: 1080.67 | JL51: 1000,1080.67 | JN51: 0 | JO51: 208 | JP51: a | JQ51: 2171.7 | JR51: 399.65 | JS51: 2171.7,399.65 | JU51: 4 | JV51: 67 | JW51: w | JX51: 1000 | JY51: 1080.67 | JZ51: 1000,1080.67 | KB51: 0 | KC51: 208 | KD51: a | KE51: 2231.7 | KF51: 399.65 | KG51: 2231.7,399.65 | KI51: 4 | KJ51: 67 | KK51: w | KL51: 1000 | KM51: 1080.67 | KN51: 1000,1080.67 | KP51: 0 | KQ51: 208 | KR51: a | KS51: 2291.7 | KT51: 399.65 | KU51: 2291.7,399.65 | KW51: 4 | KX51: 67 | KY51: w | KZ51: 1000 | LA51: 1080.67 | LB51: 1000,1080.67 | LD51: 0 | LE51: 208 | LF51: a | LG51: 2351.7 | LH51: 399.65 | LI51: 2351.7,399.65 | LK51: 0 | LL51: 208 | LM51: a | LN51: 2381.7 | LO51: 399.65 | LP51: 2381.7,399.65 | LR51: 0 | LS51: 208 | LT51: a | LU51: 2411.7 | LV51: 399.65 | LW51: 2411.7,399.65 | LY51: 0 | LZ51: 208 | MA51: a | MB51: 2441.7 | MC51: 399.65 | MD51: 2441.7,399.65 | MF51: 0 | MG51: 208 | MH51: a | MI51: 2471.7 | MJ51: 399.65 | MK51: 2471.7,399.65
A52: 4 | B52: 144 | C52: s | D52: 1003.11 | E52: 1078.56 | F52: 1003.11,1078.56 | H52: 0 | I52: 50 | J52: d | K52: 1035.44 | L52: 1003.98 | M52: 1035.44,1003.98 | O52: 5 | P52: 41 | Q52: s | R52: 1004.27 | S52: 1098.14 | T52: 1004.27,1098.14 | V52: 5 | W52: 366 | X52: w | Y52: 996.71 | Z52: 1103.66 | AA52: 996.71,1103.66 | AC52: 4 | AD52: 434 | AE52: s | AF52: 1003.88 | AG52: 1076.87 | AH52: 1003.88,1076.87 | AJ52: 4 | AK52: 38 | AL52: w | AM52: 1000.52 | AN52: 1080.19 | AO52: 1000.52,1080.19 | AQ52: 5 | AT52: 1000 | AU52: 1100 | AV52: PL 1000,1100 | AX52: 5 | AY52: 362 | AZ52: s | BA52: 1000 | BB52: 1100 | BC52: 1000,1100 C | BE52: 5 | BF52: 215 | BG52: d | BH52: 1002.15 | BI52: 1101.42 | BJ52: 1002.15,1101.42 | BL52: 4 | BM52: 156 | BN52: s | BO52: 1002.19 | BP52: 1079.79 | BQ52: 1002.19,1079.79 | BZ52: 5 | CA52: 26 | CB52: w | CC52: 997.01 | CD52: 1101.5 | CE52: 997.01,1101.5 | CG52: 4 | CH52: 152 | CI52: d | CJ52: 1000 | CK52: 1081.16 | CL52: 1000,1081.16 | CN52: 4 | CO52: 156 | CP52: s | CQ52: 1002.23 | CR52: 1079.82 | CS52: 1002.23,1079.82 | CU52: 5 | CX52: 1000 | CY52: 1100 | CZ52: PL 1000,1100 | DB52: 5 | DC52: 316 | DD52: D | DE52: 999.02 | DF52: 1099.37 | DG52: 999.02,1099.37 C | DI52: 3 | DJ52: 156 | DK52: s | DL52: 1000 | DM52: 1060 | DN52: 1000,1060 C | DP52: 4 | DQ52: 156 | DR52: s | DS52: 1002.27 | DT52: 1079.8 | DU52: 1002.27,1079.8 | DW52: 4 | DX52: 188 | DY52: s | DZ52: 1002.37 | EA52: 1079.32 | EB52: 1002.37,1079.32 | ED52: 5 | EE52: 65 | EF52: s | EG52: 1001.04 | EH52: 1100.64 | EI52: 1001.04,1100.64 C | EK52: 5 | EL52: 51 | EM52: a | EN52: 1001.75 | EO52: 1100.24 | EP52: 1001.75,1100.24 | ER52: 4 | ES52: 157 | ET52: s | EU52: 1002.28 | EV52: 1079.85 | EW52: 1002.28,1079.85 | EY52: 4 | EZ52: 417 | FA52: a | FB52: 995.83 | FC52: 1080.67 | FD52: 995.83,1080.67 | FF52: 0 | FG52: 32 | FH52: w | FI52: 1691.7 | FJ52: 399.97 | FK52: 1691.7,399.97 | FM52: 4 | FN52: 417 | FO52: a | FP52: 995.83 | FQ52: 1080.67 | FR52: 995.83,1080.67 | FT52: 0 | FU52: 32 | FV52: w | FW52: 1751.7 | FX52: 399.97 | FY52: 1751.7,399.97 | GA52: 4 | GB52: 417 | GC52: a | GD52: 995.83 | GE52: 1080.67 | GF52: 995.83,1080.67 | GH52: 0 | GI52: 32 | GJ52: w | GK52: 1811.7 | GL52: 399.97 | GM52: 1811.7,399.97 | GO52: 4 | GP52: 417 | GQ52: a | GR52: 995.83 | GS52: 1080.67 | GT52: 995.83,1080.67 | GV52: 0 | GW52: 32 | GX52: w | GY52: 1871.7 | GZ52: 399.97 | HA52: 1871.7,399.97 | HC52: 4 | HD52: 417 | HE52: a | HF52: 995.83 | HG52: 1080.67 | HH52: 995.83,1080.67 | HJ52: 0 | HK52: 32 | HL52: w | HM52: 1931.7 | HN52: 399.97 | HO52: 1931.7,399.97 | HQ52: 4 | HR52: 417 | HS52: a | HT52: 995.83 | HU52: 1080.67 | HV52: 995.83,1080.67 | HX52: 0 | HY52: 32 | HZ52: w | IA52: 1991.7 | IB52: 399.97 | IC52: 1991.7,399.97 | IE52: 4 | IF52: 417 | IG52: a | IH52: 995.83 | II52: 1080.67 | IJ52: 995.83,1080.67 | IL52: 0 | IM52: 32 | IN52: w | IO52: 2051.7 | IP52: 399.97 | IQ52: 2051.7,399.97 | IS52: 4 | IT52: 417 | IU52: a | IV52: 995.83 | IW52: 1080.67 | IX52: 995.83,1080.67 | IZ52: 0 | JA52: 32 | JB52: w | JC52: 2111.7 | JD52: 399.97 | JE52: 2111.7,399.97 | JG52: 4 | JH52: 417 | JI52: a | JJ52: 995.83 | JK52: 1080.67 | JL52: 995.83,1080.67 | JN52: 0 | JO52: 32 | JP52: w | JQ52: 2171.7 | JR52: 399.97 | JS52: 2171.7,399.97 | JU52: 4 | JV52: 417 | JW52: a | JX52: 995.83 | JY52: 1080.67 | JZ52: 995.83,1080.67 | KB52: 0 | KC52: 32 | KD52: w | KE52: 2231.7 | KF52: 399.97 | KG52: 2231.7,399.97 | KI52: 4 | KJ52: 417 | KK52: a | KL52: 995.83 | KM52: 1080.67 | KN52: 995.83,1080.67 | KP52: 0 | KQ52: 32 | KR52: w | KS52: 2291.7 | KT52: 399.97 | KU52: 2291.7,399.97 | KW52: 4 | KX52: 417 | KY52: a | KZ52: 995.83 | LA52: 1080.67 | LB52: 995.83,1080.67 | LD52: 0 | LE52: 32 | LF52: w | LG52: 2351.7 | LH52: 399.97 | LI52: 2351.7,399.97 | LK52: 0 | LL52: 32 | LM52: w | LN52: 2381.7 | LO52: 399.97 | LP52: 2381.7,399.97 | LR52: 0 | LS52: 32 | LT52: w | LU52: 2411.7 | LV52: 399.97 | LW52: 2411.7,399.97 | LY52: 0 | LZ52: 32 | MA52: w | MB52: 2441.7 | MC52: 399.97 | MD52: 2441.7,399.97 | MF52: 0 | MG52: 32 | MH52: w | MI52: 2471.7 | MJ52: 399.97 | MK52: 2471.7,399.97
A53: 4 | B53: 360 | C53: a | D53: 999.51 | E53: 1078.56 | F53: 999.51,1078.56 C | H53: 0 | I53: 19 | J53: w | K53: 1035.44 | L53: 1004.17 | M53: 1035.44,1004.17 | O53: 5 | P53: 270 | Q53: a | R53: 1001.57 | S53: 1098.14 | T53: 1001.57,1098.14 | V53: 5 | W53: 329 | X53: d | Y53: 1000 | Z53: 1103.66 | AA53: 1000,1103.66 | AC53: 4 | AD53: 112 | AE53: a | AF53: 1002.76 | AG53: 1076.87 | AH53: 1002.76,1076.87 | AJ53: 4 | AK53: 21 | AL53: d | AM53: 1000.73 | AN53: 1080.19 | AO53: 1000.73,1080.19 C | AQ53: 5 | AR53: 305 | AS53: a | AT53: 996.95 | AU53: 1100 | AV53: 996.95,1100 | AX53: 6 | BA53: 1000 | BB53: 1120 | BC53: PL 1000,1120 | BE53: 5 | BF53: 30 | BG53: s | BH53: 1002.15 | BI53: 1101.12 | BJ53: 1002.15,1101.12 | BL53: 4 | BM53: 267 | BN53: a | BO53: 999.52 | BP53: 1079.79 | BQ53: 999.52,1079.79 | BZ53: 5 | CA53: 411 | CB53: d | CC53: 1001.12 | CD53: 1101.5 | CE53: 1001.12,1101.5 | CG53: 4 | CH53: 116 | CI53: s | CJ53: 1000 | CK53: 1080 | CL53: 1000,1080 C | CN53: 4 | CO53: 264 | CP53: a | CQ53: 999.59 | CR53: 1079.82 | CS53: 999.59,1079.82 | CU53: 5 | CV53: 122 | CW53: w | CX53: 1000 | CY53: 1101.22 | CZ53: 1000,1101.22 | DB53: 6 | DE53: 1000 | DF53: 1120 | DG53: PL 1000,1120 | DI53: 4 | DL53: 1000 | DM53: 1080 | DN53: PL 1000,1080 | DP53: 4 | DQ53: 264 | DR53: a | DS53: 999.63 | DT53: 1079.8 | DU53: 999.63,1079.8 | DW53: 4 | DX53: 173 | DY53: a | DZ53: 1000.64 | EA53: 1079.32 | EB53: 1000.64,1079.32 C | ED53: 6 | EG53: 1000 | EH53: 1120 | EI53: PL 1000,1120 | EK53: 5 | EL53: 26 | EM53: s | EN53: 1001.75 | EO53: 1099.98 | EP53: 1001.75,1099.98 | ER53: 4 | ES53: 265 | ET53: a | EU53: 999.63 | EV53: 1079.85 | EW53: 999.63,1079.85 | EY53: 4 | EZ53: 19 | FA53: s | FB53: 995.83 | FC53: 1080.48 | FD53: 995.83,1080.48 | FF53: 0 | FG53: 52 | FH53: a | FI53: 1691.18 | FJ53: 399.97 | FK53: 1691.18,399.97 | FM53: 4 | FN53: 19 | FO53: s | FP53: 995.83 | FQ53: 1080.48 | FR53: 995.83,1080.48 | FT53: 0 | FU53: 52 | FV53: a | FW53: 1751.18 | FX53: 399.97 | FY53: 1751.18,399.97 | GA53: 4 | GB53: 19 | GC53: s | GD53: 995.83 | GE53: 1080.48 | GF53: 995.83,1080.48 | GH53: 0 | GI53: 52 | GJ53: a | GK53: 1811.18 | GL53: 399.97 | GM53: 1811.18,399.97 | GO53: 4 | GP53: 19 | GQ53: s | GR53: 995.83 | GS53: 1080.48 | GT53: 995.83,1080.48 | GV53: 0 | GW53: 52 | GX53: a | GY53: 1871.18 | GZ53: 399.97 | HA53: 1871.18,399.97 | HC53: 4 | HD53: 19 | HE53: s | HF53: 995.83 | HG53: 1080.48 | HH53: 995.83,1080.48 | HJ53: 0 | HK53: 52 | HL53: a | HM53: 1931.18 | HN53: 399.97 | HO53: 1931.18,399.97 | HQ53: 4 | HR53: 19 | HS53: s | HT53: 995.83 | HU53: 1080.48 | HV53: 995.83,1080.48 | HX53: 0 | HY53: 52 | HZ53: a | IA53: 1991.18 | IB53: 399.97 | IC53: 1991.18,399.97 | IE53: 4 | IF53: 19 | IG53: s | IH53: 995.83 | II53: 1080.48 | IJ53: 995.83,1080.48 | IL53: 0 | IM53: 52 | IN53: a | IO53: 2051.18 | IP53: 399.97 | IQ53: 2051.18,399.97 | IS53: 4 | IT53: 19 | IU53: s | IV53: 995.83 | IW53: 1080.48 | IX53: 995.83,1080.48 | IZ53: 0 | JA53: 52 | JB53: a | JC53: 2111.18 | JD53: 399.97 | JE53: 2111.18,399.97 | JG53: 4 | JH53: 19 | JI53: s | JJ53: 995.83 | JK53: 1080.48 | JL53: 995.83,1080.48 | JN53: 0 | JO53: 52 | JP53: a | JQ53: 2171.18 | JR53: 399.97 | JS53: 2171.18,399.97 | JU53: 4 | JV53: 19 | JW53: s | JX53: 995.83 | JY53: 1080.48 | JZ53: 995.83,1080.48 | KB53: 0 | KC53: 52 | KD53: a | KE53: 2231.18 | KF53: 399.97 | KG53: 2231.18,399.97 | KI53: 4 | KJ53: 19 | KK53: s | KL53: 995.83 | KM53: 1080.48 | KN53: 995.83,1080.48 | KP53: 0 | KQ53: 52 | KR53: a | KS53: 2291.18 | KT53: 399.97 | KU53: 2291.18,399.97 | KW53: 4 | KX53: 19 | KY53: s | KZ53: 995.83 | LA53: 1080.48 | LB53: 995.83,1080.48 | LD53: 0 | LE53: 52 | LF53: a | LG53: 2351.18 | LH53: 399.97 | LI53: 2351.18,399.97 | LK53: 0 | LL53: 52 | LM53: a | LN53: 2381.18 | LO53: 399.97 | LP53: 2381.18,399.97 | LR53: 0 | LS53: 52 | LT53: a | LU53: 2411.18 | LV53: 399.97 | LW53: 2411.18,399.97 | LY53: 0 | LZ53: 52 | MA53: a | MB53: 2441.18 | MC53: 399.97 | MD53: 2441.18,399.97 | MF53: 0 | MG53: 52 | MH53: a | MI53: 2471.18 | MJ53: 399.97 | MK53: 2471.18,399.97
A54: 5 | D54: 1000 | E54: 1100 | F54: PL 1000,1100 | H54: 0 | I54: 478 | J54: d | K54: 1040.22 | L54: 1004.17 | M54: 1040.22,1004.17 | O54: 5 | P54: 186 | Q54: w | R54: 1001.57 | S54: 1100 | T54: 1001.57,1100 | V54: 5 | W54: 366 | X54: s | Y54: 1000 | Z54: 1100 | AA54: 1000,1100 C | AC54: 4 | AD54: 19 | AE54: w | AF54: 1002.76 | AG54: 1077.06 | AH54: 1002.76,1077.06 | AJ54: 0 | AQ54: 5 | AR54: 294 | AS54: w | AT54: 996.95 | AU54: 1102.94 | AV54: 996.95,1102.94 | AX54: 6 | AY54: 202 | AZ54: a | BA54: 997.98 | BB54: 1120 | BC54: 997.98,1120 | BE54: 5 | BF54: 50 | BG54: d | BH54: 1002.65 | BI54: 1101.12 | BJ54: 1002.65,1101.12 | BL54: 4 | BM54: 38 | BN54: w | BO54: 999.52 | BP54: 1080.17 | BQ54: 999.52,1080.17 | BZ54: 5 | CA54: 64 | CB54: s | CC54: 1001.12 | CD54: 1100.86 | CE54: 1001.12,1100.86 C | CG54: 5 | CJ54: 1000 | CK54: 1100 | CL54: PL 1000,1100 | CN54: 4 | CO54: 21 | CP54: w | CQ54: 999.59 | CR54: 1080.03 | CS54: 999.59,1080.03 | CU54: 5 | CV54: 237 | CW54: d | CX54: 1002.37 | CY54: 1101.22 | CZ54: 1002.37,1101.22 | DB54: 6 | DC54: 430 | DD54: S | DE54: 1000 | DF54: 1115.7 | DG54: 1000,1115.7 | DI54: 4 | DJ54: 194 | DK54: w | DL54: 1000 | DM54: 1081.94 | DN54: 1000,1081.94 | DP54: 4 | DQ54: 42 | DR54: w | DS54: 999.63 | DT54: 1080.22 | DU54: 999.63,1080.22 | DW54: 5 | DZ54: 1000 | EA54: 1100 | EB54: PL 1000,1100 | ED54: 6 | EE54: 421 | EF54: s | EG54: 1000 | EH54: 1115.79 | EI54: 1000,1115.79 | EK54: 5 | EL54: 168 | EM54: a | EN54: 1000.07 | EO54: 1099.98 | EP54: 1000.07,1099.98 C | ER54: 4 | ES54: 36 | ET54: w | EU54: 999.63 | EV54: 1080.21 | EW54: 999.63,1080.21 | EY54: 4 | EZ54: 24 | FA54: d | FB54: 996.07 | FC54: 1080.48 | FD54: 996.07,1080.48 | FF54: 0 | FG54: 15 | FH54: s | FI54: 1691.18 | FJ54: 399.82 | FK54: 1691.18,399.82 | FM54: 4 | FN54: 24 | FO54: d | FP54: 996.07 | FQ54: 1080.48 | FR54: 996.07,1080.48 | FT54: 0 | FU54: 15 | FV54: s | FW54: 1751.18 | FX54: 399.82 | FY54: 1751.18,399.82 | GA54: 4 | GB54: 24 | GC54: d | GD54: 996.07 | GE54: 1080.48 | GF54: 996.07,1080.48 | GH54: 0 | GI54: 15 | GJ54: s | GK54: 1811.18 | GL54: 399.82 | GM54: 1811.18,399.82 | GO54: 4 | GP54: 24 | GQ54: d | GR54: 996.07 | GS54: 1080.48 | GT54: 996.07,1080.48 | GV54: 0 | GW54: 15 | GX54: s | GY54: 1871.18 | GZ54: 399.82 | HA54: 1871.18,399.82 | HC54: 4 | HD54: 24 | HE54: d | HF54: 996.07 | HG54: 1080.48 | HH54: 996.07,1080.48 | HJ54: 0 | HK54: 15 | HL54: s | HM54: 1931.18 | HN54: 399.82 | HO54: 1931.18,399.82 | HQ54: 4 | HR54: 24 | HS54: d | HT54: 996.07 | HU54: 1080.48 | HV54: 996.07,1080.48 | HX54: 0 | HY54: 15 | HZ54: s | IA54: 1991.18 | IB54: 399.82 | IC54: 1991.18,399.82 | IE54: 4 | IF54: 24 | IG54: d | IH54: 996.07 | II54: 1080.48 | IJ54: 996.07,1080.48 | IL54: 0 | IM54: 15 | IN54: s | IO54: 2051.18 | IP54: 399.82 | IQ54: 2051.18,399.82 | IS54: 4 | IT54: 24 | IU54: d | IV54: 996.07 | IW54: 1080.48 | IX54: 996.07,1080.48 | IZ54: 0 | JA54: 15 | JB54: s | JC54: 2111.18 | JD54: 399.82 | JE54: 2111.18,399.82 | JG54: 4 | JH54: 24 | JI54: d | JJ54: 996.07 | JK54: 1080.48 | JL54: 996.07,1080.48 | JN54: 0 | JO54: 15 | JP54: s | JQ54: 2171.18 | JR54: 399.82 | JS54: 2171.18,399.82 | JU54: 4 | JV54: 24 | JW54: d | JX54: 996.07 | JY54: 1080.48 | JZ54: 996.07,1080.48 | KB54: 0 | KC54: 15 | KD54: s | KE54: 2231.18 | KF54: 399.82 | KG54: 2231.18,399.82 | KI54: 4 | KJ54: 24 | KK54: d | KL54: 996.07 | KM54: 1080.48 | KN54: 996.07,1080.48 | KP54: 0 | KQ54: 15 | KR54: s | KS54: 2291.18 | KT54: 399.82 | KU54: 2291.18,399.82 | KW54: 4 | KX54: 24 | KY54: d | KZ54: 996.07 | LA54: 1080.48 | LB54: 996.07,1080.48 | LD54: 0 | LE54: 15 | LF54: s | LG54: 2351.18 | LH54: 399.82 | LI54: 2351.18,399.82 | LK54: 0 | LL54: 15 | LM54: s | LN54: 2381.18 | LO54: 399.82 | LP54: 2381.18,399.82 | LR54: 0 | LS54: 15 | LT54: s | LU54: 2411.18 | LV54: 399.82 | LW54: 2411.18,399.82 | LY54: 0 | LZ54: 15 | MA54: s | MB54: 2441.18 | MC54: 399.82 | MD54: 2441.18,399.82 | MF54: 0 | MG54: 15 | MH54: s | MI54: 2471.18 | MJ54: 399.82 | MK54: 2471.18,399.82
